Workbook

Sheet Info (hidden)
B2: Versiebeheer
B4: Versie | C4: Datum | D4: Omschrijving | E4: Bouwer | F4: Reviewer
B5: 2024.2 | C5: 2024-01-25 | D5: Aanpassingen in gespreksverslag en bruto-netto berekening. | E5: Roy Erkens | F5: Fabian Schumans
B6: 2024.1 | C6: 2023-12-18 | D6: Parameters voor 2024 aangepast. | E6: Roy Erkens | F6: Fabian Schumans
B7: 2023.4 | C7: 2023-09-12 | D7: Fout doortelling AO aangepast. | E7: Roy Erkens | F7: Roy Erkens
B8: 2023.3 | C8: 2023-07-04 | D8: Teksten gewijzigd met betrekking tot vastlegging. | E8: Roy Erkens | F8: Roy Erkens
B9: 2023.2 | C9: 2023-06-07 | D9: Berekening vakantiegeld AOW aangepast. Parameters per 1 juli 2023 aangepast. | E9: Roy Erkens | F9: Roy Erkens
B10: 2023.1 | C10: 2022-12-19 | D10: Parameters 2023 aangepast. Formulier gespreksvastlegging toegevoegd. | E10: Roy Erkens | F10: Roy Erkens
B11: 2022.4 | C11: 2022-09-09 | D11: Op verzoek diverse aanpassingen. | E11: Roy Erkens | F11: Roy Erkens
B12: 2022.3 | C12: 2022-08-08 | D12: Op verzoek diverse aanpassingen. | E12: Roy Erkens | F12: Roy Erkens
B13: 2022.2 | C13: 2022-07-11 | D13: - Diverse aanpassingen tbv bedrag ineens. - VPL verlies verwijderd. - Update parameters per juli 2022. | E13: Roy Erkens | F13: Roy Erkens
B14: 2022.1 | C14: 2021-12-20 | D14: Parameters voor 2022 aangepast. | E14: Roy Erkens | F14: Roy Erkens
B15: 2021.4 | C15: 2021-10-06 | D15: Opslaan aangepast. | E15: Roy Erkens | F15: Roy Erkens
B16: 2021.3 | C16: 2021-06-17 | D16: Factoren per 1 juli 2021 aangepast. | E16: Roy Erkens | F16: Roy Erkens
B17: 2021.2 | C17: 2021-02-02 | D17: Mogelijk om per uittreding ruilen wel of niet te kiezen in rekenblad. | E17: Roy Erkens | F17: Roy Erkens
B18: 2021.1 | C18: 2020-12-21 | D18: Parameters voor 2021 aangepast. | E18: Roy Erkens | F18: Roy Erkens
B19: 2020.6 | C19: 2020-11-16 | D19: Nieuwe disclaimertekst. | E19: Roy Erkens | F19: Dennis Becker
B20: 2020.5 | C20: 2020-07-01 | D20: Nieuwe AOW-bedragen en nettopensioenfactoren toegevoegd. Tabblad Pensioenschade gemaakt. Redesign tabblad Bruto-netto. | E20: Roy Erkens | F20: Dennis Becker
B21: 2020.4 | C21: 2020-02-18 | D21: Aanvullingen 18.8 en 18.9 in spreadsheet verwerkt. | E21: Roy Erkens | F21: Dennis Becker
B22: 2020.3 | C22: 2020-02-04 | D22: Redesign deeltijdAKP. | E22: Roy Erkens | F22: Dennis Becker
B23: 2020.2 | C23: 2020-01-23 | D23: Diverse aanpassingen tabblad NP. | E23: Roy Erkens | F23: Dennis Becker
B24: 2020.1 | C24: 2019-12-10 | D24: Parameters voor 2020 aangepast. | E24: Roy Erkens | F24: Dennis Becker
B25: 2019.8 | C25: 2019-11-21 | D25: Tabblad Transitie-BWWW toegevoegd. | E25: Roy Erkens | F25: Dennis Becker
B26: 2019.7 | C26: 2019-11-12 | D26: Automatische berekening verhoging NP. | E26: Roy Erkens | F26: Dennis Becker
B27: 2019.6 | C27: 2019-07-26 | D27: Ook mogelijk om fictieve AEP-inleg mee te nemen. | E27: Roy Erkens | F27: Dennis Becker
B28: 2019.5 | C28: 2019-07-24 | D28: Nieuwe AOW-leeftijd nav pensioenakkoord 2019 doorgevoerd. | E28: Roy Erkens | F28: Dennis Becker
B29: 2019.4 | C29: 2019-07-03 | D29: Nieuwe AOW-bedragen toegevoegd per 1-7-2019. | E29: Roy Erkens | F29: Dennis Becker
B30: 2019.3 | C30: 2019-06-07 | D30: Verwachte AOW-datum aangepast nav pensioenakkoord. | E30: Roy Erkens | F30: Dennis Becker
B31: 2019.2 | C31: 2019-02-08 | D31: Aanpassing in berekening nav controle. | E31: Roy Erkens | F31: Dennis Becker
B32: 2019.1 | C32: 2018-12-14 | D32: Parameters voor 2019 aangepast. | E32: Roy Erkens | F32: Dennis Becker
B33: 2018.3 | C33: 2018-08-28 | D33: Update per 1 oktober 2018. | E33: Roy Erkens | F33: Dennis Becker
B34: 2018.2 | C34: 2018-04-25 | D34: Update per 1 mei 2018. | E34: Roy Erkens | F34: Dennis Becker
B35: 2018.1 | C35: 2017-12-20 | D35: Parameters voor 2018 aangepast. | E35: Roy Erkens | F35: Dennis Becker
B36: 2017.5 | C36: 2017-09-08 | D36: Mogelijkheid om overige inkomsten mee te nemen en uitruil voor hoger NP toegevoegd. | E36: Dennis Becker | F36: Roy Erkens
B37: 2017.4 | C37: 2017-05-08 | D37: Berekening AOW-datum aangepast. | E37: Dennis Becker | F37: Roy Erkens
B38: 2017.3 | C38: 2017-03-31 | D38: Interpolatiefactoren AEP aangepast, ook mogelijk om na 70 jaar te berekenen. | E38: Dennis Becker | F38: Roy Erkens
B39: 2017.2 | C39: 2016-12-28 | D39: Berekenen vervolguittreding aangepast, en mogelijk om via rekenblad saldo aan nettopensioen toe te voegen en mee te nemen bij berekening. | E39: Dennis Becker | F39: Roy Erkens
B40: 2017.1 | C40: 2016-12-16 | D40: Parameters voor 2017 aangepast. | E40: Dennis Becker | F40: Roy Erkens
B41: 2016.7 | C41: 2016-12-09 | D41: AOW-leeftijd verhoogd naar 67 en 3 maanden voor deelnemers gebouwd na 1-1-1955. | E41: Roy Erkens | F41: Roy Erkens
B42: 2016.6 | C42: 2016-06-10 | D42: - Aanpassing gedaan bij berekening Tijdelijk OuderdomsPensioen (TOP). - Nu ook automatisch 10% pensioen bij WG en deelnemer ouder dan 60 jaar. | E42: Roy Erkens | F42: Martin Simons Jo Spons
B43: 2016.5 | C43: 2016-05-02 | D43: - Mogelijk om IP/AAOP bedragen mee te nemen in berekening. - Uittreedleeftijd in jaren en maanden zichtbaar gemaakt. - Meetelwaarde SBF aangepast (van 37,5 naar 50%). | E43: Roy Erkens | F43: Martin Simons Jo Spons
B44: 2016.4 | C44: 2016-04-25 | D44: - WW met meer dan 99 maanden was niet mogelijk om in te voeren, formule aangepast. - Adres aangepast op Aanvraagformulier. - Opmaak tabblad Scenario's aangepast. | E44: Roy Erkens | F44: Martin Simons Jo Spons
B45: 2016.3 | C45: 2016-04-19 | D45: Aangepast nav review gebruik Belastingdienst. - Regel ingevoegd bij aanvraagformulier bij alinea: Wilt u uw pensioen definitief aanvragen? - Verwijzingen naar Gehuwd/samenw. & Ongehuwd aangepast. | E45: Roy Erkens | F45: Martin Simons Jo Spons
B46: 2016.2 | C46: 2016-04-11 | D46: Nieuwe opzet tooling. Ook loonheffingstabellen per 1 april 2016 aangepast. | E46: Roy Erkens | F46: Martin Simons Jo Spons
B47: 2016.1 | C47: 2015-12-21 | D47: Eerste versie met aanpassingen 2016. Parameters toegevoegd. | E47: Roy Erkens | F47: Martin Simons Jo Spons
B48: 2015.4 | C48: 2015-07-27 | D48: Beperkingsfactor toegevoegd bij berekening pensioen. | E48: Roy Erkens | F48: Martin Simons Jo Spons
B49: 2015.3 | C49: 2015-04-29 | D49: Doortelling WW/WG aangepast. Beperkingsfactor toegevoegd. | E49: Roy Erkens | F49: Martin Simons Frank Rinkens
B50: 2015.2 | C50: 2015-01-29 | D50: Nu ook mogelijk om te rekenen met WW/WG. | E50: Roy Erkens | F50: Martin Simons Frank Rinkens
B51: 2015.1 | C51: 2015-01-08 | D51: Eerste versie met aanpassingen 2015. | E51: Roy Erkens | F51: Martin Simons Frank Rinkens
B53: Instructie

Sheet Vastlegging (hidden)
B2: Vastlegging gespreksverslag met pensioenvoorlichter
B4: Gegevens deelnemer | F4: Informatie gesprek
B5: Klantnummer | D5: =IF(Berekening!$C$3="","",Berekening!$C$3) ->  | F5: Adviseur | H5: invullen
B6: Naam | D6: =IF(Berekening!$C$4="","",Berekening!$C$4) ->  | F6: Datum gesprek | H6: =TODAY() -> 2024-01-25
B7: Geboortedatum | D7: =IF(Berekening!$C$5="","",Berekening!$C$5) ->  | F7: Pensioenfonds | H7: ='XML-Gespreksverslag'!$C$53 -> SPW
B9: Besproken onderwerpen | F9: Gebruikte middelen
B10: =IF('XML-Gespreksverslag'!$B3="","",1) -> 1 | C10: =IF(B10=1,'XML-Gespreksverslag'!$B3,"") -> Ingangsdatum en hoogte AOW | F10: =IF('XML-Gespreksverslag'!$B24="","",1) -> 1 | G10: =IF(F10=1,'XML-Gespreksverslag'!$B24,"") -> MijnSPW
C12: AANLEIDING | E12: AANDACHTSPUNT
C13: =IF('XML-Gespreksverslag'!$M$3="","",'XML-Gespreksverslag'!$M$3) -> Dn heeft algemene vragen 1e pijler | E13: =IF('XML-Gespreksverslag'!$N$3="","",'XML-Gespreksverslag'!$N$3) -> Samenhang AOW en pensioen en wie welke regeling uitvoert
C14: =IF('XML-Gespreksverslag'!$O$3="","",'XML-Gespreksverslag'!$O$3) -> Dn wil weten wanneer hij de AOW-leeftijd bereikt | E14: =IF('XML-Gespreksverslag'!$P$3="","",'XML-Gespreksverslag'!$P$3) -> Uitleg over hoe AOW-leeftijd is vastgesteld dan wel wordt vastgesteld in de toekomst en wat deze leeftijd voor dn en eventuele partner is
C15: =IF('XML-Gespreksverslag'!$Q$3="","",'XML-Gespreksverslag'!$Q$3) -> Dn wil weten hoeveel inkomstenbelasting wordt ingehouden | E15: =IF('XML-Gespreksverslag'!$R$3="","",'XML-Gespreksverslag'!$R$3) -> Uitleg omslagstelsel, wie premie betaalt en wanneer niet meer en gevolgen voor netto inkomen box 1
C16: =IF('XML-Gespreksverslag'!$S$3="","",'XML-Gespreksverslag'!$S$3) -> Dn geeft aan niet altijd in NL te hebben gewoond of gewerkt of er zijn aanwijzingen hiervoor | E16: =IF('XML-Gespreksverslag'!$T$3="","",'XML-Gespreksverslag'!$T$3) -> Wie wel en niet verzekerd zijn voor de AOW en wat het gevolg is voor de hoogte van het bedrag
C17: =IF('XML-Gespreksverslag'!$U$3="","",'XML-Gespreksverslag'!$U$3) -> Dn geeft afwijkende samenlevingsvorm nu of in de toekomst aan of er zijn aanwijzingen hiervoor | E17: =IF('XML-Gespreksverslag'!$V$3="","",'XML-Gespreksverslag'!$V$3) -> Hoe de hoogte van het AOW bedrag wordt vasgesteld op basis van burgerlijke staat
C18: =IF('XML-Gespreksverslag'!$W$3="","",'XML-Gespreksverslag'!$W$3) -> Dn ontvangt een UWV-uitkering (WW, WIA, WAO) of gaat deze ontvangen | E18: =IF('XML-Gespreksverslag'!$X$3="","",'XML-Gespreksverslag'!$X$3) -> Hoe de AOW zich verhoudt tot sociale uitkeringen en werknemersverzekeringen m.b.t. de duur van deze uitkeringen
C19: =IF('XML-Gespreksverslag'!$Y$3="","",'XML-Gespreksverslag'!$Y$3) -> Dn wil (eerder, later of op AOW-leeftijd) stoppen met werken | E19: =IF('XML-Gespreksverslag'!$Z$3="","",'XML-Gespreksverslag'!$Z$3) -> Effect AOW-leeftijd op- en samenhang AOW-leeftijd met gekozen ingangsdatum pensioen
C20: =IF('XML-Gespreksverslag'!$AA$3="","",'XML-Gespreksverslag'!$AA$3) ->  | E20: =IF('XML-Gespreksverslag'!$AB$3="","",'XML-Gespreksverslag'!$AB$3) -> 
C21: =IF('XML-Gespreksverslag'!$AC$3="","",'XML-Gespreksverslag'!$AC$3) ->  | E21: =IF('XML-Gespreksverslag'!$AD$3="","",'XML-Gespreksverslag'!$AD$3) -> 
C22: =IF('XML-Gespreksverslag'!$AE$3="","",'XML-Gespreksverslag'!$AE$3) ->  | E22: =IF('XML-Gespreksverslag'!$AF$3="","",'XML-Gespreksverslag'!$AF$3) -> 
B24: =IF('XML-Gespreksverslag'!$B4="","",1) -> 1 | C24: =IF(B24=1,'XML-Gespreksverslag'!$B4,"") -> Ingangsdatum ouderdomspensioen | F24: =IF('XML-Gespreksverslag'!$B25="","",1) ->  | G24: =IF(F24=1,'XML-Gespreksverslag'!$B25,"") -> 
C26: AANLEIDING | E26: AANDACHTSPUNT
C27: =IF('XML-Gespreksverslag'!$M$4="","",'XML-Gespreksverslag'!$M$4) -> Dn wil integraal inzicht 1e en 2e pijler | E27: =IF('XML-Gespreksverslag'!$N$4="","",'XML-Gespreksverslag'!$N$4) -> Verschil tussen pensioenleeftijd, rekenleetijd en AOW-leeftijd
C28: =IF('XML-Gespreksverslag'!$O$4="","",'XML-Gespreksverslag'!$O$4) -> Dn wil weten wanneer hij met pensioen kan gaan | E28: =IF('XML-Gespreksverslag'!$P$4="","",'XML-Gespreksverslag'!$P$4) -> Vanaf wanneer je met pensioen kan gaan en hoe zich dit verhoudt met de hoogte van de pensioenuitkering
C29: =IF('XML-Gespreksverslag'!$Q$4="","",'XML-Gespreksverslag'!$Q$4) -> Dn wil weten welke keuzes hij heeft als hij (deels) wil stoppen met werken | E29: =IF('XML-Gespreksverslag'!$R$4="","",'XML-Gespreksverslag'!$R$4) -> Samenhang van pensioenkeuzes op ingangsdatum
C30: =IF('XML-Gespreksverslag'!$S$4="","",'XML-Gespreksverslag'!$S$4) -> Dn geeft aan (terminaal) ziek te zijn | E30: =IF('XML-Gespreksverslag'!$T$4="","",'XML-Gespreksverslag'!$T$4) -> Mogelijkheden om eerder pensioen op te nemen en fiscale gevolgen en de gevolgen op andere inkomsten
C31: =IF('XML-Gespreksverslag'!$U$4="","",'XML-Gespreksverslag'!$U$4) -> Dn heeft of krijgt regeling aangeboden via werkgever | E31: =IF('XML-Gespreksverslag'!$V$4="","",'XML-Gespreksverslag'!$V$4) -> Mogelijkheden om pensioen en werkgeversregeling te combineren
C32: =IF('XML-Gespreksverslag'!$W$4="","",'XML-Gespreksverslag'!$W$4) -> Dn overweegt of kiest om langer door te werken | E32: =IF('XML-Gespreksverslag'!$X$4="","",'XML-Gespreksverslag'!$X$4) -> Verhoging pensioen bij uitstellen en effect op pensioenopbouw in samenhang met arbeidsovereenkomst
C33: =IF('XML-Gespreksverslag'!$Y$4="","",'XML-Gespreksverslag'!$Y$4) -> Dn wil graag eerder of alvast pensioen opnemen | E33: =IF('XML-Gespreksverslag'!$Z$4="","",'XML-Gespreksverslag'!$Z$4) -> Gevolgen van ingaan pensioen langer dan 5 jaar vóór AOW-leeftijd i.v.m. intentieverklaring
C34: =IF('XML-Gespreksverslag'!$AA$4="","",'XML-Gespreksverslag'!$AA$4) ->  | E34: =IF('XML-Gespreksverslag'!$AB$4="","",'XML-Gespreksverslag'!$AB$4) -> 
C35: =IF('XML-Gespreksverslag'!$AC$4="","",'XML-Gespreksverslag'!$AC$4) ->  | E35: =IF('XML-Gespreksverslag'!$AD$4="","",'XML-Gespreksverslag'!$AD$4) -> 
C36: =IF('XML-Gespreksverslag'!$AE$4="","",'XML-Gespreksverslag'!$AE$4) ->  | E36: =IF('XML-Gespreksverslag'!$AF$4="","",'XML-Gespreksverslag'!$AF$4) -> 
B38: =IF('XML-Gespreksverslag'!$B5="","",1) -> 1 | C38: =IF(B38=1,'XML-Gespreksverslag'!$B5,"") -> Mogelijkheden deeltijdpensioen | F38: =IF('XML-Gespreksverslag'!$B26="","",1) -> 1 | G38: =IF(F38=1,'XML-Gespreksverslag'!$B26,"") -> Offerte ouderdomspensioen
C40: AANLEIDING | E40: AANDACHTSPUNT
C41: =IF('XML-Gespreksverslag'!$M$5="","",'XML-Gespreksverslag'!$M$5) -> Dn wil graag minder (gaan) werken | E41: =IF('XML-Gespreksverslag'!$N$5="","",'XML-Gespreksverslag'!$N$5) -> Effect op pensioenopbouw en mogelijkheid tot aanvullen inkomen met een deel pensioen
C42: =IF('XML-Gespreksverslag'!$O$5="","",'XML-Gespreksverslag'!$O$5) -> Dn heeft of krijgt regeling aangeboden via werkgever (b.v. RVU, DI, Generatiepact, etc.) | E42: =IF('XML-Gespreksverslag'!$P$5="","",'XML-Gespreksverslag'!$P$5) -> (On)mogelijkheden om pensioenoname te combineren met een werkgeversregeling
C43: =IF('XML-Gespreksverslag'!$Q$5="","",'XML-Gespreksverslag'!$Q$5) -> Dn wil weten welke keuzes hij heeft als hij (deels) wil stoppen met werken | E43: =IF('XML-Gespreksverslag'!$R$5="","",'XML-Gespreksverslag'!$R$5) -> Hoeveel je minimaal moet opnemen en in welke eenheden je dit kan doen en hoe vaak je met pensioen mag gaan
C44: =IF('XML-Gespreksverslag'!$S$5="","",'XML-Gespreksverslag'!$S$5) -> Dn wil weten hoeveel pensioen het hem later kost als hij eerst deeltijdpensioen opneemt | E44: =IF('XML-Gespreksverslag'!$T$5="","",'XML-Gespreksverslag'!$T$5) -> Effect deeltijdpensioen op (keuzes met) latere vervolguitreding(en) en pensioenopbouw
C45: =IF('XML-Gespreksverslag'!$U$5="","",'XML-Gespreksverslag'!$U$5) -> Dn geeft aan of er is aanwijzing tot dat hij langer dan 5 jaar vóór AOW-leeftijd deeltijdpensioen wil | E45: =IF('XML-Gespreksverslag'!$V$5="","",'XML-Gespreksverslag'!$V$5) -> Gevolgen van opnemen deeltijdpensioen langer dan 5 jaar vóór AOW-leeftijd i.v.m. intentieverklaring
C46: =IF('XML-Gespreksverslag'!$W$5="","",'XML-Gespreksverslag'!$W$5) -> Dn geeft aan een specifiek bedrag te willen opnemen aan pensioen | E46: =IF('XML-Gespreksverslag'!$X$5="","",'XML-Gespreksverslag'!$X$5) -> Mogelijkheden om te variëren in deeltijdpercentage pensioenopname dan wel het variëren met de uitkering
C47: =IF('XML-Gespreksverslag'!$Y$5="","",'XML-Gespreksverslag'!$Y$5) -> Dn wil pensioen opnemen en ongewijzigd blijven doorwerken of ergens anders gaan werken | E47: =IF('XML-Gespreksverslag'!$Z$5="","",'XML-Gespreksverslag'!$Z$5) -> Fiscale beperkingen intentieverklaring toelichten zowel op ingangsdatum pensioen als periode hieropvolgend
C48: =IF('XML-Gespreksverslag'!$AA$5="","",'XML-Gespreksverslag'!$AA$5) ->  | E48: =IF('XML-Gespreksverslag'!$AB$5="","",'XML-Gespreksverslag'!$AB$5) -> 
C49: =IF('XML-Gespreksverslag'!$AC$5="","",'XML-Gespreksverslag'!$AC$5) ->  | E49: =IF('XML-Gespreksverslag'!$AD$5="","",'XML-Gespreksverslag'!$AD$5) -> 
C50: =IF('XML-Gespreksverslag'!$AE$5="","",'XML-Gespreksverslag'!$AE$5) ->  | E50: =IF('XML-Gespreksverslag'!$AF$5="","",'XML-Gespreksverslag'!$AF$5) -> 
B52: =IF('XML-Gespreksverslag'!$B6="","",1) -> 1 | C52: =IF(B52=1,'XML-Gespreksverslag'!$B6,"") -> Verhogen nabestaandenpensioen | F52: =IF('XML-Gespreksverslag'!$B27="","",IF($B$192=1,1,"")) -> 1 | G52: =IF(F52=1,'XML-Gespreksverslag'!$B27,"") -> Offerte vrijwillige voortzetting
C54: AANLEIDING | E54: AANDACHTSPUNT
C55: =IF('XML-Gespreksverslag'!$M$6="","",'XML-Gespreksverslag'!$M$6) -> Dn wil weten welke keuzes hij heeft als hij (deels) wil stoppen met werken | E55: =IF('XML-Gespreksverslag'!$N$6="","",'XML-Gespreksverslag'!$N$6) -> Pensioenkeuzes toelichten en samenhang hiermee wanneer NP wordt verhoogd
C56: =IF('XML-Gespreksverslag'!$O$6="","",'XML-Gespreksverslag'!$O$6) -> Dn geeft aan (terminaal) ziek te zijn | E56: =IF('XML-Gespreksverslag'!$P$6="","",'XML-Gespreksverslag'!$P$6) -> Voorwaarden om NP te verhogen en de hoogte hiervan bepalen
C57: =IF('XML-Gespreksverslag'!$Q$6="","",'XML-Gespreksverslag'!$Q$6) -> Dn geeft aan dat partner geen of weinig pensioen heeft opgebouwd en/of geen of laag inkomen heeft | E57: =IF('XML-Gespreksverslag'!$R$6="","",'XML-Gespreksverslag'!$R$6) -> Wat de (maximale) hoogte wordt van het NP bij uitruilkeuze en wat dit kost aan OP
C58: =IF('XML-Gespreksverslag'!$S$6="","",'XML-Gespreksverslag'!$S$6) -> Dn heeft een veel jongere partner | E58: =IF('XML-Gespreksverslag'!$T$6="","",'XML-Gespreksverslag'!$T$6) -> Uitruilkeuze toelichten met werking van omruilfactoren OP naar NP
C59: =IF('XML-Gespreksverslag'!$U$6="","",'XML-Gespreksverslag'!$U$6) -> Dn vindt het belangrijk te weten hoe hoog het NP is voor de partner bij overlijden | E59: =IF('XML-Gespreksverslag'!$V$6="","",'XML-Gespreksverslag'!$V$6) -> Inzicht in totale hoogte NP, incl. evt aanvullingen en AOW en de mogelijkheid om het te verhogen door uitruilkeuze
C60: =IF('XML-Gespreksverslag'!$W$6="","",'XML-Gespreksverslag'!$W$6) -> Dn zou graag het NP verder willen verhogen | E60: =IF('XML-Gespreksverslag'!$X$6="","",'XML-Gespreksverslag'!$X$6) -> Uitleg over maximale hoogte NP in 2e pijler, eventueel doorverwijzen naar externe partij voor 3e pijler product
C61: =IF('XML-Gespreksverslag'!$Y$6="","",'XML-Gespreksverslag'!$Y$6) -> Dn wil weten wat het effect is voor de ex-partner als het NP voor huidige partner wordt verhoogd | E61: =IF('XML-Gespreksverslag'!$Z$6="","",'XML-Gespreksverslag'!$Z$6) -> Verschil tussen NP en BNP en dat uitruil een pensioenkeuze is om "eigen" potjes anders te verdelen
C62: =IF('XML-Gespreksverslag'!$AA$6="","",'XML-Gespreksverslag'!$AA$6) -> Dn geeft aan te stoppen met werken dan wel geen deelnemer bij huidige fonds blijft | E62: =IF('XML-Gespreksverslag'!$AB$6="","",'XML-Gespreksverslag'!$AB$6) -> Uitleggen wat risicogedekt NP is en welke mogelijkheden er zijn om dit deel veilig te stellen en wat dat betekent voor OP
C63: =IF('XML-Gespreksverslag'!$AC$6="","",'XML-Gespreksverslag'!$AC$6) -> Dn wil met pensioen gaan en NP verhogen | E63: =IF('XML-Gespreksverslag'!$AD$6="","",'XML-Gespreksverslag'!$AD$6) -> Toelichting op aanvraagproces AKP met verhogen NP
C64: =IF('XML-Gespreksverslag'!$AE$6="","",'XML-Gespreksverslag'!$AE$6) -> Dn gaat het fonds verlaten en wil weten wat hij moet doen | E64: =IF('XML-Gespreksverslag'!$AF$6="","",'XML-Gespreksverslag'!$AF$6) -> Toelichting op proces uitruil OP-NP bij einde dienstverband
B66: =IF('XML-Gespreksverslag'!$B7="","",1) -> 1 | C66: =IF(B66=1,'XML-Gespreksverslag'!$B7,"") -> Verlagen nabestaandenpensioen | F66: =IF('XML-Gespreksverslag'!$B28="","",IF($B$220=1,1,"")) -> 1 | G66: =IF(F66=1,'XML-Gespreksverslag'!$B28,"") -> Offerte nettopensioenregeling
C68: AANLEIDING | E68: AANDACHTSPUNT
C69: =IF('XML-Gespreksverslag'!$M$7="","",'XML-Gespreksverslag'!$M$7) -> Dn wil weten welke keuzes hij heeft als hij (deels) wil stoppen met werken | E69: =IF('XML-Gespreksverslag'!$N$7="","",'XML-Gespreksverslag'!$N$7) -> Pensioenkeuzes toelichten en samenhang hiermee wanneer NP wordt verlaagd
C70: =IF('XML-Gespreksverslag'!$O$7="","",'XML-Gespreksverslag'!$O$7) -> Dn geeft aan dat partner (terminaal) ziek is | E70: =IF('XML-Gespreksverslag'!$P$7="","",'XML-Gespreksverslag'!$P$7) -> Voorwaarden en risico's bespreken van verlagen NP en wat dit oplevert aan extra OP
C71: =IF('XML-Gespreksverslag'!$Q$7="","",'XML-Gespreksverslag'!$Q$7) -> Dn geeft aan dat partner zelf een goed pensioen/ inkomen heeft | E71: =IF('XML-Gespreksverslag'!$R$7="","",'XML-Gespreksverslag'!$R$7) -> Wijzen op mogelijkheid verlagen NP en wat dit oplevert aan extra OP enerzijds en anderzijds hoe hoog het (restant) NP is
C72: =IF('XML-Gespreksverslag'!$S$7="","",'XML-Gespreksverslag'!$S$7) -> Dn heeft een veel oudere partner | E72: =IF('XML-Gespreksverslag'!$T$7="","",'XML-Gespreksverslag'!$T$7) -> Uitruilkeuze toelichten met werking van omruilfactoren NP naar OP en finaniele risico's die aan deze keuzes verbonden zijn
C73: =IF('XML-Gespreksverslag'!$U$7="","",'XML-Gespreksverslag'!$U$7) -> Dn heeft geen partner | E73: =IF('XML-Gespreksverslag'!$V$7="","",'XML-Gespreksverslag'!$V$7) -> Toelichten van default NP verlagen en gevolgen voor eventueel toekomstige partner
C74: =IF('XML-Gespreksverslag'!$W$7="","",'XML-Gespreksverslag'!$W$7) -> Dn heeft een ex-partner | E74: =IF('XML-Gespreksverslag'!$X$7="","",'XML-Gespreksverslag'!$X$7) -> Nagaan of er recht is op BNP en of dit de bedoeling was en of dit een beperking of ruimte opevert aan de ruilkeuze
C75: =IF('XML-Gespreksverslag'!$Y$7="","",'XML-Gespreksverslag'!$Y$7) -> Dn geeft aan of er zijn aanwijzingen hiervoor dat hij niet begrijpt waarom de bedragen afwijken | E75: =IF('XML-Gespreksverslag'!$Z$7="","",'XML-Gespreksverslag'!$Z$7) -> Uitleg over welke delen van NP mogen worden toegevoegd aan OP
C76: =IF('XML-Gespreksverslag'!$AA$7="","",'XML-Gespreksverslag'!$AA$7) -> Dn wil met pensioen gaan en NP verhogen | E76: =IF('XML-Gespreksverslag'!$AB$7="","",'XML-Gespreksverslag'!$AB$7) -> Toelichting op aanvraagproces AKP met verlagen NP
C77: =IF('XML-Gespreksverslag'!$AC$7="","",'XML-Gespreksverslag'!$AC$7) ->  | E77: =IF('XML-Gespreksverslag'!$AD$7="","",'XML-Gespreksverslag'!$AD$7) -> 
C78: =IF('XML-Gespreksverslag'!$AE$7="","",'XML-Gespreksverslag'!$AE$7) ->  | E78: =IF('XML-Gespreksverslag'!$AF$7="","",'XML-Gespreksverslag'!$AF$7) -> 
B80: =IF('XML-Gespreksverslag'!$B8="","",1) -> 1 | C80: =IF(B80=1,'XML-Gespreksverslag'!$B8,"") -> Pensioen anders verdelen | F80: =IF('XML-Gespreksverslag'!$B29="","",1) -> 1 | G80: =IF(F80=1,'XML-Gespreksverslag'!$B29,"") -> Gewezen op afwegingen in gespreksverslag
C82: AANLEIDING | E82: AANDACHTSPUNT
C83: =IF('XML-Gespreksverslag'!$M$8="","",'XML-Gespreksverslag'!$M$8) -> Dn wil weten welke keuzes hij heeft als hij (deels) wil stoppen met werken | E83: =IF('XML-Gespreksverslag'!$N$8="","",'XML-Gespreksverslag'!$N$8) -> Pensioenkeuzes toelichten en samenhang hiermee wanneer je wil variëren met de uitkering
C84: =IF('XML-Gespreksverslag'!$O$8="","",'XML-Gespreksverslag'!$O$8) -> Dn geeft aan (terminaal) ziek te zijn | E84: =IF('XML-Gespreksverslag'!$P$8="","",'XML-Gespreksverslag'!$P$8) -> Mogelijkheden laten zien om je pensioen aan het begin tijdelijk maximaal te verhogen
C85: =IF('XML-Gespreksverslag'!$Q$8="","",'XML-Gespreksverslag'!$Q$8) -> Dn geeft aan in het begin meer geld nodig te hebben om….. | E85: =IF('XML-Gespreksverslag'!$R$8="","",'XML-Gespreksverslag'!$R$8) -> Effect laten zien van variatie met pensioenuitkering i.c.m. vaststellen en wijzigen periode hoog-laag of andersom
C86: =IF('XML-Gespreksverslag'!$S$8="","",'XML-Gespreksverslag'!$S$8) -> Dn geeft aan nog over een andere inkomstenbron dan wel vermogen te beschikken en geeft eventueel inzicht in lasten en fluctuaties hierin | E86: =IF('XML-Gespreksverslag'!$T$8="","",'XML-Gespreksverslag'!$T$8) -> Scenario's laten zien van variaties en effect van tijdelijke verhoging/ verlaging op levenslang OP
C87: =IF('XML-Gespreksverslag'!$U$8="","",'XML-Gespreksverslag'!$U$8) -> Dn wil eerder stoppen met werken dan de AOW-leeftijd | E87: =IF('XML-Gespreksverslag'!$V$8="","",'XML-Gespreksverslag'!$V$8) -> Mogelijkheid tonen in bedragen van verhoging AKP tot AOW-leeftijd, zodat de netto-uitkering vóór en ná en incl. AOW hetzelfde is
C88: =IF('XML-Gespreksverslag'!$W$8="","",'XML-Gespreksverslag'!$W$8) -> Dn wil eerder met pensioen gaan en netto ongeveer hetzelfde krijgen de rest van zijn leven | E88: =IF('XML-Gespreksverslag'!$X$8="","",'XML-Gespreksverslag'!$X$8) -> Laten zien wat het maximale bedrag is dat je kunt opnemen tot je AOW-leeftijd als je eerder stopt
C89: =IF('XML-Gespreksverslag'!$Y$8="","",'XML-Gespreksverslag'!$Y$8) ->  | E89: =IF('XML-Gespreksverslag'!$Z$8="","",'XML-Gespreksverslag'!$Z$8) -> 
C90: =IF('XML-Gespreksverslag'!$AA$8="","",'XML-Gespreksverslag'!$AA$8) ->  | E90: =IF('XML-Gespreksverslag'!$AB$8="","",'XML-Gespreksverslag'!$AB$8) -> 
C91: =IF('XML-Gespreksverslag'!$AC$8="","",'XML-Gespreksverslag'!$AC$8) ->  | E91: =IF('XML-Gespreksverslag'!$AD$8="","",'XML-Gespreksverslag'!$AD$8) -> 
C92: =IF('XML-Gespreksverslag'!$AE$8="","",'XML-Gespreksverslag'!$AE$8) ->  | E92: =IF('XML-Gespreksverslag'!$AF$8="","",'XML-Gespreksverslag'!$AF$8) -> 
B94: =IF('XML-Gespreksverslag'!$B9="","",1) -> 1 | C94: =IF(B94=1,'XML-Gespreksverslag'!$B9,"") -> Loonheffingskorting | F94: =IF('XML-Gespreksverslag'!$B30="","",1) ->  | G94: =IF(F94=1,'XML-Gespreksverslag'!$B30,"") -> 
C96: AANLEIDING | E96: AANDACHTSPUNT
C97: =IF('XML-Gespreksverslag'!$M$9="","",'XML-Gespreksverslag'!$M$9) -> Dn wil inzicht in fiscale gevolgen wanneer een pensioenuitkering start | E97: =IF('XML-Gespreksverslag'!$N$9="","",'XML-Gespreksverslag'!$N$9) -> Uitleg progressieve belastingschijven en heffingskortingen vóór en ná AOW-leeftijd
C98: =IF('XML-Gespreksverslag'!$O$9="","",'XML-Gespreksverslag'!$O$9) -> Dn geeft aan meerdere inkomens te ontvangen (privé, werkgever, UWV, etc) | E98: =IF('XML-Gespreksverslag'!$P$9="","",'XML-Gespreksverslag'!$P$9) -> Uitleg over voorwaarden LHK en verschil tussen voorheffing en eindheffing met nabetaling of teruggave als gevolg
C99: =IF('XML-Gespreksverslag'!$Q$9="","",'XML-Gespreksverslag'!$Q$9) -> Dn wil inzicht in netto bedragen vanaf AOW-leeftijd | E99: =IF('XML-Gespreksverslag'!$R$9="","",'XML-Gespreksverslag'!$R$9) -> Uitleg over default keuze LHK op nee vanaf AOW
C100: =IF('XML-Gespreksverslag'!$S$9="","",'XML-Gespreksverslag'!$S$9) -> Dn wil of overweegt deeltijdpensioen op te nemen | E100: =IF('XML-Gespreksverslag'!$T$9="","",'XML-Gespreksverslag'!$T$9) -> Uitleg over wel of geen LHK en wijzen op het nakijken of en waar op dit moment LHK wordt toegepast
C101: =IF('XML-Gespreksverslag'!$U$9="","",'XML-Gespreksverslag'!$U$9) -> Dn wil inzicht in de netto bedragen die hij uiteindelijk te besteden heeft | E101: =IF('XML-Gespreksverslag'!$V$9="","",'XML-Gespreksverslag'!$V$9) -> Bruto-netto berekening met uitleg over loonheffing, Zvw bijdrage en LHK en effect van eindheffing bij meerdere inkomen
C102: =IF('XML-Gespreksverslag'!$W$9="","",'XML-Gespreksverslag'!$W$9) ->  | E102: =IF('XML-Gespreksverslag'!$X$9="","",'XML-Gespreksverslag'!$X$9) -> 
C103: =IF('XML-Gespreksverslag'!$Y$9="","",'XML-Gespreksverslag'!$Y$9) ->  | E103: =IF('XML-Gespreksverslag'!$Z$9="","",'XML-Gespreksverslag'!$Z$9) -> 
C104: =IF('XML-Gespreksverslag'!$AA$9="","",'XML-Gespreksverslag'!$AA$9) ->  | E104: =IF('XML-Gespreksverslag'!$AB$9="","",'XML-Gespreksverslag'!$AB$9) -> 
C105: =IF('XML-Gespreksverslag'!$AC$9="","",'XML-Gespreksverslag'!$AC$9) ->  | E105: =IF('XML-Gespreksverslag'!$AD$9="","",'XML-Gespreksverslag'!$AD$9) -> 
C106: =IF('XML-Gespreksverslag'!$AE$9="","",'XML-Gespreksverslag'!$AE$9) ->  | E106: =IF('XML-Gespreksverslag'!$AF$9="","",'XML-Gespreksverslag'!$AF$9) -> 
B108: =IF('XML-Gespreksverslag'!$B10="","",1) -> 1 | C108: =IF(B108=1,'XML-Gespreksverslag'!$B10,"") -> Minder werken | F108: =IF('XML-Gespreksverslag'!$B31="","",1) ->  | G108: =IF(F108=1,'XML-Gespreksverslag'!$B31,"") -> 
C110: AANLEIDING | E110: AANDACHTSPUNT
C111: =IF('XML-Gespreksverslag'!$M$16="","",'XML-Gespreksverslag'!$M$16) -> Dn is of raakt arbeidsongeschikt | E111: =IF('XML-Gespreksverslag'!$N$16="","",'XML-Gespreksverslag'!$N$16) -> Uitleg over premievrije voortzetting tijdens AO en mogelijkheid om bij te sparen en wat dit dan kost en oplevert
C112: =IF('XML-Gespreksverslag'!$O$16="","",'XML-Gespreksverslag'!$O$16) -> Dn is of raakt werkloos | E112: =IF('XML-Gespreksverslag'!$P$16="","",'XML-Gespreksverslag'!$P$16) -> Uitleg over voortzetting pensioenopbouw via werkgever en/of UWV tijdens WW en mogelijkheid om bij te sparen en wat dit dan kost en oplevert
C113: =IF('XML-Gespreksverslag'!$Q$16="","",'XML-Gespreksverslag'!$Q$16) -> Dn gaat ergens anders werken of als zelfstandige beginnen/ voortzetten | E113: =IF('XML-Gespreksverslag'!$R$16="","",'XML-Gespreksverslag'!$R$16) -> Uitleg over hoeveel, hoe lang en wanneer je pensioenopbouw mag voortzetten en wanneer niet en wat dit kost
C114: =IF('XML-Gespreksverslag'!$S$16="","",'XML-Gespreksverslag'!$S$16) -> Dn krijgt een VSO aangeboden door de werkgever | E114: =IF('XML-Gespreksverslag'!$T$16="","",'XML-Gespreksverslag'!$T$16) -> Bespreken wat de regeling van de werkgever inhoudt m.b.t. hoogte pensioenopbouw en of er ruimte is om pensioenopbouw voort te zetten
C115: =IF('XML-Gespreksverslag'!$U$16="","",'XML-Gespreksverslag'!$U$16) ->  | E115: =IF('XML-Gespreksverslag'!$V$16="","",'XML-Gespreksverslag'!$V$16) -> 
C116: =IF('XML-Gespreksverslag'!$W$16="","",'XML-Gespreksverslag'!$W$16) ->  | E116: =IF('XML-Gespreksverslag'!$X$16="","",'XML-Gespreksverslag'!$X$16) -> 
C117: =IF('XML-Gespreksverslag'!$Y$16="","",'XML-Gespreksverslag'!$Y$16) ->  | E117: =IF('XML-Gespreksverslag'!$Z$16="","",'XML-Gespreksverslag'!$Z$16) -> 
C118: =IF('XML-Gespreksverslag'!$AA$16="","",'XML-Gespreksverslag'!$AA$16) ->  | E118: =IF('XML-Gespreksverslag'!$AB$16="","",'XML-Gespreksverslag'!$AB$16) -> 
C119: =IF('XML-Gespreksverslag'!$AC$16="","",'XML-Gespreksverslag'!$AC$16) ->  | E119: =IF('XML-Gespreksverslag'!$AD$16="","",'XML-Gespreksverslag'!$AD$16) -> 
C120: =IF('XML-Gespreksverslag'!$AE$16="","",'XML-Gespreksverslag'!$AE$16) ->  | E120: =IF('XML-Gespreksverslag'!$AF$16="","",'XML-Gespreksverslag'!$AF$16) -> 
B122: =IF('XML-Gespreksverslag'!$B11="","",1) -> 1 | C122: =IF(B122=1,'XML-Gespreksverslag'!$B11,"") -> Arbeidsongeschiktheid | F122: =IF('XML-Gespreksverslag'!$B32="","",1) ->  | G122: =IF(F122=1,'XML-Gespreksverslag'!$B32,"") -> 
C124: AANLEIDING | E124: AANDACHTSPUNT
C125: =IF('XML-Gespreksverslag'!$M$10="","",'XML-Gespreksverslag'!$M$10) -> Dn geeft aan minder te willen werken of gaat minder werken | E125: =IF('XML-Gespreksverslag'!$N$10="","",'XML-Gespreksverslag'!$N$10) -> Uitleggen hoe en hoeveel pensioen je opbouwt en wat het effect hierop is van minder werken
C126: =IF('XML-Gespreksverslag'!$O$10="","",'XML-Gespreksverslag'!$O$10) -> Dn kan gebruik maken of maakt gebruikt van een seniorenregeling via werkgever | E126: =IF('XML-Gespreksverslag'!$P$10="","",'XML-Gespreksverslag'!$P$10) -> Effect van minder werken en minder pensioen opbouwen op maandelijkse pensioenuitkering straks en combinatiemogelijkheden met deeltijdpensioen
C127: =IF('XML-Gespreksverslag'!$Q$10="","",'XML-Gespreksverslag'!$Q$10) -> Dn heeft of krijgt (bijzonder) verlof | E127: =IF('XML-Gespreksverslag'!$R$10="","",'XML-Gespreksverslag'!$R$10) -> Uitleg over verplichtingen werkgever en werknemer m.b.t. pensioenopbouw en premie tijdens verlof
C128: =IF('XML-Gespreksverslag'!$S$10="","",'XML-Gespreksverslag'!$S$10) ->  | E128: =IF('XML-Gespreksverslag'!$T$10="","",'XML-Gespreksverslag'!$T$10) -> 
C129: =IF('XML-Gespreksverslag'!$U$10="","",'XML-Gespreksverslag'!$U$10) ->  | E129: =IF('XML-Gespreksverslag'!$V$10="","",'XML-Gespreksverslag'!$V$10) -> 
C130: =IF('XML-Gespreksverslag'!$W$10="","",'XML-Gespreksverslag'!$W$10) ->  | E130: =IF('XML-Gespreksverslag'!$X$10="","",'XML-Gespreksverslag'!$X$10) -> 
C131: =IF('XML-Gespreksverslag'!$Y$10="","",'XML-Gespreksverslag'!$Y$10) ->  | E131: =IF('XML-Gespreksverslag'!$Z$10="","",'XML-Gespreksverslag'!$Z$10) -> 
C132: =IF('XML-Gespreksverslag'!$AA$10="","",'XML-Gespreksverslag'!$AA$10) ->  | E132: =IF('XML-Gespreksverslag'!$AB$10="","",'XML-Gespreksverslag'!$AB$10) -> 
C133: =IF('XML-Gespreksverslag'!$AC$10="","",'XML-Gespreksverslag'!$AC$10) ->  | E133: =IF('XML-Gespreksverslag'!$AD$10="","",'XML-Gespreksverslag'!$AD$10) -> 
C134: =IF('XML-Gespreksverslag'!$AE$10="","",'XML-Gespreksverslag'!$AE$10) ->  | E134: =IF('XML-Gespreksverslag'!$AF$10="","",'XML-Gespreksverslag'!$AF$10) -> 
B136: =IF('XML-Gespreksverslag'!$B12="","",1) -> 1 | C136: =IF(B136=1,'XML-Gespreksverslag'!$B12,"") -> Overlijden | F136: =IF('XML-Gespreksverslag'!$B33="","",1) ->  | G136: =IF(F136=1,'XML-Gespreksverslag'!$B33,"") -> 
C138: AANLEIDING | E138: AANDACHTSPUNT
C139: =IF('XML-Gespreksverslag'!$M$11="","",'XML-Gespreksverslag'!$M$11) -> Dn dreigt ao te worden | E139: =IF('XML-Gespreksverslag'!$N$11="","",'XML-Gespreksverslag'!$N$11) -> Globale uitleg over UWV proces en specifieker over aanvragen AOP gericht op aanvullende uitkering en premievrije opbouw
C140: =IF('XML-Gespreksverslag'!$O$11="","",'XML-Gespreksverslag'!$O$11) -> Dn wil inzicht in financiële toekomst rekening houdend met risico van 'ao worden' | E140: =IF('XML-Gespreksverslag'!$P$11="","",'XML-Gespreksverslag'!$P$11) -> (Voorbeeld)berekeningen maken van AOP en effect van minder pensioenopbouw op latere uitkering in kaart brengen
C141: =IF('XML-Gespreksverslag'!$Q$11="","",'XML-Gespreksverslag'!$Q$11) -> Dn is ziek en heeft inmiddels een WIA beschikking | E141: =IF('XML-Gespreksverslag'!$R$11="","",'XML-Gespreksverslag'!$R$11) -> Inzicht in hoogte, recht en duur van AOP en de gevolgen voor de latere pensioenuitkering alsmede informatie over bijsparen pensioenopbouw
C142: =IF('XML-Gespreksverslag'!$S$11="","",'XML-Gespreksverslag'!$S$11) -> Dn is reeds ao en ontvangt een aop uitkering | E142: =IF('XML-Gespreksverslag'!$T$11="","",'XML-Gespreksverslag'!$T$11) -> Inzicht in pensioenkeuzes om mogelijkheden te bekijken wanneer en hoeveel pensioen kan worden opgenomen
C143: =IF('XML-Gespreksverslag'!$U$11="","",'XML-Gespreksverslag'!$U$11) -> Dn met aop krijgt te maken met veranderingen in gezondheid | E143: =IF('XML-Gespreksverslag'!$V$11="","",'XML-Gespreksverslag'!$V$11) -> Mogelijke effecten op AOP uitkering inzichtelijk maken en mogelijkheden tonen om alvast (maximaal) pensioen op te nemen met keuze NP te verhogen
C144: =IF('XML-Gespreksverslag'!$W$11="","",'XML-Gespreksverslag'!$W$11) -> Dn met aop krijgt te maken met veranderingen in werk | E144: =IF('XML-Gespreksverslag'!$X$11="","",'XML-Gespreksverslag'!$X$11) -> Globaal de gevolgen voor de WIA-uitkering uitleggen en effect hiervan op AOP
C145: =IF('XML-Gespreksverslag'!$Y$11="","",'XML-Gespreksverslag'!$Y$11) -> Dn met aop wil stoppen met werken | E145: =IF('XML-Gespreksverslag'!$Z$11="","",'XML-Gespreksverslag'!$Z$11) -> Inzicht in pensioenkeuzes met doorkijk naar AOW-leeftijd, rekening houdend dat hiervoior alleen over het ao deel AKP kan worden aangevraagd
C146: =IF('XML-Gespreksverslag'!$AA$11="","",'XML-Gespreksverslag'!$AA$11) ->  | E146: =IF('XML-Gespreksverslag'!$AB$11="","",'XML-Gespreksverslag'!$AB$11) -> 
C147: =IF('XML-Gespreksverslag'!$AC$11="","",'XML-Gespreksverslag'!$AC$11) ->  | E147: =IF('XML-Gespreksverslag'!$AD$11="","",'XML-Gespreksverslag'!$AD$11) -> 
C148: =IF('XML-Gespreksverslag'!$AE$11="","",'XML-Gespreksverslag'!$AE$11) ->  | E148: =IF('XML-Gespreksverslag'!$AF$11="","",'XML-Gespreksverslag'!$AF$11) -> 
B150: =IF('XML-Gespreksverslag'!$B13="","",1) ->  | C150: =IF(B150=1,'XML-Gespreksverslag'!$B13,"") -> 
C152: AANLEIDING | E152: AANDACHTSPUNT
C153: =IF('XML-Gespreksverslag'!$M$12="","",'XML-Gespreksverslag'!$M$12) -> Dn geeft aan (terminaal) ziek te zijn | E153: =IF('XML-Gespreksverslag'!$N$12="","",'XML-Gespreksverslag'!$N$12) -> Inzicht in totale hoogte NP, incl. eventuele aanvullingen en AOW en gedifferentieerd op moment van overlijden en leeftijd partner
C154: =IF('XML-Gespreksverslag'!$O$12="","",'XML-Gespreksverslag'!$O$12) -> Dn wil inzicht in financiële toekomst rekening houden met risico van overlijden | E154: =IF('XML-Gespreksverslag'!$P$12="","",'XML-Gespreksverslag'!$P$12) -> Gevolgen van geen/ minder pensioen opbouwen en eventueel pensioen opnemen voor de hoogte van het NP
C155: =IF('XML-Gespreksverslag'!$Q$12="","",'XML-Gespreksverslag'!$Q$12) -> Dn geeft aan terminaal ziek te zijn | E155: =IF('XML-Gespreksverslag'!$R$12="","",'XML-Gespreksverslag'!$R$12) -> Inzicht in totale NP afgestemd op de situatie van de dn en mogelijkheden tonen om NP te verhogen
C156: =IF('XML-Gespreksverslag'!$S$12="","",'XML-Gespreksverslag'!$S$12) -> Dn geeft aan een partner te hebben met geen of een laag inkomen/ pensioen | E156: =IF('XML-Gespreksverslag'!$T$12="","",'XML-Gespreksverslag'!$T$12) -> Inzicht in totale NP en OP met uitruilmogelijkheden en eventueel wijzen op andere mogelijkheden in de 3e pijler
C157: =IF('XML-Gespreksverslag'!$U$12="","",'XML-Gespreksverslag'!$U$12) -> Dn geeft aan te gaan trouwen of samenwonen | E157: =IF('XML-Gespreksverslag'!$V$12="","",'XML-Gespreksverslag'!$V$12) -> Toelichting op proces van partner aanmelden en dekking via NP
C158: =IF('XML-Gespreksverslag'!$W$12="","",'XML-Gespreksverslag'!$W$12) ->  | E158: =IF('XML-Gespreksverslag'!$X$12="","",'XML-Gespreksverslag'!$X$12) -> 
C159: =IF('XML-Gespreksverslag'!$Y$12="","",'XML-Gespreksverslag'!$Y$12) ->  | E159: =IF('XML-Gespreksverslag'!$Z$12="","",'XML-Gespreksverslag'!$Z$12) -> 
C160: =IF('XML-Gespreksverslag'!$AA$12="","",'XML-Gespreksverslag'!$AA$12) ->  | E160: =IF('XML-Gespreksverslag'!$AB$12="","",'XML-Gespreksverslag'!$AB$12) -> 
C161: =IF('XML-Gespreksverslag'!$AC$12="","",'XML-Gespreksverslag'!$AC$12) ->  | E161: =IF('XML-Gespreksverslag'!$AD$12="","",'XML-Gespreksverslag'!$AD$12) -> 
C162: =IF('XML-Gespreksverslag'!$AE$12="","",'XML-Gespreksverslag'!$AE$12) ->  | E162: =IF('XML-Gespreksverslag'!$AF$12="","",'XML-Gespreksverslag'!$AF$12) -> 
B164: =IF('XML-Gespreksverslag'!$B14="","",1) -> 1 | C164: =IF(B164=1,'XML-Gespreksverslag'!$B14,"") -> Uit elkaar gaan/ scheiden
C166: AANLEIDING | E166: AANDACHTSPUNT
C167: =IF('XML-Gespreksverslag'!$M$13="","",'XML-Gespreksverslag'!$M$13) -> Dn wil weten welke keuzes hij heeft als hij (deels) wil stoppen met werken | E167: =IF('XML-Gespreksverslag'!$N$13="","",'XML-Gespreksverslag'!$N$13) -> Pensioenkeuzes toelichten en samenhang hiermee wanneer gekozen wordt voor een bedrag ineens
C168: =IF('XML-Gespreksverslag'!$O$13="","",'XML-Gespreksverslag'!$O$13) -> Dn wil graag een deel van zijn pensioen in één keer laten uitkeren | E168: =IF('XML-Gespreksverslag'!$P$13="","",'XML-Gespreksverslag'!$P$13) -> Uitleg over wanneer gekozen kan worden voor bedrag ineens en welke invloed deze datum heeft op de bruto en netto uitkering van het bedrag
C169: =IF('XML-Gespreksverslag'!$Q$13="","",'XML-Gespreksverslag'!$Q$13) -> Dn geeft aan (terminaal) ziek te zijn | E169: =IF('XML-Gespreksverslag'!$R$13="","",'XML-Gespreksverslag'!$R$13) -> Inzicht in maximale bedrag bij pensioenopname en gevolgen voor resterende uitkering en NP
C170: =IF('XML-Gespreksverslag'!$S$13="","",'XML-Gespreksverslag'!$S$13) -> Dn wil weten wat de gevolgen zijn van een bedrag ineens laten uitkeren | E170: =IF('XML-Gespreksverslag'!$T$13="","",'XML-Gespreksverslag'!$T$13) -> Inzicht in fiscale en sociale gevolgen van bedrag ineens en de hoogte van de maandelijkse levenslange uitkering
C171: =IF('XML-Gespreksverslag'!$U$13="","",'XML-Gespreksverslag'!$U$13) -> Dn wil eerder met pensioen en overweegt een bedrag ineens te laten uitkeren | E171: =IF('XML-Gespreksverslag'!$V$13="","",'XML-Gespreksverslag'!$V$13) -> Inzicht in gevolgen, met nadruk op hoger belastingtarief vóór AOW-leeftijd en onmogelijkheid om te variëren met de pensioenuitkering
C172: =IF('XML-Gespreksverslag'!$W$13="","",'XML-Gespreksverslag'!$W$13) -> Dn gaat op AOW-leeftijd met pensioen en overweegt een bedrag ineens te laten uitkeren | E172: =IF('XML-Gespreksverslag'!$X$13="","",'XML-Gespreksverslag'!$X$13) -> Uitleg over het uitstellen van uitbetaling bedrag ineens met inzicht in fiscale gevolgen en maandelijkse uitkering levenslang
C173: =IF('XML-Gespreksverslag'!$Y$13="","",'XML-Gespreksverslag'!$Y$13) -> Dn heeft meerdere pensioenen/ pensioenuitvoerders en overweegt een bedrag ineens te laten uitkeren | E173: =IF('XML-Gespreksverslag'!$Z$13="","",'XML-Gespreksverslag'!$Z$13) -> Uitleg over wettelijke mogelijkheden van keuze bedrag ineens en combinatie met andere pensioenen
C174: =IF('XML-Gespreksverslag'!$AA$13="","",'XML-Gespreksverslag'!$AA$13) -> Dn heeft een ex-partner met VPS recht en overweegt een bedrag ineens te laten uitkeren | E174: =IF('XML-Gespreksverslag'!$AB$13="","",'XML-Gespreksverslag'!$AB$13) -> Uitleg over bedrag ineens aan ex-partner dat gekoppeld is aan de keuze van de dn om bedrag ineens te laten uitkeren
C175: =IF('XML-Gespreksverslag'!$AC$13="","",'XML-Gespreksverslag'!$AC$13) ->  | E175: =IF('XML-Gespreksverslag'!$AD$13="","",'XML-Gespreksverslag'!$AD$13) -> 
C176: =IF('XML-Gespreksverslag'!$AE$13="","",'XML-Gespreksverslag'!$AE$13) ->  | E176: =IF('XML-Gespreksverslag'!$AF$13="","",'XML-Gespreksverslag'!$AF$13) -> 
B178: =IF('XML-Gespreksverslag'!$B15="","",1) -> 1 | C178: =IF(B178=1,'XML-Gespreksverslag'!$B15,"") -> Waardeoverdracht
C180: AANLEIDING | E180: AANDACHTSPUNT
C181: =IF('XML-Gespreksverslag'!$M$14="","",'XML-Gespreksverslag'!$M$14) -> Dn heeft één of meerdere ex-partners | E181: =IF('XML-Gespreksverslag'!$N$14="","",'XML-Gespreksverslag'!$N$14) -> Bespreken en controleren of het zodanig is vastgelegd zoals bij de echtscheiding is bedoeld dan wel afgesproken en de gevolgen hiervan
C182: =IF('XML-Gespreksverslag'!$O$14="","",'XML-Gespreksverslag'!$O$14) -> Dn geeft aan dat er een echtscheiding dan wel beëindiging samenwonen aanstaande is | E182: =IF('XML-Gespreksverslag'!$P$14="","",'XML-Gespreksverslag'!$P$14) -> Keuzes bespreken die je hebt om OP en NP te verdelen en de gevolgen hiervan op eigen pensioen nu en in de toekomst, ook bij veranderende omstandigheden
C183: =IF('XML-Gespreksverslag'!$Q$14="","",'XML-Gespreksverslag'!$Q$14) -> Dn wil inzicht in financiële toekomst rekening houdend met risico van 'uit elkaar gaan' | E183: =IF('XML-Gespreksverslag'!$R$14="","",'XML-Gespreksverslag'!$R$14) -> Uitleg over verschillende samenlevingsvormen en gevolgen bij uit elkaar gaan en keuzes die tzt te maken zijn
C184: =IF('XML-Gespreksverslag'!$S$14="","",'XML-Gespreksverslag'!$S$14) ->  | E184: =IF('XML-Gespreksverslag'!$T$14="","",'XML-Gespreksverslag'!$T$14) -> 
C185: =IF('XML-Gespreksverslag'!$U$14="","",'XML-Gespreksverslag'!$U$14) ->  | E185: =IF('XML-Gespreksverslag'!$V$14="","",'XML-Gespreksverslag'!$V$14) -> 
C186: =IF('XML-Gespreksverslag'!$W$14="","",'XML-Gespreksverslag'!$W$14) ->  | E186: =IF('XML-Gespreksverslag'!$X$14="","",'XML-Gespreksverslag'!$X$14) -> 
C187: =IF('XML-Gespreksverslag'!$Y$14="","",'XML-Gespreksverslag'!$Y$14) ->  | E187: =IF('XML-Gespreksverslag'!$Z$14="","",'XML-Gespreksverslag'!$Z$14) -> 
C188: =IF('XML-Gespreksverslag'!$AA$14="","",'XML-Gespreksverslag'!$AA$14) ->  | E188: =IF('XML-Gespreksverslag'!$AB$14="","",'XML-Gespreksverslag'!$AB$14) -> 
C189: =IF('XML-Gespreksverslag'!$AC$14="","",'XML-Gespreksverslag'!$AC$14) ->  | E189: =IF('XML-Gespreksverslag'!$AD$14="","",'XML-Gespreksverslag'!$AD$14) -> 
C190: =IF('XML-Gespreksverslag'!$AE$14="","",'XML-Gespreksverslag'!$AE$14) ->  | E190: =IF('XML-Gespreksverslag'!$AF$14="","",'XML-Gespreksverslag'!$AF$14) -> 
B192: =IF('XML-Gespreksverslag'!$B16="","",1) -> 1 | C192: =IF(B192=1,'XML-Gespreksverslag'!$B16,"") -> Pensioenopbouw voortzetten
C194: AANLEIDING | E194: AANDACHTSPUNT
C195: =IF('XML-Gespreksverslag'!$M$15="","",'XML-Gespreksverslag'!$M$15) -> Dn is recent aangesloten bij het fonds en/ of geeft aan elders pensioen te hebben opgebouwd | E195: =IF('XML-Gespreksverslag'!$N$15="","",'XML-Gespreksverslag'!$N$15) -> Mogelijkheden, gevolgen en proces bespreken over het overdragen van pensioen bij een andere uitvoerder naar fonds
C196: =IF('XML-Gespreksverslag'!$O$15="","",'XML-Gespreksverslag'!$O$15) -> Dn geeft aan dat hij vertrekt bij het fonds | E196: =IF('XML-Gespreksverslag'!$P$15="","",'XML-Gespreksverslag'!$P$15) -> Mogelijkheden, gevolgen en proces bespreken over het overdragen van het pensioen naar een andere uitvoerder
C197: =IF('XML-Gespreksverslag'!$Q$15="","",'XML-Gespreksverslag'!$Q$15) -> Dn heeft vragen over zijn offerte waardeoverdracht | E197: =IF('XML-Gespreksverslag'!$R$15="","",'XML-Gespreksverslag'!$R$15) -> Uitleggen van offerte en de juiste waarde geven aan verschillende bedragen die getoond worden
C198: =IF('XML-Gespreksverslag'!$S$15="","",'XML-Gespreksverslag'!$S$15) -> Dn vraagt om hulp bij keuze om waardeoverdracht wel of niet te effectueren | E198: =IF('XML-Gespreksverslag'!$T$15="","",'XML-Gespreksverslag'!$T$15) -> Gevolgen in kaart brengen van zowel niet overdragen als wel overdragen voor alle pensioenvormen die het betreft
C199: =IF('XML-Gespreksverslag'!$U$15="","",'XML-Gespreksverslag'!$U$15) ->  | E199: =IF('XML-Gespreksverslag'!$V$15="","",'XML-Gespreksverslag'!$V$15) -> 
C200: =IF('XML-Gespreksverslag'!$W$15="","",'XML-Gespreksverslag'!$W$15) ->  | E200: =IF('XML-Gespreksverslag'!$X$15="","",'XML-Gespreksverslag'!$X$15) -> 
C201: =IF('XML-Gespreksverslag'!$Y$15="","",'XML-Gespreksverslag'!$Y$15) ->  | E201: =IF('XML-Gespreksverslag'!$Z$15="","",'XML-Gespreksverslag'!$Z$15) -> 
C202: =IF('XML-Gespreksverslag'!$AA$15="","",'XML-Gespreksverslag'!$AA$15) ->  | E202: =IF('XML-Gespreksverslag'!$AB$15="","",'XML-Gespreksverslag'!$AB$15) -> 
C203: =IF('XML-Gespreksverslag'!$AC$15="","",'XML-Gespreksverslag'!$AC$15) ->  | E203: =IF('XML-Gespreksverslag'!$AD$15="","",'XML-Gespreksverslag'!$AD$15) -> 
C204: =IF('XML-Gespreksverslag'!$AE$15="","",'XML-Gespreksverslag'!$AE$15) ->  | E204: =IF('XML-Gespreksverslag'!$AF$15="","",'XML-Gespreksverslag'!$AF$15) -> 
B206: =IF('XML-Gespreksverslag'!$B17="","",1) ->  | C206: =IF(B206=1,'XML-Gespreksverslag'!$B17,"") -> 
C208: AANLEIDING | E208: AANDACHTSPUNT
C209: =IF('XML-Gespreksverslag'!$M$17="","",'XML-Gespreksverslag'!$M$17) -> Dn ontvangt of krijgt toegang tot een (grotere) geldsom | E209: =IF('XML-Gespreksverslag'!$N$17="","",'XML-Gespreksverslag'!$N$17) -> Uitleg over welke mogelijkheden er zijn om extra te storten bij het fonds, hoeveel maximaal en wat dit oplevert rekening houdend met fiscale gevolgen
C210: =IF('XML-Gespreksverslag'!$O$17="","",'XML-Gespreksverslag'!$O$17) -> Dn krijgt een VSO aangeboden door de werkgever | E210: =IF('XML-Gespreksverslag'!$P$17="","",'XML-Gespreksverslag'!$P$17) -> Bespreken wat de regeling van de werkgever inhoudt m.b.t. hoogte pensioenopbouw en of er ruimte is om te storten
C211: =IF('XML-Gespreksverslag'!$Q$17="","",'XML-Gespreksverslag'!$Q$17) -> Dn vraagt om fiscale ruimte | E211: =IF('XML-Gespreksverslag'!$R$17="","",'XML-Gespreksverslag'!$R$17) -> Uitleg over hoe deze ruimte tot stand komt en wat het betekent als deze wordt gebruikt
C212: =IF('XML-Gespreksverslag'!$S$17="","",'XML-Gespreksverslag'!$S$17) -> Dn wil weten of hij zijn pensioen kan verhogen | E212: =IF('XML-Gespreksverslag'!$T$17="","",'XML-Gespreksverslag'!$T$17) -> Uitleg over bijspaar/ stort mogelijkheden bij eigen fonds en globaal verwijzing naar 3e pijler
C213: =IF('XML-Gespreksverslag'!$U$17="","",'XML-Gespreksverslag'!$U$17) ->  | E213: =IF('XML-Gespreksverslag'!$V$17="","",'XML-Gespreksverslag'!$V$17) -> 
C214: =IF('XML-Gespreksverslag'!$W$17="","",'XML-Gespreksverslag'!$W$17) ->  | E214: =IF('XML-Gespreksverslag'!$X$17="","",'XML-Gespreksverslag'!$X$17) -> 
C215: =IF('XML-Gespreksverslag'!$Y$17="","",'XML-Gespreksverslag'!$Y$17) ->  | E215: =IF('XML-Gespreksverslag'!$Z$17="","",'XML-Gespreksverslag'!$Z$17) -> 
C216: =IF('XML-Gespreksverslag'!$AA$17="","",'XML-Gespreksverslag'!$AA$17) ->  | E216: =IF('XML-Gespreksverslag'!$AB$17="","",'XML-Gespreksverslag'!$AB$17) -> 
C217: =IF('XML-Gespreksverslag'!$AC$17="","",'XML-Gespreksverslag'!$AC$17) ->  | E217: =IF('XML-Gespreksverslag'!$AD$17="","",'XML-Gespreksverslag'!$AD$17) -> 
C218: =IF('XML-Gespreksverslag'!$AE$17="","",'XML-Gespreksverslag'!$AE$17) ->  | E218: =IF('XML-Gespreksverslag'!$AF$17="","",'XML-Gespreksverslag'!$AF$17) -> 
B220: =IF('XML-Gespreksverslag'!$B18="","",1) -> 1 | C220: =IF(B220=1,'XML-Gespreksverslag'!$B18,"") -> Nettopensioen
C222: AANLEIDING | E222: AANDACHTSPUNT
C223: =IF('XML-Gespreksverslag'!$M$18="","",'XML-Gespreksverslag'!$M$18) -> Dn heeft een pensioengevend inkomen boven de aftoppingsgrens | E223: =IF('XML-Gespreksverslag'!$N$18="","",'XML-Gespreksverslag'!$N$18) -> Mogelijkheden bespreken om pensioenopbouw aan te vullen in de netto sfeer
C224: =IF('XML-Gespreksverslag'!$O$18="","",'XML-Gespreksverslag'!$O$18) -> Dn met een pensioengevend inkomen boven de aftoppingsgrens wil weten hoeveel pensioen hij opbouwt en wat hij mag opbouwen en welke keuzes hij heeft | E224: =IF('XML-Gespreksverslag'!$P$18="","",'XML-Gespreksverslag'!$P$18) -> Regeling en proces nettopensioen toelichten en hulp bij de afweging tussen premie en opbrengst (extra pensioen)
C225: =IF('XML-Gespreksverslag'!$Q$18="","",'XML-Gespreksverslag'!$Q$18) -> Dn met een pensioengevend inkomen boven de aftoppingsgrens wil dat zijn partner voldoende inkomen heeft wanneer hij komt te overlijden | E225: =IF('XML-Gespreksverslag'!$R$18="","",'XML-Gespreksverslag'!$R$18) -> Uitleg over regeling nettopensioen met dekking voor partnerpensioen
C226: =IF('XML-Gespreksverslag'!$S$18="","",'XML-Gespreksverslag'!$S$18) ->  | E226: =IF('XML-Gespreksverslag'!$T$18="","",'XML-Gespreksverslag'!$T$18) -> 
C227: =IF('XML-Gespreksverslag'!$U$18="","",'XML-Gespreksverslag'!$U$18) ->  | E227: =IF('XML-Gespreksverslag'!$V$18="","",'XML-Gespreksverslag'!$V$18) -> 
C228: =IF('XML-Gespreksverslag'!$W$18="","",'XML-Gespreksverslag'!$W$18) ->  | E228: =IF('XML-Gespreksverslag'!$X$18="","",'XML-Gespreksverslag'!$X$18) -> 
C229: =IF('XML-Gespreksverslag'!$Y$18="","",'XML-Gespreksverslag'!$Y$18) ->  | E229: =IF('XML-Gespreksverslag'!$Z$18="","",'XML-Gespreksverslag'!$Z$18) -> 
C230: =IF('XML-Gespreksverslag'!$AA$18="","",'XML-Gespreksverslag'!$AA$18) ->  | E230: =IF('XML-Gespreksverslag'!$AB$18="","",'XML-Gespreksverslag'!$AB$18) -> 
C231: =IF('XML-Gespreksverslag'!$AC$18="","",'XML-Gespreksverslag'!$AC$18) ->  | E231: =IF('XML-Gespreksverslag'!$AD$18="","",'XML-Gespreksverslag'!$AD$18) -> 
C232: =IF('XML-Gespreksverslag'!$AE$18="","",'XML-Gespreksverslag'!$AE$18) ->  | E232: =IF('XML-Gespreksverslag'!$AF$18="","",'XML-Gespreksverslag'!$AF$18) -> 
B234: =IF('XML-Gespreksverslag'!$B19="","",1) -> 1 | C234: =IF(B234=1,'XML-Gespreksverslag'!$B19,"") -> Werkgeversregelingen
C236: AANLEIDING | E236: AANDACHTSPUNT
... 46 more rows

Sheet Berekening (hidden)
B2: ALGEMENE GEGEVENS | E2: =IF(E3="","1ste uittreding",Berekening!AC141) -> 1ste uittreding | F2: =IF(F3="","2de uittreding",Berekening!AD141) -> 2de uittreding | G2: =IF(G3="","3de uittreding",Berekening!AE141) -> 3de uittreding | H2: =IF(H3="","4de uittreding",Berekening!AF141) -> 4de uittreding | R2: ALGEMENE GEGEVENS
B3: Klantnummer | D3: Datum | E3: =IF($D$2="Reeds gedeeltelijk met AKP",uittreding1_uittreeddatum,"") ->  | L3: Datum | M3: =IF($D$2="Reeds gedeeltelijk met AKP",uittreding1_uittreeddatum,"") ->  | R3: Klantnummer
B4: Naam | D4: =IF($C$34="","Nieuwe deeltijdfactor","Nieuwe DTF werkgever 1") -> Nieuwe deeltijdfactor | E4: =IF($D$2="Reeds gedeeltelijk met AKP","nvt",IF(E3="","",0)) ->  | F4: =IF(F3="","",0) ->  | G4: =IF(G3="","",0) ->  | H4: =IF(H3="","",0) ->  | L4: =IF($C$34="","Nieuwe deeltijdfactor","Nieuwe DTF werkgever 1") -> Nieuwe deeltijdfactor | M4: =IF($D$2="Reeds gedeeltelijk met AKP","nvt",IF(M3="","",0)) ->  | N4: =IF(N3="","",0) ->  | O4: =IF(O3="","",0) ->  | P4: =IF(P3="","",0) ->  | R4: Naam
B5: Geboortedatum | D5: =IF($C$34="","","Nieuwe DTF werkgever 2") ->  | E5: =IF($D$2="Reeds gedeeltelijk met AKP","nvt",IF(D5="","",IF(E3="","",0))) ->  | F5: =IF(D5="","",IF(F3="","",0)) ->  | G5: =IF(D5="","",IF(G3="","",0)) ->  | H5: =IF(D5="","",IF(H3="","",0)) ->  | L5: =IF($C$34="","","Nieuwe DTF werkgever 2") ->  | M5: =IF($D$2="Reeds gedeeltelijk met AKP","nvt",IF(L5="","",IF(M3="","",0))) ->  | N5: =IF(L5="","",IF(N3="","",0)) ->  | O5: =IF(L5="","",IF(O3="","",0)) ->  | P5: =IF(L5="","",IF(P3="","",0)) ->  | R5: Geboortedatum
B6: Burgerlijke staat | C6: =IF(C3="","","Gehuwd/samenwonend") ->  | D6: Aanwendpercentage | E6: =IF($D$2="Reeds gedeeltelijk met AKP",uittreding1_uittreedpercentage,IF(E3="","",MAX(0,IFERROR(IF(Rekenblad!$F$42<"60.1",0,IF(Rekenblad!$C$72=0,0,Rekenblad!$C$72/Rekenblad!$E$72)),0)))) ->  | F6: =IF(F3="","",MAX(0,IFERROR(IF(Rekenblad!$F$97<"60.1",0,IF(Rekenblad!$C$127=0,0,Rekenblad!$C$127/Rekenblad!$E$127)),0))) ->  | G6: =IF(G3="","",MAX(0,IFERROR(IF(Rekenblad!$F$154<"60.1",0,IF(Rekenblad!$C$184=0,0,Rekenblad!$C$184/Rekenblad!$E$184)),0))) ->  | H6: =IF(H3="","",MAX(0,IFERROR(IF(Rekenblad!$F$211<"60.1",0,IF(Rekenblad!$C$241=0,0,Rekenblad!$C$241/Rekenblad!$E$241)),0))) ->  | L6: Aanwendpercentage | M6: =IF($D$2="Reeds gedeeltelijk met AKP",uittreding1_uittreedpercentage,IF(M3="","",MAX(0,IFERROR(IF(Rekenblad!$F$42<"60.1",0,IF(Rekenblad!$C$72=0,0,Rekenblad!$C$72/Rekenblad!$E$72)),0)))) ->  | N6: =IF(N3="","",MAX(0,IFERROR(IF(Rekenblad!$F$97<"60.1",0,IF(Rekenblad!$C$127=0,0,Rekenblad!$C$127/Rekenblad!$E$127)),0))) ->  | O6: =IF(O3="","",MAX(0,IFERROR(IF(Rekenblad!$F$154<"60.1",0,IF(Rekenblad!$C$184=0,0,Rekenblad!$C$184/Rekenblad!$E$184)),0))) ->  | P6: =IF(P3="","",MAX(0,IFERROR(IF(Rekenblad!$F$211<"60.1",0,IF(Rekenblad!$C$241=0,0,Rekenblad!$C$241/Rekenblad!$E$241)),0))) ->  | R6: Burgerlijke staat | S6: =IF(S3="","","Gehuwd/samenwonend") -> 
B7: AOW-datum (vastgesteld) | C7: =IF(Vastlegging!$D$7="","",AOW_GPS) ->  | D7: =IF(OR($C$16="",$C$16=0),"","Aanwendpercentage AEP") ->  | E7: =IF(OR($D7="",uitttreeddatum_kolomE=""),"",IF(uittreding1="ja",uittreding1_AEPpercentage,Rekenblad!$G$73)) ->  | F7: =IF(OR($D7="",uitttreeddatum_kolomF=""),"",IF(AND(uitttreedpercentage_kolomF=1,SUM($E7:E7)=0),1,Rekenblad!$G$128+IF(AND(uitttreedpercentage_kolomF>0,uittreding1="ja"),$E$7))) ->  | G7: =IF(OR($D7="",uitttreeddatum_kolomG=""),"",IF(AND(uitttreedpercentage_kolomG=1,SUM($E7:F7)=0),1,Rekenblad!$G$185+IF(AND(uitttreedpercentage_kolomG>0,uittreding1="ja"),$E$7))) ->  | H7: =IF(OR($D7="",uitttreeddatum_kolomH=""),"",IF(AND(uitttreedpercentage_kolomH=1,SUM($E7:G7)=0),1,Rekenblad!$G$242+IF(AND(uitttreedpercentage_kolomH>0,uittreding1="ja"),$E$7))) ->  | L7: =IF(OR($C$16="",$C$16=0),"","Aanwendpercentage AEP") ->  | M7: =IF(OR($D7="",uitttreeddatum_kolomE=""),"",IF(uittreding1="ja",uittreding1_AEPpercentage,Rekenblad!$G$73)) ->  | N7: =IF(OR($D7="",uitttreeddatum_kolomF=""),"",IF(AND(uitttreedpercentage_kolomF=1,SUM($E7:M7)=0),1,Rekenblad!$G$128+IF(AND(uitttreedpercentage_kolomF>0,uittreding1="ja"),$E$7))) ->  | O7: =IF(OR($D7="",uitttreeddatum_kolomG=""),"",IF(AND(uitttreedpercentage_kolomG=1,SUM($E7:N7)=0),1,Rekenblad!$G$185+IF(AND(uitttreedpercentage_kolomG>0,uittreding1="ja"),$E$7))) ->  | P7: =IF(OR($D7="",uitttreeddatum_kolomH=""),"",IF(AND(uitttreedpercentage_kolomH=1,SUM($E7:O7)=0),1,Rekenblad!$G$242+IF(AND(uitttreedpercentage_kolomH>0,uittreding1="ja"),$E$7))) ->  | R7: AOW-datum (vastgesteld) | S7: =IF(Vastlegging!$D$7="","",AOW_GPS) -> 
B8: AOW-datum (verwacht) | C8: =IF(Geboortedatum="","",EDATE(Geboortedatum,780+IF(Geboortedatum="",0,VLOOKUP(Geboortedatum,Parameters!$I$42:$J$71,2)))) ->  | D8: Bedrag ineens | E8: =IF(E3="","",IF(uitttreedpercentage_kolomE=0,"nvt","nee")) ->  | F8: =IF(F3="","",IF(uitttreedpercentage_kolomE=0,"nvt","nee")) ->  | G8: =IF(G3="","",IF(uitttreedpercentage_kolomE=0,"nvt","nee")) ->  | H8: =IF(H3="","",IF(uitttreedpercentage_kolomE=0,"nvt","nee")) ->  | L8: Bedrag ineens | M8: =IF(M3="","",IF(uitttreedpercentage_kolomE=0,"nvt","nee")) ->  | N8: =IF(N3="","",IF(uitttreedpercentage_kolomE=0,"nvt","nee")) ->  | O8: =IF(O3="","",IF(uitttreedpercentage_kolomE=0,"nvt","nee")) ->  | P8: =IF(P3="","",IF(uitttreedpercentage_kolomE=0,"nvt","nee")) ->  | R8: AOW-datum (verwacht) | S8: =IF(Geboortedatum="","",EDATE(Geboortedatum,780+IF(Geboortedatum="",0,VLOOKUP(Geboortedatum,Parameters!$I$42:$J$71,2)))) -> 
B9: AOW-leeftijd (verwacht) | C9: =IF(AOW_leeftijd="","",AOW_leeftijd) ->  | D9: AOW-overbrugging | E9: =IF($D$2="Reeds gedeeltelijk met AKP","nvt",IF(E3="","",IF(AND(E6>0,$C$33=Parameters!$F$151,E3<AOW,E8="nee",OR($C$12>0,$C$35>0)),"ja",IF(E3>AOW,"nvt","nee")))) ->  | F9: =IF(F3="","",IF(AND(OR(ISNONTEXT(E$4),$E$4="nvt"),ISNONTEXT(E$5),F6>0,$C$33=Parameters!$F$151,F3<AOW,F8="nee",OR(E$4>0,E$5>0)),"ja",IF(F3>AOW,"nvt","nee"))) ->  | G9: =IF(G3="","",IF(AND(ISNONTEXT(F$4),ISNONTEXT(F$5),G6>0,$C$33=Parameters!$F$151,G3<AOW,G8="nee",OR(F$4>0,F$5>0)),"ja",IF(G3>AOW,"nvt","nee"))) ->  | H9: =IF(H3="","",IF(AND(ISNONTEXT(G$4),ISNONTEXT(G$5),H6>0,$C$33=Parameters!$F$151,H3<AOW,H8="nee",OR(G$4>0,G$5>0)),"ja",IF(H3>AOW,"nvt","nee"))) ->  | L9: AOW-overbrugging | M9: =IF($D$2="Reeds gedeeltelijk met AKP","nvt",IF(M3="","",IF(AND(M6>0,$C$33=Parameters!$F$151,M3<AOW,M8="nee",OR($C$12>0,$C$35>0)),"ja",IF(M3>AOW,"nvt","nee")))) ->  | N9: =IF(N3="","",IF(AND(OR(ISNONTEXT(M$4),$E$4="nvt"),ISNONTEXT(M$5),N6>0,$C$33=Parameters!$F$151,N3<AOW,N8="nee",OR(M$4>0,M$5>0)),"ja",IF(N3>AOW,"nvt","nee"))) ->  | O9: =IF(O3="","",IF(AND(ISNONTEXT(N$4),ISNONTEXT(N$5),O6>0,$C$33=Parameters!$F$151,O3<AOW,O8="nee",OR(N$4>0,N$5>0)),"ja",IF(O3>AOW,"nvt","nee"))) ->  | P9: =IF(P3="","",IF(AND(ISNONTEXT(O$4),ISNONTEXT(O$5),P6>0,$C$33=Parameters!$F$151,P3<AOW,P8="nee",OR(O$4>0,O$5>0)),"ja",IF(P3>AOW,"nvt","nee"))) ->  | R9: AOW-leeftijd (verwacht) | S9: =IF(AOW_leeftijd="","",AOW_leeftijd) -> 
B10: BEREKENINGSGEGEVENS | D10: Variëren tot | E10: =IF($D$2="Reeds gedeeltelijk met AKP","nvt",IF(E3="","",IF(E8="ja","nvt",IF(AND(E6>0,E3<AOW),AOW,"")))) ->  | F10: =IF(F3="","",IF(F8="ja","nvt",IF(AND(F6>0,F3<AOW),AOW,""))) ->  | G10: =IF(G3="","",IF(G8="ja","nvt",IF(AND(G6>0,G3<AOW),AOW,""))) ->  | H10: =IF(H3="","",IF(H8="ja","nvt",IF(AND(H6>0,H3<AOW),AOW,""))) ->  | L10: Variëren tot | M10: =IF($D$2="Reeds gedeeltelijk met AKP","nvt",IF(M3="","",IF(M8="ja","nvt",IF(AND(M6>0,M3<AOW),AOW,"")))) ->  | N10: =IF(N3="","",IF(N8="ja","nvt",IF(AND(N6>0,N3<AOW),AOW,""))) ->  | O10: =IF(O3="","",IF(O8="ja","nvt",IF(AND(O6>0,O3<AOW),AOW,""))) ->  | P10: =IF(P3="","",IF(P8="ja","nvt",IF(AND(P6>0,P3<AOW),AOW,""))) ->  | R10: BEREKENINGSGEGEVENS
B11: Pensioengevend inkomen | C11: =IF(Pensioenschade!C10="",IF(Vastlegging!$D$5="","",0),Pensioenschade!C10) ->  | D11: Pensioenbedrag per jaar | E11: =IF($D$2="Reeds gedeeltelijk met AKP","nvt",IF($B108="","",E108)) ->  | F11: =IF($B109="","",E109) ->  | G11: =IF($B110="","",E110) ->  | H11: =IF($B111="","",E111) ->  | L11: Pensioenbedrag per jaar | M11: =IF($D$2="Reeds gedeeltelijk met AKP","nvt",IF($B108="","",M108)) ->  | N11: =IF($B109="","",M109) ->  | O11: =IF($B110="","",M110) ->  | P11: =IF($B111="","",M111) ->  | R11: Pensioengevend inkomen | S11: =IF(Pensioenschade!S10="",IF(Vastlegging!$D$5="","",0),Pensioenschade!S10) -> 
B12: Deeltijdfactor | C12: =IF(Pensioenschade!C11="",IF(Vastlegging!$D$5="","",0),Pensioenschade!C11) ->  | D12: Minimaal bedrag | E12: =IF($D$2="Reeds gedeeltelijk met AKP","nvt",IF($B108="","",IF(E$10="","",$F108))) ->  | F12: =IF($B109="","",IF(F$10="","",$F109)) ->  | G12: =IF($B110="","",IF(G$10="","",$F110)) ->  | H12: =IF($B111="","",IF(H$10="","",$F111)) ->  | L12: Minimaal bedrag | M12: =IF($D$2="Reeds gedeeltelijk met AKP","nvt",IF($B108="","",IF(M$10="","",$F108))) ->  | N12: =IF($B109="","",IF(N$10="","",$F109)) ->  | O12: =IF($B110="","",IF(O$10="","",$F110)) ->  | P12: =IF($B111="","",IF(P$10="","",$F111)) ->  | R12: Deeltijdfactor | S12: =IF(Pensioenschade!S11="",IF(Vastlegging!$D$5="","",0),Pensioenschade!S11) -> 
B13: Pensioenbedrag AOW-leeftijd | C13: =IF(Vastlegging!$D$5="","",0) ->  | D13: Maximaal bedrag | E13: =IF($D$2="Reeds gedeeltelijk met AKP","nvt",IF($B108="","",IF(E$10="","",$G108))) ->  | F13: =IF($B109="","",IF(F$10="","",$G109)) ->  | G13: =IF($B110="","",IF(G$10="","",$G110)) ->  | H13: =IF($B111="","",IF(H$10="","",$G111)) ->  | L13: Maximaal bedrag | M13: =IF($D$2="Reeds gedeeltelijk met AKP","nvt",IF($B108="","",IF(M$10="","",$G108))) ->  | N13: =IF($B109="","",IF(N$10="","",$G109)) ->  | O13: =IF($B110="","",IF(O$10="","",$G110)) ->  | P13: =IF($B111="","",IF(P$10="","",$G111)) ->  | R13: Pensioenbedrag AOW-leeftijd | S13: =IF(Vastlegging!$D$5="","",0) -> 
B14: Pensioen inclusief verlaging PP | C14: =IF(Vastlegging!$D$5="","",$C$13+IF(NP!$AF$12<>0,NP!$AF$12,0)) ->  | D14: Keuzebedrag | E14: =IF($D$2="Reeds gedeeltelijk met AKP","nvt",IF(OR(E10="",LEFT(Rekenblad!$F$42,2)<60),"",IF(E8="ja",Boven1,IF(OR(LEFT(E4,1)="W",LEFT(E6,1)="W"),E12,IF(E13<E11,E13,E11))))) ->  | F14: =IF(F10="","",IF(F8="ja",Boven2,IF(OR(LEFT(F4,1)="W",LEFT(F6,1)="W"),F12,IF(F13<F11,F13,F11)))) ->  | G14: =IF(G10="","",IF(G8="ja",Boven3,IF(OR(LEFT(G4,1)="W",LEFT(G6,1)="W"),G12,IF(G13<G11,G13,G11)))) ->  | H14: =IF(H10="","",IF(H8="ja",Boven4,IF(OR(LEFT(H4,1)="W",LEFT(H6,1)="W"),H12,IF(H13<H11,H13,H11)))) ->  | L14: Keuzebedrag | M14: =IF($D$2="Reeds gedeeltelijk met AKP","nvt",IF(OR(M10="",LEFT(Rekenblad!$F$42,2)<60),"",IF(M8="ja",Boven1,IF(OR(LEFT(M4,1)="W",LEFT(M6,1)="W"),M12,IF(M13<M11,M13,M11))))) ->  | N14: =IF(N10="","",IF(N8="ja",Boven2,IF(OR(LEFT(N4,1)="W",LEFT(N6,1)="W"),N12,IF(N13<N11,N13,N11)))) ->  | O14: =IF(O10="","",IF(O8="ja",Boven3,IF(OR(LEFT(O4,1)="W",LEFT(O6,1)="W"),O12,IF(O13<O11,O13,O11)))) ->  | P14: =IF(P10="","",IF(P8="ja",Boven4,IF(OR(LEFT(P4,1)="W",LEFT(P6,1)="W"),P12,IF(P13<P11,P13,P11)))) ->  | R14: Pensioen inclusief verlaging PP | S14: =IF(Vastlegging!$D$5="","",$C$13+IF(NP!$AF$12<>0,NP!$AF$12,0)) -> 
B15: VPS vermindering | C15: =IF(Vastlegging!$D$5="","",0) ->  | D15: Keuzebedrag per maand | E15: =IF(E8="ja","",IF(E10="","",IFERROR(FLOOR((E$14/12)+(Rekenblad!$F$283/12),1),0))) ->  | F15: =IF(F8="ja","",IF(F10="","",IFERROR(FLOOR((F$14/12)+(Rekenblad!$F$288/12),1),0))) ->  | G15: =IF(G8="ja","",IF(G10="","",IFERROR(FLOOR((G$14/12)+(Rekenblad!$F$293/12),1),0))) ->  | H15: =IF(H8="ja","",IF(H10="","",IFERROR(FLOOR((H$14/12)+(Rekenblad!$F$298/12),1),0))) ->  | L15: Keuzebedrag per maand | M15: =IF(M8="ja","",IF(M10="","",IFERROR(FLOOR((M$14/12)+(Rekenblad!$F$283/12),1),0))) ->  | N15: =IF(N8="ja","",IF(N10="","",IFERROR(FLOOR((N$14/12)+(Rekenblad!$F$288/12),1),0))) ->  | O15: =IF(O8="ja","",IF(O10="","",IFERROR(FLOOR((O$14/12)+(Rekenblad!$F$293/12),1),0))) ->  | P15: =IF(P8="ja","",IF(P10="","",IFERROR(FLOOR((P$14/12)+(Rekenblad!$F$298/12),1),0))) ->  | R15: VPS vermindering | S15: =IF(Vastlegging!$D$5="","",0) -> 
B16: Saldo ABP ExtraPensioen | C16: =IF(Vastlegging!$D$5="","",0) ->  | D16: =IF(OR($C$17="",$C$17=0),"",IF($C$17>0,"Overige pensioenen","")) ->  | E16: =IF(OR($D$16="",uitttreeddatum_kolomE=""),"",$C$17) ->  | F16: =IF(OR($D$16="",uitttreeddatum_kolomF=""),"",$C$17) ->  | G16: =IF(OR($D$16="",uitttreeddatum_kolomG=""),"",$C$17) ->  | H16: =IF(OR($D$16="",uitttreeddatum_kolomH=""),"",$C$17) ->  | L16: =IF(OR($C$17="",$C$17=0),"",IF($C$17>0,"Overige pensioenen","")) ->  | M16: =IF(OR($D$16="",uitttreeddatum_kolomE=""),"",$C$17) ->  | N16: =IF(OR($D$16="",uitttreeddatum_kolomF=""),"",$C$17) ->  | O16: =IF(OR($D$16="",uitttreeddatum_kolomG=""),"",$C$17) ->  | P16: =IF(OR($D$16="",uitttreeddatum_kolomH=""),"",$C$17) ->  | R16: Saldo ABP ExtraPensioen | S16: =IF(Vastlegging!$D$5="","",0) -> 
B17: Overige pensioenen per jaar | C17: =IF(Vastlegging!$D$5="","",0) ->  | D17: =IF('Scenario''s'!$K$12=0,"",IF('Scenario''s'!$K$12=1,"Scenario 1 is gevuld","Scenario 1 tot en met scenario "&'Scenario''s'!$K$12&" is gevuld")) ->  | E17: Aanpassing NP | F17: AOW tonen | G17: Belastingtabel | H17: Minder AOW-jaren | M17: =ROUND(IFERROR(IF(AND(uitttreedpercentage_kolomE=1,$E$10=AOW),HLOOKUP(uitttreeddatum_kolomE+1/24,$B$142:$J$187,45,0),0),0),0) -> 0 | N17: =ROUND(IFERROR(IF(AND(uitttreedpercentage_kolomE=1,$E$10=AOW),HLOOKUP(uitttreeddatum_kolomE+1/24,$B$142:$J$187,45,0),0),0),0) -> 0 | R17: Overige pensioenen per jaar | S17: =IF(Vastlegging!$D$5="","",0) -> 
B18: =IF('DT-Aanvullingen-BG'!$L$40>0,"Aanvullingen meenemen?","") ->  | C18: =IF('DT-Aanvullingen-BG'!$L$40>0,"ja","") ->  | E18: =IF($C$6="Ongehuwd","minimaal NP","nee") -> nee | F18: ja | G18: ='Bruto-netto'!$D$8 -> Nederland | H18: ='Bruto-netto'!$D$9 -> 0 | M18: =ROUND(IFERROR(IF(AND(uitttreedpercentage_kolomF=1,$F$10=AOW),HLOOKUP(uitttreeddatum_kolomF+1/24,$B$142:$J$187,45,0),0),0),0) -> 0 | N18: =ROUND(IFERROR(IF(AND(uitttreedpercentage_kolomF=1,$F$10=AOW),HLOOKUP(uitttreeddatum_kolomF+1/24,$B$142:$J$187,45,0),0),0),0) -> 0 | R18: =IF('DT-Aanvullingen-BG'!$L$40>0,"Aanvullingen meenemen?","") ->  | S18: =IF('DT-Aanvullingen-BG'!$L$40>0,"ja","") -> 
M19: =ROUND(IFERROR(IF(AND(uitttreedpercentage_kolomG=1,$G$10=AOW),HLOOKUP(uitttreeddatum_kolomG+1/24,$B$142:$J$187,45,0),0),0),0) -> 0 | N19: =ROUND(IFERROR(IF(AND(uitttreedpercentage_kolomG=1,$G$10=AOW),HLOOKUP(uitttreeddatum_kolomG+1/24,$B$142:$J$187,45,0),0),0),0) -> 0
M20: =ROUND(IFERROR(IF(AND(uitttreedpercentage_kolomH=1,$H$10=AOW),HLOOKUP(uitttreeddatum_kolomH+1/24,$B$142:$J$187,45,0),0),0),0) -> 0 | N20: =ROUND(IFERROR(IF(AND(uitttreedpercentage_kolomH=1,$H$10=AOW),HLOOKUP(uitttreeddatum_kolomH+1/24,$B$142:$J$187,45,0),0),0),0) -> 0
B21: =IF($B$22="","","PERIODE") ->  | D21: =IF($B$22="","","PENSIOEN PER JAAR") ->  | E21: =IF($B$22="","",IF(Berekening!$F$18<>"nee","AOW PER JAAR","BRUTO PER MAAND")) ->  | F21: =IF($B$22="","",IF(Berekening!$F$18<>"nee","TOTAAL PER JAAR","NETTO PER MAAND")) ->  | G21: =IF($B$22="","",IF(Berekening!$F$18<>"nee","BRUTO PER MAAND","")) ->  | H21: =IF($B$22="","",IF(Berekening!$F$18<>"nee","NETTO PER MAAND","")) ->  | I21: =IF($B$22="","","LHK") ->  | R21: =IF($B$22="","","LHK") ->  | S21: =IF($B$22="","","LHK") -> 
B22: =IF($C$142="",IF($B$142="","","Inkomen "&"vanaf "&TEXT($B$142,"d mmmm jjjj")&" levenslang"), IF(HOUR($B$142)=0,"Eenmalige uitkering in "&TEXT($B$142,"mmmm jjjj"), "Inkomen "&"vanaf "&TEXT($B$142,"d mmmm jjjj")&" tot "&TEXT($C$142,"d mmmm jjjj"))) ->  | D22: =IF($B22="","",IF(HOUR($B$142)=0,"",$B$171)) ->  | E22: =IF($B22="","",IF(Berekening!$F$18<>"nee",IF(HOUR($B$142)=0,"",$B$173),IF(HOUR($B$142)=0,$B$176,ROUND(D22/12,0)))) ->  | F22: =IFERROR(IF($B22="","",IF(Berekening!$F$18<>"nee",D22+E22,$B$185)),"") ->  | G22: =IF($B22="","",IF(Berekening!$F$18<>"nee",$B$176,"")) ->  | H22: =IF($B22="","",IF(Berekening!$F$18<>"nee",$B$185,"")) ->  | I22: =IF($B22="","",IF(B$142<AOW, IF(OR(DVH2_Aard=ISNUMBER(FIND("IP",DVH2_Aard)),DVH2_Aard="AAOP",DVH3_Aard="AAOP",DVH3_Aard="WG",DVH3_Aard="WW"),"nee","ja"),"nvt")) ->  | R22: =IF(I22="ja","ja",IF(I22="nee","nee",IF(I22="nvt",IF($F$18="ja","ja","nee"),""))) ->  | S22: =IF($B22="","",IF(L$142<AOW, IF(OR(DVH2_Aard=ISNUMBER(FIND("IP",DVH2_Aard)),DVH2_Aard="AAOP",DVH3_Aard="AAOP",DVH3_Aard="WG",DVH3_Aard="WW"),"nee","ja"),"nvt")) -> 
B23: =IF($D$142="",IF($C$142="","","Inkomen "&"vanaf "&TEXT($C$142,"d mmmm jjjj")&" levenslang"), IF(HOUR($C$142)=0,"Eenmalige uitkering in "&TEXT($C$142,"mmmm jjjj"), "Inkomen "&"vanaf "&TEXT($C$142,"d mmmm jjjj")&" tot "&TEXT($D$142,"d mmmm jjjj"))) ->  | D23: =IF($B23="","",IF(HOUR($C$142)=0,"",$C$171)) ->  | E23: =IF($B23="","",IF(Berekening!$F$18<>"nee",IF(HOUR($C$142)=0,"",$C$173),IF(HOUR($C$142)=0,$C$176,ROUND(D23/12,0)))) ->  | F23: =IFERROR(IF($B23="","",IF(Berekening!$F$18<>"nee",D23+E23,$C$185)),"") ->  | G23: =IF($B23="","",IF(Berekening!$F$18<>"nee",$C$176,"")) ->  | H23: =IF($B23="","",IF(Berekening!$F$18<>"nee",$C$185,"")) ->  | I23: =IF($B23="","",IF(C$142<AOW, IF(OR(DVH2_Aard=ISNUMBER(FIND("IP",DVH2_Aard)),DVH2_Aard="AAOP",DVH3_Aard="AAOP"),"nee","ja"),"nvt")) ->  | S23: =IF($B23="","",IF(M$142<AOW, IF(OR(DVH2_Aard=ISNUMBER(FIND("IP",DVH2_Aard)),DVH2_Aard="AAOP",DVH3_Aard="AAOP"),"nee","ja"),"nvt")) -> 
B24: =IF($E$142="",IF($D$142="","","Inkomen "&"vanaf "&TEXT($D$142,"d mmmm jjjj")&" levenslang"), IF(HOUR($D$142)=0,"Eenmalige uitkering in "&TEXT($D$142,"mmmm jjjj"), "Inkomen "&"vanaf "&TEXT($D$142,"d mmmm jjjj")&" tot "&TEXT($E$142,"d mmmm jjjj"))) ->  | D24: =IF($B24="","",IF(HOUR($D$142)=0,"",$D$171)) ->  | E24: =IF($B24="","",IF(Berekening!$F$18<>"nee",IF(HOUR($D$142)=0,"",$D$173),IF(HOUR($D$142)=0,$D$176,ROUND(D24/12,0)))) ->  | F24: =IFERROR(IF($B24="","",IF(Berekening!$F$18<>"nee",D24+E24,$D$185)),"") ->  | G24: =IF($B24="","",IF(Berekening!$F$18<>"nee",$D$176,"")) ->  | H24: =IF($B24="","",IF(Berekening!$F$18<>"nee",$D$185,"")) ->  | I24: =IF($B24="","",IF(D$142<AOW, IF(OR(DVH2_Aard=ISNUMBER(FIND("IP",DVH2_Aard)),DVH2_Aard="AAOP",DVH3_Aard="AAOP"),"nee","ja"),"nvt")) ->  | S24: =IF($B24="","",IF(N$142<AOW, IF(OR(DVH2_Aard=ISNUMBER(FIND("IP",DVH2_Aard)),DVH2_Aard="AAOP",DVH3_Aard="AAOP"),"nee","ja"),"nvt")) -> 
B25: =IF($F$142="",IF($E$142="","","Inkomen "&"vanaf "&TEXT($E$142,"d mmmm jjjj")&" levenslang"), IF(HOUR($E$142)=0,"Eenmalige uitkering in "&TEXT($E$142,"mmmm jjjj"), "Inkomen "&"vanaf "&TEXT($E$142,"d mmmm jjjj")&" tot "&TEXT($F$142,"d mmmm jjjj"))) ->  | D25: =IF($B25="","",IF(HOUR($E$142)=0,"",$E$171)) ->  | E25: =IF($B25="","",IF(Berekening!$F$18<>"nee",IF(HOUR($E$142)=0,"",$E$173),IF(HOUR($E$142)=0,$E$176,ROUND(D25/12,0)))) ->  | F25: =IFERROR(IF($B25="","",IF(Berekening!$F$18<>"nee",D25+E25,$E$185)),"") ->  | G25: =IF($B25="","",IF(Berekening!$F$18<>"nee",$E$176,"")) ->  | H25: =IF($B25="","",IF(Berekening!$F$18<>"nee",$E$185,"")) ->  | I25: =IF($B25="","",IF(E$142<AOW, IF(OR(DVH2_Aard=ISNUMBER(FIND("IP",DVH2_Aard)),DVH2_Aard="AAOP",DVH3_Aard="AAOP"),"nee","ja"),"nvt")) ->  | S25: =IF($B25="","",IF(O$142<AOW, IF(OR(DVH2_Aard=ISNUMBER(FIND("IP",DVH2_Aard)),DVH2_Aard="AAOP",DVH3_Aard="AAOP"),"nee","ja"),"nvt")) -> 
B26: =IF($G$142="",IF($F$142="","","Inkomen "&"vanaf "&TEXT($F$142,"d mmmm jjjj")&" levenslang"), IF(HOUR($F$142)=0,"Eenmalige uitkering in "&TEXT($F$142,"mmmm jjjj"), "Inkomen "&"vanaf "&TEXT($F$142,"d mmmm jjjj")&" tot "&TEXT($G$142,"d mmmm jjjj"))) ->  | D26: =IF($B26="","",IF(HOUR($F$142)=0,"",$F$171)) ->  | E26: =IF($B26="","",IF(Berekening!$F$18<>"nee",IF(HOUR($F$142)=0,"",$F$173),IF(HOUR($F$142)=0,$F$176,ROUND(D26/12,0)))) ->  | F26: =IFERROR(IF($B26="","",IF(Berekening!$F$18<>"nee",D26+E26,$F$185)),"") ->  | G26: =IF($B26="","",IF(Berekening!$F$18<>"nee",$F$176,"")) ->  | H26: =IF($B26="","",IF(Berekening!$F$18<>"nee",$F$185,"")) ->  | I26: =IF($B26="","",IF(F$142<AOW, IF(OR(DVH2_Aard=ISNUMBER(FIND("IP",DVH2_Aard)),DVH2_Aard="AAOP",DVH3_Aard="AAOP"),"nee","ja"),"nvt")) ->  | S26: =IF($B26="","",IF(P$142<AOW, IF(OR(DVH2_Aard=ISNUMBER(FIND("IP",DVH2_Aard)),DVH2_Aard="AAOP",DVH3_Aard="AAOP"),"nee","ja"),"nvt")) -> 
B27: =IF($H$142="",IF($G$142="","","Inkomen "&"vanaf "&TEXT($G$142,"d mmmm jjjj")&" levenslang"), IF(HOUR($G$142)=0,"Eenmalige uitkering in "&TEXT($G$142,"mmmm jjjj"), "Inkomen "&"vanaf "&TEXT($G$142,"d mmmm jjjj")&" tot "&TEXT($H$142,"d mmmm jjjj"))) ->  | D27: =IF($B27="","",IF(HOUR($G$142)=0,"",$G$171)) ->  | E27: =IF($B27="","",IF(Berekening!$F$18<>"nee",IF(HOUR($G$142)=0,"",$G$173),IF(HOUR($G$142)=0,$G$176,ROUND(D27/12,0)))) ->  | F27: =IFERROR(IF($B27="","",IF(Berekening!$F$18<>"nee",D27+E27,$G$185)),"") ->  | G27: =IF($B27="","",IF(Berekening!$F$18<>"nee",$G$176,"")) ->  | H27: =IF($B27="","",IF(Berekening!$F$18<>"nee",$G$185,"")) ->  | I27: =IF($B27="","",IF(G$142<AOW, IF(OR(DVH2_Aard=ISNUMBER(FIND("IP",DVH2_Aard)),DVH2_Aard="AAOP",DVH3_Aard="AAOP"),"nee","ja"),"nvt")) ->  | S27: =IF($B27="","",IF(Q$142<AOW, IF(OR(DVH2_Aard=ISNUMBER(FIND("IP",DVH2_Aard)),DVH2_Aard="AAOP",DVH3_Aard="AAOP"),"nee","ja"),"nvt")) -> 
B28: =IF($I$142="",IF($H$142="","","Inkomen "&"vanaf "&TEXT($H$142,"d mmmm jjjj")&" levenslang"), IF(HOUR($H$142)=0,"Eenmalige uitkering in "&TEXT($H$142,"mmmm jjjj"), "Inkomen "&"vanaf "&TEXT($H$142,"d mmmm jjjj")&" tot "&TEXT($I$142,"d mmmm jjjj"))) ->  | D28: =IF($B28="","",IF(HOUR($H$142)=0,"",$H$171)) ->  | E28: =IF($B28="","",IF(Berekening!$F$18<>"nee",IF(HOUR($H$142)=0,"",$H$173),IF(HOUR($H$142)=0,$H$176,ROUND(D28/12,0)))) ->  | F28: =IFERROR(IF($B28="","",IF(Berekening!$F$18<>"nee",D28+E28,$H$185)),"") ->  | G28: =IF($B28="","",IF(Berekening!$F$18<>"nee",$H$176,"")) ->  | H28: =IF($B28="","",IF(Berekening!$F$18<>"nee",$H$185,"")) ->  | I28: =IF($B28="","",IF(H$142<AOW, IF(OR(DVH2_Aard=ISNUMBER(FIND("IP",DVH2_Aard)),DVH2_Aard="AAOP",DVH3_Aard="AAOP"),"nee","ja"),"nvt")) ->  | S28: =IF($B28="","",IF(R$142<AOW, IF(OR(DVH2_Aard=ISNUMBER(FIND("IP",DVH2_Aard)),DVH2_Aard="AAOP",DVH3_Aard="AAOP"),"nee","ja"),"nvt")) -> 
B29: =IF($J$142="",IF($I$142="","","Inkomen "&"vanaf "&TEXT($I$142,"d mmmm jjjj")&" levenslang"), IF(HOUR($I$142)=0,"Eenmalige uitkering in "&TEXT($I$142,"mmmm jjjj"), "Inkomen "&"vanaf "&TEXT($I$142,"d mmmm jjjj")&" tot "&TEXT($J$142,"d mmmm jjjj"))) ->  | D29: =IF($B29="","",IF(HOUR($I$142)=0,"",$I$171)) ->  | E29: =IF($B29="","",IF(Berekening!$F$18<>"nee",IF(HOUR($I$142)=0,"",$I$173),IF(HOUR($I$142)=0,$I$176,ROUND(D29/12,0)))) ->  | F29: =IFERROR(IF($B29="","",IF(Berekening!$F$18<>"nee",D29+E29,$I$185)),"") ->  | G29: =IF($B29="","",IF(Berekening!$F$18<>"nee",$I$176,"")) ->  | H29: =IF($B29="","",IF(Berekening!$F$18<>"nee",$I$185,"")) ->  | I29: =IF($B29="","",IF(I$142<AOW, IF(OR(DVH2_Aard=ISNUMBER(FIND("IP",DVH2_Aard)),DVH2_Aard="AAOP",DVH3_Aard="AAOP"),"nee","ja"),"nvt")) ->  | S29: =IF($B29="","",IF(S$142<AOW, IF(OR(DVH2_Aard=ISNUMBER(FIND("IP",DVH2_Aard)),DVH2_Aard="AAOP",DVH3_Aard="AAOP"),"nee","ja"),"nvt")) -> 
B30: =IF($K$142="",IF($J$142="","","Inkomen "&"vanaf "&TEXT($J$142,"d mmmm jjjj")&" levenslang"), IF(HOUR($J$142)=0,"Eenmalige uitkering in "&TEXT($J$142,"mmmm jjjj"), "Inkomen "&"vanaf "&TEXT($J$142,"d mmmm jjjj")&" tot "&TEXT($K$142,"d mmmm jjjj"))) ->  | D30: =IF($B30="","",IF(HOUR($J$142)=0,"",$J$171)) ->  | E30: =IF($B30="","",IF(Berekening!$F$18<>"nee",IF(HOUR($J$142)=0,"",$J$173),IF(HOUR($J$142)=0,$J$176,ROUND(D30/12,0)))) ->  | F30: =IFERROR(IF($B30="","",IF(Berekening!$F$18<>"nee",D30+E30,$J$185)),"") ->  | G30: =IF($B30="","",IF(Berekening!$F$18<>"nee",$J$176,"")) ->  | H30: =IF($B30="","",IF(Berekening!$F$18<>"nee",$J$185,"")) ->  | I30: =IF($B30="","",IF(J$142<AOW, IF(OR(DVH2_Aard=ISNUMBER(FIND("IP",DVH2_Aard)),DVH2_Aard="AAOP",DVH3_Aard="AAOP"),"nee","ja"),"nvt")) ->  | S30: =IF($B30="","",IF(T$142<AOW, IF(OR(DVH2_Aard=ISNUMBER(FIND("IP",DVH2_Aard)),DVH2_Aard="AAOP",DVH3_Aard="AAOP"),"nee","ja"),"nvt")) -> 
B32: DIENSTVERHOUDING 2 | D32: Opmerkingen | R32: DIENSTVERHOUDING 2
B33: Soort | C33: Arbeid | R33: Soort | S33: Arbeid
B34: Pensioengevend inkomen | R34: Pensioengevend inkomen
B35: Deeltijdfactor | R35: Deeltijdfactor
B36: Meetelwaarde | C36: =IF($C$34="","",Rekenblad!$D$22) ->  | R36: Meetelwaarde | S36: =IF($C$34="","",Rekenblad!$D$22) -> 
B37: =IF(OR($C$33=Parameters!$F$154,$C$33=Parameters!$F$155,$C$33=Parameters!$F$156,$C$33=Parameters!$F$157),"AO%","") ->  | R37: =IF(OR($C$33=Parameters!$F$154,$C$33=Parameters!$F$155,$C$33=Parameters!$F$156,$C$33=Parameters!$F$157),"AO%","") -> 
B38: =IF(C38=AOW_GPS,"","Doortelling diensttijd (systeem)") ->  | C38: =Rekenblad!$D$28 ->  | R38: =IF(S38=AOW_GPS,"","Doortelling diensttijd (systeem)") ->  | S38: =Rekenblad!$D$28 -> 
B40: ALGEMENE GEGEVENS 1E DEELAKP | E40: UITKERING 1E DEELAKP | L40: ALGEMENE GEGEVENS 1E DEELAKP | R40: UITKERING 1E DEELAKP
B41: Ingangsdatum | E41: Kanteldatum | F41: =IF($D$2="","",IFERROR(AOW,"")) ->  | L41: Ingangsdatum | R41: Kanteldatum | S41: =IF($D$2="","",IFERROR(AOW,"")) -> 
B42: Aanwendpercentage | E42: =IF($F$41=AOW,"",IF($F$41>AOW,"Vanaf "&TEXT($F$41,"d mmmm jjjj"),"Vanaf AOW")) ->  | F42: =IF($D$2="","",IF($F$41=AOW,"",0)) ->  | L42: Aanwendpercentage | R42: =IF($F$41=AOW,"",IF($F$41>AOW,"Vanaf "&TEXT($F$41,"d mmmm jjjj"),"Vanaf AOW")) ->  | S42: =IF($D$2="","",IF($F$41=AOW,"",0)) -> 
B43: =IF(OR($C$16="",$C$16=0,$B$16<>"Saldo ABP ExtraPensioen"),"","Aanwendpercentage AEP") ->  | C43: =IF($B$43="","",uittreding1_uittreedpercentage) ->  | E43: =IF($F$41=AOW,"Vanaf "&TEXT($F$41,"d mmmm jjjj"),IF($F$41>AOW,"AOW tot "&TEXT($F$41,"d mmmm jjjj"),TEXT($F$41,"d mmmm jjjj")&" tot AOW")) -> Vanaf | L43: =IF(OR($C$16="",$C$16=0,$B$16<>"Saldo ABP ExtraPensioen"),"","Aanwendpercentage AEP") ->  | M43: =IF($B$43="","",uittreding1_uittreedpercentage) ->  | R43: =IF($F$41=AOW,"Vanaf "&TEXT($F$41,"d mmmm jjjj"),IF($F$41>AOW,"AOW tot "&TEXT($F$41,"d mmmm jjjj"),TEXT($F$41,"d mmmm jjjj")&" tot AOW")) -> Vanaf
E44: =IF($F$41=AOW,"Tot "&TEXT($F$41,"d mmmm jjjj"),IF($F$41>AOW,"Tot AOW","Tot "&TEXT($F$41,"d mmmm jjjj"))) -> Tot | R44: =IF($F$41=AOW,"Tot "&TEXT($F$41,"d mmmm jjjj"),IF($F$41>AOW,"Tot AOW","Tot "&TEXT($F$41,"d mmmm jjjj"))) -> Tot
B101: KANTELEN VANAF - 1 | C101: KANTELEN VANAF - 2 | D101: KANTELEN TOT | E101: TEKST | F101: PENSIOENBEDRAG VOOR | G101: BEDRAG INEENS | H101: ONDERGRENS | I101: BOVENGRENS | J101: KEUZE | K101: KANTELFACTOR | AA101: =B114 ->  | AB101: =Parameters!$K$24 -> 0.0 | AC101: =DAY(F10) ->  | AD101: =Parameters!$L$24 -> 0.0
B102: =IFERROR(IF(AND(Berekening!$E$7="",Rekenblad!$G$72=0),"",uitttreeddatum_kolomE),"") ->  | C102: =IFERROR(IF(AND(Berekening!$E$7="",Rekenblad!$G$72=0),"",IF(uittreding1="ja","",uitttreeddatum_kolomE)),"") ->  | D102: =IF($C102="","",IFERROR(IF(HLOOKUP($C102,$E$3:$H$16,6,0)="ja",D113,HLOOKUP($C102,$E$3:$H$16,8,0)+1/24),"")) ->  | E102: =IF(C102="","","1ste uittreding") ->  | F102: =IF(C102="","",IF(uittreding1="ja",0,Rekenblad!$H$84)+IF(uittreding1="ja",0,Rekenblad!$F$312)) ->  | G102: =IF($E$8="ja",ROUNDDOWN(Rekenblad!$G$86,0),0) -> 0 | H102: =IFERROR(CEILING(IF(B102=D102,1,IF(D102<=AOW+1/24,$AH$127,$AH$137)-F130),1),"") -> 1 | I102: =IFERROR(FLOOR(IF(F130=0,IF(D102<=AOW+1/24,$AH$121,$AH$132),MIN(IF(D102<=AOW+1/24,$AH$121,$AH$132)-F130,(H108/K102)+H108)),1),G102) -> 0 | J102: =IF($C102="","",IFERROR(IF(OR(HLOOKUP($C102,$E$3:$H$17,12,0)>I102,HLOOKUP($C102,$E$3:$H$17,12,0)<H102),"",HLOOKUP($C102,$E$3:$H$17,12,0)),"")) ->  | K102: =IF(C102="","",IFERROR(VLOOKUP(B102,$B$113:$C$116,2,0),"")) ->  | AA102: =Parameters!$H$24 -> 0.0 | AB102: =VLOOKUP($AA102&"&"&AB$101,Kantelfactoren,2,0) ->  | AC102: =ROUNDDOWN((((30-($AC$101-1))*AB102+(($AC$101-1)*AD102))/30),6) ->  | AD102: =VLOOKUP($AA102&"&"&AD$101,Kantelfactoren,2,0) -> 
B103: =IFERROR(IF(AND(Berekening!$F$7="",Rekenblad!$G$127=0),"",uitttreeddatum_kolomF),"") ->  | C103: =IFERROR(IF(AND(Berekening!$F$7="",Rekenblad!$G$127=0),"",uitttreeddatum_kolomF),"") ->  | D103: =IF($C103="","",IFERROR(IF(HLOOKUP($C103,$E$3:$H$16,6,0)="ja",D114,HLOOKUP($C103,$E$3:$H$16,8,0)+1/24),"")) ->  | E103: =IF(C103="","","2de uittreding") ->  | F103: =IF(C103="","",Rekenblad!$H$141+Rekenblad!$F$320) ->  | G103: =IF($F$8="ja",ROUNDDOWN(Rekenblad!$G$143,0),0) -> 0 | H103: =IFERROR(CEILING(IF(B103=D103,1,IF(D103<=AOW+1/24,$AR$127,$AR$137)-F131),1),"") -> 1 | I103: =IFERROR(FLOOR(IF(F131=0,IF(D103<=AOW+1/24,$AR$121,$AR$132),MIN(IF(D103<=AOW+1/24,$AR$121,$AR$132)-F131,(H109/K103)+H109)),1),G103) -> 0 | J103: =IF($C103="","",IFERROR(IF(OR(HLOOKUP($C103,$E$3:$H$17,12,0)>I103,HLOOKUP($C103,$E$3:$H$17,12,0)<H103),"",HLOOKUP($C103,$E$3:$H$17,12,0)),"")) ->  | K103: =IF(C103="","",IFERROR(VLOOKUP(B103,$B$113:$C$116,2,0),"")) ->  | AA103: =DAY(F3) -> 0 | AB103: =ROUNDDOWN((((30-($AA$103-1))*AB102+(($AA$103-1)*AB104))/30),6) ->  | AC103: =ROUNDDOWN((((30-($AC$101-1))*AB103+(($AC$101-1)*AD103))/30),6) ->  | AD103: =ROUNDDOWN((((30-($AA$103-1))*AD102+(($AA$103-1)*AD104))/30),6) -> 
B104: =IFERROR(IF(AND(Berekening!$G$7="",Rekenblad!$G$184=0),"",uitttreeddatum_kolomG),"") ->  | C104: =IFERROR(IF(AND(Berekening!$G$7="",Rekenblad!$G$184=0),"",uitttreeddatum_kolomG),"") ->  | D104: =IF($C104="","",IFERROR(IF(HLOOKUP($C104,$E$3:$H$16,6,0)="ja",D115,HLOOKUP($C104,$E$3:$H$16,8,0)+1/24),"")) ->  | E104: =IF(C104="","","3de uittreding") ->  | F104: =IF(C104="","",Rekenblad!$H$198+Rekenblad!$F$328) ->  | G104: =IF($G$8="ja",ROUNDDOWN(Rekenblad!$G$200,0),0) -> 0 | H104: =IFERROR(CEILING(IF(B104=D104,1,IF(D104<=AOW+1/24,$BB$127,$BB$137)-F132),1),"") -> 1 | I104: =IFERROR(FLOOR(IF(F132=0,IF(D104<=AOW+1/24,$BB$121,$BB$132),MIN(IF(D104<=AOW+1/24,$BB$121,$BB$132)-F132,(H110/K104)+H110)),1),G104) -> 0 | J104: =IF($C104="","",IFERROR(IF(OR(HLOOKUP($C104,$E$3:$H$17,12,0)>I104,HLOOKUP($C104,$E$3:$H$17,12,0)<H104),"",HLOOKUP($C104,$E$3:$H$17,12,0)),"")) ->  | K104: =IF(C104="","",IFERROR(VLOOKUP(B104,$B$113:$C$116,2,0),"")) ->  | AA104: =Parameters!$I$24 -> 0.0 | AB104: =VLOOKUP($AA104&"&"&AB$101,Kantelfactoren,2,0) ->  | AC104: =ROUNDDOWN((((30-($AC$101-1))*AB104+(($AC$101-1)*AD104))/30),6) ->  | AD104: =VLOOKUP($AA104&"&"&AD$101,Kantelfactoren,2,0) -> 
B105: =IFERROR(IF(AND(Berekening!$H$7="",Rekenblad!$G$241=0),"",uitttreeddatum_kolomH),"") ->  | C105: =IFERROR(IF(AND(Berekening!$H$7="",Rekenblad!$G$241=0),"",uitttreeddatum_kolomH),"") ->  | D105: =IF($C105="","",IFERROR(IF(HLOOKUP($C105,$E$3:$H$16,6,0)="ja",D116,HLOOKUP($C105,$E$3:$H$16,8,0)+1/24),"")) ->  | E105: =IF(C105="","","4de uittreding") ->  | F105: =IF(C105="","",Rekenblad!$H$255+Rekenblad!$F$336) ->  | G105: =IF($H$8="ja",ROUNDDOWN(Rekenblad!$G$257,0),0) -> 0 | H105: =IFERROR(CEILING(IF(B105=D105,1,IF(D105<=AOW+1/24,$BL$127,$BL$137)-F133),1),"") -> 1 | I105: =IFERROR(FLOOR(IF(F133=0,IF(D105<=AOW+1/24,$BL$121,$BL$132),MIN(IF(D105<=AOW+1/24,$BL$121,$BL$132)-F133,(H111/K105)+H111)),1),G105) -> 0 | J105: =IF($C105="","",IFERROR(IF(OR(HLOOKUP($C105,$E$3:$H$17,12,0)>I105,HLOOKUP($C105,$E$3:$H$17,12,0)<H105),"",HLOOKUP($C105,$E$3:$H$17,12,0)),"")) ->  | K105: =IF(C105="","",IFERROR(VLOOKUP(B105,$B$113:$C$116,2,0),"")) -> 
AA106: =B115 ->  | AB106: =Parameters!$K$31 -> 0.0 | AC106: =DAY(G10) ->  | AD106: =Parameters!$L$31 -> 0.0
B107: SORTERING VANAF | C107: SORTERING TEKST | D107: SORTERING TOT | E107: SORTERING PENSIOENBEDRAG | F107: SORTERING ONDERGRENS | G107: SORTERING BOVENGRENS | H107: PENSIOENBEDRAG NA | AA107: =Parameters!$H$31 -> 0.0 | AB107: =VLOOKUP($AA107&"&"&AB$106,Kantelfactoren,2,0) ->  | AC107: =ROUNDDOWN((((30-($AC$106-1))*AB107+(($AC$106-1)*AD107))/30),6) ->  | AD107: =VLOOKUP($AA107&"&"&AD$106,Kantelfactoren,2,0) -> 
B108: =C102 ->  | C108: =VLOOKUP($B108,$B$101:$K$105,4,0) ->  | D108: =VLOOKUP(B108,$B$101:$D$105,3,0) ->  | E108: =VLOOKUP($B108,$B$101:$K$105,5,0) ->  | F108: =VLOOKUP($B108,$B$101:$K$105,7,0) -> 1 | G108: =IF($B108=$D108,VLOOKUP($B108,$B$101:$K$105,6,0),VLOOKUP($B108,$B$101:$K$105,8,0)) -> 0 | H108: =IF(C102="","",IF(uittreding1="ja",0,Rekenblad!$H$88)+IF(uittreding1="ja",0,Rekenblad!$F$312)) ->  | AA108: =DAY(G3) -> 0 | AB108: =ROUNDDOWN((((30-($AA$108-1))*AB107+(($AA$108-1)*AB109))/30),6) ->  | AC108: =ROUNDDOWN((((30-($AC$106-1))*AB108+(($AC$106-1)*AD108))/30),6) ->  | AD108: =ROUNDDOWN((((30-($AA$108-1))*AD107+(($AA$108-1)*AD109))/30),6) -> 
B109: =C103 ->  | C109: =VLOOKUP($B109,$B$101:$K$105,4,0) ->  | D109: =VLOOKUP(B109,$B$101:$D$105,3,0) ->  | E109: =VLOOKUP($B109,$B$101:$K$105,5,0) ->  | F109: =VLOOKUP($B109,$B$101:$K$105,7,0) -> 1 | G109: =IF($B109=$D109,VLOOKUP($B109,$B$101:$K$105,6,0),VLOOKUP($B109,$B$101:$K$105,8,0)) -> 0 | H109: =IF(C103="","",Rekenblad!$H$145+Rekenblad!$F$320) ->  | AA109: =Parameters!$I$31 -> 0.0 | AB109: =VLOOKUP($AA109&"&"&AB$106,Kantelfactoren,2,0) ->  | AC109: =ROUNDDOWN((((30-($AC$106-1))*AB109+(($AC$106-1)*AD109))/30),6) ->  | AD109: =VLOOKUP($AA109&"&"&AD$106,Kantelfactoren,2,0) -> 
B110: =C104 ->  | C110: =VLOOKUP($B110,$B$101:$K$105,4,0) ->  | D110: =VLOOKUP(B110,$B$101:$D$105,3,0) ->  | E110: =VLOOKUP($B110,$B$101:$K$105,5,0) ->  | F110: =VLOOKUP($B110,$B$101:$K$105,7,0) -> 1 | G110: =IF($B110=$D110,VLOOKUP($B110,$B$101:$K$105,6,0),VLOOKUP($B110,$B$101:$K$105,8,0)) -> 0 | H110: =IF(C104="","",Rekenblad!$H$202+Rekenblad!$F$328) -> 
B111: =C105 ->  | C111: =VLOOKUP($B111,$B$101:$K$105,4,0) ->  | D111: =VLOOKUP(B111,$B$101:$D$105,3,0) ->  | E111: =VLOOKUP($B111,$B$101:$K$105,5,0) ->  | F111: =VLOOKUP($B111,$B$101:$K$105,7,0) -> 1 | G111: =IF($B111=$D111,VLOOKUP($B111,$B$101:$K$105,6,0),VLOOKUP($B111,$B$101:$K$105,8,0)) -> 0 | H111: =IF(C105="","",Rekenblad!$H$259+Rekenblad!$F$336) ->  | AA111: =B116 ->  | AB111: =Parameters!$K$38 -> 0.0 | AC111: =DAY(H10) ->  | AD111: =Parameters!$L$38 -> 0.0
AA112: =Parameters!$H$38 -> 0.0 | AB112: =VLOOKUP($AA112&"&"&AB$111,Kantelfactoren,2,0) ->  | AC112: =ROUNDDOWN((((30-($AC$111-1))*AB112+(($AC$111-1)*AD112))/30),6) ->  | AD112: =VLOOKUP($AA112&"&"&AD$111,Kantelfactoren,2,0) -> 
B113: =B108 ->  | C113: =$G$115 ->  | D113: =B102 ->  | E113: =B113 ->  | F113: =Parameters!$K$17 -> 0.0 | G113: =DAY(E10) ->  | H113: =Parameters!$L$17 -> 0.0 | AA113: =DAY(H3) -> 0 | AB113: =ROUNDDOWN((((30-($AA$113-1))*AB112+(($AA$113-1)*AB114))/30),6) ->  | AC113: =ROUNDDOWN((((30-($AC$111-1))*AB113+(($AC$111-1)*AD113))/30),6) ->  | AD113: =ROUNDDOWN((((30-($AA$113-1))*AD112+(($AA$113-1)*AD114))/30),6) -> 
B114: =B109 ->  | C114: =$AC$103 ->  | D114: =B103 ->  | E114: =Parameters!$H$17 -> 0.0 | F114: =IFERROR(VLOOKUP($E114&"&"&F$113,Kantelfactoren,2,0),0) -> 0 | G114: =ROUNDDOWN((((30-($G$113-1))*F114+(($G$113-1)*H114))/30),6) ->  | H114: =IFERROR(VLOOKUP($E114&"&"&H$113,Kantelfactoren,2,0),0) -> 0 | AA114: =Parameters!$I$38 -> 0.0 | AB114: =VLOOKUP($AA114&"&"&AB$111,Kantelfactoren,2,0) ->  | AC114: =ROUNDDOWN((((30-($AC$111-1))*AB114+(($AC$111-1)*AD114))/30),6) ->  | AD114: =VLOOKUP($AA114&"&"&AD$111,Kantelfactoren,2,0) -> 
B115: =B110 ->  | C115: =$AC$108 ->  | E115: =DAY(E3) ->  | F115: =ROUNDDOWN((((30-($E$115-1))*F114+(($E$115-1)*F116))/30),6) ->  | G115: =ROUNDDOWN((((30-($G$113-1))*F115+(($G$113-1)*H115))/30),6) ->  | H115: =ROUNDDOWN((((30-($E$115-1))*H114+(($E$115-1)*H116))/30),6) -> 
B116: =B111 ->  | C116: =$AC$113 ->  | E116: =Parameters!$I$17 -> 0.0 | F116: =IFERROR(VLOOKUP($E116&"&"&F$113,Kantelfactoren,2,0),0) -> 0 | G116: =ROUNDDOWN((((30-($G$113-1))*F116+(($G$113-1)*H116))/30),6) ->  | H116: =IFERROR(VLOOKUP($E116&"&"&H$113,Kantelfactoren,2,0),0) -> 0
B118: KANTELEN VANAF | C118: ALLE DATA | D118: SORTERING | E118: UNIEKE WAARDEN | F118: AOW-DATUM | G118: DEELAKP 1E UITTREDING | AA118: 1STE UITTREDING | AK118: 2DE UITTREDING | AU118: 3DE UITTREDING | BE118: 4DE UITTREDING
B119: =IF(AND(uittreding1="nee",E3<>"",OR(E6>0,AND(E7>0,E7<>""))),E3+1/24,"") ->  | C119: =B119 ->  | D119: =IFERROR(SMALL($C$119:$C$127,1),"") ->  | E119: =IFERROR(INDEX($D$119:$D$127,MATCH(FALSE,ISNUMBER(MATCH($D$119:$D$127,$E$118:E118,0)),0)),"") ->  | F119: =AOW+1/24 ->  | G119: 1 | H119: =IF(uittreding1="ja",Berekening!F44,0) -> 0 | I119: =uitttreeddatum_kolomE ->  | AA119: Berekening bovengrens bij kantelen vóór ingangsdatum AOW | AK119: Berekening bovengrens bij kantelen vóór ingangsdatum AOW | AU119: Berekening bovengrens bij kantelen vóór ingangsdatum AOW | BE119: Berekening bovengrens bij kantelen vóór ingangsdatum AOW
B120: =IF(AND(F3<>"",OR(F6>0,AND(F7>0,F7<>""))),F3+1/24,"") ->  | C120: =B120 ->  | D120: =IFERROR(SMALL($C$119:$C$127,2),"") ->  | E120: =IFERROR(INDEX($D$119:$D$127,MATCH(FALSE,ISNUMBER(MATCH($D$119:$D$127,$E$118:E119,0)),0)),"") ->  | F120: AOW GEHUWD | G120: 2 | H120: =IF(uittreding1="ja",Berekening!F43,0) -> 0 | I120: =IF(OR(Berekening!$F$41="",Berekening!$F$41=AOW),AOW,IF(Berekening!$F$41>AOW,(IFERROR(IF(uitttreeddatum_kolomE="","",AOW),"")),Berekening!$F$41)) ->  | AA120: =$H$130-$E$130 -> 0 | AB120: + | AC120: =$H$130*$K$102 ->  | AD120: + | AE120: =$F$121*1.5*$D$130 -> 0 | AF120: = | AG120: =(AA120+AC120+AE120)/AA121 ->  | AH120: Bovengrens | AK120: =$H$131-$E$131 -> 0 | AL120: + | AM120: =$H$131*$K$103 ->  | AN120: + | AO120: =$F$121*1.5*$D$131 -> 0 | AP120: = | AQ120: =(AK120+AM120+AO120)/AK121 ->  | AR120: Bovengrens | AU120: =$H$132-$E$132 -> 0 | AV120: + | AW120: =$H$132*$K$104 ->  | AX120: + | AY120: =$F$121*1.5*$D$132 -> 0 | AZ120: = | BA120: =(AU120+AW120+AY120)/AU121 ->  | BB120: Bovengrens | BE120: =$H$133-$E$133 -> 0 | BF120: + | BG120: =$H$133*$K$105 ->  | BH120: + | BI120: =$F$121*1.5*$D$133 -> 0 | BJ120: = | BK120: =(BE120+BG120+BI120)/BE121 ->  | BL120: Bovengrens
B121: =IF(AND(G3<>"",OR(G6>0,AND(G7>0,G7<>""))),G3+1/24,"") ->  | C121: =B121 ->  | D121: =IFERROR(SMALL($C$119:$C$127,3),"") ->  | E121: =IFERROR(INDEX($D$119:$D$127,MATCH(FALSE,ISNUMBER(MATCH($D$119:$D$127,$E$118:E120,0)),0)),"") ->  | F121: =Parameters!$G$108 -> 13158.48 | G121: 3 | H121: =IF(uittreding1="ja",Berekening!F42,0) -> 0 | I121: =IF(OR(Berekening!$F$41="",Berekening!$F$41=AOW),"",IF(Berekening!$F$41>AOW,Berekening!$F$41,(IFERROR(IF(uitttreeddatum_kolomE="","",AOW),"")))) ->  | AA121: =0.75+$K$102 ->  | AH121: =ROUND(MIN(AG120,AG123),2) ->  | AK121: =0.75+$K$103 ->  | AR121: =ROUND(MIN(AQ120,AQ123),2) ->  | AU121: =0.75+$K$104 ->  | BB121: =ROUND(MIN(BA120,BA123),2) ->  | BE121: =0.75+$K$105 ->  | BL121: =ROUND(MIN(BK120,BK123),2) -> 
B122: =IF(AND(H3<>"",OR(H6>0,AND(H7>0,H7<>""))),H3+1/24,"") ->  | C122: =B122 ->  | D122: =IFERROR(SMALL($C$119:$C$127,4),"") ->  | E122: =IFERROR(INDEX($D$119:$D$127,MATCH(FALSE,ISNUMBER(MATCH($D$119:$D$127,$E$118:E121,0)),0)),"") -> 
B123: KANTELEN TOT | C123: =B124 ->  | D123: =IFERROR(SMALL($C$119:$C$127,5),"") ->  | E123: =IFERROR(INDEX($D$119:$D$127,MATCH(FALSE,ISNUMBER(MATCH($D$119:$D$127,$E$118:E122,0)),0)),"") ->  | AA123: =$H$130-$E$130 -> 0 | AC123: + | AD123: =$H$130*$K$102 ->  | AF123: = | AG123: =(AA123+AD123)/AA124 ->  | AK123: =$H$131-$E$131 -> 0 | AM123: + | AN123: =$H$131*$K$103 ->  | AP123: = | AQ123: =(AK123+AN123)/AK124 ->  | AU123: =$H$132-$E$132 -> 0 | AW123: + | AX123: =$H$132*$K$104 ->  | AZ123: = | BA123: =(AU123+AX123)/AU124 ->  | BE123: =$H$133-$E$133 -> 0 | BG123: + | BH123: =$H$133*$K$105 ->  | BJ123: = | BK123: =(BE123+BH123)/BE124 -> 
B124: =IF(uittreding1_uittreeddatum="",IF(D102="","",D102),$F$41+1/24) ->  | C124: =B125 ->  | D124: =IFERROR(SMALL($C$119:$C$127,6),"") ->  | E124: =IFERROR(INDEX($D$119:$D$127,MATCH(FALSE,ISNUMBER(MATCH($D$119:$D$127,$E$118:E123,0)),0)),"") ->  | AA124: =$K$102 ->  | AK124: =$K$103 ->  | AU124: =$K$104 ->  | BE124: =$K$105 -> 
B125: =IF(D103="","",D103) ->  | C125: =B126 ->  | D125: =IFERROR(SMALL($C$119:$C$127,7),"") ->  | E125: =IFERROR(INDEX($D$119:$D$127,MATCH(FALSE,ISNUMBER(MATCH($D$119:$D$127,$E$118:E124,0)),0)),"") ->  | AA125: Berekening ondergrens bij kantelen vóór ingangsdatum AOW | AK125: Berekening ondergrens bij kantelen vóór ingangsdatum AOW | AU125: Berekening ondergrens bij kantelen vóór ingangsdatum AOW | BE125: Berekening ondergrens bij kantelen vóór ingangsdatum AOW
B126: =IF(D104="","",D104) ->  | C126: =B127 ->  | D126: =IFERROR(SMALL($C$119:$C$127,8),"") ->  | E126: =IFERROR(INDEX($D$119:$D$127,MATCH(FALSE,ISNUMBER(MATCH($D$119:$D$127,$E$118:E125,0)),0)),"") ->  | AH126: Ondergrens | AR126: Ondergrens | BB126: Ondergrens | BL126: Ondergrens
B127: =IF(D105="","",D105) ->  | C127: =AOW+1/24 ->  | D127: =IFERROR(SMALL($C$119:$C$127,9),"") ->  | E127: =IFERROR(INDEX($D$119:$D$127,MATCH(FALSE,ISNUMBER(MATCH($D$119:$D$127,$E$118:E126,0)),0)),"") ->  | AA127: =$H$130-$E$130 -> 0 | AC127: + | AD127: =$H$130*$K$102 ->  | AF127: = | AG127: =(AA127+AD127)/AA128 ->  | AH127: =ROUND(AG127,2) ->  | AK127: =$H$131-$E$131 -> 0 | AM127: + | AN127: =$H$131*$K$103 ->  | AP127: = | AQ127: =(AK127+AN127)/AK128 ->  | AR127: =ROUND(AQ127,2) ->  | AU127: =$H$132-$E$132 -> 0 | AW127: + | AX127: =$H$132*$K$104 ->  | AZ127: = | BA127: =(AU127+AX127)/AU128 ->  | BB127: =ROUND(BA127,2) ->  | BE127: =$H$133-$E$133 -> 0 | BG127: + | BH127: =$H$133*$K$105 ->  | BJ127: = | BK127: =(BE127+BH127)/BE128 ->  | BL127: =ROUND(BK127,2) -> 
AA128: =(100/75)+$K$102 ->  | AK128: =(100/75)+$K$103 ->  | AU128: =(100/75)+$K$104 ->  | BE128: =(100/75)+$K$105 -> 
B129: PENSIOEN INCL AEP | C129: AOW 100% | D129: UITTREED% | E129: % AOW COMP | F129: VPS | G129: AEP | H129: PENSIOEN INCL VPS EN AEP | I129: NETTOPENSIOEN | J129: AOW/KEUZEDATUM LEVENSLANG | K129: OVERIG
B130: =IF(H108="",0,H108) -> 0 | C130: =Rekenblad!$C$92 -> 0 | D130: =Rekenblad!$G$73 -> 0 | E130: =C130*D130 -> 0 | F130: =IF(Rekenblad!$F$283="",0,Rekenblad!$F$283) -> 0 | G130: =Rekenblad!$F$312 -> 0 | H130: =IFERROR(B130+F130,0) -> 0 | I130: =Rekenblad!$F$350 -> 0 | J130: =D136+H136-F130 -> 0 | K130: =$E$16 ->  | AA130: Berekening bovengrens bij kantelen ná ingangsdatum AOW | AK130: Berekening bovengrens bij kantelen ná ingangsdatum AOW | AU130: Berekening bovengrens bij kantelen ná ingangsdatum AOW | BE130: Berekening bovengrens bij kantelen ná ingangsdatum AOW
B131: =IF(H109="",0,H109) -> 0 | C131: =Rekenblad!$C$149 -> 0 | D131: =Rekenblad!$G$128 -> 0 | E131: =C131*D131 -> 0 | F131: =IF(Rekenblad!$F$288="",0,Rekenblad!$F$288) -> 0 | G131: =Rekenblad!$F$320 -> 0 | H131: =IFERROR(B131+F131,0) -> 0 | I131: =Rekenblad!$F$358 -> 0 | J131: =D137+H137-F131 -> 0 | K131: =$F$16 ->  | AH131: Bovengrens | AR131: Bovengrens | BB131: Bovengrens | BL131: Bovengrens
B132: =IF(H110="",0,H110) -> 0 | C132: =Rekenblad!$C$206 -> 0 | D132: =Rekenblad!$G$185 -> 0 | E132: =C132*D132 -> 0 | F132: =IF(Rekenblad!$F$293="",0,Rekenblad!$F$293) -> 0 | G132: =Rekenblad!$F$328 -> 0 | H132: =IFERROR(B132+F132,0) -> 0 | I132: =Rekenblad!$F$366 -> 0 | J132: =D138+H138-F132 -> 0 | K132: =$G$16 ->  | AA132: =0.25*($H$130-$E$130) -> 0 | AC132: + | AD132: =(0.75+$K$102)*$H$130 ->  | AF132: = | AG132: =(AA132+AD132)/AA133 ->  | AH132: =ROUND(AG132,2) ->  | AK132: =0.25*($H$131-$E$131) -> 0 | AM132: + | AN132: =(0.75+$K$103)*$H$131 ->  | AP132: = | AQ132: =(AK132+AN132)/AK133 ->  | AR132: =ROUND(AQ132,2) ->  | AU132: =0.25*($H$132-$E$132) -> 0 | AW132: + | AX132: =(0.75+$K$104)*$H$132 ->  | AZ132: = | BA132: =(AU132+AX132)/AU133 ->  | BB132: =ROUND(BA132,2) ->  | BE132: =0.25*($H$133-$E$133) -> 0 | BG132: + | BH132: =(0.75+$K$105)*$H$133 ->  | BJ132: = | BK132: =(BE132+BH132)/BE133 ->  | BL132: =ROUND(BK132,2) -> 
B133: =IF(H111="",0,H111) -> 0 | C133: =Rekenblad!$C$263 -> 0 | D133: =Rekenblad!$G$242 -> 0 | E133: =C133*D133 -> 0 | F133: =IF(Rekenblad!$F$298="",0,Rekenblad!$F$298) -> 0 | G133: =Rekenblad!$F$336 -> 0 | H133: =IFERROR(B133+F133,0) -> 0 | I133: =Rekenblad!$F$374 -> 0 | J133: =D139+H139-F133 -> 0 | K133: =$H$16 ->  | AA133: =0.75+$K$102 ->  | AK133: =0.75+$K$103 ->  | AU133: =0.75+$K$104 ->  | BE133: =0.75+$K$105 -> 
B135: VERHOGINGSDATUM | C135: AKP VOOR AOW INCL VPS EXCL AEP | D135: AKP VANAF AOW EXCL AEP | E135: KEUZE | F135: VERMEERDERING | G135: VERMINDERING | H135: AKP TOT KEUZEDATUM/AOW | I135: KEUZEDATUM TOT AOW | J135: AOW TOT KEUZEDATUM | K135: AOW/KEUZEDATUM LEVENSLANG | AA135: Berekening ondergrens bij kantelen ná ingangsdatum AOW | AK135: Berekening ondergrens bij kantelen ná ingangsdatum AOW | AU135: Berekening ondergrens bij kantelen ná ingangsdatum AOW | BE135: Berekening ondergrens bij kantelen ná ingangsdatum AOW
B136: =D102 ->  | C136: =IF(uittreding1="ja",Berekening!F44,H130-IF($B$16="Overige inkomsten",0,G130)) -> 0 | D136: =IF(uittreding1="ja",Berekening!F43,C136-E130) -> 0 | E136: =IF(OR(J102="",J102=0),C136,J102-IF($B$16="Overige inkomsten",0,G130)+F130) -> 0 | F136: =E136-C136 -> 0 | G136: =IFERROR(ROUND(F136*K102*-1,2),0) -> 0 | H136: =E136-F130 -> 0 | I136: =IF(B136<AOW,C136+G136-F130,0) -> 0 | J136: =IF(B136>AOW,D136+F136-F130,0) -> 0 | K136: =D136+G136-F130 -> 0 | AH136: Ondergrens | AR136: Ondergrens | BB136: Ondergrens | BL136: Ondergrens
B137: =D103 ->  | C137: =H131-IF($B$16="Overige inkomsten",0,G131) -> 0 | D137: =C137-E131 -> 0 | E137: =IF(OR(J103="",J103=0),C137,J103-IF($B$16="Overige inkomsten",0,G131)+F131) -> 0 | F137: =E137-C137 -> 0 | G137: =IFERROR(ROUND(F137*K103*-1,2),0) -> 0 | H137: =E137-F131 -> 0 | I137: =IF(B137<AOW,C137+G137-F131,0) -> 0 | J137: =IF(B137>AOW,D137+F137-F131,0) -> 0 | K137: =D137+G137-F131 -> 0 | AA137: =$H$130-$E$130 -> 0 | AB137: x | AC137: =1+$K$102 ->  | AD137: + | AE137: =$E$130 -> 0 | AF137: = | AG137: =((AA137*AC137)/AA138)+AE137 ->  | AH137: =ROUND(AG137,2) ->  | AK137: =$H$131-$E$131 -> 0 | AL137: x | AM137: =1+$K$103 ->  | AN137: + | AO137: =$E$131 -> 0 | AP137: = | AQ137: =((AK137*AM137)/AK138)+AO137 ->  | AR137: =ROUND(AQ137,2) ->  | AU137: =$H$132-$E$132 -> 0 | AV137: x | AW137: =1+$K$104 ->  | AX137: + | AY137: =$E$132 -> 0 | AZ137: = | BA137: =((AU137*AW137)/AU138)+AY137 ->  | BB137: =ROUND(BA137,2) ->  | BE137: =$H$133-$E$133 -> 0 | BF137: x | BG137: =1+$K$105 ->  | BH137: + | BI137: =$E$133 -> 0 | BJ137: = | BK137: =((BE137*BG137)/BE138)+BI137 ->  | BL137: =ROUND(BK137,2) -> 
B138: =D104 ->  | C138: =H132-IF($B$16="Overige inkomsten",0,G132) -> 0 | D138: =C138-E132 -> 0 | E138: =IF(OR(J104="",J104=0),C138,J104-IF($B$16="Overige inkomsten",0,G132)+F132) -> 0 | F138: =E138-C138 -> 0 | G138: =IFERROR(ROUND(F138*K104*-1,2),0) -> 0 | H138: =E138-F132 -> 0 | I138: =IF(B138<AOW,C138+G138-F132,0) -> 0 | J138: =IF(B138>AOW,D138+F138-F132,0) -> 0 | K138: =D138+G138-F132 -> 0 | AA138: =(100/75)+$K$102 ->  | AK138: =(100/75)+$K$103 ->  | AU138: =(100/75)+$K$104 ->  | BE138: =(100/75)+$K$105 -> 
B139: =D105 ->  | C139: =H133-IF($B$16="Overige inkomsten",0,G133) -> 0 | D139: =C139-E133 -> 0 | E139: =IF(OR(J105="",J105=0),C139,J105-IF($B$16="Overige inkomsten",0,G133)+F133) -> 0 | F139: =E139-C139 -> 0 | G139: =IFERROR(ROUND(F139*K105*-1,2),0) -> 0 | H139: =E139-F133 -> 0 | I139: =IF(B139<AOW,C139+G139-F133,0) -> 0 | J139: =IF(B139>AOW,D139+F139-F133,0) -> 0 | K139: =D139+G139-F133 -> 0
B141: I | C141: II | D141: III | E141: IV | F141: V | G141: VI | H141: VII | I141: VIII | J141: IX | AA141: Aard | AB141: Arbeid | AC141: =IFERROR(Parameters!$H$10,"") -> AOW-datum | AD141: =IFERROR(Parameters!$I$10,"") ->  | AE141: =IFERROR(Parameters!$J$10,"") ->  | AF141: =IFERROR(Parameters!$K$10,"") -> 
B142: =E119 ->  | C142: =E120 ->  | D142: =E121 ->  | E142: =E122 ->  | F142: =E123 ->  | G142: =E124 ->  | H142: =E125 ->  | I142: =E126 ->  | J142: =E127 ->  | AA142: Berekeningsgrondslag | AB142: =Berekening!$C$11 ->  | AC142: =IF(OR(uitttreeddatum_kolomE="",DVH1_BG_kolomD=""),"",DVH1_BG_kolomD) ->  | AD142: =IF(OR(uitttreeddatum_kolomF="",DVH1_BG_kolomD=""),"",DVH1_BG_kolomE) ->  | AE142: =IF(OR(uitttreeddatum_kolomG="",DVH1_BG_kolomD=""),"",DVH1_BG_kolomF) ->  | AF142: =IF(OR(uitttreeddatum_kolomH="",DVH1_BG_kolomD=""),"",DVH1_BG_kolomG) -> 
B143: =IF(B$142="","",IF(HOUR(B$142)=0,0,IF(B$142>=Berekening!$I$121,Berekening!$H$121,IF(B$142>=Berekening!$I$120,Berekening!$H$120,Berekening!$H$119)))) ->  | C143: =IF(C$142="","",IF(HOUR(C$142)=0,0,IF(C$142>=Berekening!$I$121,Berekening!$H$121,IF(C$142>=Berekening!$I$120,Berekening!$H$120,Berekening!$H$119)))) ->  | D143: =IF(D$142="","",IF(HOUR(D$142)=0,0,IF(D$142>=Berekening!$I$121,Berekening!$H$121,IF(D$142>=Berekening!$I$120,Berekening!$H$120,Berekening!$H$119)))) ->  | E143: =IF(E$142="","",IF(HOUR(E$142)=0,0,IF(E$142>=Berekening!$I$121,Berekening!$H$121,IF(E$142>=Berekening!$I$120,Berekening!$H$120,Berekening!$H$119)))) ->  | F143: =IF(F$142="","",IF(HOUR(F$142)=0,0,IF(F$142>=Berekening!$I$121,Berekening!$H$121,IF(F$142>=Berekening!$I$120,Berekening!$H$120,Berekening!$H$119)))) ->  | G143: =IF(G$142="","",IF(HOUR(G$142)=0,0,IF(G$142>=Berekening!$I$121,Berekening!$H$121,IF(G$142>=Berekening!$I$120,Berekening!$H$120,Berekening!$H$119)))) ->  | H143: =IF(H$142="","",IF(HOUR(H$142)=0,0,IF(H$142>=Berekening!$I$121,Berekening!$H$121,IF(H$142>=Berekening!$I$120,Berekening!$H$120,Berekening!$H$119)))) ->  | I143: =IF(I$142="","",IF(HOUR(I$142)=0,0,IF(I$142>=Berekening!$I$121,Berekening!$H$121,IF(I$142>=Berekening!$I$120,Berekening!$H$120,Berekening!$H$119)))) ->  | J143: =IF(J$142="","",IF(HOUR(J$142)=0,0,IF(J$142>=Berekening!$I$121,Berekening!$H$121,IF(J$142>=Berekening!$I$120,Berekening!$H$120,Berekening!$H$119)))) ->  | K143: DEELAKP1 | AA143: Deeltijdfactor | AB143: =Berekening!$C$12 ->  | AC143: =IF(uittreding1="ja",DVH1_DTF_kolomD, IF(OR(LEFT(Berekening!E4,2)="WW",LEFT(Berekening!E4,2)="WG",LEFT(Berekening!E4,4)="AAOP"),0,Berekening!E4)) ->  | AD143: =IF(OR(LEFT(Berekening!F4,2)="WW",LEFT(Berekening!F4,2)="WG",LEFT(Berekening!F4,4)="AAOP"),0,Berekening!F4) ->  | AE143: =IF(OR(LEFT(Berekening!G4,2)="WW",LEFT(Berekening!G4,2)="WG",LEFT(Berekening!G4,4)="AAOP"),0,Berekening!G4) ->  | AF143: =IF(OR(LEFT(Berekening!H4,2)="WW",LEFT(Berekening!H4,2)="WG",LEFT(Berekening!H4,4)="AAOP"),0,Berekening!H4) -> 
B144: =IF(B$142="","",IF(HOUR(B$142)=0,0,IF(B$142>=$C102,IF(B$142<AOW,IF(B$142<$D102,$H136,$I136),IF(B$142<$D102,$J136,$K136)),0))) ->  | K144: PENSIOEN 1 | AA144: AOW-overbrugging | AC144: =IF(Berekening!E9="","ja",Berekening!E9) -> ja | AD144: =IF(Berekening!F9="","ja",Berekening!F9) -> ja | AE144: =IF(Berekening!G9="","ja",Berekening!G9) -> ja | AF144: =IF(Berekening!H9="","ja",Berekening!H9) -> ja
B145: =IF(B$142="","",IF(HOUR(B$142)=0,0,IF(B$142>=$C103,IF(B$142<AOW,IF(B$142<$D103,$H137,$I137),IF(B$142<$D103,$J137,$K137)),0))) ->  | K145: PENSIOEN 2 | AA145: Aard | AB145: =Berekening!$C$33 -> Arbeid
B146: =IF(B$142="","",IF(HOUR(B$142)=0,0,IF(B$142>=$C104,IF(B$142<AOW,IF(B$142<$D104,$H138,$I138),IF(B$142<$D104,$J138,$K138)),0))) ->  | K146: PENSIOEN 3 | AA146: Berekeningsgrondslag | AB146: =Berekening!$C$34 -> 0 | AC146: =IF(OR(uitttreeddatum_kolomE="",DVH2_BG_kolomD=""),"",DVH2_BG_kolomD) ->  | AD146: =IF(OR(uitttreeddatum_kolomF="",DVH2_BG_kolomD=""),"",DVH2_BG_kolomE) ->  | AE146: =IF(OR(uitttreeddatum_kolomG="",DVH2_BG_kolomD=""),"",DVH2_BG_kolomF) ->  | AF146: =IF(OR(uitttreeddatum_kolomH="",DVH2_BG_kolomD=""),"",DVH2_BG_kolomG) -> 
B147: =IF(B$142="","",IF(HOUR(B$142)=0,0,IF(B$142>=$C105,IF(B$142<AOW,IF(B$142<$D105,$H139,$I139),IF(B$142<$D105,$J139,$K139)),0))) ->  | K147: PENSIOEN 4 | AA147: Deeltijdfactor | AB147: =Berekening!$C$35*IF(Berekening!$C$37="",1,Berekening!$C$37) -> 0 | AC147: =IF(DVH2_BG_kolomE="","", IF(uittreding1="ja",DVH2_DTF_kolomD, IF(OR(LEFT(Berekening!E5,2)="WW",LEFT(Berekening!E5,2)="WG",LEFT(Berekening!E5,4)="AAOP"),0,Berekening!E5*IF(Berekening!$C$37="",1,Berekening!$C$37)))) ->  | AD147: =IF(DVH2_BG_kolomF="","", IF(OR(LEFT(Berekening!F5,2)="WW",LEFT(Berekening!F5,2)="WG",LEFT(Berekening!F5,4)="AAOP"),0,Berekening!F5*IF(Berekening!$C$37="",1,Berekening!$C$37))) ->  | AE147: =IF(DVH2_BG_kolomG="","", IF(OR(LEFT(Berekening!G5,2)="WW",LEFT(Berekening!G5,2)="WG",LEFT(Berekening!G5,4)="AAOP"),0,Berekening!G5*IF(Berekening!$C$37="",1,Berekening!$C$37))) ->  | AF147: =IF(DVH2_BG_kolomH="","", IF(OR(LEFT(Berekening!H5,2)="WW",LEFT(Berekening!H5,2)="WG",LEFT(Berekening!H5,4)="AAOP"),0,Berekening!H5*IF(Berekening!$C$37="",1,Berekening!$C$37))) -> 
B148: =IFERROR(SUM(B143:B147),0) -> 0 | C148: 0 | D148: 0 | E148: 0 | F148: 0 | G148: 0 | H148: 0 | I148: 0 | J148: 0 | K148: TOTAAL PENSIOEN | AA148: AOW-overbrugging | AC148: =DVH1_AOW_kolomE -> ja | AD148: =DVH1_AOW_kolomF -> ja | AE148: =DVH1_AOW_kolomG -> ja | AF148: =DVH1_AOW_kolomH -> ja
AA149: Doortelling diensttijd | AB149: =IFERROR(VLOOKUP(DVH2_Aard,Opbouw_per_aard,3,0),"") -> 
B150: =IFERROR(IF(AND(B$142<>"",B$142>=AOW),IF($C$18="ja",'DT-Aanvullingen-BG'!$L$40,0),0),0) -> 0 | C150: =IFERROR(IF(AND(C$142<>"",C$142>=AOW),IF($C$18="ja",'DT-Aanvullingen-BG'!$L$40,0),0),0) -> 0 | D150: =IFERROR(IF(AND(D$142<>"",D$142>=AOW),IF($C$18="ja",'DT-Aanvullingen-BG'!$L$40,0),0),0) -> 0 | E150: =IFERROR(IF(AND(E$142<>"",E$142>=AOW),IF($C$18="ja",'DT-Aanvullingen-BG'!$L$40,0),0),0) -> 0 | F150: =IFERROR(IF(AND(F$142<>"",F$142>=AOW),IF($C$18="ja",'DT-Aanvullingen-BG'!$L$40,0),0),0) -> 0 | G150: =IFERROR(IF(AND(G$142<>"",G$142>=AOW),IF($C$18="ja",'DT-Aanvullingen-BG'!$L$40,0),0),0) -> 0 | H150: =IFERROR(IF(AND(H$142<>"",H$142>=AOW),IF($C$18="ja",'DT-Aanvullingen-BG'!$L$40,0),0),0) -> 0 | I150: =IFERROR(IF(AND(I$142<>"",I$142>=AOW),IF($C$18="ja",'DT-Aanvullingen-BG'!$L$40,0),0),0) -> 0 | J150: =IFERROR(IF(AND(J$142<>"",J$142>=AOW),IF($C$18="ja",'DT-Aanvullingen-BG'!$L$40,0),0),0) -> 0 | K150: Aanvullingen | AA150: Aard | AB150: =IF(SUM(Berekening!$AB$164:$AB$166)>0,Berekening!$AA$163,IF(SUM(Berekening!$AE$164:$AE$166)>0,Berekening!$AD$163,IF(SUM(Berekening!$AB$169:$AB$171)>0,Berekening!$AA$168,IF(SUM(Berekening!$AE$169:$AE$171)>0,Berekening!$AD$168,"")))) -> 
B151: =IFERROR(IF(B$142="",0,IF(HOUR(B$142)=0,HLOOKUP(B$142,$E$3:$H$17,12,0),0)),0) -> 0 | C151: =IFERROR(IF(C$142="",0,IF(HOUR(C$142)=0,HLOOKUP(C$142,$E$3:$H$17,12,0),0)),0) -> 0 | D151: =IFERROR(IF(D$142="",0,IF(HOUR(D$142)=0,HLOOKUP($C102,$E$3:$H$17,12,0),0)),0) -> 0 | E151: 0 | F151: 0 | G151: 0 | H151: 0 | I151: 0 | J151: 0 | K151: Bedrag ineens | AA151: Berekeningsgrondslag | AB151: =IF(DVH3_Aard=Berekening!$AA$163,IF(Berekening!$AB$166=1,$AB$142,IF(Berekening!$AB$166=2,$AB$146,IF(Berekening!$AB$166=3,(($AB$142*$AB$143)+($AB$146*$AB$147))/($AB$143+$AB$147)))), IF(DVH3_Aard=Berekening!$AD$163,IF(Berekening!$AE$166=1,$AB$142,IF(Berekening!$AE$166=2,$AB$146,IF(Berekening!$AE$166=3,(($AB$142*$AB$143)+($AB$146*$AB$147))/($AB$143+$AB$147)))), IF(DVH3_Aard=Berekening!$AA$168,IF(Berekening!$AB$171=1,$AB$142,IF(Berekening!$AB$171=2,$AB$146,IF(Berekening!$AB$171=3,(($AB$142*$AB$143)+($AB$146*$AB$147))/($AB$143+$AB$147)))), IF(DVH3_Aard=Berekening!$AD$168,IF(Berekening!$AE$171=1,$AB$142,IF(Berekening!$AE$171=2,$AB$146,IF(Berekening!$AE$171=3,(($AB$142*$AB$143)+($AB$146*$AB$147))/($AB$143+$AB$147)))),"")))) ->  | AC151: =IF(OR(uitttreeddatum_kolomE="",DVH3_BG_kolomD=""),"",DVH3_BG_kolomD) ->  | AD151: =IF(OR(uitttreeddatum_kolomF="",DVH3_BG_kolomD=""),"",DVH3_BG_kolomE) ->  | AE151: =IF(OR(uitttreeddatum_kolomG="",DVH3_BG_kolomD=""),"",DVH3_BG_kolomF) ->  | AF151: =IF(OR(uitttreeddatum_kolomH="",DVH3_BG_kolomD=""),"",DVH3_BG_kolomG) -> 
B153: =IF(B$142="","",IF(HOUR(B$142)=0,0,IF(B$142>=$C102,$K130,0))) ->  | K153: OVERIG 1 | AA153: AOW-overbrugging | AC153: =DVH1_AOW_kolomE -> ja | AD153: =DVH1_AOW_kolomF -> ja | AE153: =DVH1_AOW_kolomG -> ja | AF153: =DVH1_AOW_kolomH -> ja
B154: =IF(B$142="","",IF(HOUR(B$142)=0,0,IF(B$142>=$C103,IFERROR($K131-B153,0),0))) ->  | K154: OVERIG 2 | AA154: Doortelling diensttijd | AB154: =IF(DVH3_Aard=Berekening!$AA$163,IF(Berekening!$AB$166=1,Berekening!$AC$164,IF(Berekening!$AB$166=2,Berekening!$AC$165,IF(Berekening!$AB$166=3,Berekening!$AC$166))), IF(DVH3_Aard=Berekening!$AD$163,IF(Berekening!$AE$166=1,Berekening!$AF$164,IF(Berekening!$AE$166=2,Berekening!$AF$165,IF(Berekening!$AE$166=3,Berekening!$AF$166))), IF(DVH3_Aard=Berekening!$AA$168,IF(Berekening!$AB$171=1,Berekening!$AC$169,IF(Berekening!$AB$171=2,Berekening!$AC$170,IF(Berekening!$AB$171=3,Berekening!$AC$171))), IF(DVH3_Aard=Berekening!$AD$168,IF(Berekening!$AE$171=1,Berekening!$AF$169,IF(Berekening!$AE$171=2,Berekening!$AF$170,IF(Berekening!$AE$171=3,Berekening!$AF$171))),"")))) -> 
B155: =IF(B$142="","",IF(HOUR(B$142)=0,0,IF(B$142>=$C104,IFERROR($K132-B154-B153,0),0))) ->  | K155: OVERIG 3
B156: =IF(B$142="","",IF(HOUR(B$142)=0,0,IF(B$142>=$C105,IFERROR($K133-B155-B154-B153,0),0))) ->  | K156: OVERIG 4
B157: =IFERROR(SUM(B153:B156),0) -> 0 | C157: =IFERROR(SUM(C153:C156),0) -> 0 | D157: 0 | E157: 0 | F157: 0 | G157: 0 | H157: 0 | I157: 0 | J157: 0 | K157: TOTAAL OVERIG | AA157: WW
AA158: Deeltijdfactor | AB158: 0 | AC158: =IF(uitttreeddatum_kolomE>=DVH3_doortelling,0, (IF(OR(IFERROR(FIND("A",Berekening!$AB$164,1),0)>0,IFERROR(FIND("A",Berekening!$AB$165,1),0)>0,IFERROR(FIND("A",Berekening!$AE$164,1),0)>0, IFERROR(FIND("A",Berekening!$AE$165,1),0)>0,IFERROR(FIND("A",Berekening!$AB$169,1),0)>0,IFERROR(FIND("A",Berekening!$AB$170,1),0)>0, IFERROR(FIND("A",Berekening!$AE$169,1),0)>0,IFERROR(FIND("A",Berekening!$AE$170,1),0)>0), IF(OR(LEFT(Berekening!$AB$164,2)="1A",LEFT(Berekening!$AE$164,2)="1A",LEFT(Berekening!$AB$169,2)="1A",LEFT(Berekening!$AE$169,2)="1A"),DVH1_DTF_kolomD,0)+ IF(OR(LEFT(Berekening!$AB$165,2)="2A",LEFT(Berekening!$AE$165,2)="2A",LEFT(Berekening!$AB$170,2)="2A",LEFT(Berekening!$AE$170,2)="2A"),DVH2_DTF_kolomD,0),0))) -> 0 | AD158: =IF(uitttreeddatum_kolomF>=DVH3_doortelling,0, (IF(OR(IFERROR(FIND("B",Berekening!$AB$164,1),0)>0,IFERROR(FIND("B",Berekening!$AB$165,1),0)>0,IFERROR(FIND("B",Berekening!$AE$164,1),0)>0, IFERROR(FIND("B",Berekening!$AE$165,1),0)>0,IFERROR(FIND("B",Berekening!$AB$169,1),0)>0,IFERROR(FIND("B",Berekening!$AB$170,1),0)>0, IFERROR(FIND("B",Berekening!$AE$169,1),0)>0,IFERROR(FIND("B",Berekening!$AE$170,1),0)>0), IF(OR(LEFT(Berekening!$AB$164,2)="1B",LEFT(Berekening!$AE$164,2)="1B",LEFT(Berekening!$AB$169,2)="1B",LEFT(Berekening!$AE$169,2)="1B"),DVH1_DTF_kolomE,0)+ IF(OR(LEFT(Berekening!$AB$165,2)="2B",LEFT(Berekening!$AE$165,2)="2B",LEFT(Berekening!$AB$170,2)="2B",LEFT(Berekening!$AE$170,2)="2B"),DVH2_DTF_kolomE,0),0))+ (IF(OR(IFERROR(FIND("A",Berekening!$AB$164,1),0)>0,IFERROR(FIND("A",Berekening!$AB$165,1),0)>0,IFERROR(FIND("A",Berekening!$AE$164,1),0)>0, IFERROR(FIND("A",Berekening!$AE$165,1),0)>0,IFERROR(FIND("A",Berekening!$AB$169,1),0)>0,IFERROR(FIND("A",Berekening!$AB$170,1),0)>0, IFERROR(FIND("A",Berekening!$AE$169,1),0)>0,IFERROR(FIND("A",Berekening!$AE$170,1),0)>0), IF(OR(LEFT(Berekening!$AB$164,2)="1A",LEFT(Berekening!$AE$164,2)="1A",LEFT(Berekening!$AB$169,2)="1A",LEFT(Berekening!$AE$169,2)="1A"),MIN(DVH1_DTF_kolomD,Berekening!$F$4),0)+ IF(OR(LEFT(Berekening!$AB$165,2)="2A",LEFT(Berekening!$AE$165,2)="2A",LEFT(Berekening!$AB$170,2)="2A",LEFT(Berekening!$AE$170,2)="2A"),MIN(DVH2_DTF_kolomD,Berekening!$F$5),0),0))) -> 0 | AE158: =IF(uitttreeddatum_kolomG>=DVH3_doortelling,0, (IF(OR(IFERROR(FIND("C",Berekening!$AB$164,1),0)>0,IFERROR(FIND("C",Berekening!$AB$165,1),0)>0,IFERROR(FIND("C",Berekening!$AE$164,1),0)>0, IFERROR(FIND("C",Berekening!$AE$165,1),0)>0,IFERROR(FIND("C",Berekening!$AB$169,1),0)>0,IFERROR(FIND("C",Berekening!$AB$170,1),0)>0, IFERROR(FIND("C",Berekening!$AE$169,1),0)>0,IFERROR(FIND("C",Berekening!$AE$170,1),0)>0), IF(OR(LEFT(Berekening!$AB$164,2)="1C",LEFT(Berekening!$AE$164,2)="1C",LEFT(Berekening!$AB$169,2)="1C",LEFT(Berekening!$AE$169,2)="1C"),DVH1_DTF_kolomF,0)+ IF(OR(LEFT(Berekening!$AB$165,2)="2C",LEFT(Berekening!$AE$165,2)="2C",LEFT(Berekening!$AB$170,2)="2C",LEFT(Berekening!$AE$170,2)="2C"),DVH2_DTF_kolomF,0),0))+ (IF(OR(IFERROR(FIND("B",Berekening!$AB$164,1),0)>0,IFERROR(FIND("B",Berekening!$AB$165,1),0)>0,IFERROR(FIND("B",Berekening!$AE$164,1),0)>0, IFERROR(FIND("B",Berekening!$AE$165,1),0)>0,IFERROR(FIND("B",Berekening!$AB$169,1),0)>0,IFERROR(FIND("B",Berekening!$AB$170,1),0)>0, IFERROR(FIND("B",Berekening!$AE$169,1),0)>0,IFERROR(FIND("B",Berekening!$AE$170,1),0)>0), IF(OR(LEFT(Berekening!$AB$164,2)="1B",LEFT(Berekening!$AE$164,2)="1B",LEFT(Berekening!$AB$169,2)="1B",LEFT(Berekening!$AE$169,2)="1B"),MIN(DVH1_DTF_kolomE,Berekening!$G$4),0)+ IF(OR(LEFT(Berekening!$AB$165,2)="2B",LEFT(Berekening!$AE$165,2)="2B",LEFT(Berekening!$AB$170,2)="2B",LEFT(Berekening!$AE$170,2)="2B"),MIN(DVH2_DTF_kolomE,Berekening!$G$5),0),0))+ (IF(OR(IFERROR(FIND("A",Berekening!$AB$164,1),0)>0,IFERROR(FIND("A",Berekening!$AB$165,1),0)>0,IFERROR(FIND("A",Berekening!$AE$164,1),0)>0, IFERROR(FIND("A",Berekening!$AE$165,1),0)>0,IFERROR(FIND("A",Berekening!$AB$169,1),0)>0,IFERROR(FIND("A",Berekening!$AB$170,1),0)>0, IFERROR(FIND("A",Berekening!$AE$169,1),0)>0,IFERROR(FIND("A",Berekening!$AE$170,1),0)>0), IF(OR(LEFT(Berekening!$AB$164,2)="1A",LEFT(Berekening!$AE$164,2)="1A",LEFT(Berekening!$AB$169,2)="1A",LEFT(Berekening!$AE$169,2)="1A"),MIN(DVH1_DTF_kolomD,Berekening!$G$4),0)+ IF(OR(LEFT(Berekening!$AB$165,2)="2A",LEFT(Berekening!$AE$165,2)="2A",LEFT(Berekening!$AB$170,2)="2A",LEFT(Berekening!$AE$170,2)="2A"),MIN(DVH2_DTF_kolomD,Berekening!$G$5),0),0))) -> 0 | AF158: 0
B159: =IF(B$142="","",IF(HOUR(B$142)=0,0,IF(B$142>=$C102,$G130,0))) ->  | C159: =IF(C$142="","",IF(HOUR(C$142)=0,0,IF(C$142>=$C102,$G130,0))) ->  | J159: =IF(J$142="","",IF(HOUR(J$142)=0,0,IF(J$142>=$C102,$G130,0))) ->  | K159: AEP 1 | AA159: AOW-overbrugging | AC159: =DVH1_AOW_kolomE -> ja | AD159: =DVH1_AOW_kolomF -> ja | AE159: =DVH1_AOW_kolomG -> ja | AF159: =DVH1_AOW_kolomH -> ja
B160: =IF(B$142="","",IF(HOUR(B$142)=0,0,IF(B$142>=$C103,$G131,0))) ->  | C160: =IF(C$142="","",IF(HOUR(C$142)=0,0,IF(C$142>=$C103,$G131,0))) ->  | J160: =IF(J$142="","",IF(HOUR(J$142)=0,0,IF(J$142>=$C103,$G131,0))) ->  | K160: AEP 2 | AA160: Doortelling diensttijd | AB160: =IF(DVH3_Aard=Berekening!$AA$163,IF(Berekening!$AB$166=1,Berekening!$AC$164,IF(Berekening!$AB$166=2,Berekening!$AC$165,IF(Berekening!$AB$166=3,Berekening!$AC$166))), IF(DVH3_Aard=Berekening!$AD$163,IF(Berekening!$AE$166=1,Berekening!$AF$164,IF(Berekening!$AE$166=2,Berekening!$AF$165,IF(Berekening!$AE$166=3,Berekening!$AF$166))), IF(DVH3_Aard=Berekening!$AA$168,IF(Berekening!$AB$171=1,Berekening!$AC$169,IF(Berekening!$AB$171=2,Berekening!$AC$170,IF(Berekening!$AB$171=3,Berekening!$AC$171))), IF(DVH3_Aard=Berekening!$AD$168,IF(Berekening!$AE$171=1,Berekening!$AF$169,IF(Berekening!$AE$171=2,Berekening!$AF$170,IF(Berekening!$AE$171=3,Berekening!$AF$171))),"")))) -> 
B161: =IF(B$142="","",IF(HOUR(B$142)=0,0,IF(B$142>=$C104,$G132,0))) ->  | C161: =IF(C$142="","",IF(HOUR(C$142)=0,0,IF(C$142>=$C104,$G132,0))) ->  | J161: =IF(J$142="","",IF(HOUR(J$142)=0,0,IF(J$142>=$C104,$G132,0))) ->  | K161: AEP 3
B162: =IF(B$142="","",IF(HOUR(B$142)=0,0,IF(B$142>=$C105,$G133,0))) ->  | C162: =IF(C$142="","",IF(HOUR(C$142)=0,0,IF(C$142>=$C105,$G133,0))) ->  | J162: =IF(J$142="","",IF(HOUR(J$142)=0,0,IF(J$142>=$C105,$G133,0))) ->  | K162: AEP 4
B163: =IFERROR(SUM(B159:B162),0) -> 0 | C163: 0 | D163: 0 | E163: 0 | F163: 0 | G163: 0 | H163: 0 | I163: 0 | J163: 0 | K163: TOTAAL AEP | AA163: WW | AD163: WG
AA164: 1 | AB164: =IF(OR(LEFT(Berekening!$E$4,LEN($AA$163))=$AA$163,LEFT(Berekening!$F$4,LEN($AA$163))=$AA$163,LEFT(Berekening!$G$4,LEN($AA$163))=$AA$163,LEFT(Berekening!$H$4,LEN($AA$163))=$AA$163), IF(LEFT(Berekening!$E$4,LEN($AA$163))=$AA$163,"1A","")&IF(LEFT(Berekening!$F$4,LEN($AA$163))=$AA$163,"1B","")&IF(LEFT(Berekening!$G$4,LEN($AA$163))=$AA$163,"1C","")& IF(LEFT(Berekening!$H$4,LEN($AA$163))=$AA$163,"1D",""),0) -> 0 | AC164: =IF(LEFT(Berekening!$E$4,LEN($AA$163))=$AA$163,IFERROR(IF(RIGHT(Berekening!$E$4,LEN($AA$163))=$AA$163,VLOOKUP(RIGHT(Berekening!$E$4,LEN($AA$163)),Opbouw_per_aard,3,0), (DATE(YEAR(uitttreeddatum_kolomE),MONTH(uitttreeddatum_kolomE)+IF(LEN(Berekening!$E$4)=(LEN($AA$163)+3),RIGHT(Berekening!$E$4,3), IF(LEN(Berekening!$E$4)=(LEN($AA$163)+2),RIGHT(Berekening!$E$4,LEN($AA$163)),RIGHT(Berekening!$E$4,1))),DAY(uitttreeddatum_kolomE)))),""), IF(LEFT(Berekening!$F$4,LEN($AA$163))=$AA$163,IFERROR(IF(RIGHT(Berekening!$F$4,LEN($AA$163))=$AA$163,VLOOKUP(RIGHT(Berekening!$F$4,LEN($AA$163)),Opbouw_per_aard,3,0), (DATE(YEAR(uitttreeddatum_kolomF),MONTH(uitttreeddatum_kolomF)+IF(LEN(Berekening!$F$4)=(LEN($AA$163)+3),RIGHT(Berekening!$F$4,3), IF(LEN(Berekening!$F$4)=(LEN($AA$163)+2),RIGHT(Berekening!$F$4,LEN($AA$163)),RIGHT(Berekening!$F$4,1))),DAY(uitttreeddatum_kolomF)))),""), IF(LEFT(Berekening!$G$4,LEN($AA$163))=$AA$163,IFERROR(IF(RIGHT(Berekening!$G$4,LEN($AA$163))=$AA$163,VLOOKUP(RIGHT(Berekening!$G$4,LEN($AA$163)),Opbouw_per_aard,3,0), (DATE(YEAR(uitttreeddatum_kolomG),MONTH(uitttreeddatum_kolomG)+IF(LEN(Berekening!$G$4)=(LEN($AA$163)+3),RIGHT(Berekening!$G$4,3), IF(LEN(Berekening!$G$4)=(LEN($AA$163)+2),RIGHT(Berekening!$G$4,LEN($AA$163)),RIGHT(Berekening!$G$4,1))),DAY(uitttreeddatum_kolomG)))),""), IF(LEFT(Berekening!$H$4,LEN($AA$163))=$AA$163,IFERROR(IF(RIGHT(Berekening!$H$4,LEN($AA$163))=$AA$163,VLOOKUP(RIGHT(Berekening!$H$4,LEN($AA$163)),Opbouw_per_aard,3,0), (DATE(YEAR(uitttreeddatum_kolomH),MONTH(uitttreeddatum_kolomH)+IF(LEN(Berekening!$H$4)=(LEN($AA$163)+3),RIGHT(Berekening!$H$4,3), IF(LEN(Berekening!$H$4)=(LEN($AA$163)+2),RIGHT(Berekening!$H$4,LEN($AA$163)),RIGHT(Berekening!$H$4,1))),DAY(uitttreeddatum_kolomH)))),""),"")))) ->  | AD164: 1 | AE164: =IF(OR(LEFT(Berekening!$E$4,LEN($AD$163))=$AD$163,LEFT(Berekening!$F$4,LEN($AD$163))=$AD$163,LEFT(Berekening!$G$4,LEN($AD$163))=$AD$163,LEFT(Berekening!$H$4,LEN($AD$163))=$AD$163), IF(LEFT(Berekening!$E$4,LEN($AD$163))=$AD$163,"1A","")&IF(LEFT(Berekening!$F$4,LEN($AD$163))=$AD$163,"1B","")&IF(LEFT(Berekening!$G$4,LEN($AD$163))=$AD$163,"1C","")& IF(LEFT(Berekening!$H$4,LEN($AD$163))=$AD$163,"1D",""),0) -> 0 | AF164: =IF(LEFT(Berekening!$E$4,LEN($AD$163))=$AD$163,IFERROR(IF(RIGHT(Berekening!$E$4,LEN($AD$163))=$AD$163,VLOOKUP(RIGHT(Berekening!$E$4,LEN($AD$163)),Opbouw_per_aard,3,0), (DATE(YEAR(uitttreeddatum_kolomE),MONTH(uitttreeddatum_kolomE)+IF(LEN(Berekening!$E$4)=(LEN($AD$163)+3),RIGHT(Berekening!$E$4,3), IF(LEN(Berekening!$E$4)=(LEN($AD$163)+2),RIGHT(Berekening!$E$4,LEN($AD$163)),RIGHT(Berekening!$E$4,1))),DAY(uitttreeddatum_kolomE)))),""), IF(LEFT(Berekening!$F$4,LEN($AD$163))=$AD$163,IFERROR(IF(RIGHT(Berekening!$F$4,LEN($AD$163))=$AD$163,VLOOKUP(RIGHT(Berekening!$F$4,LEN($AD$163)),Opbouw_per_aard,3,0), (DATE(YEAR(uitttreeddatum_kolomF),MONTH(uitttreeddatum_kolomF)+IF(LEN(Berekening!$F$4)=(LEN($AD$163)+3),RIGHT(Berekening!$F$4,3), IF(LEN(Berekening!$F$4)=(LEN($AD$163)+2),RIGHT(Berekening!$F$4,LEN($AD$163)),RIGHT(Berekening!$F$4,1))),DAY(uitttreeddatum_kolomF)))),""), IF(LEFT(Berekening!$G$4,LEN($AD$163))=$AD$163,IFERROR(IF(RIGHT(Berekening!$G$4,LEN($AD$163))=$AD$163,VLOOKUP(RIGHT(Berekening!$G$4,LEN($AD$163)),Opbouw_per_aard,3,0), (DATE(YEAR(uitttreeddatum_kolomG),MONTH(uitttreeddatum_kolomG)+IF(LEN(Berekening!$G$4)=(LEN($AD$163)+3),RIGHT(Berekening!$G$4,3), IF(LEN(Berekening!$G$4)=(LEN($AD$163)+2),RIGHT(Berekening!$G$4,LEN($AD$163)),RIGHT(Berekening!$G$4,1))),DAY(uitttreeddatum_kolomG)))),""), IF(LEFT(Berekening!$H$4,LEN($AD$163))=$AD$163,IFERROR(IF(RIGHT(Berekening!$H$4,LEN($AD$163))=$AD$163,VLOOKUP(RIGHT(Berekening!$H$4,LEN($AD$163)),Opbouw_per_aard,3,0), (DATE(YEAR(uitttreeddatum_kolomH),MONTH(uitttreeddatum_kolomH)+IF(LEN(Berekening!$H$4)=(LEN($AD$163)+3),RIGHT(Berekening!$H$4,3), IF(LEN(Berekening!$H$4)=(LEN($AD$163)+2),RIGHT(Berekening!$H$4,LEN($AD$163)),RIGHT(Berekening!$H$4,1))),DAY(uitttreeddatum_kolomH)))),""),"")))) -> 
B165: =IF(B$142="","",IF(B$142>=$C102,$I130,0)) ->  | K165: NETTOPENSIOEN 1 | AA165: 2 | AB165: =IF($C$34="",0, IF(OR(LEFT(Berekening!$E$5,LEN($AA$163))=$AA$163,LEFT(Berekening!$F$5,LEN($AA$163))=$AA$163,LEFT(Berekening!$G$5,LEN($AA$163))=$AA$163,LEFT(Berekening!$H$5,LEN($AA$163))=$AA$163), IF(LEFT(Berekening!$E$5,LEN($AA$163))=$AA$163,"2A","")&IF(LEFT(Berekening!$F$5,LEN($AA$163))=$AA$163,"2B","")&IF(LEFT(Berekening!$G$5,LEN($AA$163))=$AA$163,"2C","")& IF(LEFT(Berekening!$H$5,LEN($AA$163))=$AA$163,"2D",""),0)) -> 0 | AC165: =IF(LEFT(Berekening!$E$5,LEN($AA$163))=$AA$163,IFERROR(IF(RIGHT(Berekening!$E$5,LEN($AA$163))=$AA$163,VLOOKUP(RIGHT(Berekening!$E$5,LEN($AA$163)),Opbouw_per_aard,3,0), (DATE(YEAR(uitttreeddatum_kolomE),MONTH(uitttreeddatum_kolomE)+IF(LEN(Berekening!$E$5)=(LEN($AA$163)+3),RIGHT(Berekening!$E$5,3), IF(LEN(Berekening!$E$5)=(LEN($AA$163)+2),RIGHT(Berekening!$E$5,LEN($AA$163)),RIGHT(Berekening!$E$5,1))),DAY(uitttreeddatum_kolomE)))),""), IF(LEFT(Berekening!$F$5,LEN($AA$163))=$AA$163,IFERROR(IF(RIGHT(Berekening!$F$5,LEN($AA$163))=$AA$163,VLOOKUP(RIGHT(Berekening!$F$5,LEN($AA$163)),Opbouw_per_aard,3,0), (DATE(YEAR(uitttreeddatum_kolomF),MONTH(uitttreeddatum_kolomF)+IF(LEN(Berekening!$F$5)=(LEN($AA$163)+3),RIGHT(Berekening!$F$5,3), IF(LEN(Berekening!$F$5)=(LEN($AA$163)+2),RIGHT(Berekening!$F$5,LEN($AA$163)),RIGHT(Berekening!$F$5,1))),DAY(uitttreeddatum_kolomF)))),""), IF(LEFT(Berekening!$G$5,LEN($AA$163))=$AA$163,IFERROR(IF(RIGHT(Berekening!$G$5,LEN($AA$163))=$AA$163,VLOOKUP(RIGHT(Berekening!$G$5,LEN($AA$163)),Opbouw_per_aard,3,0), (DATE(YEAR(uitttreeddatum_kolomG),MONTH(uitttreeddatum_kolomG)+IF(LEN(Berekening!$G$5)=(LEN($AA$163)+3),RIGHT(Berekening!$G$5,3), IF(LEN(Berekening!$G$5)=(LEN($AA$163)+2),RIGHT(Berekening!$G$5,LEN($AA$163)),RIGHT(Berekening!$G$5,1))),DAY(uitttreeddatum_kolomG)))),""), IF(LEFT(Berekening!$H$5,LEN($AA$163))=$AA$163,IFERROR(IF(RIGHT(Berekening!$H$5,LEN($AA$163))=$AA$163,VLOOKUP(RIGHT(Berekening!$H$5,LEN($AA$163)),Opbouw_per_aard,3,0), (DATE(YEAR(uitttreeddatum_kolomH),MONTH(uitttreeddatum_kolomH)+IF(LEN(Berekening!$H$5)=(LEN($AA$163)+3),RIGHT(Berekening!$H$5,3), IF(LEN(Berekening!$H$5)=(LEN($AA$163)+2),RIGHT(Berekening!$H$5,LEN($AA$163)),RIGHT(Berekening!$H$5,1))),DAY(uitttreeddatum_kolomH)))),""),"")))) ->  | AD165: 2 | AE165: =IF($C$34="",0, IF(OR(LEFT(Berekening!$E$5,LEN($AD$163))=$AD$163,LEFT(Berekening!$F$5,LEN($AD$163))=$AD$163,LEFT(Berekening!$G$5,LEN($AD$163))=$AD$163,LEFT(Berekening!$H$5,LEN($AD$163))=$AD$163), IF(LEFT(Berekening!$E$5,LEN($AD$163))=$AD$163,"2A","")&IF(LEFT(Berekening!$F$5,LEN($AD$163))=$AD$163,"2B","")&IF(LEFT(Berekening!$G$5,LEN($AD$163))=$AD$163,"2C","")& IF(LEFT(Berekening!$H$5,LEN($AD$163))=$AD$163,"2D",""),0)) -> 0 | AF165: =IF(LEFT(Berekening!$E$5,LEN($AD$163))=$AD$163,IFERROR(IF(RIGHT(Berekening!$E$5,LEN($AD$163))=$AD$163,VLOOKUP(RIGHT(Berekening!$E$5,LEN($AD$163)),Opbouw_per_aard,3,0), (DATE(YEAR(uitttreeddatum_kolomE),MONTH(uitttreeddatum_kolomE)+IF(LEN(Berekening!$E$5)=(LEN($AD$163)+3),RIGHT(Berekening!$E$5,3), IF(LEN(Berekening!$E$5)=(LEN($AD$163)+2),RIGHT(Berekening!$E$5,LEN($AD$163)),RIGHT(Berekening!$E$5,1))),DAY(uitttreeddatum_kolomE)))),""), IF(LEFT(Berekening!$F$5,LEN($AD$163))=$AD$163,IFERROR(IF(RIGHT(Berekening!$F$5,LEN($AD$163))=$AD$163,VLOOKUP(RIGHT(Berekening!$F$5,LEN($AD$163)),Opbouw_per_aard,3,0), (DATE(YEAR(uitttreeddatum_kolomF),MONTH(uitttreeddatum_kolomF)+IF(LEN(Berekening!$F$5)=(LEN($AD$163)+3),RIGHT(Berekening!$F$5,3), IF(LEN(Berekening!$F$5)=(LEN($AD$163)+2),RIGHT(Berekening!$F$5,LEN($AD$163)),RIGHT(Berekening!$F$5,1))),DAY(uitttreeddatum_kolomF)))),""), IF(LEFT(Berekening!$G$5,LEN($AD$163))=$AD$163,IFERROR(IF(RIGHT(Berekening!$G$5,LEN($AD$163))=$AD$163,VLOOKUP(RIGHT(Berekening!$G$5,LEN($AD$163)),Opbouw_per_aard,3,0), (DATE(YEAR(uitttreeddatum_kolomG),MONTH(uitttreeddatum_kolomG)+IF(LEN(Berekening!$G$5)=(LEN($AD$163)+3),RIGHT(Berekening!$G$5,3), IF(LEN(Berekening!$G$5)=(LEN($AD$163)+2),RIGHT(Berekening!$G$5,LEN($AD$163)),RIGHT(Berekening!$G$5,1))),DAY(uitttreeddatum_kolomG)))),""), IF(LEFT(Berekening!$H$5,LEN($AD$163))=$AD$163,IFERROR(IF(RIGHT(Berekening!$H$5,LEN($AD$163))=$AD$163,VLOOKUP(RIGHT(Berekening!$H$5,LEN($AD$163)),Opbouw_per_aard,3,0), (DATE(YEAR(uitttreeddatum_kolomH),MONTH(uitttreeddatum_kolomH)+IF(LEN(Berekening!$H$5)=(LEN($AD$163)+3),RIGHT(Berekening!$H$5,3), IF(LEN(Berekening!$H$5)=(LEN($AD$163)+2),RIGHT(Berekening!$H$5,LEN($AD$163)),RIGHT(Berekening!$H$5,1))),DAY(uitttreeddatum_kolomH)))),""),"")))) -> 
B166: =IF(B$142="","",IF(B$142>=$C103,$I131,0)) ->  | K166: NETTOPENSIOEN 2 | AA166: 1&2 | AB166: =(LEFT(AB164,1)+LEFT(AB165,1)) -> 0 | AC166: =VLOOKUP($AA$163,Opbouw_per_aard,3,0) ->  | AD166: 1&2 | AE166: =(LEFT(AE164,1)+LEFT(AE165,1)) -> 0 | AF166: =VLOOKUP($AD$163,Opbouw_per_aard,3,0) -> 
B167: =IF(B$142="","",IF(B$142>=$C104,$I132,0)) ->  | K167: NETTOPENSIOEN 3
B168: =IF(B$142="","",IF(B$142>=$C105,$I133,0)) ->  | K168: NETTOPENSIOEN 4 | AA168: SBF | AD168: AAOP
B169: =IFERROR(SUM(B165:B168),0) -> 0 | C169: 0 | D169: 0 | E169: 0 | F169: 0 | G169: 0 | H169: 0 | I169: 0 | J169: 0 | K169: TOTAAL NETTOPENSIOEN | AA169: 1 | AB169: =IF(OR(LEFT(Berekening!$E$4,LEN($AA$168))=$AA$168,LEFT(Berekening!$F$4,LEN($AA$168))=$AA$168,LEFT(Berekening!$G$4,LEN($AA$168))=$AA$168,LEFT(Berekening!$H$4,LEN($AA$168))=$AA$168), IF(LEFT(Berekening!$E$4,LEN($AA$168))=$AA$168,"1A","")&IF(LEFT(Berekening!$F$4,LEN($AA$168))=$AA$168,"1B","")&IF(LEFT(Berekening!$G$4,LEN($AA$168))=$AA$168,"1C","")& IF(LEFT(Berekening!$H$4,LEN($AA$168))=$AA$168,"1D",""),0) -> 0 | AC169: =VLOOKUP($AA$168,Opbouw_per_aard,3,0) -> 00:00:00 | AD169: 1 | AE169: =IF(OR(LEFT(Berekening!$E$4,LEN($AD$168))=$AD$168,LEFT(Berekening!$F$4,LEN($AD$168))=$AD$168,LEFT(Berekening!$G$4,LEN($AD$168))=$AD$168,LEFT(Berekening!$H$4,LEN($AD$168))=$AD$168), IF(LEFT(Berekening!$E$4,LEN($AD$168))=$AD$168,"1A","")&IF(LEFT(Berekening!$F$4,LEN($AD$168))=$AD$168,"1B","")&IF(LEFT(Berekening!$G$4,LEN($AD$168))=$AD$168,"1C","")& IF(LEFT(Berekening!$H$4,LEN($AD$168))=$AD$168,"1D",""),0) -> 0 | AF169: =VLOOKUP($AD$168,Opbouw_per_aard,3,0) -> 
AA170: 2 | AB170: =IF($C$34="",0, IF(OR(LEFT(Berekening!$E$5,LEN($AA$168))=$AA$168,LEFT(Berekening!$F$5,LEN($AA$168))=$AA$168,LEFT(Berekening!$G$5,LEN($AA$168))=$AA$168,LEFT(Berekening!$H$5,LEN($AA$168))=$AA$168), IF(LEFT(Berekening!$E$5,LEN($AA$168))=$AA$168,"2A","")&IF(LEFT(Berekening!$F$5,LEN($AA$168))=$AA$168,"2B","")&IF(LEFT(Berekening!$G$5,LEN($AA$168))=$AA$168,"2C","")& IF(LEFT(Berekening!$H$5,LEN($AA$168))=$AA$168,"2D",""),0)) -> 0 | AC170: =VLOOKUP($AA$168,Opbouw_per_aard,3,0) -> 00:00:00 | AD170: 2 | AE170: =IF($C$34="",0, IF(OR(LEFT(Berekening!$E$5,LEN($AD$168))=$AD$168,LEFT(Berekening!$F$5,LEN($AD$168))=$AD$168,LEFT(Berekening!$G$5,LEN($AD$168))=$AD$168,LEFT(Berekening!$H$5,LEN($AD$168))=$AD$168), IF(LEFT(Berekening!$E$5,LEN($AD$168))=$AD$168,"2A","")&IF(LEFT(Berekening!$F$5,LEN($AD$168))=$AD$168,"2B","")&IF(LEFT(Berekening!$G$5,LEN($AD$168))=$AD$168,"2C","")& IF(LEFT(Berekening!$H$5,LEN($AD$168))=$AD$168,"2D",""),0)) -> 0 | AF170: =VLOOKUP($AD$168,Opbouw_per_aard,3,0) -> 
B171: =B148+B150+B151+B157+B163 -> 0 | C171: =C148+C150+C151+C157+C163 -> 0 | D171: 0 | E171: 0 | F171: 0 | G171: 0 | H171: 0 | I171: 0 | J171: 0 | K171: TOTAAL PENSIOEN | AA171: 1&2 | AB171: =(LEFT(AB169,1)+LEFT(AB170,1)) -> 0 | AC171: =VLOOKUP($AA$168,Opbouw_per_aard,3,0) -> 00:00:00 | AD171: 1&2 | AE171: =(LEFT(AE169,1)+LEFT(AE170,1)) -> 0 | AF171: =VLOOKUP($AD$168,Opbouw_per_aard,3,0) -> 
B172: =ROUND(B171,0) -> 0 | C172: =ROUND(C171,0) -> 0 | D172: 0 | E172: 0 | F172: 0 | G172: 0 | H172: 0 | I172: 0 | J172: 0 | K172: AFGEROND
B173: =IFERROR(IF(OR(HOUR(B$142)=0,B$142<AOW),0,AOW_bedrag_per_jaar),0) -> 0 | C173: 0 | D173: 0 | E173: 0 | F173: 0 | G173: 0 | H173: 0 | I173: 0 | J173: 0 | K173: AOW
B174: =ROUND(B173,0) -> 0 | C174: =ROUND(C173,0) -> 0 | D174: 0 | E174: 0 | F174: 0 | G174: 0 | H174: 0 | I174: 0 | J174: 0 | K174: AFGEROND
B175: =IFERROR(IF(OR(HOUR(B$142)=0,B$142<AOW),0,AOW_bedrag_per_maand),0) -> 0 | C175: 0 | D175: 0 | E175: 0 | F175: 0 | G175: 0 | H175: 0 | I175: 0 | J175: 0 | K175: AOW per maand
B176: =ROUND((B172/IFERROR(IF(HOUR(B$142)=0,1,12),1))+B175,0) -> 0 | C176: 0 | D176: 0 | E176: 0 | F176: 0 | G176: 0 | H176: 0 | I176: 0 | J176: =ROUND((J172/IFERROR(IF(HOUR(J$142)=0,1,12),1))+J175,0) -> 0 | K176: BRUTO PER MAAND
B177: =B169/12 -> 0 | C177: =C169/12 -> 0 | D177: =D169/12 -> 0 | E177: 0 | F177: 0 | G177: 0 | H177: 0 | I177: 0 | J177: 0 | K177: NETTOPENSIOEN
B178: ='Bruto-netto'!$AK$4+B$177 -> 0 | C178: ='Bruto-netto'!$AK$9+C$177 -> 0 | D178: ='Bruto-netto'!$AK$14+D$177 -> 0 | E178: ='Bruto-netto'!$AK$19+E$177 -> 0 | F178: ='Bruto-netto'!$AK$24+F$177 -> 0 | G178: ='Bruto-netto'!$AK$29+G$177 -> 0 | H178: ='Bruto-netto'!$AK$34+H$177 -> 0 | I178: ='Bruto-netto'!$AK$39+I$177 -> 0 | J178: ='Bruto-netto'!$AK$44+J$177 -> 0 | K178: NETTO VOOR AOW
B179: ='Bruto-netto'!$AP$7+B$177 -> 0 | C179: ='Bruto-netto'!$AP$21+C$177 -> 0 | D179: ='Bruto-netto'!$AP$35+D$177 -> 0 | E179: ='Bruto-netto'!$AP$49+E$177 -> 0 | F179: ='Bruto-netto'!$AP$63+F$177 -> 0 | G179: ='Bruto-netto'!$AP$77+G$177 -> 0 | H179: ='Bruto-netto'!$AP$91+H$177 -> 0 | I179: ='Bruto-netto'!$AP$105+I$177 -> 0 | J179: ='Bruto-netto'!$AP$119+J$177 -> 0 | K179: NETTO NA, ZONDER AOW
B180: ='Bruto-netto'!$AS$13+B$177 -> 991.87 | C180: ='Bruto-netto'!$AS$27+C$177 -> 991.87 | D180: ='Bruto-netto'!$AS$41+D$177 -> 991.87 | E180: ='Bruto-netto'!$AS$55+E$177 -> 991.87 | F180: ='Bruto-netto'!$AS$69+F$177 -> 991.87 | G180: ='Bruto-netto'!$AS$83+G$177 -> 991.87 | H180: ='Bruto-netto'!$AS$97+H$177 -> 991.87 | I180: ='Bruto-netto'!$AS$111+I$177 -> 991.87 | J180: ='Bruto-netto'!$AS$125+J$177 -> 991.87 | K180: NETTO NA, INCL AOW
B181: =IFERROR(VLOOKUP(B$171,Loonheffing!$M$31:$V$36,IF(B$183="nee",7,8),0),0) -> 0 | C181: =IFERROR(VLOOKUP(C$171,Loonheffing!$M$31:$V$36,IF(C$183="nee",7,8),0),0) -> 0 | D181: =IFERROR(VLOOKUP(D$171,Loonheffing!$M$31:$V$36,IF(D$183="nee",7,8),0),0) -> 0 | E181: =IFERROR(VLOOKUP(E$171,Loonheffing!$M$31:$V$36,IF(E$183="nee",7,8),0),0) -> 0 | F181: =IFERROR(VLOOKUP(F$171,Loonheffing!$M$31:$V$36,IF(F$183="nee",7,8),0),0) -> 0 | G181: =IFERROR(VLOOKUP(G$171,Loonheffing!$M$31:$V$36,IF(G$183="nee",7,8),0),0) -> 0 | H181: =IFERROR(VLOOKUP(H$171,Loonheffing!$M$31:$V$36,IF(H$183="nee",7,8),0),0) -> 0 | I181: =IFERROR(VLOOKUP(I$171,Loonheffing!$M$31:$V$36,IF(I$183="nee",7,8),0),0) -> 0 | J181: =IFERROR(VLOOKUP(J$171,Loonheffing!$M$31:$V$36,IF(J$183="nee",7,8),0),0) -> 0 | K181: NETTO INEENS VOOR AOW
B182: =IFERROR(VLOOKUP(B$171,Loonheffing!$M$31:$V$36,IF(B$183="nee",9,10),0),0) -> 0 | C182: =IFERROR(VLOOKUP(C$171,Loonheffing!$M$31:$V$36,IF(C$183="nee",9,10),0),0) -> 0 | D182: =IFERROR(VLOOKUP(D$171,Loonheffing!$M$31:$V$36,IF(D$183="nee",9,10),0),0) -> 0 | E182: =IFERROR(VLOOKUP(E$171,Loonheffing!$M$31:$V$36,IF(E$183="nee",9,10),0),0) -> 0 | F182: =IFERROR(VLOOKUP(F$171,Loonheffing!$M$31:$V$36,IF(F$183="nee",9,10),0),0) -> 0 | G182: =IFERROR(VLOOKUP(G$171,Loonheffing!$M$31:$V$36,IF(G$183="nee",9,10),0),0) -> 0 | H182: =IFERROR(VLOOKUP(H$171,Loonheffing!$M$31:$V$36,IF(H$183="nee",9,10),0),0) -> 0 | I182: =IFERROR(VLOOKUP(I$171,Loonheffing!$M$31:$V$36,IF(I$183="nee",9,10),0),0) -> 0 | J182: =IFERROR(VLOOKUP(J$171,Loonheffing!$M$31:$V$36,IF(J$183="nee",9,10),0),0) -> 0 | K182: NETTO INEENS NA AOW
B183: =$I$22 ->  | C183: =$I$23 ->  | D183: =$I$24 ->  | E183: =$I$25 ->  | F183: =$I$26 ->  | G183: =$I$27 ->  | H183: =$I$28 ->  | I183: =$I$29 ->  | J183: =$I$30 ->  | K183: LHK
B184: =$F$18 -> ja | C184: ja | D184: ja | E184: ja | F184: ja | G184: ja | H184: ja | I184: ja | J184: ja | K184: AOW TONEN?
B185: =IFERROR(IF(AND(B142="",B172=0),0,IF(B$142<AOW,IF(HOUR(B$142)=0,B181,B178),IF(HOUR(B$142)=0,B182,IF(B184="nee",B179,B180)))),0) -> 0 | C185: 0 | D185: 0 | E185: 0 | F185: 0 | G185: 0 | H185: 0 | I185: 0 | J185: 0 | K185: JUISTE NETTO
B186: =IF(B142>=AOW,0,SUM(C185:$J$185)-B185) -> 0 | C186: =IF(C142>=AOW,0,SUM(D185:$J$185)-C185) -> 0 | D186: =IF(D142>=AOW,0,SUM(E185:$J$185)-D185) -> 0 | E186: =IF(E142>=AOW,0,SUM(F185:$J$185)-E185) -> 0 | F186: =IF(F142>=AOW,0,SUM(G185:$J$185)-F185) -> 0 | G186: =IF(G142>=AOW,0,SUM(H185:$J$185)-G185) -> 0 | H186: =IF(H142>=AOW,0,SUM(I185:$J$185)-H185) -> 0 | I186: =IF(I142>=AOW,0,SUM(J185:$J$185)-I185) -> 0 | J186: =IF(J142>=AOW,0,SUM($J185:K$185)-J185) -> 0
B188: gehuwd | C188: Gehuwd/samenw. | D188: =Berekening!$C$6 ->  | E188: AKP op AOW | F188: AOW of 70.0? | H188: Pensioenbedrag AOW-leeftijd
B189: gehuwd geweest, huwelijk ontbonden door echtscheiding | C189: Ongehuwd | D189: =ROUND(IF($D$188=0,0,IF($D$188="Ongehuwd",Parameters!$G$111,Parameters!$G$110)*Parameters!$G$107),2) -> 13224.48 | E189: =IFERROR(IF(Berekening!E18="minimaal NP",Berekening!C14,Berekening!C13)-($E$193)- IF(Berekening!E18="maximaal NP",(IFERROR(NP!$C$29,0)*IF(Berekening!$F$189=1,Factor_AOW,VLOOKUP("70.0",AKP_factoren,2,0))),0)- IF(Berekening!E18="NP risico bij uit dienst",(IFERROR(NP!$G$27,0)*IF(Berekening!$F$189=1,Factor_AOW,VLOOKUP("70.0",AKP_factoren,2,0))),0),0) -> 0 | F189: =IF(Berekening!$B$13=$H$188,1,2) -> 1 | H189: Pensioenbedrag 70 jaar (70.0)
B190: gehuwd geweest, huwelijk ontbonden door overige oorzaken | C190: Ongehuwd | D190: =ROUND(IF($D$188=0,0,IF($D$188="Ongehuwd",Parameters!$G$113,Parameters!$G$112)*Parameters!$G$107),2) -> 1047.6 | E190: AEP op PRL | F190: Reeds gedeeltelijk met AKP | H190: Pensioen inclusief verlaging PP
B191: gehuwd geweest,huwelijk ontbonden door overlijden/vermissing | C191: Ongehuwd | D191: =ROUND(IF($D$188=0,0,IF($D$188="Ongehuwd",Parameters!$G$109,Parameters!$G$108)*Parameters!$G$107),2) -> 13158.48 | E191: =IFERROR(IF($B$16="Saldo ABP ExtraPensioen",$C$16/IF($F$189=1,Parameters!$G$470,(VLOOKUP(70,Parameters!$F$401:$M$462,2,0)))),0) -> 0 | F191: =IF(F190=D2,"ja","nee") -> nee
B192: gehuwd, duurzaam gescheiden levend | C192: Gehuwd/samenw. | D192: =ROUND(IF($D$188=0,0,Parameters!$G$111*(IFERROR((50-NP!$G$14)*0.02,1))),2) -> 19412.76 | E192: AEP op AOW
B193: ongehuwd | C193: Ongehuwd | D193: =ROUND(IF($D$188=0,0,Parameters!$G$113*(IFERROR((50-NP!$G$14)*0.02,1))),2) -> 1541.53 | E193: =$E$191*IF($F$189=1,Factor_AOW,1)*IF($E$18="minimaal NP",1+(Parameters!$G$117*Parameters!$H$125),1) -> 0
B194: partnerschap | C194: Gehuwd/samenw.

Sheet NP (hidden)
I1: =Parameters!$G$114 -> 8250.63
C2: NP | D2: BNP | G2: NP | H2: BNP | L2: =IFERROR("Opgave partnerpensioen bij overlijden "&Vastlegging!$D$6&IF($I$30=1," na verhoging bij einde pensioenopbouw",IF($I$33>=1," zonder aanpassing","")),"") -> Opgave partnerpensioen bij overlijden | AA2: OP (incl VPS) op 68.1 | AB2: Leeftijd | AC2: Factor PP65min | AD2: Maximaal NP | AE2: NP incl BNP | AF2: Ruimte verhoging PP65+ | AG2: Ruimte verhoging PP65- | AH2: Kosten op 68.1
B3: NP collectief (tot 1-7-1999) 005 | E3: NP collectief 65- (risico) 009 | G3: =C4 -> 0 | I3: =IFERROR(DATE(YEAR(Geboortedatum)+65,MONTH(Geboortedatum),DAY(Geboortedatum)),0) -> 00:00:00 | AA3: =ROUND(IFERROR(Berekening!$C$13+Berekening!$C$15,0)/IF($AA$12=1,Factor_AOW,VLOOKUP("70.0",AKP_factoren,2,0)),2)+IFERROR($H$7,0) -> 0 | AB3: =IFERROR(IF(Geboortedatum="",0,DATEDIF(Geboortedatum,$C$26,"y")),0) -> 0 | AC3: =IFERROR(VLOOKUP($AB$3,Parameters!$F$539:$K$590,2,0),0) -> 0 | AD3: =ROUND($AA$3*Parameters!$G$117,2) -> 0 | AE3: =ROUND(SUM($C$3:$C$14)+SUM($D$3:$D$14),2) -> 0 | AF3: =AD3-AE3 -> 0 | AG3: =IF($AC$3=0,0,ROUND(AE3-(SUM($G$3:$H$5)+G7+C3+D3+C13+D13+C14+D14)+AF3,2)) -> 0 | AH3: =ROUND(IFERROR(($C$27*Parameters!$G$126)+($C$28*$AC$3),0),2) -> 0
B4: NP collectief 65+ (kapitaal) 011 | E4: NP coll. ML 65- (risico) 210 | I4: =IF($D$18>=$I$3,0,$I$17) -> 0
B5: NP coll. ML 65+ (kapitaal) 213 | E5: NP coll. ML 65- (risico) 250 | M5: =IF(I19=0,"Overlijden vóór 65 jaar","") -> Overlijden vóór 65 jaar | N5: =IF(M5="","","NP") -> NP | O5: =IF(M5="","","Toeslag/AOW") -> Toeslag/AOW | P5: =IF(M5="","","Totaal bruto") -> Totaal bruto | Q5: =IF(M5="","","Bruto p.m.") -> Bruto p.m. | R5: =IF(M5="","","Netto met LHK") -> Netto met LHK | S5: =IF(M5="","","Zonder LHK") -> Zonder LHK | T5: =IF(M5="","","Max belasting") -> Max belasting | AA5: Totaal NP65+ voor 2018 uitruilbaar | AD5: Omrekenfactor NP65 | AF5: Uitruil NP65 AOW | AH5: Uitruil NP65 70.0
B6: Partner Plus coll. 65+ (kap) 214 | E6: ABP nettopensioen (risico) | H6: =IF($G$7<>"","korting OP 68","") ->  | M6: =IF(I20>0,"","Voor AOW-leeftijd partner") -> Voor AOW-leeftijd partner | N6: =IF(M6="","",N7+$G$12-$G$13) -> 0 | O6: =IF(M6="","",MIN($C$3*0.15+($G$7*0.075*IF($E$7="Verhoogd NP 65-/- < 2018",1,0)),$I$1)+($G$9*Parameters!$G$145*1.15)+($G$10*Parameters!$G$147*1.15)+$G$11) -> 0 | P6: =IF(M6="","",N6+O6) -> 0 | Q6: =IF(M6="","",P6/12) -> 0 | R6: =IF(M6="","",IFERROR('Bruto-netto'!$AK$49,0)) -> 0 | S6: =IF(M6="","",IFERROR('Bruto-netto'!$AK$54,0)) -> 0 | T6: =IF(M6="","",IFERROR(Q6*(1-Loonheffing!$C$3),0)) -> 0 | AA6: =SUM($C$4:$C$12) -> 0 | AD6: =uitruilfactor_NP65OP -> 0.206 | AF6: =ROUND((($AA$6*$AD$6*$AD$10)/12),2)*12 -> 0 | AH6: =ROUND((($AA$6*$AD$6*$AD$12)/12),2)*12 -> 0
B7: NP Inkoop VPL ruimte 225 | E7: Verhoogd NP 65-/- < 2018 | I7: NP% | M7: =IF(M5="","",IF(M6="","Vanaf uw overlijden","Vanaf AOW-leeftijd partner")) -> Vanaf AOW-leeftijd partner | N7: =IF(M7="","",SUM($G$3:$G$5)+$G$7+$C$3+$C$13+$C$14-$I$4+$G$13) -> 0 | O7: =IF(M7="","",Berekening!$D$192) -> 19412.76 | P7: =IF(M7="","",N7+O7) -> 19412.76 | Q7: =IF(M7="","",(N7/12)+Berekening!$D$193) -> 1541.53 | R7: =IF(M7="","",IFERROR('Bruto-netto'!$AS$139,0)) -> 1459.53 | AA7: NP2018 (excl. AEP) | AC7: NP AEP | AD7: Omrekenfactor NP2018 | AF7: Uitruil NP2018 AOW | AH7: Uitruil NP2018 70.0
B8: Partner Plus sect 65+ (kap) 242 | E8: Geboortedatum partner | I8: =Parameters!$G$117 -> 0.7 | M8: =IF(M5="","","Zonder AOW") -> Zonder AOW | N8: =IF(M8="","",N7) -> 0 | O8: =IF(M8="","",0) -> 0 | P8: =IF(M8="","",N8+O8) -> 0 | Q8: =IF(M8="","",P8/12) -> 0 | S8: =IF(M8="","",IFERROR('Bruto-netto'!$AP$133,0)) -> 0 | T8: =IF(M8="","",IFERROR(Q8*(1-Loonheffing!$C$3),0)) -> 0 | AA8: =$C$13 -> 0 | AC8: =$C$14 -> 0 | AD8: =uitruilfactorNPOP -> 0.211 | AF8: =ROUND(((($AA$8+$AC$8)*$AD$8*$AD$10)/12),2)*12 -> 0 | AH8: =ROUND(((($AA$8+$AA$12)*$AD$8*$AD$12)/12)+(($AC$8*$AD$8)/12),2)*12 -> 0.24
B9: NP Inkoop maximum 245 | E9: 18.11 DT voor 1986 | I9: DVH1 | AA9: Inkoop VPL + Inkoop Max | AD9: Factor AOW | AF9: Uitruil VPL AOW | AH9: Uitruil VPL 70.0
B10: Partner Plus sect 65+ (kap) 246 | E10: 18.11 DT 1986-1996 | I10: =Rekenblad!$C$24*$I$8 -> 0 | M10: =IF(I24=0,"Overlijden vanaf 65 jaar","Overlijden") -> Overlijden vanaf 65 jaar | N10: =IF(M10="","","NP") -> NP | O10: =IF(M10="","","Toeslag/AOW") -> Toeslag/AOW | P10: =IF(M10="","","Totaal bruto") -> Totaal bruto | Q10: =IF(M10="","","Bruto p.m.") -> Bruto p.m. | R10: =IF(M10="","","Netto met LHK") -> Netto met LHK | S10: =IF(M10="","","Zonder LHK") -> Zonder LHK | T10: =IF(N10="","","Max belasting") -> Max belasting | AA10: =$C$7+$C$9 -> 0 | AD10: =Factor_AOW -> 1 | AF10: =ROUND((($AA$10*$AD$6*$AD$10)/12),2)*12 -> 0 | AH10: =ROUND((($AA$10*$AD$6*$AD$12)/12),2)*12 -> 0
B11: NP coll. ML 65+ (kapitaal) 253 | E11: Anw-compensatie | I11: =Rekenblad!$C$29 ->  | M11: =IF(I25>0,"","Voor AOW-leeftijd partner") -> Voor AOW-leeftijd partner | N11: =IF(M11="","",N12+$G$12-$G$13) -> 0 | O11: =IF(M11="","",MIN($C$3*0.15+(($C$4+$C$5+$C$6+$C$7+$C$8+$C$9+$C$10+$C$11+$C$12)*0.075),$I$1)+($G$9*Parameters!$G$145*1.15)+($G$10*Parameters!$G$147*1.15)+$G$11) -> 0 | P11: =IF(M11="","",N11+O11) -> 0 | Q11: =IF(M11="","",P11/12) -> 0 | R11: =IF(M11="","",IFERROR('Bruto-netto'!$AK$59,0)) -> 0 | S11: =IF(M11="","",IFERROR('Bruto-netto'!$AK$64,0)) -> 0 | T11: =IF(M11="","",IFERROR(Q11*(1-Loonheffing!$C$3),0)) -> 0 | AA11: AOW of 70.0 | AB11: 70.0 | AD11: Factor 70.0 | AF11: Uitruil NP-OP | AH11: Uitruil VPL
B12: Partner Plus coll. 65+ (kap) 254 | E12: Inkomen partner voor AOW | I12: DVH2 | M12: =IF(M10="","",IF(M11="","Vanaf uw overlijden","Vanaf AOW-leeftijd partner")) -> Vanaf AOW-leeftijd partner | N12: =IF(M12="","",SUM($C$3:$C$14)-$I$17+$G$13) -> 0 | O12: =IF(M12="","",Berekening!$D$192) -> 19412.76 | P12: =IF(M12="","",N12+O12) -> 19412.76 | Q12: =IF(M12="","",(N12/12)+Berekening!$D$193) -> 1541.53 | R12: =IF(M12="","",IFERROR('Bruto-netto'!$AS$153,0)) -> 1459.53 | AA12: =Berekening!$F$189 -> 1 | AB12: =jaar70 -> 00:00:00 | AD12: =VLOOKUP("70.0",AKP_factoren,2,0) -> 1.13 | AF12: =IF(Berekening!$F$189=1,$AF$6+$AF$8,$AH$6+$AH$8) -> 0 | AH12: =IF(Berekening!$F$189=1,$AF$10,$AH$10) -> 0
B13: NP coll. ML (kap. vanaf 2018) 257 | E13: Inkomen partner vanaf AOW | I13: =Rekenblad!$D$24*$I$8 -> 0 | M13: =IF(M10="","","Zonder AOW") -> Zonder AOW | N13: =IF(M13="","",N12) -> 0 | O13: =IF(M13="","",0) -> 0 | P13: =IF(M13="","",N13+O13) -> 0 | Q13: =IF(M13="","",P13/12) -> 0 | S13: =IF(M13="","",IFERROR('Bruto-netto'!$AP$147,0)) -> 0 | T13: =IF(M13="","",IFERROR(Q13*(1-Loonheffing!$C$3),0)) -> 0
B14: ABP Extra Pens NP 268 | C14: =ROUND(IFERROR(Berekening!$E$193/Factor_AOW*Parameters!$G$117,0)/12,2)*12 -> 0 | E14: Minder AOW-jaren | I14: =Rekenblad!$D$29 -> 
B15: =IF($AA$12=1,"","Incl doortelling tot 70.0") ->  | I15: =(IFERROR(I10*I11,0))+(IFERROR(I13*I14,0)) -> 0 | L15: =IFERROR(IF($I$30=1,"Opgave partnerpensioen zonder verhoging bij einde pensioenopbouw",IF($I$31=1,"Opgave partnerpensioen na verlaging partnerpensioen",IF($I$32=1,"Opgave partnerpensioen na verhoging partnerpensioen",""))),"") ->  | AA15: BG | AB15: Aftopping | AC15: Franchise | AD15: DT | AE15: Opbouw% | AF15: Beperkingsfactor | AG15: Aangroei
C16: DOORTELLING NP | I16: =SUM($AG$16:$AG$22)*$I$8 -> 0 | AA16: =IF(F18="",0,F18) -> 0 | AB16: =IFERROR(ROUND(MIN(Aftoppingsgrens,$AA16),2),0) -> 0 | AC16: =IF($AA16<Grensbedrag,Franchise_laag,Franchise_hoog) -> 14050 | AD16: =IFERROR(DAYS360(C18,D18)/360*IF(E18="",1,E18)*IF(G18="",1,G18),0) -> 0 | AE16: =IF($AA16<Grensbedrag,Opbouwpercentage_laag,Opbouwpercentage_hoog) -> 0.01701 | AF16: =IFERROR(MIN(1,MAX(Aftoppingsgrens,AA16)/(E18*AA16)),1) -> 1 | AG16: =IFERROR((AB16-AC16)*AD16*AE16*AF16,0) -> 0
C17: Vanaf | D17: Tot | E17: DTF | F17: BG | G17: MW * AO | I17: =MIN(I15-I16,IFERROR($C$13,0)) -> 0 | AA17: 0 | AB17: 0 | AC17: 14050 | AD17: 0 | AE17: 0.01701 | AF17: 1 | AG17: 0
B18: =IF(C18="","","DVH1") -> DVH1 | C18: =Parameters!$G$3 -> 2024-01-01 | D18: =IF($C18="","",IF(Berekening!$E$4="",IF($AA$12=1,AOW_GPS,jaar70),Berekening!$E$3)) ->  | E18: =IF($C18="","",IF(Rekenblad!$C$21="",0,Rekenblad!$C$21)) -> 0 | F18: =IF($E18="","",Rekenblad!$C$19) -> 0 | G18: =IF($E18="","",Rekenblad!$C$22) -> 1 | M18: =IF($I$33<>0,M5,"") ->  | N18: =IF(M18="","","NP") ->  | O18: =IF(M18="","","Toeslag/AOW") ->  | P18: =IF(M18="","","Totaal bruto") ->  | Q18: =IF(M18="","","Bruto p.m.") ->  | R18: =IF(M18="","","Netto met LHK") ->  | S18: =IF(M18="","","Zonder LHK") ->  | T18: =IF(M18="","","Max belasting") ->  | AA18: 0 | AB18: 0 | AC18: 14050 | AD18: 0 | AE18: 0.01701 | AF18: 1 | AG18: 0
B19: =IF(C19="","","DVH1") ->  | C19: =IF($D18>=IF($AA$12=1,AOW_GPS,jaar70),"",$D18) ->  | D19: =IF($C19="","",IF(Berekening!$F$4="",IF($AA$12=1,AOW_GPS,jaar70),Berekening!$F$3)) ->  | E19: =IF($C19="","",IF(Berekening!$E$4="",0,Berekening!$E$4)) ->  | F19: =IF($E19="","",Rekenblad!$C$19) ->  | G19: =IF($E19="","",Rekenblad!$C$22) ->  | I19: =IFERROR(IF(TODAY()<DATE(YEAR(Geboortedatum)+65,MONTH(Geboortedatum),DAY(Geboortedatum)),0,1),0) -> 0 | M19: =IF($I$33<>0,M6,"") ->  | N19: =IF(M19="","",N20+$G$12-$G$13) ->  | O19: =IF(M19="","",MIN($C$3*0.15+($G$7*0.075*IF($E$7="Verhoogd NP 65-/- < 2018",1,0))+($C$28*0.075),$I$1)+($G$9*Parameters!$G$145*1.15)+($G$10*Parameters!$G$147*1.15)+$G$11) ->  | P19: =IF(M19="","",N19+O19) ->  | Q19: =IF(M19="","",P19/12) ->  | R19: =IF(M19="","",IFERROR('Bruto-netto'!$AK$109,0)) ->  | S19: =IF(M19="","",IFERROR('Bruto-netto'!$AK$114,0)) ->  | T19: =IF(M19="","",IFERROR(Q19*(1-Loonheffing!$C$3),0)) ->  | AA19: 0 | AB19: 0 | AC19: 14050 | AD19: 0 | AE19: 0.01701 | AF19: 1 | AG19: 0
C20: =IF($D19>=IF($AA$12=1,AOW_GPS,jaar70),"",$D19) ->  | D20: =IF($C20="","",IF(Berekening!$G$4="",IF($AA$12=1,AOW_GPS,jaar70),Berekening!$G$3)) ->  | E20: =IF($C20="","",IF(Berekening!$F$4="",0,Berekening!$F$4)) ->  | F20: =IF($E20="","",Rekenblad!$C$19) ->  | G20: =IF($E20="","",Rekenblad!$C$22) ->  | I20: =IFERROR(IF(TODAY()<DATE(YEAR(Geboortedatum)+65,MONTH(Geboortedatum),DAY(Geboortedatum)),0,1),0)+IF(TODAY()<$G$29,0,1) -> 0 | M20: =IF($I$33<>0,M7,"") ->  | N20: =IF(M20="","",IF($I$30=1,$N$7-$G$3-$G$4-$G$5,IF($I$31=1,$C$3+$G$7+$G$13+SUM($G$3:$G$5),IF($I$32=1,$N$7+IF($C$28="handmatig",0,$C$28),0)))) ->  | O20: =IF(M20="","",Berekening!$D$192) ->  | P20: =IF(M20="","",N20+O20) ->  | Q20: =IF(M20="","",(N20/12)+Berekening!$D$193) ->  | R20: =IF(M20="","",IFERROR('Bruto-netto'!$AS$167,0)) ->  | AA20: 0 | AB20: 0 | AC20: 14050 | AD20: 0 | AE20: 0.01701 | AF20: 1 | AG20: 0
C21: =IF($D20>=IF($AA$12=1,AOW_GPS,jaar70),"",$D20) ->  | D21: =IF($C21="","",IF(Berekening!$H$4="",IF($AA$12=1,AOW_GPS,jaar70),Berekening!$H$3)) ->  | E21: =IF($C21="","",IF(Berekening!$G$4="",0,Berekening!$G$4)) ->  | F21: =IF($E21="","",Rekenblad!$C$19) ->  | G21: =IF($E21="","",Rekenblad!$C$22) ->  | M21: =IF($I$33<>0,M8,"") ->  | N21: =IF(M21="","",N20) ->  | O21: =IF(M21="","",0) ->  | P21: =N21 ->  | Q21: =IF(M21="","",P21/12) ->  | S21: =IF(M21="","",IFERROR('Bruto-netto'!$AP$161,0)) ->  | T21: =IF(M21="","",IFERROR(Q21*(1-Loonheffing!$C$3),0)) ->  | AA21: 0 | AB21: 0 | AC21: 14050 | AD21: 0 | AE21: 0.01701 | AF21: 1 | AG21: 0
C22: =IF($D21>=IF($AA$12=1,AOW_GPS,jaar70),"",$D21) ->  | D22: =IF($C22="","",IF($AA$12=1,AOW_GPS,jaar70)) ->  | E22: =IF($C22="","",IF(Berekening!$H$4="",0,Berekening!$H$4)) ->  | F22: =IF($E22="","",Rekenblad!$C$19) ->  | G22: =IF($E22="","",Rekenblad!$C$22) -> 
B23: =IF(C23="","","DVH2") ->  | C23: =IF(Berekening!$C$35<>"",$C$18,"") ->  | D23: =IF($C23="","",IF($AA$12=1,AOW_GPS,jaar70)) ->  | E23: =IF($C23="","",Berekening!$C$35) ->  | F23: =IF($E23="","",Rekenblad!$D$19) ->  | G23: =IF($E23="","",Rekenblad!$D$22*IF(Berekening!$B$37="",1,Berekening!$C$37)) ->  | M23: =IF($I$33<>0,M10,"") ->  | N23: =IF(M23="","","NP") ->  | O23: =IF(M23="","","Toeslag/AOW") ->  | P23: =IF(M23="","","Totaal bruto") ->  | Q23: =IF(M23="","","Bruto p.m.") ->  | R23: =IF(M23="","","Netto met LHK") ->  | S23: =IF(M23="","","Zonder LHK") ->  | T23: =IF(M23="","","Max belasting") -> 
I24: =IFERROR(IF(TODAY()<DATE(YEAR(Geboortedatum)+65,MONTH(Geboortedatum),DAY(Geboortedatum)),0,1),0) -> 0 | M24: =IF($I$33<>0,M11,"") ->  | N24: =IF(M24="","",N25+$G$12-$G$13) ->  | O24: =IF(M24="","",MIN($C$3*0.15+IF(Berekening!$E$18="minimaal NP",0,(($C$4+$C$5+$C$6+$C$7+$C$8+$C$9+$C$10+$C$11+$C$12+$C$27)*0.075)),$I$1)+($G$9*Parameters!$G$145*1.15)+($G$10*Parameters!$G$147*1.15)+$G$11) ->  | P24: =IF(M24="","",N24+O24) ->  | Q24: =IF(M24="","",P24/12) ->  | R24: =IF(M24="","",IFERROR('Bruto-netto'!$AK$119,0)) ->  | S24: =IF(M24="","",IFERROR('Bruto-netto'!$AK$124,0)) ->  | T24: =IF(M24="","",IFERROR(Q24*(1-Loonheffing!$C$3),0)) -> 
B25: Uitruil OP-NP bij pensionering | E25: Uitruil OP-NP bij uit dienst | I25: =IFERROR(IF(AND($G$29>DATE(YEAR(Geboortedatum)+65,MONTH(Geboortedatum),DAY(Geboortedatum)),TODAY()<$G$29),0,1),0) -> 0 | M25: =IF($I$33<>0,M12,"") ->  | N25: =IF(M25="","",IF($I$30=1,$N$12,IF($I$31=1,$C$3+$G$13,IF($I$32=1,$N$12+IF($C$27="handmatig",0,$C$27),0)))) ->  | O25: =IF(M25="","",Berekening!$D$192) ->  | P25: =IF(M25="","",N25+O25) ->  | Q25: =IF(M25="","",(N25/12)+Berekening!$D$193) ->  | R25: =IF(M25="","",IFERROR('Bruto-netto'!$AS$181,0)) -> 
B26: Pensioendatum | C26: =IF(Berekening!E18="maximaal NP",uitttreeddatum_kolomE,"") ->  | E26: Datum uit dienst | M26: =IF($I$33<>0,M13,"") ->  | N26: =IF(M26="","",N25) ->  | O26: =IF(M26="","",0) ->  | P26: =IF(M26="","",N26+O26) ->  | Q26: =IF(M26="","",P26/12) ->  | S26: =IF(M26="","",IFERROR('Bruto-netto'!$AP$175,0)) ->  | T26: =IF(M26="","",IFERROR(Q26*(1-Loonheffing!$C$3),0)) -> 
B27: Verhoging 65+ | C27: =IF($C$26="",0,IF(uittreding1="ja","handmatig",$AF$3*Rekenblad!$E$246)) -> 0 | E27: Vermindering op 68.1 | G27: =IF($G$26="",0,IF(AND(Premie!$C$9<>$G$26,Premie!$C$9<>""),"Datum bijsparen leegmaken", VLOOKUP(IF(MONTH($G$26)-MONTH(Geboortedatum)>0,YEAR($G$26)-YEAR(Geboortedatum),YEAR($G$26)-YEAR(Geboortedatum)-1),FACTOREN_OP_PP65MIN,7,0)*(G3+G4+G5))) -> 0
B28: Verhoging 65-/- | C28: =IF($C$26="",0,IF(uittreding1="ja","handmatig",$AG$3*Rekenblad!$E$246)) -> 0 | E28: AOW-datum deelnemer | G28: =AOW_datum ->  | L28: De brutobedragen zijn gebaseerd op de huidige situatie. Het brutobedrag kan bijvoorbeeld veranderen als gevolg van toekomstige algemene salarismaatregelen (indexatie), wijziging van actuariële factoren, ontwikkelingen die van invloed kunnen zijn op uw pensioen, wijzigingen in uw persoonlijke situatie, wijzigingen in de AOW-sfeer en eventuele verlagingen en verhogingen van uw pensioenaanspraak. Ook kan de pensioenregeling veranderen. Mocht hiervan sprake zijn, dan passen wij uw pensioen aan. Het nettobedrag zal hierdoor ook veranderen. De getoonde nettobedragen zijn gebaseerd op de huidige regelgeving en actuele tabellen. Aan deze opgave kunnen geen rechten worden ontleend.
B29: Vermindering op 68.1 | C29: =IF($C$26="",0,$AH$3/Rekenblad!$E$246) -> 0 | E29: AOW-datum partner | G29: =Parameters!$G$60 -> 
I30: =IF(G26<>"",1,0) -> 0
B31: =IF(AND($M$6="",$M$11=""),"","Splitsing Toeslag") -> Splitsing Toeslag | C31: =IF(AND($M$6="",$M$11=""),"","Toeslag 7.4") -> Toeslag 7.4 | D31: =IF(AND($M$6="",$M$11=""),"",IF($G$11>0,"","18.11")) -> 18.11 | E31: =IF(AND($M$6="",$M$11=""),"",IF($G$11>0,"","7.4 / 18.11")) -> 7.4 / 18.11 | F31: =IF(AND($M$6="",$M$11=""),"",IF($G$11>0,"Anw-compensatie","18.11 incl 7.4")) -> 18.11 incl 7.4 | G31: =IF(AND($M$6="",$M$11=""),"","Totaal") -> Totaal | I31: =IF(Berekening!$E$18="minimaal NP",1,0) -> 0
B32: =IF($M$6="","","Overlijden vóór 65 jaar") -> Overlijden vóór 65 jaar | C32: =IF($M$6="","",$O$6-$F$32) -> 0 | D32: =IF($M$6="","",IF($G$11>0,0,$F$32/1.15)) -> 0 | E32: =IF($M$6="","",IF($G$11>0,0,$D$32*0.15)) -> 0 | F32: =IF($M$6="","",IF($G$11>0,$G$11,($G$9*Parameters!$G$145*1.15)+($G$10*Parameters!$G$147*1.15))) -> 0 | G32: =IF($M$6="","",$C$32+$F$32) -> 0 | I32: =IF(OR($I$31=1,$C$26=""),0,1) -> 0
B33: =IF($M$11="","","Overlijden vanaf 65 jaar") -> Overlijden vanaf 65 jaar | C33: =IF($M$11="","",$O$11-$F$33) -> 0 | D33: =IF($M$11="","",IF($G$11>0,0,$F$33/1.15)) -> 0 | E33: =IF($M$11="","",IF($G$11>0,0,$D$33*0.15)) -> 0 | F33: =IF($M$11="","",IF($G$11>0,$G$11,($G$9*Parameters!$G$145*1.15)+($G$10*Parameters!$G$147*1.15))) -> 0 | G33: =IF($M$11="","",$C$33+$F$33) -> 0 | I33: =SUM(I30:I32) -> 0
B34: =IF((SUM($D$3:$D$14)+$H$3+$H$4+$H$5)>0,"Partnerpensioen ex-partner(s) overlijden vóór 65 jaar","") ->  | E34: =IF(M7="","",IF(($D$3+$D$13+$D$14)>0,$D$3+$D$13+$D$14,"")) -> 
B35: =IF((SUM($D$3:$D$14)+$H$3+$H$4+$H$5)>0,"Partnerpensioen ex-partner(s) overlijden vanaf 65 jaar","") ->  | E35: =IF(M12="","",IF(SUM($D$3:$D$14)>0,SUM($D$3:$D$14),"")) -> 

Sheet Bruto-netto
AB1: =IF(OR('Bruto-netto'!$D$8=Loonheffing!$B$32,'Bruto-netto'!$D$8=Loonheffing!$B$34,AB$5=SMALL(AB$2:AB$5,1)),5,IF(AB$2=SMALL(AB$2:AB$5,1),2,IF(AB$3=SMALL(AB$2:AB$5,1),3,IF(AB$4=SMALL(AB$2:AB$5,1),4,0)))) -> 5 | AC1: =IF(OR('Bruto-netto'!$D$8=Loonheffing!$B$32,'Bruto-netto'!$D$8=Loonheffing!$B$34,AC$5=SMALL(AC$2:AC$5,1)),5,IF(AC$2=SMALL(AC$2:AC$5,1),2,IF(AC$3=SMALL(AC$2:AC$5,1),3,IF(AC$4=SMALL(AC$2:AC$5,1),4,0)))) -> 5 | AF1: 2 | AG1: AKP voor AOW-leeftijd per jaar | AH1: =Berekening!$B$171 -> 0 | AJ1: AKP voor AOW-leeftijd per maand | AK1: =ROUND(AH1/12,2) -> 0 | AN1: 2 | AO1: AKP vanaf AOW leeftijd per jaar | AP1: =Berekening!$B$171 -> 0
B2: Algemene gegevens | AB2: =IFERROR((('Bruto-netto'!$K$22/IF('Bruto-netto'!$K$15=$AB$7,12,1))- (IF('Bruto-netto'!$D$22="",0,'Bruto-netto'!$D$22/IF(OR($B$12='Bruto-netto'!$AB$19,$B$12='Bruto-netto'!$AB$20),12,1))+ IF('Bruto-netto'!$F$19="",0,'Bruto-netto'!$F$19/IF(OR($B$13='Bruto-netto'!$AB$19,$B$13='Bruto-netto'!$AB$20),12,1))+ IF('Bruto-netto'!$H$19="",0,'Bruto-netto'!$H$19/IF(OR($B$14='Bruto-netto'!$AB$19,$B$14='Bruto-netto'!$AB$20),12,1)))) *IF(('Bruto-netto'!$K$22/IF('Bruto-netto'!$K$15=$AB$7,12,1))- (IF('Bruto-netto'!$D$22="",0,'Bruto-netto'!$D$22/IF(OR($B$12='Bruto-netto'!$AB$19,$B$12='Bruto-netto'!$AB$20),12,1))+ IF('Bruto-netto'!$F$19="",0,'Bruto-netto'!$F$19/IF(OR($B$13='Bruto-netto'!$AB$19,$B$13='Bruto-netto'!$AB$20),12,1))+ IF('Bruto-netto'!$H$19="",0,'Bruto-netto'!$H$19/IF(OR($B$14='Bruto-netto'!$AB$19,$B$14='Bruto-netto'!$AB$20),12,1)))<0,-1,1),0) -> 0 | AC2: =IFERROR((('Bruto-netto'!$K$39/IF('Bruto-netto'!$K$33=$AB$7,12,1))-('Bruto-netto'!$D$39+'Bruto-netto'!$F$37+IF('Bruto-netto'!$H$37="",0,'Bruto-netto'!$H$37)))*IF(('Bruto-netto'!$K$39/IF('Bruto-netto'!$K$33=$AB$7,12,1))-('Bruto-netto'!$D$39+'Bruto-netto'!$F$37+IF('Bruto-netto'!$H$37="",0,'Bruto-netto'!$H$37))<0,-1,1),0) -> 0 | AG2: Loonheffingskorting ja/nee | AH2: =IF(OR(Berekening!$B$183="nvt",Berekening!$B$183=""),"ja",Berekening!$B$183) -> ja | AJ2: Loonheffing | AK2: =Loonheffing!G10 -> 0 | AL2: - | AO2: AOW bruto per jaar | AP2: =Berekening!$D$189 -> 13224.48
B3: Klantnummer | AB3: =IFERROR((('Bruto-netto'!$K$22/IF('Bruto-netto'!$K$15=$AB$7,12,1))- (IF('Bruto-netto'!$D$19="",0,'Bruto-netto'!$D$19/IF(OR($B$12='Bruto-netto'!$AB$19,$B$12='Bruto-netto'!$AB$20),12,1))+ IF('Bruto-netto'!$F$22="",0,'Bruto-netto'!$F$22/IF(OR($B$13='Bruto-netto'!$AB$19,$B$13='Bruto-netto'!$AB$20),12,1))+ IF('Bruto-netto'!$H$19="",0,'Bruto-netto'!$H$19/IF(OR($B$14='Bruto-netto'!$AB$19,$B$14='Bruto-netto'!$AB$20),12,1)))) *IF(('Bruto-netto'!$K$22/IF('Bruto-netto'!$K$15=$AB$7,12,1))- (IF('Bruto-netto'!$D$19="",0,'Bruto-netto'!$D$19/IF(OR($B$12='Bruto-netto'!$AB$19,$B$12='Bruto-netto'!$AB$20),12,1))+ IF('Bruto-netto'!$F$22="",0,'Bruto-netto'!$F$22/IF(OR($B$13='Bruto-netto'!$AB$19,$B$13='Bruto-netto'!$AB$20),12,1))+ IF('Bruto-netto'!$H$19="",0,'Bruto-netto'!$H$19/IF(OR($B$14='Bruto-netto'!$AB$19,$B$14='Bruto-netto'!$AB$20),12,1)))<0,-1,1),0) -> 0 | AC3: =IFERROR((('Bruto-netto'!$K$39/IF('Bruto-netto'!$K$33=$AB$7,12,1))-('Bruto-netto'!$D$37+'Bruto-netto'!$F$39+IF('Bruto-netto'!$H$37="",0,'Bruto-netto'!$H$37)))*IF(('Bruto-netto'!$K$39/IF('Bruto-netto'!$K$33=$AB$7,12,1))-('Bruto-netto'!$D$37+'Bruto-netto'!$F$39+IF('Bruto-netto'!$H$37="",0,'Bruto-netto'!$H$37))<0,-1,1),0) -> 0 | AG3: Eventueel al betaalde bijdrage ZVW | AH3: 0 | AJ3: Bijdrage ZVW | AK3: =MIN(Loonheffing!G11,Loonheffing!G12) -> 0 | AL3: -
B4: Naam | AB4: =IFERROR((('Bruto-netto'!$K$22/IF('Bruto-netto'!$K$15=$AB$7,12,1))- (IF('Bruto-netto'!$D$19="",0,'Bruto-netto'!$D$19/IF(OR($B$12='Bruto-netto'!$AB$19,$B$12='Bruto-netto'!$AB$20),12,1))+ IF('Bruto-netto'!$F$19="",0,'Bruto-netto'!$F$19/IF(OR($B$13='Bruto-netto'!$AB$19,$B$13='Bruto-netto'!$AB$20),12,1))+ IF('Bruto-netto'!$H$22="",0,'Bruto-netto'!$H$22/IF(OR($B$14='Bruto-netto'!$AB$19,$B$14='Bruto-netto'!$AB$20),12,1)))) *IF(('Bruto-netto'!$K$22/IF('Bruto-netto'!$K$15=$AB$7,12,1))- (IF('Bruto-netto'!$D$19="",0,'Bruto-netto'!$D$19/IF(OR($B$12='Bruto-netto'!$AB$19,$B$12='Bruto-netto'!$AB$20),12,1))+ IF('Bruto-netto'!$F$19="",0,'Bruto-netto'!$F$19/IF(OR($B$13='Bruto-netto'!$AB$19,$B$13='Bruto-netto'!$AB$20),12,1))+ IF('Bruto-netto'!$H$22="",0,'Bruto-netto'!$H$22/IF(OR($B$14='Bruto-netto'!$AB$19,$B$14='Bruto-netto'!$AB$20),12,1)))<0,-1,1),0) -> 0 | AC4: =IFERROR((('Bruto-netto'!$K$39/IF('Bruto-netto'!$K$33=$AB$7,12,1))-('Bruto-netto'!$D$37+'Bruto-netto'!$F$37+IF('Bruto-netto'!$H$39="",0,'Bruto-netto'!$H$39)))*IF(('Bruto-netto'!$K$39/IF('Bruto-netto'!$K$33=$AB$7,12,1))-('Bruto-netto'!$D$37+'Bruto-netto'!$F$37+IF('Bruto-netto'!$H$39="",0,'Bruto-netto'!$H$39))<0,-1,1),0) -> 0 | AG4: Hoeveel maanden? | AH4: 0 | AJ4: Netto AKP | AK4: =AK1-AK2-AK3 -> 0 | AO4: Bruto AKP per maand | AP4: =ROUND(AP1/12,2) -> 0
B5: Geboortedatum | AB5: =IFERROR((('Bruto-netto'!$K$22/IF('Bruto-netto'!$K$15=$AB$7,12,1))- (IF('Bruto-netto'!$D$19="",0,'Bruto-netto'!$D$19/IF(OR($B$12='Bruto-netto'!$AB$19,$B$12='Bruto-netto'!$AB$20),12,1))+ IF('Bruto-netto'!$F$19="",0,'Bruto-netto'!$F$19/IF(OR($B$13='Bruto-netto'!$AB$19,$B$13='Bruto-netto'!$AB$20),12,1))+ IF('Bruto-netto'!$H$19="",0,'Bruto-netto'!$H$19/IF(OR($B$14='Bruto-netto'!$AB$19,$B$14='Bruto-netto'!$AB$20),12,1)))) *IF(('Bruto-netto'!$K$22/IF('Bruto-netto'!$K$15=$AB$7,12,1))- (IF('Bruto-netto'!$D$19="",0,'Bruto-netto'!$D$19/IF(OR($B$12='Bruto-netto'!$AB$19,$B$12='Bruto-netto'!$AB$20),12,1))+ IF('Bruto-netto'!$F$19="",0,'Bruto-netto'!$F$19/IF(OR($B$13='Bruto-netto'!$AB$19,$B$13='Bruto-netto'!$AB$20),12,1))+ IF('Bruto-netto'!$H$19="",0,'Bruto-netto'!$H$19/IF(OR($B$14='Bruto-netto'!$AB$19,$B$14='Bruto-netto'!$AB$20),12,1)))<0,-1,1),0) -> 0 | AC5: =IFERROR((('Bruto-netto'!$K$39/IF('Bruto-netto'!$K$33=$AB$7,12,1))-('Bruto-netto'!$D$37+'Bruto-netto'!$F$37+IF('Bruto-netto'!$H$37="",0,'Bruto-netto'!$H$37)))*IF(('Bruto-netto'!$K$39/IF('Bruto-netto'!$K$33=$AB$7,12,1))-('Bruto-netto'!$D$37+'Bruto-netto'!$F$37+IF('Bruto-netto'!$H$37="",0,'Bruto-netto'!$H$37))<0,-1,1),0) -> 0 | AO5: Loonheffing (geen loonheffingskorting) | AP5: =IF(AP4=0,0,Loonheffing!G18) -> 0 | AQ5: -
B6: Burgerlijke staat | AF6: =AF1+1 -> 3 | AG6: AKP voor AOW-leeftijd per jaar | AH6: =Berekening!$C$171 -> 0 | AJ6: AKP voor AOW-leeftijd per maand | AK6: =ROUND(AH6/12,2) -> 0 | AO6: Bijdrage ZVW | AP6: =Loonheffing!G20 -> 0 | AQ6: -
B7: AOW-datum (verwacht) | D7: =Berekening!C8 ->  | H7: =IF($D$8<>Loonheffing!$B$30,"% bijdrage Zvw","") ->  | AB7: Totaal per jaar | AG7: Loonheffingskorting ja/nee | AH7: =IF(OR(Berekening!$C$183="nvt",Berekening!$C$183=""),"ja",Berekening!$C$183) -> ja | AJ7: Loonheffing | AK7: =Loonheffing!H10 -> 0 | AL7: - | AO7: Netto AKP | AP7: =AP4-AP5-AP6 -> 0
B8: Belastingtabel | D8: Nederland | H8: 1 | AB8: Totaal per maand | AG8: Eventueel al betaalde bijdrage ZVW | AH8: 0 | AJ8: Bijdrage ZVW | AK8: =MIN(Loonheffing!H11,Loonheffing!H12) -> 0 | AL8: -
B9: Minder AOW-jaren | D9: 0 | AB9: AOW per jaar | AG9: Hoeveel maanden? | AH9: 0 | AJ9: Netto AKP | AK9: =AK6-AK7-AK8 -> 0 | AO9: AOW bruto per maand | AP9: =Berekening!$D$190 -> 1047.6
AB10: AOW per maand | AO10: Loonheffing (loonheffingskorting) | AP10: =Loonheffing!G23 -> 0 | AQ10: - | AR10: AKP en AOW | AS10: =AP4+AP9 -> 1047.6
B11: Inkomen vóór de AOW-leeftijd | AB11: Pensioen per jaar | AF11: =AF6+1 -> 4 | AG11: AKP voor AOW-leeftijd per jaar | AH11: =Berekening!$D$171 -> 0 | AJ11: AKP voor AOW-leeftijd per maand | AK11: =ROUND(AH11/12,2) -> 0 | AO11: Bijdrage ZVW | AP11: =Loonheffing!G24 -> 55.73 | AQ11: - | AR11: Loonheffing (loonheffingskorting) | AS11: =IF(AS10=0,0,Loonheffing!G27) -> 0 | AT11: -
B12: Pensioen per maand | AB12: Pensioen per maand | AG12: Loonheffingskorting ja/nee | AH12: =IF(OR(Berekening!$D$183="nvt",Berekening!$D$183=""),"ja",Berekening!$D$183) -> ja | AJ12: Loonheffing | AK12: =Loonheffing!I10 -> 0 | AL12: - | AO12: Netto AOW | AP12: =AP9-AP10-AP11 -> 991.87 | AR12: Bijdrage ZVW | AS12: =MIN(Loonheffing!$F$2,Loonheffing!G28) -> 55.73 | AT12: -
B13: Uitkeringen per maand met Zvw | AB13: Uitkeringen per maand met Zvw | AG13: Eventueel al betaalde bijdrage ZVW | AH13: 0 | AJ13: Bijdrage ZVW | AK13: =MIN(Loonheffing!I11,Loonheffing!I12) -> 0 | AL13: - | AO13: Totaal netto | AP13: =AP7+AP12 -> 991.87 | AR13: Juiste netto uitkering | AS13: =AS10-AS11-AS12 -> 991.87
B14: Uitkeringen per maand zonder Zvw | AB14: Uitkeringen per maand zonder Zvw | AG14: Hoeveel maanden? | AH14: 0 | AJ14: Netto AKP | AK14: =AK11-AK12-AK13 -> 0
D15: =IF($D$12=0,"",IF(OR($B$12='Bruto-netto'!$AB$19,$B$12='Bruto-netto'!$AB$20),"Eenmalig","Per maand")) ->  | F15: =IF($F$13="","",IF(OR($B$13='Bruto-netto'!$AB$19,$B$13='Bruto-netto'!$AB$20),"Eenmalig","Per maand")) ->  | H15: =IF($H$14="","",IF(OR($B$14='Bruto-netto'!$AB$19,$B$14='Bruto-netto'!$AB$20),"Eenmalig","Per maand")) ->  | K15: =IF(AND(F13="",H14=""),"","Totaal per maand") ->  | AB15: Salaris bruto per maand | AN15: =AN1+1 -> 3 | AO15: AKP vanaf AOW leeftijd per jaar | AP15: =Berekening!$C$171 -> 0
B16: Bruto inkomen | D16: =ROUND(D12/IF(ISERROR(SEARCH("jaar",$B$12)),1,12),2) -> 0 | F16: =IF(AND($F13="",$H14=""),"",ROUND(F13/IF(ISERROR(SEARCH("jaar",$B$13)),1,12),2)) ->  | H16: =IF($H14="","",ROUND(H14/IF(ISERROR(SEARCH("jaar",$B$14)),1,12),2)) ->  | K16: =IF($K$15="","",Loonheffing!$F$6*IF($K$15='Bruto-netto'!$AB$7,12,1)) ->  | AB16: Uitkeringen per jaar met Zvw | AF16: =AF11+1 -> 5 | AG16: AKP voor AOW-leeftijd per jaar | AH16: =Berekening!$E$171 -> 0 | AJ16: AKP voor AOW-leeftijd per maand | AK16: =ROUND(AH16/12,2) -> 0 | AO16: AOW bruto per jaar | AP16: =Berekening!$D$189 -> 13224.48
B17: Loonheffing | D17: =IF(D$16="","",ROUND(Loonheffing!$C$8,2)) -> 0 | E17: - | F17: =IF(F$16="","",ROUND(Loonheffing!$D$8,2)) ->  | G17: =IF(F$16="","","-") ->  | H17: =IF(H$16="","",ROUND(Loonheffing!$E$8,2)) ->  | I17: =IF(H$16="","","-") ->  | K17: =IF(K$15="","",ROUND(Loonheffing!$F$8,2)*IF($K$15='Bruto-netto'!$AB$7,12,1)) ->  | L17: =IF(K$15="","","-") ->  | AB17: Uitkeringen per jaar zonder Zvw | AG17: Loonheffingskorting ja/nee | AH17: =IF(OR(Berekening!$E$183="nvt",Berekening!$E$183=""),"ja",Berekening!$E$183) -> ja | AJ17: Loonheffing | AK17: =Loonheffing!J10 -> 0 | AL17: -
B18: Bijdrage Zvw | D18: =IF(D$16="","",ROUND(Loonheffing!$C$12,2)*IF(OR($B$12='Bruto-netto'!$AB$19,$B$12='Bruto-netto'!$AB$20),12,1)) -> 0 | E18: - | F18: =IF(F$16="","",ROUND(Loonheffing!$D$12,2)*IF(OR($B$13='Bruto-netto'!$AB$19,$B$13='Bruto-netto'!$AB$20),12,1)) ->  | G18: =IF(F$16="","","-") ->  | H18: =IF(H$16="","",ROUND(Loonheffing!$E$12,2)*IF(OR($B$14='Bruto-netto'!$AB$19,$B$14='Bruto-netto'!$AB$20),12,1)) ->  | I18: =IF(H$16="","","-") ->  | K18: =IF(K$15="","",ROUND(Loonheffing!$F$12,2)*IF($K$15='Bruto-netto'!$AB$7,12,1)) ->  | L18: =IF(K$15="","","-") ->  | AB18: Salaris bruto per jaar | AG18: Eventueel al betaalde bijdrage ZVW | AH18: 0 | AJ18: Bijdrage ZVW | AK18: =MIN(Loonheffing!J11,Loonheffing!J12) -> 0 | AL18: - | AO18: Bruto AKP per maand | AP18: =ROUND(AP15/12,2) -> 0
B19: Netto zonder loonheffingskorting | D19: =IF(D$16="","",D$16-D$17-D$18) -> 0 | F19: =IF(F$16="","",F$16-F$17-F$18) ->  | H19: =IF(H$16="","",H$16-H$17-H$18) ->  | K19: =IF(K$15="","",K$16-K$17-K$18) ->  | AB19: Eenmalige uitkering (groene tabel, met Zvw) | AG19: Hoeveel maanden? | AH19: 0 | AJ19: Netto AKP | AK19: =AK16-AK17-AK18 -> 0 | AO19: Loonheffing (geen loonheffingskorting) | AP19: =IF(AP18=0,0,Loonheffing!H18) -> 0 | AQ19: -
B20: Loonheffingskorting | D20: =IF(D$16="","",ROUND(D$17-Loonheffing!$C$9,2)) -> 0 | E20: + | F20: =IF(F$16="","",ROUND(F$17-Loonheffing!$D$9,2)) ->  | G20: =IF(F$16="","","+") ->  | H20: =IF(H$16="","",ROUND(H$17-Loonheffing!$E$9,2)) ->  | I20: =IF(H$16="","","+") ->  | K20: =IF(K$15="","",ROUND((K$17/IF($K$15='Bruto-netto'!$AB$7,12,1))-Loonheffing!$F$9,2)*IF($K$15='Bruto-netto'!$AB$7,12,1)) ->  | L20: =IF(K$15="","","+") ->  | AB20: Eenmalige uitkering werkgever (witte tabel) | AO20: Bijdrage ZVW | AP20: =Loonheffing!H20 -> 0 | AQ20: -
B21: Arbeidskorting | D21: =IF(D$16="","",ROUND(Loonheffing!$C$14,2)*IF(OR($B$12='Bruto-netto'!$AB$19,$B$12='Bruto-netto'!$AB$20),12,1)) -> 0 | E21: + | F21: =IF(F$16="","",ROUND(Loonheffing!$D$14,2)*IF(OR($B$13='Bruto-netto'!$AB$19,$B$13='Bruto-netto'!$AB$20),12,1)) ->  | G21: =IF(F$16="","","+") ->  | H21: =IF(H$16="","",ROUND(Loonheffing!$E$14,2)*IF(OR($B$14='Bruto-netto'!$AB$19,$B$14='Bruto-netto'!$AB$20),12,1)) ->  | I21: =IF(H$16="","","+") ->  | K21: =IF(K$15="","",ROUND(Loonheffing!$F$14,2)*IF($K$15='Bruto-netto'!$AB$7,12,1)) ->  | L21: =IF(K$15="","","+") ->  | AB21: ja | AC21: =IF(OR($AB$23=$AB$21,$AC$23=$AB$21,$AD$23=$AB$21),$AB$22,$AB$21) -> ja | AD21: =IF(OR($B$14=$AB$19,$B$14=$AB$20),$AB$21,$AC$21) -> ja | AE21: =IF(OR($B$32=$AB$19,$B$32=$AB$20),$AB$21,$AC$22) -> ja | AF21: =AF16+1 -> 6 | AG21: AKP voor AOW-leeftijd per jaar | AH21: =Berekening!$F$171 -> 0 | AJ21: AKP voor AOW-leeftijd per maand | AK21: =ROUND(AH21/12,2) -> 0 | AO21: Netto AKP | AP21: =AP18-AP19-AP20 -> 0
B22: Netto met loonheffingskorting | D22: =IF(D$16="","",D19+D20+D21) -> 0 | F22: =IF(F$16="","",F19+F20+F21) ->  | H22: =IF(H$16="","",H19+H20+H21) ->  | K22: =IF(K$15="","",K19+K20+K21) ->  | AB22: nee | AC22: =IF(OR($AB$24=$AB$21,$AC$24=$AB$21,$AD$24=$AB$21),$AB$22,$AB$21) -> ja | AD22: =IF(OR($B$14=$AB$19,$B$14=$AB$20),$AB$22,$AC$21) -> ja | AE22: =IF(OR($B$32=$AB$19,$B$32=$AB$20),$AB$22,$AC$22) -> ja | AG22: Loonheffingskorting ja/nee | AH22: =IF(OR(Berekening!$F$183="nvt",Berekening!$F$183=""),"ja",Berekening!$F$183) -> ja | AJ22: Loonheffing | AK22: =Loonheffing!K10 -> 0 | AL22: -
B23: Loonheffingskorting toepassen | D23: =IF(D$16=0,"",IF(OR($K$16="",$AB$1=2),"ja","nee")) ->  | F23: =IF(F$16="","",IF($AB$1=3,"ja","nee")) ->  | H23: =IF(H$16="","",IF($AB$1=4,"ja","nee")) ->  | K23: =IF($K$15=$AB$7,K22/12,"") ->  | L23: =IF($K$15=$AB$7,"*","") ->  | M23: =IF($K$15=$AB$7,"Gemiddelde netto maandbedrag (12 uitkeringen)","") ->  | AB23: =$D$23 ->  | AC23: =$F$23 ->  | AD23: =$H$23 ->  | AG23: Eventueel al betaalde bijdrage ZVW | AH23: 0 | AJ23: Bijdrage ZVW | AK23: =MIN(Loonheffing!K11,Loonheffing!K12) -> 0 | AL23: - | AO23: AOW bruto per maand | AP23: =Berekening!$D$190 -> 1047.6
AB24: =$D$40 ->  | AC24: =$F$40 -> nee | AD24: =$H$39 ->  | AG24: Hoeveel maanden? | AH24: 0 | AJ24: Netto AKP | AK24: =AK21-AK22-AK23 -> 0 | AO24: Loonheffing (loonheffingskorting) | AP24: =Loonheffing!H23 -> 0 | AQ24: - | AR24: AKP en AOW | AS24: =AP18+AP23 -> 1047.6
B25: =IF(AND($B$14<>$AB$19,$B$14<>$AB$20,COUNTIF(D23:H23,"ja")>1),"FOUT! Er mag maar bij 1 instantie loonheffingskorting worden toegepast.","") ->  | F25: =IF($K$15="","","Juiste nettobedrag") ->  | K25: =K22 ->  | AO25: Bijdrage ZVW | AP25: =Loonheffing!H24 -> 55.73 | AQ25: - | AR25: Loonheffing (loonheffingskorting) | AS25: =IF(AS24=0,0,Loonheffing!H27) -> 0 | AT25: -
F26: =IF($K$15="","","Totaal op de rekening") ->  | K26: =IF($K$15="","", IF($D$16="",0,IF($D$23="ja",$D$22,$D$19))*(IF($K$15='Bruto-netto'!$AB$7,IF(OR($B$12='Bruto-netto'!$AB$19,$B$12='Bruto-netto'!$AB$20),1,12),IF(OR($B$12='Bruto-netto'!$AB$19,$B$12='Bruto-netto'!$AB$20),1/12,1)))+ IF($F$16="",0,IF($F$23="ja",$F$22,$F$19))*(IF($K$15='Bruto-netto'!$AB$7,IF(OR($B$13='Bruto-netto'!$AB$19,$B$13='Bruto-netto'!$AB$20),1,12),IF(OR($B$13='Bruto-netto'!$AB$19,$B$13='Bruto-netto'!$AB$20),1/12,1)))+ IF($H$16="",0,IF($H$23="ja",$H$22,$H$19))*(IF($K$15='Bruto-netto'!$AB$7,IF(OR($B$14='Bruto-netto'!$AB$19,$B$14='Bruto-netto'!$AB$20),1,12),IF(OR($B$14='Bruto-netto'!$AB$19,$B$14='Bruto-netto'!$AB$20),1/12,1)))) ->  | L26: =IF(K$15="","","-") ->  | AF26: =AF21+1 -> 7 | AG26: AKP voor AOW-leeftijd per jaar | AH26: =Berekening!$G$171 -> 0 | AJ26: AKP voor AOW-leeftijd per maand | AK26: =ROUND(AH26/12,2) -> 0 | AO26: Netto AOW | AP26: =AP23-AP24-AP25 -> 991.87 | AR26: Bijdrage ZVW | AS26: =MIN(Loonheffing!$F$2,Loonheffing!H28) -> 55.73 | AT26: -
F27: =IF($K$15="","",IF(K26>K25,"Na te betalen belasting","Belastingteruggave")&IF($K$15='Bruto-netto'!$AB$7," per jaar"," per maand")) ->  | K27: =IF($K$15="","",IFERROR((K26-K25)*IF((K26-K25)<0,-1,1),0)) ->  | AG27: Loonheffingskorting ja/nee | AH27: =IF(OR(Berekening!$G$183="nvt",Berekening!$G$183=""),"ja",Berekening!$G$183) -> ja | AJ27: Loonheffing | AK27: =Loonheffing!L10 -> 0 | AL27: - | AO27: Totaal netto | AP27: =AP21+AP26 -> 991.87 | AR27: Juiste netto uitkering | AS27: =AS24-AS25-AS26 -> 991.87
AG28: Eventueel al betaalde bijdrage ZVW | AH28: 0 | AJ28: Bijdrage ZVW | AK28: =MIN(Loonheffing!L11,Loonheffing!L12) -> 0 | AL28: -
B29: Inkomen vanaf de AOW-leeftijd | AG29: Hoeveel maanden? | AH29: 0 | AJ29: Netto AKP | AK29: =AK26-AK27-AK28 -> 0 | AN29: =AN15+1 -> 4 | AO29: AKP vanaf AOW leeftijd per jaar | AP29: =Berekening!$D$171 -> 0
B30: Pensioen per maand | AO30: AOW bruto per jaar | AP30: =Berekening!$D$189 -> 13224.48
B31: AOW per maand | F31: =IF(RIGHT($B$31,4)="jaar",ROUND(IF($D$6=0,0,IF($D$6="Ongehuwd",Parameters!$G$111,Parameters!$G$110)*Parameters!$G$107),2), ROUND(IF($D$6=0,0,IF($D$6="Ongehuwd",Parameters!$G$113,Parameters!$G$112)*Parameters!$G$107),2)) -> 0 | AF31: =AF26+1 -> 8 | AG31: AKP voor AOW-leeftijd per jaar | AH31: =Berekening!$H$171 -> 0 | AJ31: AKP voor AOW-leeftijd per maand | AK31: =ROUND(AH31/12,2) -> 0
B32: Uitkeringen per maand met Zvw | AG32: Loonheffingskorting ja/nee | AH32: =IF(OR(Berekening!$H$183="nvt",Berekening!$H$183=""),"ja",Berekening!$H$183) -> ja | AJ32: Loonheffing | AK32: =Loonheffing!M10 -> 0 | AL32: - | AO32: Bruto AKP per maand | AP32: =ROUND(AP29/12,2) -> 0
D33: =IF($D$30=0,"","Per maand") ->  | F33: =IFERROR(IF(OR((ROUND($F$31/Parameters!$G$107,2))=Parameters!$G$110,(ROUND($F$31/Parameters!$G$107,2))=Parameters!$G$112),"AOW gehuwd","AOW alleenstaand"),"") -> AOW alleenstaand | H33: =IF($H$32="","",IF(OR($B$32='Bruto-netto'!$AB$19,$B$14='Bruto-netto'!$AB$20),"Eenmalig","Per maand")) ->  | K33: =IF($K$15="","Totaal per maand",$K$15) -> Totaal per maand | AG33: Eventueel al betaalde bijdrage ZVW | AH33: 0 | AJ33: Bijdrage ZVW | AK33: =MIN(Loonheffing!M11,Loonheffing!M12) -> 0 | AL33: - | AO33: Loonheffing (geen loonheffingskorting) | AP33: =IF(AP32=0,0,Loonheffing!I18) -> 0 | AQ33: -
B34: Bruto inkomen | D34: =ROUND(D30/IF(ISERROR(SEARCH("jaar",$B$30)),1,12),2) -> 0 | F34: =ROUND(IF($D$6=0,0,IF($D$6="Ongehuwd",Parameters!$G$113,Parameters!$G$112)*Parameters!$G$107),2) -> 0 | H34: =IF($H32="","",ROUND(H32/IF(ISERROR(SEARCH("jaar",$B$32)),1,12),2)) ->  | K34: =IF($K$33='Bruto-netto'!$AB$7,Loonheffing!$C$25*12,F34+D34+IF($H$34="",0,H34)) -> 0 | L34: =IF($K$33=$AB$7,"*","") ->  | M34: =IF($K$33=$AB$7,"Inclusief vakantiegeld AOW","") ->  | AG34: Hoeveel maanden? | AH34: 0 | AJ34: Netto AKP | AK34: =AK31-AK32-AK33 -> 0 | AO34: Bijdrage ZVW | AP34: =Loonheffing!I20 -> 0 | AQ34: -
B35: Loonheffing | D35: =ROUND(Loonheffing!$C$18,2) -> 0 | E35: - | F35: =ROUND(Loonheffing!$C$22,2) -> 0 | G35: - | H35: =IF($H$32="","",ROUND(Loonheffing!$D$18,2)) ->  | I35: =IF($H$32="","","-") ->  | K35: =ROUND(Loonheffing!$C$26,2)*IF($K$33='Bruto-netto'!$AB$7,12,1) -> 0 | L35: - | AO35: Netto AKP | AP35: =AP32-AP33-AP34 -> 0
B36: Bijdrage Zvw | D36: =ROUND(Loonheffing!$C$20,2) -> 0 | E36: - | F36: =ROUND(Loonheffing!$C$24,2) -> 0 | G36: - | H36: =IF($H$32="","",ROUND(Loonheffing!$E$20,2)) ->  | I36: =IF($H$32="","","-") ->  | K36: =ROUND(Loonheffing!$C$28,2)*IF($K$33='Bruto-netto'!$AB$7,12,1) -> 0 | L36: - | AF36: =AF31+1 -> 9 | AG36: AKP voor AOW-leeftijd per jaar | AH36: =Berekening!$I$171 -> 0 | AJ36: AKP voor AOW-leeftijd per maand | AK36: =ROUND(AH36/12,2) -> 0
B37: Netto zonder loonheffingskorting | D37: =D34-D35-D36 -> 0 | F37: =F34-F35-F36 -> 0 | H37: =IF($H$32="","",H34-H35-H36) ->  | K37: =K34-K35-K36 -> 0 | AG37: Loonheffingskorting ja/nee | AH37: =IF(OR(Berekening!$I$183="nvt",Berekening!$I$183=""),"ja",Berekening!$I$183) -> ja | AJ37: Loonheffing | AK37: =Loonheffing!N10 -> 0 | AL37: - | AO37: AOW bruto per maand | AP37: =Berekening!$D$190 -> 1047.6
B38: =IF(OR($B$32=$AB$15,$B$32=$AB$18),"Loonheffingskorting incl arbeidskorting","Loonheffingskorting") -> Loonheffingskorting | D38: =ROUND(D35-Loonheffing!$C$19,2) -> 0 | E38: + | F38: =ROUND(F35-Loonheffing!$C$23,2) -> 0 | G38: + | H38: =IF($H$32="","",H35-ROUND(Loonheffing!$D$19-Loonheffing!$E$19,2)) ->  | I38: =IF($H$32="","","+") ->  | K38: =ROUND((K$35/IF($K$33='Bruto-netto'!$AB$7,12,1))-Loonheffing!$C$27+Loonheffing!$E$19,2)*IF($K$33='Bruto-netto'!$AB$7,12,1) -> 0 | L38: + | AG38: Eventueel al betaalde bijdrage ZVW | AH38: 0 | AJ38: Bijdrage ZVW | AK38: =MIN(Loonheffing!N11,Loonheffing!N12) -> 0 | AL38: - | AO38: Loonheffing (loonheffingskorting) | AP38: =Loonheffing!I23 -> 0 | AQ38: - | AR38: AKP en AOW | AS38: =AP32+AP37 -> 1047.6
B39: Netto met loonheffingskorting | D39: =D37+D38 -> 0 | F39: =F37+F38 -> 0 | H39: =IF($H$32="","",H37+H38) ->  | K39: =K37+K38 -> 0 | AG39: Hoeveel maanden? | AH39: 0 | AJ39: Netto AKP | AK39: =AK36-AK37-AK38 -> 0 | AO39: Bijdrage ZVW | AP39: =Loonheffing!I24 -> 55.73 | AQ39: - | AR39: Loonheffing (loonheffingskorting) | AS39: =IF(AS38=0,0,Loonheffing!I27) -> 0 | AT39: -
B40: Loonheffingskorting toepassen | D40: =IF(D$34=0,"",IF(OR($K$34="",$AC$1=2),"ja","nee")) ->  | F40: =IF(F$34="","",IF($AC$1=3,"ja","nee")) -> nee | H40: =IF(H$34="","",IF($AC$1=4,"ja","nee")) ->  | K40: =IF($K$33=$AB$7,K39/12,"") ->  | L40: =IF($K$33=$AB$7,"*","") ->  | M40: =IF($K$33=$AB$7,"Gemiddelde netto maandbedrag (12 uitkeringen)","") ->  | AO40: Netto AOW | AP40: =AP37-AP38-AP39 -> 991.87 | AR40: Bijdrage ZVW | AS40: =MIN(Loonheffing!$F$2,Loonheffing!I28) -> 55.73 | AT40: -
AF41: =AF36+1 -> 10 | AG41: AKP voor AOW-leeftijd per jaar | AH41: =Berekening!$J$171 -> 0 | AJ41: AKP voor AOW-leeftijd per maand | AK41: =ROUND(AH41/12,2) -> 0 | AO41: Totaal netto | AP41: =AP35+AP40 -> 991.87 | AR41: Juiste netto uitkering | AS41: =AS38-AS39-AS40 -> 991.87
B42: =IF(AND($B$32<>$AB$19,$B$32<>$AB$20,COUNTIF(D40:H40,"ja")>1),"FOUT! Er mag maar bij 1 instantie loonheffingskorting worden toegepast.","") ->  | F42: =IF($K$33="","","Juiste nettobedrag") -> Juiste nettobedrag | K42: =K39 -> 0 | AG42: Loonheffingskorting ja/nee | AH42: =IF(OR(Berekening!$J$183="nvt",Berekening!$J$183=""),"ja",Berekening!$J$183) -> ja | AJ42: Loonheffing | AK42: =Loonheffing!O10 -> 0 | AL42: -
F43: =IF($K$33="","","Totaal op de rekening") -> Totaal op de rekening | K43: =IF($K$33="","", IF($D$34="",0,IF($D$40="ja",$D$39,$D$37))*IF($K$33='Bruto-netto'!$AB$7,12,1)+ IF($F$34="",0,IF($F$40="ja",$F$39,$F$37))*IF($K$33='Bruto-netto'!$AB$7,12,1)+ IF($H$34="",0,IF($H$40="ja",$H$39,$H$37))*IF($K$33='Bruto-netto'!$AB$7,12,1)) -> 0 | L43: - | AG43: Eventueel al betaalde bijdrage ZVW | AH43: 0 | AJ43: Bijdrage ZVW | AK43: =MIN(Loonheffing!O11,Loonheffing!O12) -> 0 | AL43: - | AN43: =AN29+1 -> 5 | AO43: AKP vanaf AOW leeftijd per jaar | AP43: =Berekening!$E$171 -> 0
F44: =IF($K$33="","",IF(K43>K42,"Na te betalen belasting","Belastingteruggave")&IF($K$33='Bruto-netto'!$AB$7," per jaar"," per maand")) -> Belastingteruggave per maand | K44: =IFERROR((K43-K42)*IF((K43-K42)<0,-1,1),0) -> 0 | AG44: Hoeveel maanden? | AH44: 0 | AJ44: Netto AKP | AK44: =AK41-AK42-AK43 -> 0 | AO44: AOW bruto per jaar | AP44: =Berekening!$D$189 -> 13224.48
B46: De brutobedragen zijn gebaseerd op de huidige situatie. Het brutobedrag kan bijvoorbeeld veranderen als gevolg van toekomstige algemene salarismaatregelen (indexatie), wijziging van actuariële factoren, ontwikkelingen die van invloed kunnen zijn op uw pensioen, wijzigingen in uw persoonlijke situatie, wijzigingen in de AOW-sfeer en eventuele verlagingen en verhogingen van uw pensioenaanspraak. Ook kan de pensioenregeling veranderen. Mocht hiervan sprake zijn, dan passen wij uw pensioen aan. Het nettobedrag zal hierdoor ook veranderen. De getoonde nettobedragen zijn gebaseerd op de huidige regelgeving en actuele tabellen. Aan deze opgave kunnen geen rechten worden ontleend. | AF46: =AF41+1 -> 11 | AG46: AKP voor AOW-leeftijd per jaar | AH46: =NP!$P$6 -> 0 | AJ46: AKP voor AOW-leeftijd per maand | AK46: =ROUND(AH46/12,2) -> 0 | AO46: Bruto AKP per maand | AP46: =ROUND(AP43/12,2) -> 0
AG47: Loonheffingskorting ja/nee | AH47: ja | AJ47: Loonheffing | AK47: =Loonheffing!P10 -> 0 | AL47: - | AO47: Loonheffing (geen loonheffingskorting) | AP47: =IF(AP46=0,0,Loonheffing!J18) -> 0 | AQ47: -
AG48: Eventueel al betaalde bijdrage ZVW | AH48: 0 | AJ48: Bijdrage ZVW | AK48: =MIN(Loonheffing!P11,Loonheffing!P12) -> 0 | AL48: - | AO48: Bijdrage ZVW | AP48: =Loonheffing!J20 -> 0 | AQ48: -
AG49: Hoeveel maanden? | AH49: 0 | AJ49: Netto AKP | AK49: =AK46-AK47-AK48 -> 0 | AO49: Netto AKP | AP49: =AP46-AP47-AP48 -> 0
AF51: =AF46+1 -> 12 | AG51: AKP voor AOW-leeftijd per jaar | AH51: =NP!$P$6 -> 0 | AJ51: AKP voor AOW-leeftijd per maand | AK51: =ROUND(AH51/12,2) -> 0 | AO51: AOW bruto per maand | AP51: =Berekening!$D$190 -> 1047.6
AG52: Loonheffingskorting ja/nee | AH52: nee | AJ52: Loonheffing | AK52: =Loonheffing!Q10 -> 0 | AL52: - | AO52: Loonheffing (loonheffingskorting) | AP52: =Loonheffing!J23 -> 0 | AQ52: - | AR52: AKP en AOW | AS52: =AP46+AP51 -> 1047.6
AG53: Eventueel al betaalde bijdrage ZVW | AH53: 0 | AJ53: Bijdrage ZVW | AK53: =MIN(Loonheffing!Q11,Loonheffing!Q12) -> 0 | AL53: - | AO53: Bijdrage ZVW | AP53: =Loonheffing!J24 -> 55.73 | AQ53: - | AR53: Loonheffing (loonheffingskorting) | AS53: =IF(AS52=0,0,Loonheffing!J27) -> 0 | AT53: -
AG54: Hoeveel maanden? | AH54: 0 | AJ54: Netto AKP | AK54: =AK51-AK52-AK53 -> 0 | AO54: Netto AOW | AP54: =AP51-AP52-AP53 -> 991.87 | AR54: Bijdrage ZVW | AS54: =MIN(Loonheffing!$F$2,Loonheffing!J28) -> 55.73 | AT54: -
AO55: Totaal netto | AP55: =AP49+AP54 -> 991.87 | AR55: Juiste netto uitkering | AS55: =AS52-AS53-AS54 -> 991.87
AF56: =AF51+1 -> 13 | AG56: AKP voor AOW-leeftijd per jaar | AH56: =NP!$P$11 -> 0 | AJ56: AKP voor AOW-leeftijd per maand | AK56: =ROUND(AH56/12,2) -> 0
AG57: Loonheffingskorting ja/nee | AH57: ja | AJ57: Loonheffing | AK57: =Loonheffing!R10 -> 0 | AL57: - | AN57: =AN43+1 -> 6 | AO57: AKP vanaf AOW leeftijd per jaar | AP57: =Berekening!$F$171 -> 0
AG58: Eventueel al betaalde bijdrage ZVW | AH58: 0 | AJ58: Bijdrage ZVW | AK58: =MIN(Loonheffing!R11,Loonheffing!R12) -> 0 | AL58: - | AO58: AOW bruto per jaar | AP58: =Berekening!$D$189 -> 13224.48
AG59: Hoeveel maanden? | AH59: 0 | AJ59: Netto AKP | AK59: =AK56-AK57-AK58 -> 0
AO60: Bruto AKP per maand | AP60: =ROUND(AP57/12,2) -> 0
AF61: =AF56+1 -> 14 | AG61: AKP voor AOW-leeftijd per jaar | AH61: =NP!$P$11 -> 0 | AJ61: AKP voor AOW-leeftijd per maand | AK61: =ROUND(AH61/12,2) -> 0 | AO61: Loonheffing (geen loonheffingskorting) | AP61: =IF(AP60=0,0,Loonheffing!K18) -> 0 | AQ61: -
AG62: Loonheffingskorting ja/nee | AH62: nee | AJ62: Loonheffing | AK62: =Loonheffing!S10 -> 0 | AL62: - | AO62: Bijdrage ZVW | AP62: =Loonheffing!K20 -> 0 | AQ62: -
AG63: Eventueel al betaalde bijdrage ZVW | AH63: 0 | AJ63: Bijdrage ZVW | AK63: =MIN(Loonheffing!S11,Loonheffing!S12) -> 0 | AL63: - | AO63: Netto AKP | AP63: =AP60-AP61-AP62 -> 0
AG64: Hoeveel maanden? | AH64: 0 | AJ64: Netto AKP | AK64: =AK61-AK62-AK63 -> 0
AO65: AOW bruto per maand | AP65: =Berekening!$D$190 -> 1047.6
AF66: =AF61+1 -> 15 | AG66: AKP voor AOW-leeftijd per jaar | AH66: ='Transitie - BWWW'!$J$5*12 -> 0 | AJ66: AKP voor AOW-leeftijd per maand | AK66: =ROUND(AH66/12,2) -> 0 | AO66: Loonheffing (loonheffingskorting) | AP66: =Loonheffing!K23 -> 0 | AQ66: - | AR66: AKP en AOW | AS66: =AP60+AP65 -> 1047.6
AG67: Loonheffingskorting ja/nee | AH67: ja | AJ67: Loonheffing | AK67: =Loonheffing!T10 -> 0 | AL67: - | AO67: Bijdrage ZVW | AP67: =Loonheffing!K24 -> 55.73 | AQ67: - | AR67: Loonheffing (loonheffingskorting) | AS67: =IF(AS66=0,0,Loonheffing!K27) -> 0 | AT67: -
AG68: Eventueel al betaalde bijdrage ZVW | AH68: 0 | AJ68: Bijdrage ZVW | AK68: 0 | AL68: - | AO68: Netto AOW | AP68: =AP65-AP66-AP67 -> 991.87 | AR68: Bijdrage ZVW | AS68: =MIN(Loonheffing!$F$2,Loonheffing!K28) -> 55.73 | AT68: -
AG69: Hoeveel maanden? | AH69: 0 | AJ69: Netto AKP | AK69: =AK66-AK67-AK68 -> 0 | AO69: Totaal netto | AP69: =AP63+AP68 -> 991.87 | AR69: Juiste netto uitkering | AS69: =AS66-AS67-AS68 -> 991.87
AF71: =AF66+1 -> 16 | AG71: AKP voor AOW-leeftijd per jaar | AH71: ='Transitie - BWWW'!$J$6*12 -> 0 | AJ71: AKP voor AOW-leeftijd per maand | AK71: =ROUND(AH71/12,2) -> 0 | AN71: =AN57+1 -> 7 | AO71: AKP vanaf AOW leeftijd per jaar | AP71: =Berekening!$G$171 -> 0
AG72: Loonheffingskorting ja/nee | AH72: ja | AJ72: Loonheffing | AK72: =Loonheffing!U10 -> 0 | AL72: - | AO72: AOW bruto per jaar | AP72: =Berekening!$D$189 -> 13224.48
AG73: Eventueel al betaalde bijdrage ZVW | AH73: 0 | AJ73: Bijdrage ZVW | AK73: 0 | AL73: -
AG74: Hoeveel maanden? | AH74: 0 | AJ74: Netto AKP | AK74: =AK71-AK72-AK73 -> 0 | AO74: Bruto AKP per maand | AP74: =ROUND(AP71/12,2) -> 0
AO75: Loonheffing (geen loonheffingskorting) | AP75: =IF(AP74=0,0,Loonheffing!L18) -> 0 | AQ75: -
AF76: =AF71+1 -> 17 | AG76: AKP voor AOW-leeftijd per jaar | AH76: ='Transitie - BWWW'!$J$13*12 -> 0 | AJ76: AKP voor AOW-leeftijd per maand | AK76: =ROUND(AH76/12,2) -> 0 | AO76: Bijdrage ZVW | AP76: =Loonheffing!L20 -> 0 | AQ76: -
AG77: Loonheffingskorting ja/nee | AH77: ja | AJ77: Loonheffing | AK77: =Loonheffing!V10 -> 0 | AL77: - | AO77: Netto AKP | AP77: =AP74-AP75-AP76 -> 0
AG78: Eventueel al betaalde bijdrage ZVW | AH78: 0 | AJ78: Bijdrage ZVW | AK78: 0 | AL78: -
AG79: Hoeveel maanden? | AH79: 0 | AJ79: Netto AKP | AK79: =AK76-AK77-AK78 -> 0 | AO79: AOW bruto per maand | AP79: =Berekening!$D$190 -> 1047.6
AO80: Loonheffing (loonheffingskorting) | AP80: =Loonheffing!L23 -> 0 | AQ80: - | AR80: AKP en AOW | AS80: =AP74+AP79 -> 1047.6
AF81: =AF76+1 -> 18 | AG81: AKP voor AOW-leeftijd per jaar | AH81: ='Transitie - BWWW'!$J$14*12 -> 0 | AJ81: AKP voor AOW-leeftijd per maand | AK81: =ROUND(AH81/12,2) -> 0 | AO81: Bijdrage ZVW | AP81: =Loonheffing!L24 -> 55.73 | AQ81: - | AR81: Loonheffing (loonheffingskorting) | AS81: =IF(AS80=0,0,Loonheffing!L27) -> 0 | AT81: -
AG82: Loonheffingskorting ja/nee | AH82: ja | AJ82: Loonheffing | AK82: =Loonheffing!W10 -> 0 | AL82: - | AO82: Netto AOW | AP82: =AP79-AP80-AP81 -> 991.87 | AR82: Bijdrage ZVW | AS82: =MIN(Loonheffing!$F$2,Loonheffing!L28) -> 55.73 | AT82: -
AG83: Eventueel al betaalde bijdrage ZVW | AH83: 0 | AJ83: Bijdrage ZVW | AK83: 0 | AL83: - | AO83: Totaal netto | AP83: =AP77+AP82 -> 991.87 | AR83: Juiste netto uitkering | AS83: =AS80-AS81-AS82 -> 991.87
AG84: Hoeveel maanden? | AH84: 0 | AJ84: Netto AKP | AK84: =AK81-AK82-AK83 -> 0
AN85: =AN71+1 -> 8 | AO85: AKP vanaf AOW leeftijd per jaar | AP85: =Berekening!$H$171 -> 0
AF86: =AF81+1 -> 19 | AG86: AKP voor AOW-leeftijd per jaar | AH86: ='Transitie - BWWW'!$J$15*12 -> 0 | AJ86: AKP voor AOW-leeftijd per maand | AK86: =ROUND(AH86/12,2) -> 0 | AO86: AOW bruto per jaar | AP86: =Berekening!$D$189 -> 13224.48
AG87: Loonheffingskorting ja/nee | AH87: ja | AJ87: Loonheffing | AK87: =Loonheffing!X10 -> 0 | AL87: -
AG88: Eventueel al betaalde bijdrage ZVW | AH88: 0 | AJ88: Bijdrage ZVW | AK88: 0 | AL88: - | AO88: Bruto AKP per maand | AP88: =ROUND(AP85/12,2) -> 0
AG89: Hoeveel maanden? | AH89: 0 | AJ89: Netto AKP | AK89: =AK86-AK87-AK88 -> 0 | AO89: Loonheffing (geen loonheffingskorting) | AP89: =IF(AP88=0,0,Loonheffing!M18) -> 0 | AQ89: -
AO90: Bijdrage ZVW | AP90: =Loonheffing!M20 -> 0 | AQ90: -
AF91: =AF86+1 -> 20 | AG91: AKP voor AOW-leeftijd per jaar | AH91: ='Transitie - BWWW'!$J$16*12 -> 0 | AJ91: AKP voor AOW-leeftijd per maand | AK91: =ROUND(AH91/12,2) -> 0 | AO91: Netto AKP | AP91: =AP88-AP89-AP90 -> 0
AG92: Loonheffingskorting ja/nee | AH92: ja | AJ92: Loonheffing | AK92: =Loonheffing!Y10 -> 0 | AL92: -
AG93: Eventueel al betaalde bijdrage ZVW | AH93: 0 | AJ93: Bijdrage ZVW | AK93: 0 | AL93: - | AO93: AOW bruto per maand | AP93: =Berekening!$D$190 -> 1047.6
AG94: Hoeveel maanden? | AH94: 0 | AJ94: Netto AKP | AK94: =AK91-AK92-AK93 -> 0 | AO94: Loonheffing (loonheffingskorting) | AP94: =Loonheffing!M23 -> 0 | AQ94: - | AR94: AKP en AOW | AS94: =AP88+AP93 -> 1047.6
AO95: Bijdrage ZVW | AP95: =Loonheffing!M24 -> 55.73 | AQ95: - | AR95: Loonheffing (loonheffingskorting) | AS95: =IF(AS94=0,0,Loonheffing!M27) -> 0 | AT95: -
AF96: =AF91+1 -> 21 | AG96: AKP voor AOW-leeftijd per jaar | AH96: ='Transitie - BWWW'!$J$17*12 -> 0 | AJ96: AKP voor AOW-leeftijd per maand | AK96: =ROUND(AH96/12,2) -> 0 | AO96: Netto AOW | AP96: =AP93-AP94-AP95 -> 991.87 | AR96: Bijdrage ZVW | AS96: =MIN(Loonheffing!$F$2,Loonheffing!M28) -> 55.73 | AT96: -
AG97: Loonheffingskorting ja/nee | AH97: ja | AJ97: Loonheffing | AK97: =Loonheffing!Z10 -> 0 | AL97: - | AO97: Totaal netto | AP97: =AP91+AP96 -> 991.87 | AR97: Juiste netto uitkering | AS97: =AS94-AS95-AS96 -> 991.87
AG98: Eventueel al betaalde bijdrage ZVW | AH98: 0 | AJ98: Bijdrage ZVW | AK98: 0 | AL98: -
AG99: Hoeveel maanden? | AH99: 0 | AJ99: Netto AKP | AK99: =AK96-AK97-AK98 -> 0 | AN99: =AN85+1 -> 9 | AO99: AKP vanaf AOW leeftijd per jaar | AP99: =Berekening!$I$171 -> 0
AO100: AOW bruto per jaar | AP100: =Berekening!$D$189 -> 13224.48
AF101: =AF96+1 -> 22 | AG101: AKP voor AOW-leeftijd per jaar | AH101: =IFERROR(Parameters!$G$105*12,0) -> 17682.75 | AJ101: AKP voor AOW-leeftijd per maand | AK101: =ROUND(AH101/12,2) -> 1473.56
AG102: Loonheffingskorting ja/nee | AH102: ja | AJ102: Loonheffing | AK102: =Loonheffing!AA10 -> 263.83 | AL102: - | AO102: Bruto AKP per maand | AP102: =ROUND(AP99/12,2) -> 0
AG103: Eventueel al betaalde bijdrage ZVW | AH103: 0 | AJ103: Bijdrage ZVW | AK103: 0 | AL103: - | AO103: Loonheffing (geen loonheffingskorting) | AP103: =IF(AP102=0,0,Loonheffing!N18) -> 0 | AQ103: -
AG104: Hoeveel maanden? | AH104: 0 | AJ104: Netto AKP | AK104: =AK101-AK102-AK103 -> 1209.73 | AO104: Bijdrage ZVW | AP104: =Loonheffing!N20 -> 0 | AQ104: -
AO105: Netto AKP | AP105: =AP102-AP103-AP104 -> 0
AF106: =AF101+1 -> 23 | AG106: AKP voor AOW-leeftijd per jaar | AH106: =IF(NP!$P$19="",0,NP!$P$19) -> 0 | AJ106: AKP voor AOW-leeftijd per maand | AK106: =ROUND(AH106/12,2) -> 0
AG107: Loonheffingskorting ja/nee | AH107: ja | AJ107: Loonheffing | AK107: =Loonheffing!AB10 -> 0 | AL107: - | AO107: AOW bruto per maand | AP107: =Berekening!$D$190 -> 1047.6
AG108: Eventueel al betaalde bijdrage ZVW | AH108: 0 | AJ108: Bijdrage ZVW | AK108: =MIN(Loonheffing!AB11,Loonheffing!AB12) -> 0 | AL108: - | AO108: Loonheffing (loonheffingskorting) | AP108: =Loonheffing!N23 -> 0 | AQ108: - | AR108: AKP en AOW | AS108: =AP102+AP107 -> 1047.6
AG109: Hoeveel maanden? | AH109: 0 | AJ109: Netto AKP | AK109: =AK106-AK107-AK108 -> 0 | AO109: Bijdrage ZVW | AP109: =Loonheffing!N24 -> 55.73 | AQ109: - | AR109: Loonheffing (loonheffingskorting) | AS109: =IF(AS108=0,0,Loonheffing!N27) -> 0 | AT109: -
AO110: Netto AOW | AP110: =AP107-AP108-AP109 -> 991.87 | AR110: Bijdrage ZVW | AS110: =MIN(Loonheffing!$F$2,Loonheffing!N28) -> 55.73 | AT110: -
AF111: =AF106+1 -> 24 | AG111: AKP voor AOW-leeftijd per jaar | AH111: =IF(NP!$P$19="",0,NP!$P$19) -> 0 | AJ111: AKP voor AOW-leeftijd per maand | AK111: =ROUND(AH111/12,2) -> 0 | AO111: Totaal netto | AP111: =AP105+AP110 -> 991.87 | AR111: Juiste netto uitkering | AS111: =AS108-AS109-AS110 -> 991.87
AG112: Loonheffingskorting ja/nee | AH112: nee | AJ112: Loonheffing | AK112: =Loonheffing!AC10 -> 0 | AL112: -
AG113: Eventueel al betaalde bijdrage ZVW | AH113: 0 | AJ113: Bijdrage ZVW | AK113: =MIN(Loonheffing!AC11,Loonheffing!AC12) -> 0 | AL113: - | AN113: =AN99+1 -> 10 | AO113: AKP vanaf AOW leeftijd per jaar | AP113: =Berekening!$J$171 -> 0
AG114: Hoeveel maanden? | AH114: 0 | AJ114: Netto AKP | AK114: =AK111-AK112-AK113 -> 0 | AO114: AOW bruto per jaar | AP114: =Berekening!$D$189 -> 13224.48
AF116: =AF111+1 -> 25 | AG116: AKP voor AOW-leeftijd per jaar | AH116: =IF(NP!$P$24="",0,NP!$P$24) -> 0 | AJ116: AKP voor AOW-leeftijd per maand | AK116: =ROUND(AH116/12,2) -> 0 | AO116: Bruto AKP per maand | AP116: =ROUND(AP113/12,2) -> 0
AG117: Loonheffingskorting ja/nee | AH117: ja | AJ117: Loonheffing | AK117: =Loonheffing!AD10 -> 0 | AL117: - | AO117: Loonheffing (geen loonheffingskorting) | AP117: =IF(AP116=0,0,Loonheffing!O18) -> 0 | AQ117: -
AG118: Eventueel al betaalde bijdrage ZVW | AH118: 0 | AJ118: Bijdrage ZVW | AK118: =MIN(Loonheffing!AD11,Loonheffing!AD12) -> 0 | AL118: - | AO118: Bijdrage ZVW | AP118: =Loonheffing!O20 -> 0 | AQ118: -
AG119: Hoeveel maanden? | AH119: 0 | AJ119: Netto AKP | AK119: =AK116-AK117-AK118 -> 0 | AO119: Netto AKP | AP119: =AP116-AP117-AP118 -> 0
AF121: =AF116+1 -> 26 | AG121: AKP voor AOW-leeftijd per jaar | AH121: =IF(NP!$P$24="",0,NP!$P$24) -> 0 | AJ121: AKP voor AOW-leeftijd per maand | AK121: =ROUND(AH121/12,2) -> 0 | AO121: AOW bruto per maand | AP121: =Berekening!$D$190 -> 1047.6
AG122: Loonheffingskorting ja/nee | AH122: nee | AJ122: Loonheffing | AK122: =Loonheffing!AE10 -> 0 | AL122: - | AO122: Loonheffing (loonheffingskorting) | AP122: =Loonheffing!O23 -> 0 | AQ122: - | AR122: AKP en AOW | AS122: =AP116+AP121 -> 1047.6
AG123: Eventueel al betaalde bijdrage ZVW | AH123: 0 | AJ123: Bijdrage ZVW | AK123: =MIN(Loonheffing!AE11,Loonheffing!AE12) -> 0 | AL123: - | AO123: Bijdrage ZVW | AP123: =Loonheffing!O24 -> 55.73 | AQ123: - | AR123: Loonheffing (loonheffingskorting) | AS123: =IF(AS122=0,0,Loonheffing!O27) -> 0 | AT123: -
AG124: Hoeveel maanden? | AH124: 0 | AJ124: Netto AKP | AK124: =AK121-AK122-AK123 -> 0 | AO124: Netto AOW | AP124: =AP121-AP122-AP123 -> 991.87 | AR124: Bijdrage ZVW | AS124: =MIN(Loonheffing!$F$2,Loonheffing!O28) -> 55.73 | AT124: -
AO125: Totaal netto | AP125: =AP119+AP124 -> 991.87 | AR125: Juiste netto uitkering | AS125: =AS122-AS123-AS124 -> 991.87
AF126: =AF121+1 -> 27 | AG126: AKP voor AOW-leeftijd per jaar | AJ126: AKP voor AOW-leeftijd per maand | AK126: =ROUND(AH126/12,2) -> 0
AG127: Loonheffingskorting ja/nee | AH127: nee | AJ127: Loonheffing | AK127: =Loonheffing!AF10 -> 0 | AL127: - | AN127: =AN113+1 -> 11 | AO127: AKP vanaf AOW leeftijd per jaar | AP127: =NP!$N$7 -> 0
AG128: Eventueel al betaalde bijdrage ZVW | AH128: 0 | AJ128: Bijdrage ZVW | AK128: =MIN(Loonheffing!AF11,Loonheffing!AF12) -> 0 | AL128: - | AO128: AOW bruto per jaar | AP128: =Berekening!$D$192 -> 19412.76
AG129: Hoeveel maanden? | AH129: 0 | AJ129: Netto AKP | AK129: =AK126-AK127-AK128 -> 0
AO130: Bruto AKP per maand | AP130: =ROUND(AP127/12,2) -> 0
AF131: =AF126+1 -> 28 | AG131: AKP voor AOW-leeftijd per jaar | AJ131: AKP voor AOW-leeftijd per maand | AK131: =ROUND(AH131/12,2) -> 0 | AO131: Loonheffing (geen loonheffingskorting) | AP131: =IF(AP130=0,0,Loonheffing!P18) -> 0 | AQ131: -
AG132: Loonheffingskorting ja/nee | AH132: nee | AJ132: Loonheffing | AK132: =Loonheffing!AG10 -> 0 | AL132: - | AO132: Bijdrage ZVW | AP132: =Loonheffing!P20 -> 0 | AQ132: -
AG133: Eventueel al betaalde bijdrage ZVW | AH133: 0 | AJ133: Bijdrage ZVW | AK133: =MIN(Loonheffing!AG11,Loonheffing!AG12) -> 0 | AL133: - | AO133: Netto AKP | AP133: =AP130-AP131-AP132 -> 0
AG134: Hoeveel maanden? | AH134: 0 | AJ134: Netto AKP | AK134: =AK131-AK132-AK133 -> 0
AO135: AOW bruto per maand | AP135: =Berekening!$D$193 -> 1541.53
AF136: =AF131+1 -> 29 | AG136: AKP voor AOW-leeftijd per jaar | AJ136: AKP voor AOW-leeftijd per maand | AK136: =ROUND(AH136/12,2) -> 0 | AO136: Loonheffing (loonheffingskorting) | AP136: =Loonheffing!P23 -> 0 | AQ136: - | AR136: AKP en AOW | AS136: =AP130+AP135 -> 1541.53
AG137: Loonheffingskorting ja/nee | AH137: nee | AJ137: Loonheffing | AK137: =Loonheffing!AH10 -> 0 | AL137: - | AO137: Bijdrage ZVW | AP137: =Loonheffing!P24 -> 82 | AQ137: - | AR137: Loonheffing (loonheffingskorting) | AS137: =IF(AS136=0,0,Loonheffing!P27) -> 0 | AT137: -
AG138: Eventueel al betaalde bijdrage ZVW | AH138: 0 | AJ138: Bijdrage ZVW | AK138: =MIN(Loonheffing!AH11,Loonheffing!AH12) -> 0 | AL138: - | AO138: Netto AOW | AP138: =AP135-AP136-AP137 -> 1459.53 | AR138: Bijdrage ZVW | AS138: =MIN(Loonheffing!$F$2,Loonheffing!P28) -> 82 | AT138: -
AG139: Hoeveel maanden? | AH139: 0 | AJ139: Netto AKP | AK139: =AK136-AK137-AK138 -> 0 | AO139: Totaal netto | AP139: =AP133+AP138 -> 1459.53 | AR139: Juiste netto uitkering | AS139: =AS136-AS137-AS138 -> 1459.53
AF141: =AF136+1 -> 30 | AG141: AKP voor AOW-leeftijd per jaar | AJ141: AKP voor AOW-leeftijd per maand | AK141: =ROUND(AH141/12,2) -> 0 | AN141: =AN127+1 -> 12 | AO141: AKP vanaf AOW leeftijd per jaar | AP141: =NP!$N$12 -> 0
AG142: Loonheffingskorting ja/nee | AH142: nee | AJ142: Loonheffing | AK142: =Loonheffing!AI10 -> 0 | AL142: - | AO142: AOW bruto per jaar | AP142: =Berekening!$D$192 -> 19412.76
AG143: Eventueel al betaalde bijdrage ZVW | AH143: 0 | AJ143: Bijdrage ZVW | AK143: =MIN(Loonheffing!AI11,Loonheffing!AI12) -> 0 | AL143: -
AG144: Hoeveel maanden? | AH144: 0 | AJ144: Netto AKP | AK144: =AK141-AK142-AK143 -> 0 | AO144: Bruto AKP per maand | AP144: =ROUND(AP141/12,2) -> 0
AO145: Loonheffing (geen loonheffingskorting) | AP145: =IF(AP144=0,0,Loonheffing!Q18) -> 0 | AQ145: -
AO146: Bijdrage ZVW | AP146: =Loonheffing!Q20 -> 0 | AQ146: -
AO147: Netto AKP | AP147: =AP144-AP145-AP146 -> 0
AO149: AOW bruto per maand | AP149: =Berekening!$D$193 -> 1541.53
AO150: Loonheffing (loonheffingskorting) | AP150: =Loonheffing!Q23 -> 0 | AQ150: - | AR150: AKP en AOW | AS150: =AP144+AP149 -> 1541.53
AO151: Bijdrage ZVW | AP151: =Loonheffing!Q24 -> 82 | AQ151: - | AR151: Loonheffing (loonheffingskorting) | AS151: =IF(AS150=0,0,Loonheffing!Q27) -> 0 | AT151: -
AO152: Netto AOW | AP152: =AP149-AP150-AP151 -> 1459.53 | AR152: Bijdrage ZVW | AS152: =MIN(Loonheffing!$F$2,Loonheffing!Q28) -> 82 | AT152: -
AO153: Totaal netto | AP153: =AP147+AP152 -> 1459.53 | AR153: Juiste netto uitkering | AS153: =AS150-AS151-AS152 -> 1459.53
AN155: =AN141+1 -> 13 | AO155: AKP vanaf AOW leeftijd per jaar | AP155: =IF(NP!$N$20="",0,NP!$N$20) -> 0
AO156: AOW bruto per jaar | AP156: =Berekening!$D$192 -> 19412.76
AO158: Bruto AKP per maand | AP158: =ROUND(AP155/12,2) -> 0
AO159: Loonheffing (geen loonheffingskorting) | AP159: =IF(AP158=0,0,Loonheffing!R18) -> 0 | AQ159: -
AO160: Bijdrage ZVW | AP160: =Loonheffing!R20 -> 0 | AQ160: -
AO161: Netto AKP | AP161: =AP158-AP159-AP160 -> 0
AO163: AOW bruto per maand | AP163: =Berekening!$D$193 -> 1541.53
AO164: Loonheffing (loonheffingskorting) | AP164: =Loonheffing!R23 -> 0 | AQ164: - | AR164: AKP en AOW | AS164: =AP158+AP163 -> 1541.53
AO165: Bijdrage ZVW | AP165: =Loonheffing!R24 -> 82 | AQ165: - | AR165: Loonheffing (loonheffingskorting) | AS165: =IF(AS164=0,0,Loonheffing!R27) -> 0 | AT165: -
AO166: Netto AOW | AP166: =AP163-AP164-AP165 -> 1459.53 | AR166: Bijdrage ZVW | AS166: =MIN(Loonheffing!$F$2,Loonheffing!R28) -> 82 | AT166: -
AO167: Totaal netto | AP167: =AP161+AP166 -> 1459.53 | AR167: Juiste netto uitkering | AS167: =AS164-AS165-AS166 -> 1459.53
AN169: =AN155+1 -> 14 | AO169: AKP vanaf AOW leeftijd per jaar | AP169: =IF(NP!$N$25="",0,NP!$N$25) -> 0
AO170: AOW bruto per jaar | AP170: =Berekening!$D$192 -> 19412.76
AO172: Bruto AKP per maand | AP172: =ROUND(AP169/12,2) -> 0
AO173: Loonheffing (geen loonheffingskorting) | AP173: =IF(AP172=0,0,Loonheffing!S18) -> 0 | AQ173: -
AO174: Bijdrage ZVW | AP174: =Loonheffing!S20 -> 0 | AQ174: -
AO175: Netto AKP | AP175: =AP172-AP173-AP174 -> 0
AO177: AOW bruto per maand | AP177: =Berekening!$D$193 -> 1541.53
AO178: Loonheffing (loonheffingskorting) | AP178: =Loonheffing!S23 -> 0 | AQ178: - | AR178: AKP en AOW | AS178: =AP172+AP177 -> 1541.53
AO179: Bijdrage ZVW | AP179: =Loonheffing!S24 -> 82 | AQ179: - | AR179: Loonheffing (loonheffingskorting) | AS179: =IF(AS178=0,0,Loonheffing!S27) -> 0 | AT179: -
AO180: Netto AOW | AP180: =AP177-AP178-AP179 -> 1459.53 | AR180: Bijdrage ZVW | AS180: =MIN(Loonheffing!$F$2,Loonheffing!S28) -> 82 | AT180: -
AO181: Totaal netto | AP181: =AP175+AP180 -> 1459.53 | AR181: Juiste netto uitkering | AS181: =AS178-AS179-AS180 -> 1459.53
AN183: =AN169+1 -> 15 | AO183: AKP vanaf AOW leeftijd per jaar
AO184: AOW bruto per jaar | AP184: =Berekening!$D$189 -> 13224.48
AO186: Bruto AKP per maand | AP186: =ROUND(AP183/12,2) -> 0
AO187: Loonheffing (geen loonheffingskorting) | AP187: =IF(AP186=0,0,Loonheffing!T18) -> 0 | AQ187: -
AO188: Bijdrage ZVW | AP188: =Loonheffing!T20 -> 0 | AQ188: -
AO189: Netto AKP | AP189: =AP186-AP187-AP188 -> 0
AO191: AOW bruto per maand | AP191: =Berekening!$D$190 -> 1047.6
AO192: Loonheffing (loonheffingskorting) | AP192: =Loonheffing!T23 -> 0 | AQ192: - | AR192: AKP en AOW | AS192: =AP186+AP191 -> 1047.6
AO193: Bijdrage ZVW | AP193: =Loonheffing!T24 -> 55.73 | AQ193: - | AR193: Loonheffing (loonheffingskorting) | AS193: =IF(AS192=0,0,Loonheffing!T27) -> 0 | AT193: -
AO194: Netto AOW | AP194: =AP191-AP192-AP193 -> 991.87 | AR194: Bijdrage ZVW | AS194: =MIN(Loonheffing!$F$2,Loonheffing!T28) -> 55.73 | AT194: -
AO195: Totaal netto | AP195: =AP189+AP194 -> 991.87 | AR195: Juiste netto uitkering | AS195: =AS192-AS193-AS194 -> 991.87
AN197: =AN183+1 -> 16 | AO197: AKP vanaf AOW leeftijd per jaar
AO198: AOW bruto per jaar | AP198: =Berekening!$D$189 -> 13224.48
AO200: Bruto AKP per maand | AP200: =ROUND(AP197/12,2) -> 0
AO201: Loonheffing (geen loonheffingskorting) | AP201: =IF(AP200=0,0,Loonheffing!U18) -> 0 | AQ201: -
AO202: Bijdrage ZVW | AP202: =Loonheffing!U20 -> 0 | AQ202: -
AO203: Netto AKP | AP203: =AP200-AP201-AP202 -> 0
AO205: AOW bruto per maand | AP205: =Berekening!$D$190 -> 1047.6
AO206: Loonheffing (loonheffingskorting) | AP206: =Loonheffing!U23 -> 0 | AQ206: - | AR206: AKP en AOW | AS206: =AP200+AP205 -> 1047.6
AO207: Bijdrage ZVW | AP207: =Loonheffing!U24 -> 55.73 | AQ207: - | AR207: Loonheffing (loonheffingskorting) | AS207: =IF(AS206=0,0,Loonheffing!U27) -> 0 | AT207: -
AO208: Netto AOW | AP208: =AP205-AP206-AP207 -> 991.87 | AR208: Bijdrage ZVW | AS208: =MIN(Loonheffing!$F$2,Loonheffing!U28) -> 55.73 | AT208: -
AO209: Totaal netto | AP209: =AP203+AP208 -> 991.87 | AR209: Juiste netto uitkering | AS209: =AS206-AS207-AS208 -> 991.87
AN211: =AN197+1 -> 17 | AO211: AKP vanaf AOW leeftijd per jaar
AO212: AOW bruto per jaar | AP212: =Berekening!$D$189 -> 13224.48
AO214: Bruto AKP per maand | AP214: =ROUND(AP211/12,2) -> 0
AO215: Loonheffing (geen loonheffingskorting) | AP215: =IF(AP214=0,0,Loonheffing!V18) -> 0 | AQ215: -
AO216: Bijdrage ZVW | AP216: =Loonheffing!V20 -> 0 | AQ216: -
AO217: Netto AKP | AP217: =AP214-AP215-AP216 -> 0
AO219: AOW bruto per maand | AP219: =Berekening!$D$190 -> 1047.6
AO220: Loonheffing (loonheffingskorting) | AP220: =Loonheffing!V23 -> 0 | AQ220: - | AR220: AKP en AOW | AS220: =AP214+AP219 -> 1047.6
AO221: Bijdrage ZVW | AP221: =Loonheffing!V24 -> 55.73 | AQ221: - | AR221: Loonheffing (loonheffingskorting) | AS221: =IF(AS220=0,0,Loonheffing!V27) -> 0 | AT221: -
AO222: Netto AOW | AP222: =AP219-AP220-AP221 -> 991.87 | AR222: Bijdrage ZVW | AS222: =MIN(Loonheffing!$F$2,Loonheffing!V28) -> 55.73 | AT222: -
... 34 more rows

Sheet Bijlages

Sheet DT-Aanvullingen-BG (hidden)
A1: Berekening diensttijd | H1: Aanvullingen 18.8 - 18.9 | P1: Berekening berekeningsgrondslag
B3: Begindat. | C3: Einddatum | D3: Deeltijdf. | E3: Meetel% | F3: Jaren | I3: Geslacht | J3: man | L3: J12-breuk | M3: 1 | Q3: JAAR
F4: =DAYS360(B4,C4)/360*IF(D4="",1,D4)*IF(E4="",1,E4) -> 0 | R4: BG | S4: DTF | T4: Kalender | U4: Pens.tijd | V4: Afgerond | W4: BG x Pens. Tijd
F5: =DAYS360(B5,C5)/360*IF(D5="",1,D5)*IF(E5="",1,E5) -> 0 | I5: Artikel 18.8 samenvallende diensttijd voor 1986 ABP-ABP (J14) | Q5: 1 | U5: =S5*T5 -> 0 | V5: =ROUND(U5,4) -> 0 | W5: =V5*R5 -> 0
F6: =DAYS360(B6,C6)/360*IF(D6="",1,D6)*IF(E6="",1,E6) -> 0 | I6: Begindat. | J6: Einddatum | K6: Deeltijdf. | L6: Meetel% | M6: Jaren | Q6: 2 | U6: 0 | V6: 0 | W6: 0
F7: 0 | J7: =IF(I7="","",DATE(1986,1,1)) ->  | K7: =IF(J7="","",1) ->  | L7: =IF(J7="","",1) ->  | M7: =IF(I7="",0,IFERROR(IF(VLOOKUP(I7,$I$15:$I$19,1,0)=I7,"Fout",""),IFERROR(DAYS360(I7,J7)/360*IF(K7="",1,K7)*IF(L7="",1,L7),0))) -> 0 | Q7: 3 | U7: 0 | V7: 0 | W7: 0
F8: 0 | I8: =IF(J7=DATE(1986,1,1),"",J7) ->  | J8: =IF(I8="","",DATE(1986,1,1)) ->  | K8: =IF(J8="","",1) ->  | L8: =IF(J8="","",1) ->  | M8: =IF(I8="",0,IFERROR(IF(VLOOKUP(I8,$I$15:$I$19,1,0)=I8,"Fout",""),IFERROR(DAYS360(I8,J8)/360*IF(K8="",1,K8)*IF(L8="",1,L8),0))) -> 0 | Q8: 4 | U8: 0 | V8: 0 | W8: 0
F9: 0 | I9: =IF(J8=DATE(1986,1,1),"",J8) ->  | J9: =IF(I9="","",DATE(1986,1,1)) ->  | K9: =IF(J9="","",1) ->  | L9: =IF(J9="","",1) ->  | M9: =IF(I9="",0,IFERROR(IF(VLOOKUP(I9,$I$15:$I$19,1,0)=I9,"Fout",""),IFERROR(DAYS360(I9,J9)/360*IF(K9="",1,K9)*IF(L9="",1,L9),0))) -> 0 | Q9: 5 | U9: 0 | V9: 0 | W9: 0
F10: 0 | I10: =IF(J9=DATE(1986,1,1),"",J9) ->  | J10: =IF(I10="","",DATE(1986,1,1)) ->  | K10: =IF(J10="","",1) ->  | L10: =IF(J10="","",1) ->  | M10: =IF(I10="",0,IFERROR(IF(VLOOKUP(I10,$I$15:$I$19,1,0)=I10,"Fout",""),IFERROR(DAYS360(I10,J10)/360*IF(K10="",1,K10)*IF(L10="",1,L10),0))) -> 0 | Q10: 6 | U10: 0 | V10: 0 | W10: 0
F11: 0 | I11: =IF(J10=DATE(1986,1,1),"",J10) ->  | J11: =IF(I11="","",DATE(1986,1,1)) ->  | K11: =IF(J11="","",1) ->  | L11: =IF(J11="","",1) ->  | M11: =IF(I11="",0,IFERROR(IF(VLOOKUP(I11,$I$15:$I$19,1,0)=I11,"Fout",""),IFERROR(DAYS360(I11,J11)/360*IF(K11="",1,K11)*IF(L11="",1,L11),0))) -> 0 | V11: =SUM(V5:V10) -> 0 | W11: =ROUND(SUM(W5:W10),2) -> 0 | X11: =IFERROR(ROUND(W11/V11,2),0) -> 0
F12: 0 | Q12: JAAR
F13: 0 | I13: Artikel 18.8 samenvallende diensttijd voor 1986 ABP-Overig (J15) | R13: BG | S13: DTF | T13: Kalender | U13: Pens.tijd | V13: Afgerond | W13: BG x Pens. Tijd
F14: 0 | I14: Begindat. | J14: Einddatum | K14: Deeltijdf. | L14: Meetel% | M14: Jaren | Q14: 1 | U14: =S14*T14 -> 0 | V14: =ROUND(U14,4) -> 0 | W14: =V14*R14 -> 0
F15: 0 | J15: =IF(I15="","",DATE(1986,1,1)) ->  | K15: =IF(J15="","",1) ->  | L15: =IF(J15="","",1) ->  | M15: =IF(I15="",0,IFERROR(IF(VLOOKUP(I15,$I$7:$I$11,1,0)=I15,"Fout",""),IFERROR(DAYS360(I15,J15)/360*IF(K15="",1,K15)*IF(L15="",1,L15),0))) -> 0 | Q15: 2 | U15: 0 | V15: 0 | W15: 0
F16: 0 | I16: =IF(J15=DATE(1986,1,1),"",J15) ->  | J16: =IF(I16="","",DATE(1986,1,1)) ->  | K16: =IF(J16="","",1) ->  | L16: =IF(J16="","",1) ->  | M16: =IF(I16="",0,IFERROR(IF(VLOOKUP(I16,$I$7:$I$11,1,0)=I16,"Fout",""),IFERROR(DAYS360(I16,J16)/360*IF(K16="",1,K16)*IF(L16="",1,L16),0))) -> 0 | Q16: 3 | U16: 0 | V16: 0 | W16: 0
F17: 0 | I17: =IF(J16=DATE(1986,1,1),"",J16) ->  | J17: =IF(I17="","",DATE(1986,1,1)) ->  | K17: =IF(J17="","",1) ->  | L17: =IF(J17="","",1) ->  | M17: =IF(I17="",0,IFERROR(IF(VLOOKUP(I17,$I$7:$I$11,1,0)=I17,"Fout",""),IFERROR(DAYS360(I17,J17)/360*IF(K17="",1,K17)*IF(L17="",1,L17),0))) -> 0 | Q17: 4 | U17: 0 | V17: 0 | W17: 0
F18: 0 | I18: =IF(J17=DATE(1986,1,1),"",J17) ->  | J18: =IF(I18="","",DATE(1986,1,1)) ->  | K18: =IF(J18="","",1) ->  | L18: =IF(J18="","",1) ->  | M18: =IF(I18="",0,IFERROR(IF(VLOOKUP(I18,$I$7:$I$11,1,0)=I18,"Fout",""),IFERROR(DAYS360(I18,J18)/360*IF(K18="",1,K18)*IF(L18="",1,L18),0))) -> 0 | Q18: 5 | U18: 0 | V18: 0 | W18: 0
F19: 0 | I19: =IF(J18=DATE(1986,1,1),"",J18) ->  | J19: =IF(I19="","",DATE(1986,1,1)) ->  | K19: =IF(J19="","",1) ->  | L19: =IF(J19="","",1) ->  | M19: =IF(I19="",0,IFERROR(IF(VLOOKUP(I19,$I$7:$I$11,1,0)=I19,"Fout",""),IFERROR(DAYS360(I19,J19)/360*IF(K19="",1,K19)*IF(L19="",1,L19),0))) -> 0 | Q19: 6 | U19: 0 | V19: 0 | W19: 0
F20: 0 | V20: =SUM(V14:V19) -> 0 | W20: =ROUND(SUM(W14:W19),2) -> 0 | X20: =IFERROR(ROUND(W20/V20,2),0) -> 0
F21: 0 | I21: Artikel 18.9 samenvallende diensttijd vanaf 1-1-1986 tot 1-1-1995 | Q21: JAAR
F22: 0 | I22: Begindat. | J22: Einddatum | K22: Deeltijdf. | L22: Meetel% | M22: Jaren | R22: BG | S22: DTF | T22: Kalender | U22: Pens.tijd | V22: Afgerond | W22: BG x Pens. Tijd
F23: 0 | I23: =IF(AND(J7="",J15=""),"",DATE(1986,1,1)) ->  | J23: =IF(I23="","",DATE(1995,1,1)) ->  | K23: =IF(J23="","",1) ->  | L23: =IF(J23="","",1) ->  | M23: =IFERROR(DAYS360(I23,J23)/360*IF(K23="",1,K23)*IF(L23="",1,L23),0) -> 0 | Q23: 1 | U23: =S23*T23 -> 0 | V23: =ROUND(U23,4) -> 0 | W23: =V23*R23 -> 0
F24: 0 | I24: =IF(J23=DATE(1995,1,1),"",J23) ->  | J24: =IF(I24="","",DATE(1995,1,1)) ->  | M24: 0 | Q24: 2 | U24: 0 | V24: 0 | W24: 0
F25: 0 | J25: =IF(I25="","",DATE(1995,1,1)) ->  | K25: =IF(J25="","",1) ->  | L25: =IF(J25="","",1) ->  | M25: 0 | Q25: 3 | U25: 0 | V25: 0 | W25: 0
M26: 0 | Q26: 4 | U26: 0 | V26: 0 | W26: 0
A27: Break-even berekening | M27: 0 | Q27: 5 | U27: 0 | V27: 0 | W27: 0
M28: 0 | Q28: 6 | U28: 0 | V28: 0 | W28: 0
B29: Pensioendatum | M29: 0 | V29: =SUM(V23:V28) -> 0 | W29: =ROUND(SUM(W23:W28),2) -> 0 | X29: =IFERROR(ROUND(W29/V29,2),0) -> 0
B30: Maand break-even | E30: =IFERROR(DATE(YEAR($E$29),MONTH($E$29)+((F34+E38+F39)/(E35-E40)),DAY($E$29)),0) -> 00:00:00 | M30: 0 | Q30: JAAR
B31: Leeftijd deelnemer | E31: =IF(Geboortedatum="","",LEFT(TEXT(ROUND(DAYS360(Geboortedatum,$E$29)/360,4),"00,0000"),2)&" jaar"& IF(RIGHT(TEXT(ROUND(DAYS360(Geboortedatum,$E$29)/360,4),"00,0000"),5)*12=0,""," en "&ROUND(RIGHT(TEXT(ROUND(DAYS360(Geboortedatum,$E$29)/360,4),"00,0000"),5)*12,0)&" maanden")) ->  | R31: BG | S31: DTF | T31: Kalender | U31: Pens.tijd | V31: Afgerond | W31: BG x Pens. Tijd
Q32: 1 | U32: =S32*T32 -> 0 | V32: =ROUND(U32,4) -> 0 | W32: =V32*R32 -> 0
B33: Optie 1 | F33: Totaal tot AOW | I33: 18.8: ABP-ABP J14 | K33: 18.8: ABP-Overig J15 | M33: 18.9 1986-1995 | Q33: 2 | U33: 0 | V33: 0 | W33: 0
B34: Netto per maand tot AOW | F34: =IFERROR((DAYS360($E$29,AOW)/30)*E34,0) -> 0 | I34: Jaren | J34: =SUM($M$7:$M$11) -> 0 | K34: Jaren | L34: =SUM($M$15:$M$19) -> 0 | M34: Jaren | N34: =SUM($M$23:$M$30) -> 0 | Q34: 3 | U34: 0 | V34: 0 | W34: 0
B35: Netto per maand vanaf AOW | I35: Bedrag | J35: =IF($J$3="man",Parameters!$G$141,Parameters!$G$142) -> 170.5770123 | K35: Bedrag | L35: =IF($J$3="man",Parameters!$G$143,Parameters!$G$144) -> 341.1540247 | M35: Bedrag | N35: =Parameters!$G$146 -> 127.9326619 | Q35: 4 | U35: 0 | V35: 0 | W35: 0
I36: Aanvulling | J36: =ROUND(J34*J35*$M$3/12,2)*12 -> 0 | K36: Aanvulling | L36: =ROUND(L34*L35*$M$3/12,2)*12 -> 0 | M36: Aanvulling | N36: =ROUND(N34*N35/12,2)*12 -> 0 | Q36: 5 | U36: 0 | V36: 0 | W36: 0
B37: Optie 2 | F37: Totaal tot AOW | Q37: 6 | U37: 0 | V37: 0 | W37: 0
B38: Bedrag ineens netto | F38: =IF($E$29<AOW,E38,0) -> 0 | K38: Aanv Bijl K art 12 (18.9) | L38: =N36 -> 0 | V38: =SUM(V32:V37) -> 0 | W38: =ROUND(SUM(W32:W37),2) -> 0 | X38: =IFERROR(ROUND(W38/V38,2),0) -> 0
B39: Netto per maand tot AOW | F39: =IFERROR((DAYS360($E$29,AOW)/30)*E39,0) -> 0 | K39: Aanv Bijl K art 8 (18.8) | L39: =J36+L36 -> 0
B40: Netto per maand vanaf AOW | K40: Totaal aanvullingen | L40: =$J$36+$L$36+$N$36 -> 0 | M40: bruto per jaar vanaf AOW

Sheet Pensioenschade (hidden)
K1: Act. Factor | L1: Verschil pensioen | M1: Verschil afzet | N1: Verschil AOW | O1: Verschil 68.1
B2: KLANTGEGEVENS | E2: BEREKENING GEMIS PENSIOENOPBOUW | I2: Geboortedatum | J2: =Geboortedatum ->  | L2: =DAYS360($J2,$J$6)/360 ->  | M2: =DAYS360($J2,$J$7)/360 ->  | N2: =DAYS360($J2,$J$8)/360 ->  | O2: =DAYS360($J2,$J$9)/360 -> 
B3: Klantnummer | E3: Besparing pensioenpremie totaal | F3: =IFERROR(J21*M5,0) -> 0 | I3: Datum vandaag | J3: =TODAY() -> 2024-01-25 | K3: =J27 -> 1 | L3: =DAYS360($J3,$J$6)/360 ->  | M3: =DAYS360($J3,$J$7)/360 ->  | O3: -124.0694444
B4: Klantnaam | E4: Waarvan werkgeversbijdrage | F4: =IFERROR(J22*M5,0) -> 0 | I4: Datum 60.0 | J4: =IFERROR(DATE(YEAR(Geboortedatum)+60,MONTH(Geboortedatum),1),0) -> 00:00:00 | K4: =J29 -> 1 | L4: =DAYS360($J4,$J$6)/360 ->  | M4: =DAYS360($J4,$J$7)/360 ->  | O4: 0
B5: Geboortedatum | E5: Pensioenbijdrage tijdens WW | F5: =C20/12*J22*0.5 -> 0 | I5: Datum ontslag | J5: =C14 -> 00:00:00 | K5: =J31 -> 1 | L5: =DAYS360($J5,$J$6)/360 ->  | M5: =DAYS360($J5,$J$7)/360 ->  | O5: 0
B6: Burgerlijke staat | E6: Extra bijdrage tijdens WW | F6: =IFERROR(F5*C21/0.5,0) -> 0 | I6: Datum pensioen | J6: =C15 ->  | K6: =J33 -> 1 | M6: =DAYS360($J6,$J$7)/360 -> 
B7: AOW-datum (vastgesteld) | C7: =IF(Berekening!C7="","",Berekening!C7) ->  | I7: Datum verschil | J7: =C16 ->  | K7: =J35 -> 1
B8: AOW-datum (verwacht) | C8: =IF(Berekening!C8="","",Berekening!C8) ->  | E8: Besparing werkgever premie | F8: =MAX(0,F4-F5-F6) -> 0 | I8: Datum AOW | J8: =AOW ->  | K8: =Factor_AOW -> 1
B9: AOW-leeftijd (verwacht) | C9: =IF(Berekening!C9="","",Berekening!C9) ->  | I9: Datum 68.1 | J9: =IFERROR(DATE(YEAR(Geboortedatum)+68,MONTH(Geboortedatum)+1,1),0) -> 00:00:00 | K9: 1
B10: Pensioengevend inkomen
B11: Deeltijdfactor | E11: Pensioen op gewenste pensioendatum pm | F11: =IFERROR(Q24/12,0) -> 0
E12: Pensioen op ingangsdatum pm | F12: =IF(C14="",0,IFERROR(N24/12,0)) -> 0 | I12: Pensioengevend inkomen | K12: =C10 -> 0 | M12: Opgebouwd per jaar (68.1) | N12: =C17*12/K8 -> 0
B13: AANVULLENDE GEGEVENS | E13: Verschil levenslang per maand | F13: =F11-F12 -> 0 | I13: Deeltijdpercentage | K13: =C11 -> 0 | M13: Te bereiken per jaar (68.1) | N13: =C18*12/K8 -> 0
B14: Datum ontslag | E14: Factor ABP ExtraPensioen 68.1 | F14: =((11*Parameters!$G$454)+(1*Parameters!$G$455))/12 -> 19.06908333 | I14: Franchise | K14: =IF(K12<Grensbedrag,Franchise_laag,Franchise_hoog) -> 14050 | M14: Aangroei tot AOW (68.1) | N14: =ROUND(K18*N3,2) -> 
B15: Datum ingang pensioen | C15: =IF(C14="","",C14) ->  | I15: Opbouwpercentage | K15: =IF(K12<Grensbedrag,Opbouwpercentage_laag,Opbouwpercentage_hoog) -> 0.01701 | M15: VPL (68.1) | N15: =N13-N12-N14 -> 
B16: Afzetten tegen pensioen op | C16: =IF(C14="","",AOW) ->  | E16: Compensatie pensioenverlies | F16: =F13*F14*12 -> 0 | I16: Aftopping | K16: =IFERROR(ROUND(MIN(Aftoppingsgrens,K12),2),0) -> 0
B17: Opgebouwd pensioen (bruto pm) | I17: Beperkingsfactor | K17: =IFERROR(MIN(1,MAX(Aftoppingsgrens,K13)/(K13*K12)),1) -> 1 | M17: Pensioenberekening | P17: Pensioenberekening
B18: Te bereiken pensioen (bruto pm) | I18: Aangroei | K18: =ROUND((K16-K14)*K13*K15*K17,2) -> 0 | M18: Pensioen op AOW (68.1) | N18: =$N$13 -> 0 | P18: Pensioen op AOW (68.1) | Q18: =$N$13 -> 0
B19: Verlies voorwaardelijk pensioen? | C19: =IF(C14="","",IF(C14>=J4,"nee","ja")) ->  | M19: VPL verlies | N19: =IF($C$19="nee",0,$N$15)*-1 ->  | P19: VPL verlies | Q19: 0
B20: Aantal maanden pensioenopbouw WW | I20: Pensioenpremie | M20: Aangroei tot ontslag | N20: =$N$5*$K18*-1 ->  | P20: Aangroei tot ontslag | Q20: =$N$7*$K18*-1 -> 
B21: Aanvullen pensioenopbouw WW | C21: =IF(C20="","",0%) ->  | I21: Totaal | J21: =Premie!C16 -> 0 | M21: Opbouw tijdens WW | N21: =$C$20/12*$K$18*0.5 -> 0 | P21: Opbouw tijdens WW | Q21: 0
B22: Sector | C22: =IF(C14="","","P. Overig") ->  | I22: Werkgever | J22: =Premie!D16 -> 0 | M22: Pensioen op ingangsdatum (68.1) | N22: =SUM(N18:N21) ->  | P22: Pensioen op ingangsdatum (68.1) | Q22: =SUM(Q18:Q21) -> 
I23: Werknemer | J23: =Premie!E16 -> 0 | M23: Actuariele factor | N23: =K6 -> 1 | P23: Actuariele factor | Q23: =K7 -> 1
B24: De bruto bedragen zijn gebaseerd op de huidige situatie. Het bruto bedrag kan bijvoorbeeld veranderen als gevolg van toekomstige algemene salarismaatregelen (indexatie), wijziging van actuariële factoren, ontwikkelingen die van invloed kunnen zijn op uw pensioen, wijzigingen in uw persoonlijke situatie, wijzigingen in de AOW-sfeer en eventuele verlagingen en verhogingen van uw pensioenaanspraak. Ook kan de pensioenregeling veranderen. Mocht hiervan sprake zijn, dan passen wij uw pensioen aan. Het netto bedrag zal hierdoor ook veranderen. De getoonde netto bedragen zijn gebaseerd op de huidige regelgeving en actuele tabellen. Aan deze opgave kunnen geen rechten worden ontleend. | M24: Inclusief act.factor | N24: =N22*N23 ->  | P24: Inclusief act.factor | Q24: =Q22*Q23 -> 
I27: =J3 -> 2024-01-25 | J27: =IFERROR(((30-(DAY(I27)-1))*M27+((DAY(I27)-1)*M28))/30,1) -> 1 | K27: =IFERROR(IF(I27="","",IF(MONTH(I27)>=MONTH(Geboortedatum),YEAR(I27)-YEAR(Geboortedatum),YEAR(I27)-YEAR(Geboortedatum)-1)),0) -> 0 | L27: =K27&"."&K28 -> 0.0 | M27: =IFERROR(VLOOKUP(L27,AKP_factoren,3,0),1) -> 1
I28: =IFERROR(IF(DAY(I27)=1,L27,L27&" - "&L28),"") -> 0.0 - 0.1 | K28: =IFERROR(IF(I27="","",IF(MONTH(I27)>=MONTH(Geboortedatum),MONTH(I27)-MONTH(Geboortedatum),MONTH(I27)-MONTH(Geboortedatum)+12)),0) -> 0 | L28: =IFERROR(IF(K28=11,K27+1,K27)&"."&IF(K28=11,0,K28+1),"") -> 0.1 | M28: 1
I29: =J4 -> 00:00:00 | J29: =IFERROR(((30-(DAY(I29)-1))*M29+((DAY(I29)-1)*M30))/30,1) -> 1 | K29: =IFERROR(IF(I29="","",IF(MONTH(I29)>=MONTH(Geboortedatum),YEAR(I29)-YEAR(Geboortedatum),YEAR(I29)-YEAR(Geboortedatum)-1)),0) -> 0 | L29: =K29&"."&K30 -> 0.0 | M29: 1
I30: =IFERROR(IF(DAY(I29)=1,L29,L29&" - "&L30),"") -> 0.0 - 0.1 | K30: =IFERROR(IF(I29="","",IF(MONTH(I29)>=MONTH(Geboortedatum),MONTH(I29)-MONTH(Geboortedatum),MONTH(I29)-MONTH(Geboortedatum)+12)),0) -> 0 | L30: =IFERROR(IF(K30=11,K29+1,K29)&"."&IF(K30=11,0,K30+1),"") -> 0.1 | M30: 1
I31: =J5 -> 00:00:00 | J31: =IFERROR(((30-(DAY(I31)-1))*M31+((DAY(I31)-1)*M32))/30,1) -> 1 | K31: =IFERROR(IF(I31="","",IF(MONTH(I31)>=MONTH(Geboortedatum),YEAR(I31)-YEAR(Geboortedatum),YEAR(I31)-YEAR(Geboortedatum)-1)),0) -> 0 | L31: =K31&"."&K32 -> 0.0 | M31: 1
I32: =IFERROR(IF(DAY(I31)=1,L31,L31&" - "&L32),"") -> 0.0 - 0.1 | K32: =IFERROR(IF(I31="","",IF(MONTH(I31)>=MONTH(Geboortedatum),MONTH(I31)-MONTH(Geboortedatum),MONTH(I31)-MONTH(Geboortedatum)+12)),0) -> 0 | L32: =IFERROR(IF(K32=11,K31+1,K31)&"."&IF(K32=11,0,K32+1),"") -> 0.1 | M32: 1
I33: =J6 ->  | J33: =IFERROR(((30-(DAY(I33)-1))*M33+((DAY(I33)-1)*M34))/30,1) -> 1 | K33: =IFERROR(IF(I33="","",IF(MONTH(I33)>=MONTH(Geboortedatum),YEAR(I33)-YEAR(Geboortedatum),YEAR(I33)-YEAR(Geboortedatum)-1)),0) ->  | L33: =K33&"."&K34 -> . | M33: 1
I34: =IFERROR(IF(DAY(I33)=1,L33,L33&" - "&L34),"") ->  | K34: =IFERROR(IF(I33="","",IF(MONTH(I33)>=MONTH(Geboortedatum),MONTH(I33)-MONTH(Geboortedatum),MONTH(I33)-MONTH(Geboortedatum)+12)),0) ->  | L34: =IFERROR(IF(K34=11,K33+1,K33)&"."&IF(K34=11,0,K34+1),"") ->  | M34: 1
I35: =J7 ->  | J35: =IFERROR(((30-(DAY(I35)-1))*M35+((DAY(I35)-1)*M36))/30,1) -> 1 | K35: =IFERROR(IF(I35="","",IF(MONTH(I35)>=MONTH(Geboortedatum),YEAR(I35)-YEAR(Geboortedatum),YEAR(I35)-YEAR(Geboortedatum)-1)),0) ->  | L35: =K35&"."&K36 -> . | M35: 1
I36: =IFERROR(IF(DAY(I35)=1,L35,L35&" - "&L36),"") ->  | K36: =IFERROR(IF(I35="","",IF(MONTH(I35)>=MONTH(Geboortedatum),MONTH(I35)-MONTH(Geboortedatum),MONTH(I35)-MONTH(Geboortedatum)+12)),0) ->  | L36: =IFERROR(IF(K36=11,K35+1,K35)&"."&IF(K36=11,0,K36+1),"") ->  | M36: 1

Sheet Premie (hidden)
B2: Klantnummer | C2: =IF(Vastlegging!D5="","",Vastlegging!D5) -> 
B3: Klantnaam | C3: =IF(Vastlegging!D6="","",Vastlegging!D6) -> 
B4: Geboortedatum | C4: =IF(Vastlegging!D7="","",Vastlegging!D7) ->  | E4: =IF(YEAR(Parameters!$L$9)<>YEAR(Parameters!$G$3),"Let op! Pensioenpremie "&YEAR(Parameters!$L$9),"") -> 
B5: Pensioengevend inkomen | C5: =IF(Berekening!C11="","",Berekening!C11) -> 
B6: Deeltijdfactor | C6: =IF(Berekening!C12="","",Berekening!C12) -> 
B7: Sector | C7: =IF($C$2="","",IF(Pensioenschade!$C$22<>"P. Overig",Pensioenschade!$C$22,"P. Overig")) -> 
B9: Ingangsdatum bijsparen
B10: (Bijspaar)percentage | C10: =IF($C$9="","",1) -> 
B12: Jaarinleg | C12: Totaal | D12: Werkgever | E12: Deelnemer
B13: OP/NP | C13: =C21*12 -> 0 | D13: =D21*12 -> 0 | E13: 0 | F13: bruto per jaar
B14: VPL | C14: =C22*12 -> 0 | D14: =D22*12 -> 0 | E14: 0 | F14: bruto per jaar
B15: AAOP | C15: =C23*12 -> 0 | D15: =D23*12 -> 0 | E15: 0 | F15: bruto per jaar
B16: TOTAAL | C16: =SUM(C13:C15) -> 0 | D16: =SUM(D13:D15) -> 0 | E16: =SUM(E13:E15) -> 0 | F16: bruto per jaar
B18: =IF(Parameters!$L$11=1,"Pensioenopbouw OP (68)","Pensioenopbouw OP (AOW)") -> Pensioenopbouw OP (68) | C18: =IFERROR(ROUND(((MIN($C$5,Parameters!$L$102)-IF($C$5<Parameters!$L$100,Parameters!$L$89,Parameters!$L$90))*$C$6*IFERROR(IF($C$10="",1,$C$10),1)*IFERROR(MIN(1,MAX(Parameters!$L$102,$C$5)/($C$6*$C$5)),1)*IF($C$5<Parameters!$L$100,Parameters!$L$81,Parameters!$L$82)),2),0)*Parameters!$L$11 -> 0 | D18: Pensioenopbouw NP | E18: =C18*Parameters!$L$117/Parameters!$L$11 -> 0 | F18: bruto per jaar
B20: Maandinleg | C20: Totaal | D20: Werkgever | E20: Deelnemer
B21: OP/NP | C21: =IFERROR(ROUND(((MIN($C$5,Parameters!$L$102)-Parameters!$L$355)*$C$6*IFERROR(IF($C$10="",1,$C$10),1)*IFERROR(MIN(1,MAX(Parameters!$L$102,$C$5)/($C$6*$C$5)),1)*Parameters!$L$352)/12,2),0) -> 0 | D21: =IFERROR(IF($C$9="",ROUND(((MIN($C$5,Parameters!$L$102)-Parameters!$L$355)*$C$6*IFERROR(IF($C$10="",1,$C$10),1)*IFERROR(MIN(1,MAX(Parameters!$L$102,$C$5)/($C$6*$C$5)),1)*Parameters!$L$353)/12,2),0),0) -> 0 | E21: =C21-D21 -> 0 | F21: bruto per maand
B22: VPL | C22: =IFERROR(IF($C$9>=Parameters!$AB$79,0,ROUND((($C$5-Parameters!$L$359)*$C$6*IFERROR(IF($C$10="",1,$C$10),1)*Parameters!$L$356)/12,2)),0) -> 0 | D22: =IFERROR(IF($C$9="",IF($C$9>=Parameters!$AB$79,0,ROUND((($C$5-Parameters!$L$359)*$C$6*IFERROR(IF($C$10="",1,$C$10),1)*Parameters!$L$357)/12,2)),0),0) -> 0 | E22: =C22-D22 -> 0 | F22: bruto per maand
B23: AAOP | C23: =IFERROR(IF($C$9>=Parameters!$AB$79,0,ROUND((($C$5-Parameters!$L$397)*$C$6*IFERROR(IF($C$10="",1,$C$10),1)*Parameters!$L$361)/12,2)),0) -> 0 | D23: =IFERROR(IF($C$9="",IF($C$9>=Parameters!$AB$79,0,ROUND((($C$5-Parameters!$L$397)*$C$6*IFERROR(IF($C$10="",1,$C$10),1)*Parameters!$L$362)/12,2)),0),0) -> 0 | E23: =C23-D23 -> 0 | F23: bruto per maand
B24: TOTAAL | C24: =SUM(C21:C23) -> 0 | D24: =SUM(D21:D23) -> 0 | E24: =SUM(E21:E23) -> 0 | F24: bruto per maand
B26: =IF(Factor_AOW=1,"Pensioenopbouw OP (68)","Pensioenopbouw OP (AOW)") -> Pensioenopbouw OP (68) | C26: =ROUND(C18/12,2) -> 0 | D26: Pensioenopbouw NP | E26: =ROUND(E18/12,2) -> 0 | F26: bruto per jaar
B28: De brutobedragen zijn gebaseerd op de huidige situatie. Het brutobedrag kan bijvoorbeeld veranderen als gevolg van toekomstige algemene salarismaatregelen (indexatie), wijziging van actuariële factoren, ontwikkelingen die van invloed kunnen zijn op uw pensioen, wijzigingen in uw persoonlijke situatie, wijzigingen in de AOW-sfeer en eventuele verlagingen en verhogingen van uw pensioenaanspraak. Ook kan de pensioenregeling veranderen. Mocht hiervan sprake zijn, dan passen wij uw pensioen aan. Het nettobedrag zal hierdoor ook veranderen. De getoonde nettobedragen zijn gebaseerd op de huidige regelgeving en actuele tabellen. Aan deze opgave kunnen geen rechten worden ontleend.

Sheet Scenario's (hidden)
B2: ALGEMENE GEGEVENS | E2: 1ste uittreding | F2: 2de uittreding | G2: 3de uittreding | H2: 4de uittreding | K2: =IF($C$3="",0,1) -> 0 | L2: =IF(K2=0,"",1) -> 
B3: Klantnummer | D3: Datum | K3: =IF($C$53="",0,2) -> 0 | L3: =IF(K3=0,"",2) -> 
B4: Naam | D4: Nieuwe deeltijdfactor | K4: =IF($C$103="",0,3) -> 0 | L4: =IF(K4=0,"",3) -> 
B5: Geboortedatum | K5: =IF($C$153="",0,4) -> 0 | L5: =IF(K5=0,"",4) -> 
B6: Burgerlijke staat | D6: Aanwendpercentage | K6: =IF($C$203="",0,5) -> 0
B7: AOW-datum (vastgesteld) | K7: =IF($C$253="",0,6) -> 0
B8: AOW-datum (verwacht) | D8: Bedrag ineens | K8: =IF($C$303="",0,7) -> 0
B9: AOW-leeftijd (verwacht) | D9: AOW-overbrugging | K9: =IF($C$353="",0,8) -> 0
B10: BEREKENINGSGEGEVENS | D10: Variëren tot | K10: =IF($C$403="",0,9) -> 0
B11: =Berekening!$B$11 -> Pensioengevend inkomen | D11: Pensioenbedrag per jaar | K11: =IF($C$453="",0,10) -> 0
B12: =Berekening!$B$12 -> Deeltijdfactor | D12: Minimaal bedrag | K12: =MAX($K$2:$K$11) -> 0
B13: =Berekening!$B$13 -> Pensioenbedrag AOW-leeftijd | D13: Maximaal bedrag
B14: =Berekening!$B$14 -> Pensioen inclusief verlaging PP | D14: Keuzebedrag
B15: =Berekening!$B$15 -> VPS vermindering | D15: Keuzebedrag per maand
B16: =Berekening!$B$16 -> Saldo ABP ExtraPensioen
B17: =Berekening!$B$17 -> Overige pensioenen per jaar | E17: Aanpassing NP | F17: AOW tonen | G17: Belastingtabel | H17: Minder AOW-jaren
B19: =Berekening!$B$18 -> 
B21: ABP KeuzePensioen scenario 1
B24: PERIODE
B35: De brutobedragen zijn gebaseerd op de huidige situatie. Het brutobedrag kan bijvoorbeeld veranderen als gevolg van toekomstige algemene salarismaatregelen (indexatie), wijziging van actuariële factoren, ontwikkelingen die van invloed kunnen zijn op uw pensioen, wijzigingen in uw persoonlijke situatie, wijzigingen in de AOW-sfeer en eventuele verlagingen en verhogingen van uw pensioenaanspraak. Ook kan de pensioenregeling veranderen. Mocht hiervan sprake zijn, dan passen wij uw pensioen aan. Het nettobedrag zal hierdoor ook veranderen. De getoonde nettobedragen zijn gebaseerd op de huidige regelgeving en actuele tabellen. Aan deze opgave kunnen geen rechten worden ontleend.
B52: ALGEMENE GEGEVENS | E52: 1ste uittreding | F52: 2de uittreding | G52: 3de uittreding | H52: 4de uittreding
B53: Klantnummer | D53: Datum
B54: Naam | D54: Nieuwe deeltijdfactor
B55: Geboortedatum
B56: Burgerlijke staat | D56: Aanwendpercentage
B57: AOW-datum (vastgesteld)
B58: AOW-datum (verwacht) | D58: Bedrag ineens
B59: AOW-leeftijd (verwacht) | D59: AOW-overbrugging
B60: BEREKENINGSGEGEVENS | D60: Variëren tot
B61: =Berekening!$B$11 -> Pensioengevend inkomen | D61: Pensioenbedrag per jaar
B62: =Berekening!$B$12 -> Deeltijdfactor | D62: Minimaal bedrag
B63: =Berekening!$B$13 -> Pensioenbedrag AOW-leeftijd | D63: Maximaal bedrag
B64: =Berekening!$B$14 -> Pensioen inclusief verlaging PP | D64: Keuzebedrag
B65: =Berekening!$B$15 -> VPS vermindering | D65: Keuzebedrag per maand
B66: =Berekening!$B$16 -> Saldo ABP ExtraPensioen
B67: =Berekening!$B$17 -> Overige pensioenen per jaar | E67: Aanpassing NP | F67: AOW tonen | G67: Belastingtabel | H67: Minder AOW-jaren
B69: =Berekening!$B$18 -> 
B71: ABP KeuzePensioen scenario 2
B74: PERIODE
B85: De brutobedragen zijn gebaseerd op de huidige situatie. Het brutobedrag kan bijvoorbeeld veranderen als gevolg van toekomstige algemene salarismaatregelen (indexatie), wijziging van actuariële factoren, ontwikkelingen die van invloed kunnen zijn op uw pensioen, wijzigingen in uw persoonlijke situatie, wijzigingen in de AOW-sfeer en eventuele verlagingen en verhogingen van uw pensioenaanspraak. Ook kan de pensioenregeling veranderen. Mocht hiervan sprake zijn, dan passen wij uw pensioen aan. Het nettobedrag zal hierdoor ook veranderen. De getoonde nettobedragen zijn gebaseerd op de huidige regelgeving en actuele tabellen. Aan deze opgave kunnen geen rechten worden ontleend.
B102: ALGEMENE GEGEVENS | E102: 1ste uittreding | F102: 2de uittreding | G102: 3de uittreding | H102: 4de uittreding
B103: Klantnummer | D103: Datum
B104: Naam | D104: Nieuwe deeltijdfactor
B105: Geboortedatum
B106: Burgerlijke staat | D106: Aanwendpercentage
B107: AOW-datum (vastgesteld)
B108: AOW-datum (verwacht) | D108: Bedrag ineens
B109: AOW-leeftijd (verwacht) | D109: AOW-overbrugging
B110: BEREKENINGSGEGEVENS | D110: Variëren tot
B111: =Berekening!$B$11 -> Pensioengevend inkomen | D111: Pensioenbedrag per jaar
B112: =Berekening!$B$12 -> Deeltijdfactor | D112: Minimaal bedrag
B113: =Berekening!$B$13 -> Pensioenbedrag AOW-leeftijd | D113: Maximaal bedrag
B114: =Berekening!$B$14 -> Pensioen inclusief verlaging PP | D114: Keuzebedrag
B115: =Berekening!$B$15 -> VPS vermindering | D115: Keuzebedrag per maand
B116: =Berekening!$B$16 -> Saldo ABP ExtraPensioen
B117: =Berekening!$B$17 -> Overige pensioenen per jaar | E117: Aanpassing NP | F117: AOW tonen | G117: Belastingtabel | H117: Minder AOW-jaren
B119: =Berekening!$B$18 -> 
B121: ABP KeuzePensioen scenario 3
B124: PERIODE
B135: De brutobedragen zijn gebaseerd op de huidige situatie. Het brutobedrag kan bijvoorbeeld veranderen als gevolg van toekomstige algemene salarismaatregelen (indexatie), wijziging van actuariële factoren, ontwikkelingen die van invloed kunnen zijn op uw pensioen, wijzigingen in uw persoonlijke situatie, wijzigingen in de AOW-sfeer en eventuele verlagingen en verhogingen van uw pensioenaanspraak. Ook kan de pensioenregeling veranderen. Mocht hiervan sprake zijn, dan passen wij uw pensioen aan. Het nettobedrag zal hierdoor ook veranderen. De getoonde nettobedragen zijn gebaseerd op de huidige regelgeving en actuele tabellen. Aan deze opgave kunnen geen rechten worden ontleend.
B152: ALGEMENE GEGEVENS | E152: 1ste uittreding | F152: 2de uittreding | G152: 3de uittreding | H152: 4de uittreding
B153: Klantnummer | D153: Datum
B154: Naam | D154: Nieuwe deeltijdfactor
B155: Geboortedatum
B156: Burgerlijke staat | D156: Aanwendpercentage
B157: AOW-datum (vastgesteld)
B158: AOW-datum (verwacht) | D158: Bedrag ineens
B159: AOW-leeftijd (verwacht) | D159: AOW-overbrugging
B160: BEREKENINGSGEGEVENS | D160: Variëren tot
B161: =Berekening!$B$11 -> Pensioengevend inkomen | D161: Pensioenbedrag per jaar
B162: =Berekening!$B$12 -> Deeltijdfactor | D162: Minimaal bedrag
B163: =Berekening!$B$13 -> Pensioenbedrag AOW-leeftijd | D163: Maximaal bedrag
B164: =Berekening!$B$14 -> Pensioen inclusief verlaging PP | D164: Keuzebedrag
B165: =Berekening!$B$15 -> VPS vermindering | D165: Keuzebedrag per maand
B166: =Berekening!$B$16 -> Saldo ABP ExtraPensioen
B167: =Berekening!$B$17 -> Overige pensioenen per jaar | E167: Aanpassing NP | F167: AOW tonen | G167: Belastingtabel | H167: Minder AOW-jaren
B169: =Berekening!$B$18 -> 
B171: ABP KeuzePensioen scenario 4
B174: PERIODE
B185: De brutobedragen zijn gebaseerd op de huidige situatie. Het brutobedrag kan bijvoorbeeld veranderen als gevolg van toekomstige algemene salarismaatregelen (indexatie), wijziging van actuariële factoren, ontwikkelingen die van invloed kunnen zijn op uw pensioen, wijzigingen in uw persoonlijke situatie, wijzigingen in de AOW-sfeer en eventuele verlagingen en verhogingen van uw pensioenaanspraak. Ook kan de pensioenregeling veranderen. Mocht hiervan sprake zijn, dan passen wij uw pensioen aan. Het nettobedrag zal hierdoor ook veranderen. De getoonde nettobedragen zijn gebaseerd op de huidige regelgeving en actuele tabellen. Aan deze opgave kunnen geen rechten worden ontleend.
B202: ALGEMENE GEGEVENS | E202: 1ste uittreding | F202: 2de uittreding | G202: 3de uittreding | H202: 4de uittreding
B203: Klantnummer | D203: Datum
B204: Naam | D204: Nieuwe deeltijdfactor
B205: Geboortedatum
B206: Burgerlijke staat | D206: Aanwendpercentage
B207: AOW-datum (vastgesteld)
B208: AOW-datum (verwacht) | D208: Bedrag ineens
B209: AOW-leeftijd (verwacht) | D209: AOW-overbrugging
B210: BEREKENINGSGEGEVENS | D210: Variëren tot
B211: =Berekening!$B$11 -> Pensioengevend inkomen | D211: Pensioenbedrag per jaar
B212: =Berekening!$B$12 -> Deeltijdfactor | D212: Minimaal bedrag
B213: =Berekening!$B$13 -> Pensioenbedrag AOW-leeftijd | D213: Maximaal bedrag
B214: =Berekening!$B$14 -> Pensioen inclusief verlaging PP | D214: Keuzebedrag
B215: =Berekening!$B$15 -> VPS vermindering | D215: Keuzebedrag per maand
B216: =Berekening!$B$16 -> Saldo ABP ExtraPensioen
B217: =Berekening!$B$17 -> Overige pensioenen per jaar | E217: Aanpassing NP | F217: AOW tonen | G217: Belastingtabel | H217: Minder AOW-jaren
B219: =Berekening!$B$18 -> 
B221: ABP KeuzePensioen scenario 5
B224: PERIODE
B235: De brutobedragen zijn gebaseerd op de huidige situatie. Het brutobedrag kan bijvoorbeeld veranderen als gevolg van toekomstige algemene salarismaatregelen (indexatie), wijziging van actuariële factoren, ontwikkelingen die van invloed kunnen zijn op uw pensioen, wijzigingen in uw persoonlijke situatie, wijzigingen in de AOW-sfeer en eventuele verlagingen en verhogingen van uw pensioenaanspraak. Ook kan de pensioenregeling veranderen. Mocht hiervan sprake zijn, dan passen wij uw pensioen aan. Het nettobedrag zal hierdoor ook veranderen. De getoonde nettobedragen zijn gebaseerd op de huidige regelgeving en actuele tabellen. Aan deze opgave kunnen geen rechten worden ontleend.
B252: ALGEMENE GEGEVENS | E252: 1ste uittreding | F252: 2de uittreding | G252: 3de uittreding | H252: 4de uittreding
B253: Klantnummer | D253: Datum
B254: Naam | D254: Nieuwe deeltijdfactor
B255: Geboortedatum
B256: Burgerlijke staat | D256: Aanwendpercentage
B257: AOW-datum (vastgesteld)
B258: AOW-datum (verwacht) | D258: Bedrag ineens
B259: AOW-leeftijd (verwacht) | D259: AOW-overbrugging
B260: BEREKENINGSGEGEVENS | D260: Variëren tot
B261: =Berekening!$B$11 -> Pensioengevend inkomen | D261: Pensioenbedrag per jaar
B262: =Berekening!$B$12 -> Deeltijdfactor | D262: Minimaal bedrag
B263: =Berekening!$B$13 -> Pensioenbedrag AOW-leeftijd | D263: Maximaal bedrag
B264: =Berekening!$B$14 -> Pensioen inclusief verlaging PP | D264: Keuzebedrag
B265: =Berekening!$B$15 -> VPS vermindering | D265: Keuzebedrag per maand
B266: =Berekening!$B$16 -> Saldo ABP ExtraPensioen
B267: =Berekening!$B$17 -> Overige pensioenen per jaar | E267: Aanpassing NP | F267: AOW tonen | G267: Belastingtabel | H267: Minder AOW-jaren
B269: =Berekening!$B$18 -> 
B271: ABP KeuzePensioen scenario 6
B274: PERIODE
B285: De brutobedragen zijn gebaseerd op de huidige situatie. Het brutobedrag kan bijvoorbeeld veranderen als gevolg van toekomstige algemene salarismaatregelen (indexatie), wijziging van actuariële factoren, ontwikkelingen die van invloed kunnen zijn op uw pensioen, wijzigingen in uw persoonlijke situatie, wijzigingen in de AOW-sfeer en eventuele verlagingen en verhogingen van uw pensioenaanspraak. Ook kan de pensioenregeling veranderen. Mocht hiervan sprake zijn, dan passen wij uw pensioen aan. Het nettobedrag zal hierdoor ook veranderen. De getoonde nettobedragen zijn gebaseerd op de huidige regelgeving en actuele tabellen. Aan deze opgave kunnen geen rechten worden ontleend.
B302: ALGEMENE GEGEVENS | E302: 1ste uittreding | F302: 2de uittreding | G302: 3de uittreding | H302: 4de uittreding
B303: Klantnummer | D303: Datum
B304: Naam | D304: Nieuwe deeltijdfactor
B305: Geboortedatum
B306: Burgerlijke staat | D306: Aanwendpercentage
B307: AOW-datum (vastgesteld)
B308: AOW-datum (verwacht) | D308: Bedrag ineens
B309: AOW-leeftijd (verwacht) | D309: AOW-overbrugging
B310: BEREKENINGSGEGEVENS | D310: Variëren tot
B311: =Berekening!$B$11 -> Pensioengevend inkomen | D311: Pensioenbedrag per jaar
B312: =Berekening!$B$12 -> Deeltijdfactor | D312: Minimaal bedrag
B313: =Berekening!$B$13 -> Pensioenbedrag AOW-leeftijd | D313: Maximaal bedrag
B314: =Berekening!$B$14 -> Pensioen inclusief verlaging PP | D314: Keuzebedrag
B315: =Berekening!$B$15 -> VPS vermindering | D315: Keuzebedrag per maand
B316: =Berekening!$B$16 -> Saldo ABP ExtraPensioen
B317: =Berekening!$B$17 -> Overige pensioenen per jaar | E317: Aanpassing NP | F317: AOW tonen | G317: Belastingtabel | H317: Minder AOW-jaren
B319: =Berekening!$B$18 -> 
B321: ABP KeuzePensioen scenario 7
B324: PERIODE
B335: De brutobedragen zijn gebaseerd op de huidige situatie. Het brutobedrag kan bijvoorbeeld veranderen als gevolg van toekomstige algemene salarismaatregelen (indexatie), wijziging van actuariële factoren, ontwikkelingen die van invloed kunnen zijn op uw pensioen, wijzigingen in uw persoonlijke situatie, wijzigingen in de AOW-sfeer en eventuele verlagingen en verhogingen van uw pensioenaanspraak. Ook kan de pensioenregeling veranderen. Mocht hiervan sprake zijn, dan passen wij uw pensioen aan. Het nettobedrag zal hierdoor ook veranderen. De getoonde nettobedragen zijn gebaseerd op de huidige regelgeving en actuele tabellen. Aan deze opgave kunnen geen rechten worden ontleend.
B352: ALGEMENE GEGEVENS | E352: 1ste uittreding | F352: 2de uittreding | G352: 3de uittreding | H352: 4de uittreding
B353: Klantnummer | D353: Datum
B354: Naam | D354: Nieuwe deeltijdfactor
B355: Geboortedatum
B356: Burgerlijke staat | D356: Aanwendpercentage
B357: AOW-datum (vastgesteld)
B358: AOW-datum (verwacht) | D358: Bedrag ineens
B359: AOW-leeftijd (verwacht) | D359: AOW-overbrugging
B360: BEREKENINGSGEGEVENS | D360: Variëren tot
B361: =Berekening!$B$11 -> Pensioengevend inkomen | D361: Pensioenbedrag per jaar
B362: =Berekening!$B$12 -> Deeltijdfactor | D362: Minimaal bedrag
B363: =Berekening!$B$13 -> Pensioenbedrag AOW-leeftijd | D363: Maximaal bedrag
B364: =Berekening!$B$14 -> Pensioen inclusief verlaging PP | D364: Keuzebedrag
B365: =Berekening!$B$15 -> VPS vermindering | D365: Keuzebedrag per maand
B366: =Berekening!$B$16 -> Saldo ABP ExtraPensioen
B367: =Berekening!$B$17 -> Overige pensioenen per jaar | E367: Aanpassing NP | F367: AOW tonen | G367: Belastingtabel | H367: Minder AOW-jaren
B369: =Berekening!$B$18 -> 
B371: ABP KeuzePensioen scenario 8
B374: PERIODE
B385: De brutobedragen zijn gebaseerd op de huidige situatie. Het brutobedrag kan bijvoorbeeld veranderen als gevolg van toekomstige algemene salarismaatregelen (indexatie), wijziging van actuariële factoren, ontwikkelingen die van invloed kunnen zijn op uw pensioen, wijzigingen in uw persoonlijke situatie, wijzigingen in de AOW-sfeer en eventuele verlagingen en verhogingen van uw pensioenaanspraak. Ook kan de pensioenregeling veranderen. Mocht hiervan sprake zijn, dan passen wij uw pensioen aan. Het nettobedrag zal hierdoor ook veranderen. De getoonde nettobedragen zijn gebaseerd op de huidige regelgeving en actuele tabellen. Aan deze opgave kunnen geen rechten worden ontleend.
B402: ALGEMENE GEGEVENS | E402: 1ste uittreding | F402: 2de uittreding | G402: 3de uittreding | H402: 4de uittreding
B403: Klantnummer | D403: Datum
B404: Naam | D404: Nieuwe deeltijdfactor
B405: Geboortedatum
B406: Burgerlijke staat | D406: Aanwendpercentage
B407: AOW-datum (vastgesteld)
B408: AOW-datum (verwacht) | D408: Bedrag ineens
B409: AOW-leeftijd (verwacht) | D409: AOW-overbrugging
B410: BEREKENINGSGEGEVENS | D410: Variëren tot
B411: =Berekening!$B$11 -> Pensioengevend inkomen | D411: Pensioenbedrag per jaar
B412: =Berekening!$B$12 -> Deeltijdfactor | D412: Minimaal bedrag
B413: =Berekening!$B$13 -> Pensioenbedrag AOW-leeftijd | D413: Maximaal bedrag
B414: =Berekening!$B$14 -> Pensioen inclusief verlaging PP | D414: Keuzebedrag
B415: =Berekening!$B$15 -> VPS vermindering | D415: Keuzebedrag per maand
B416: =Berekening!$B$16 -> Saldo ABP ExtraPensioen
B417: =Berekening!$B$17 -> Overige pensioenen per jaar | E417: Aanpassing NP | F417: AOW tonen | G417: Belastingtabel | H417: Minder AOW-jaren
B419: =Berekening!$B$18 -> 
B421: ABP KeuzePensioen scenario 9
B424: PERIODE
B435: De brutobedragen zijn gebaseerd op de huidige situatie. Het brutobedrag kan bijvoorbeeld veranderen als gevolg van toekomstige algemene salarismaatregelen (indexatie), wijziging van actuariële factoren, ontwikkelingen die van invloed kunnen zijn op uw pensioen, wijzigingen in uw persoonlijke situatie, wijzigingen in de AOW-sfeer en eventuele verlagingen en verhogingen van uw pensioenaanspraak. Ook kan de pensioenregeling veranderen. Mocht hiervan sprake zijn, dan passen wij uw pensioen aan. Het nettobedrag zal hierdoor ook veranderen. De getoonde nettobedragen zijn gebaseerd op de huidige regelgeving en actuele tabellen. Aan deze opgave kunnen geen rechten worden ontleend.
B452: ALGEMENE GEGEVENS | E452: 1ste uittreding | F452: 2de uittreding | G452: 3de uittreding | H452: 4de uittreding
B453: Klantnummer | D453: Datum
B454: Naam | D454: Nieuwe deeltijdfactor
B455: Geboortedatum
B456: Burgerlijke staat | D456: Aanwendpercentage
B457: AOW-datum (vastgesteld)
B458: AOW-datum (verwacht) | D458: Bedrag ineens
B459: AOW-leeftijd (verwacht) | D459: AOW-overbrugging
B460: BEREKENINGSGEGEVENS | D460: Variëren tot
B461: =Berekening!$B$11 -> Pensioengevend inkomen | D461: Pensioenbedrag per jaar
B462: =Berekening!$B$12 -> Deeltijdfactor | D462: Minimaal bedrag
B463: =Berekening!$B$13 -> Pensioenbedrag AOW-leeftijd | D463: Maximaal bedrag
B464: =Berekening!$B$14 -> Pensioen inclusief verlaging PP | D464: Keuzebedrag
B465: =Berekening!$B$15 -> VPS vermindering | D465: Keuzebedrag per maand
B466: =Berekening!$B$16 -> Saldo ABP ExtraPensioen
B467: =Berekening!$B$17 -> Overige pensioenen per jaar | E467: Aanpassing NP | F467: AOW tonen | G467: Belastingtabel | H467: Minder AOW-jaren
B469: =Berekening!$B$18 -> 
B471: ABP KeuzePensioen scenario 10
B474: PERIODE
B485: De brutobedragen zijn gebaseerd op de huidige situatie. Het brutobedrag kan bijvoorbeeld veranderen als gevolg van toekomstige algemene salarismaatregelen (indexatie), wijziging van actuariële factoren, ontwikkelingen die van invloed kunnen zijn op uw pensioen, wijzigingen in uw persoonlijke situatie, wijzigingen in de AOW-sfeer en eventuele verlagingen en verhogingen van uw pensioenaanspraak. Ook kan de pensioenregeling veranderen. Mocht hiervan sprake zijn, dan passen wij uw pensioen aan. Het nettobedrag zal hierdoor ook veranderen. De getoonde nettobedragen zijn gebaseerd op de huidige regelgeving en actuele tabellen. Aan deze opgave kunnen geen rechten worden ontleend.

Sheet Parameters (hidden)
F1: BEPALEN PEILDATUM & UITTREEDDATUM
F3: PEILDATUM | G3: 2024-01-01
F5: GEBOORTEDATUM | G5: =IF(Geboortedatum="","",Geboortedatum) ->  | H5: =IFERROR(DATE(YEAR($G$5),MONTH($G$5)+1,1),"") ->  | I5: =G5 -> 
G7: BEREKENING | H7: 1E UITTREDING | I7: 2E UITTREDING | J7: 3E UITTREDING | K7: 4E UITTREDING | L7: PREMIE/NP RISICO
F8: Uittreeddatum | G8: nvt | H8: =uitttreeddatum_kolomE ->  | I8: =uitttreeddatum_kolomF -> 00:00:00 | J8: =uitttreeddatum_kolomG -> 00:00:00 | K8: =uitttreeddatum_kolomH -> 00:00:00 | L8: =IF(Premie!$C$9="",NP!$G$26,Premie!$C$9) -> 00:00:00
F9: Peildatum 1 | G9: =IFERROR(MIN(INDEX(Parameters!$N$79:$AQ$79,MATCH(G8,Parameters!$N$79:$XFD$79,-1)+IF(G8=INDEX(Parameters!$N$79:$AQ$79,MATCH(G8,Parameters!$N$79:AP79,-1)),0,1)),$G$3),$G$3) -> 2024-01-01 | H9: =IFERROR(MIN(INDEX(Parameters!$N$79:$AQ$79,MATCH(H8,Parameters!$N$79:$XFD$79,-1)+IF(H8=INDEX(Parameters!$N$79:$AQ$79,MATCH(H8,Parameters!$N$79:AQ79,-1)),0,1)),$G$3),$G$3) -> 2024-01-01 | I9: =IFERROR(MIN(INDEX(Parameters!$N$79:$AQ$79,MATCH(I8,Parameters!$N$79:$XFD$79,-1)+IF(I8=INDEX(Parameters!$N$79:$AQ$79,MATCH(I8,Parameters!$N$79:AR79,-1)),0,1)),$G$3),$G$3) -> 2024-01-01 | J9: =IFERROR(MIN(INDEX(Parameters!$N$79:$AQ$79,MATCH(J8,Parameters!$N$79:$XFD$79,-1)+IF(J8=INDEX(Parameters!$N$79:$AQ$79,MATCH(J8,Parameters!$N$79:AS79,-1)),0,1)),$G$3),$G$3) -> 2024-01-01 | K9: =IFERROR(MIN(INDEX(Parameters!$N$79:$AQ$79,MATCH(K8,Parameters!$N$79:$XFD$79,-1)+IF(K8=INDEX(Parameters!$N$79:$AQ$79,MATCH(K8,Parameters!$N$79:AT79,-1)),0,1)),$G$3),$G$3) -> 2024-01-01 | L9: =IFERROR(MIN(INDEX(Parameters!$N$79:$AQ$79,MATCH(L8,Parameters!$N$79:$XFD$79,-1)+IF(L8=INDEX(Parameters!$N$79:$AQ$79,MATCH(L8,Parameters!$N$79:AU79,-1)),0,1)),$G$3),$G$3) -> 2024-01-01
F10: Uittreedleeftijd | G10: nvt | H10: =IFERROR(IF(H$8=AOW_datum,"AOW-datum",Rekenblad!$C$42),"") -> AOW-datum | I10: =IFERROR(IF(I$8=AOW_datum,"AOW-datum",Rekenblad!$C$97),"") ->  | J10: =IFERROR(IF(J$8=AOW_datum,"AOW-datum",Rekenblad!$C$154),"") ->  | K10: =IFERROR(IF(K$8=AOW_datum,"AOW-datum",Rekenblad!$C$211),"") ->  | L10: ="AOW-datum" -> AOW-datum
F11: Actuariële factor | G11: nvt | H11: =Rekenblad!$C$81 -> 1 | I11: =Rekenblad!$C$138 -> 1 | J11: =Rekenblad!$C$195 -> 1 | K11: =Rekenblad!$C$252 -> 1 | L11: =$L$76 -> 1
G13: KANTELEN 1A | H13: KANTELEN 1B | I13: KANTELEN 1C | J13: KANTELEN 1D | K13: KANTELEN 1E | L13: KANTELEN 1F
F14: Uittreeddatum | G14: =Berekening!$B$108 ->  | H14: =DATE(YEAR(G14),MONTH(G14),1) ->  | I14: =DATE(YEAR(G14),MONTH(G14)+1,1) ->  | J14: =Berekening!$D$108 ->  | K14: =DATE(YEAR(J14),MONTH(J14),1) ->  | L14: =DATE(YEAR(J14),MONTH(J14)+1,1) -> 
F15: Aantal jaren | G15: =IFERROR(IF(G14="","",IF(MONTH(G14)>=MONTH(Geboortedatum),YEAR(G14)-YEAR(Geboortedatum),YEAR(G14)-YEAR(Geboortedatum)-1)),0) ->  | H15: 0 | I15: 0 | K15: 0 | L15: 0
F16: Aantal maanden | G16: =IFERROR(IF(G14="","",IF(MONTH(G14)>=MONTH(Geboortedatum),MONTH(G14)-MONTH(Geboortedatum),MONTH(G14)-MONTH(Geboortedatum)+12)),0) ->  | H16: 0 | I16: 0 | K16: 0 | L16: 0
F17: Uittreedleeftijd | G17: =G15&"."&G16 -> . | H17: 0.0 | I17: 0.0 | J17: . | K17: 0.0 | L17: 0.0
F18: Actuariële factor | G18: =IFERROR(VLOOKUP(G17,AKP_factoren,2,0),1) -> 1 | H18: 1 | I18: 1 | J18: 1 | K18: 1 | L18: 1
G20: KANTELEN 2A | H20: KANTELEN 2B | I20: KANTELEN 2C | J20: KANTELEN 2D | K20: KANTELEN 2E | L20: KANTELEN 2F
F21: Uittreeddatum | G21: =Berekening!$B$109 ->  | H21: =DATE(YEAR(G21),MONTH(G21),1) ->  | I21: =DATE(YEAR(G21),MONTH(G21)+1,1) ->  | J21: =Berekening!$D$109 ->  | K21: =DATE(YEAR(J21),MONTH(J21),1) ->  | L21: =DATE(YEAR(J21),MONTH(J21)+1,1) -> 
F22: Aantal jaren | G22: =IFERROR(IF(G21="","",IF(MONTH(G21)>=MONTH(Geboortedatum),YEAR(G21)-YEAR(Geboortedatum),YEAR(G21)-YEAR(Geboortedatum)-1)),0) ->  | H22: 0 | I22: 0 | K22: 0 | L22: 0
F23: Aantal maanden | G23: =IFERROR(IF(G21="","",IF(MONTH(G21)>=MONTH(Geboortedatum),MONTH(G21)-MONTH(Geboortedatum),MONTH(G21)-MONTH(Geboortedatum)+12)),0) ->  | H23: 0 | I23: 0 | K23: 0 | L23: 0
F24: Uittreedleeftijd | G24: =G22&"."&G23 -> . | H24: 0.0 | I24: 0.0 | J24: . | K24: 0.0 | L24: 0.0
F25: Actuariële factor | G25: =IFERROR(VLOOKUP(G24,AKP_factoren,2,0),1) -> 1 | H25: 1 | I25: 1 | J25: 1 | K25: 1 | L25: 1
G27: KANTELEN 3A | H27: KANTELEN 3B | I27: KANTELEN 3C | J27: KANTELEN 3D | K27: KANTELEN 3E | L27: KANTELEN 3F
F28: Uittreeddatum | G28: =Berekening!$B$110 ->  | H28: =DATE(YEAR(G28),MONTH(G28),1) ->  | I28: =DATE(YEAR(G28),MONTH(G28)+1,1) ->  | J28: =Berekening!$D$110 ->  | K28: =DATE(YEAR(J28),MONTH(J28),1) ->  | L28: =DATE(YEAR(J28),MONTH(J28)+1,1) -> 
F29: Aantal jaren | G29: =IFERROR(IF(G28="","",IF(MONTH(G28)>=MONTH(Geboortedatum),YEAR(G28)-YEAR(Geboortedatum),YEAR(G28)-YEAR(Geboortedatum)-1)),0) ->  | H29: 0 | I29: 0 | K29: 0 | L29: 0
F30: Aantal maanden | G30: =IFERROR(IF(G28="","",IF(MONTH(G28)>=MONTH(Geboortedatum),MONTH(G28)-MONTH(Geboortedatum),MONTH(G28)-MONTH(Geboortedatum)+12)),0) ->  | H30: 0 | I30: 0 | K30: 0 | L30: 0
F31: Uittreedleeftijd | G31: =G29&"."&G30 -> . | H31: 0.0 | I31: 0.0 | J31: . | K31: 0.0 | L31: 0.0
F32: Actuariële factor | G32: =IFERROR(VLOOKUP(G31,AKP_factoren,2,0),1) -> 1 | H32: 1 | I32: 1 | J32: 1 | K32: 1 | L32: 1
G34: KANTELEN 4A | H34: KANTELEN 4B | I34: KANTELEN 4C | J34: KANTELEN 4D | K34: KANTELEN 4E | L34: KANTELEN 4F
F35: Uittreeddatum | G35: =Berekening!$B$111 ->  | H35: =DATE(YEAR(G35),MONTH(G35),1) ->  | I35: =DATE(YEAR(G35),MONTH(G35)+1,1) ->  | J35: =Berekening!$D$111 ->  | K35: =DATE(YEAR(J35),MONTH(J35),1) ->  | L35: =DATE(YEAR(J35),MONTH(J35)+1,1) -> 
F36: Aantal jaren | G36: =IFERROR(IF(G35="","",IF(MONTH(G35)>=MONTH(Geboortedatum),YEAR(G35)-YEAR(Geboortedatum),YEAR(G35)-YEAR(Geboortedatum)-1)),0) ->  | H36: 0 | I36: 0 | K36: 0 | L36: 0
F37: Aantal maanden | G37: =IFERROR(IF(G35="","",IF(MONTH(G35)>=MONTH(Geboortedatum),MONTH(G35)-MONTH(Geboortedatum),MONTH(G35)-MONTH(Geboortedatum)+12)),0) ->  | H37: 0 | I37: 0 | K37: 0 | L37: 0
F38: Uittreedleeftijd | G38: =G36&"."&G37 -> . | H38: 0.0 | I38: 0.0 | J38: . | K38: 0.0 | L38: 0.0
F39: Actuariële factor | G39: =IFERROR(VLOOKUP(G38,AKP_factoren,2,0),1) -> 1 | H39: 1 | I39: 1 | J39: 1 | K39: 1 | L39: 1
F41: BEPALEN AOW-DATUM (XAP 798)
G42: AOW-DATUM GPS | I42: AOW-DATUM Verwacht | K42: Leeftijd - Datum
G43: Datum | H43: 65 jaar + mnd | I43: Datum | J43: 65 jaar + mnd | K43: Leeftijd | L43: Datum
G44: 1900-01-01 | H44: 0 | I44: 1900-01-01 | J44: 0 | K44: 60 | L44: =IFERROR(DATE(YEAR(Geboortedatum)+K44,MONTH(Geboortedatum),1),0) -> 00:00:00
G45: 1948-01-01 | H45: 1 | I45: 1948-01-01 | J45: 1 | K45: 61 | L45: 00:00:00
G46: 1948-12-01 | H46: 2 | I46: 1948-12-01 | J46: 2 | K46: 62 | L46: 00:00:00
G47: 1949-11-01 | H47: 3 | I47: 1949-11-01 | J47: 3 | K47: 63 | L47: 00:00:00
G48: 1950-10-01 | H48: 6 | I48: 1950-10-01 | J48: 6 | K48: 64 | L48: 00:00:00
G49: 1951-07-01 | H49: 9 | I49: 1951-07-01 | J49: 9 | K49: 65 | L49: 00:00:00
G50: 1952-04-01 | H50: 12 | I50: 1952-04-01 | J50: 12 | K50: 66 | L50: 00:00:00
G51: 1953-01-01 | H51: 16 | I51: 1953-01-01 | J51: 16 | K51: 67 | L51: 00:00:00
G52: 1955-09-01 | H52: 19 | I52: 1955-09-01 | J52: 19 | K52: 68 | L52: 00:00:00
G53: 1956-06-01 | H53: 22 | I53: 1956-06-01 | J53: 22 | K53: 69 | L53: 00:00:00
G54: 1957-03-01 | H54: 24 | I54: 1957-03-01 | J54: 24 | K54: 70 | L54: =IFERROR(DATE(YEAR(Geboortedatum)+K54,MONTH(Geboortedatum),1),0) -> 00:00:00
G55: 1961-01-01 | H55: 27 | I55: 1961-01-01 | J55: 27 | K55: 71 | L55: 00:00:00
G56: =IF(AOW=AOW_GPS,"",Geboortedatum) ->  | H56: =IF(AOW_GPS=AOW,"",CEILING(DAYS360(AOW_GPS,AOW)/30,1)+H55) ->  | I56: 1966-10-01 | J56: 30 | K56: 72 | L56: 00:00:00
I57: 1969-07-01 | J57: 33 | K57: 73 | L57: 00:00:00
F58: AOW-datum GPS | G58: =IF(Geboortedatum="","",EDATE(Geboortedatum,780+IF(Geboortedatum="",0,VLOOKUP(Geboortedatum,Parameters!$G$43:$H$55,2)))) ->  | I58: 1972-04-01 | J58: 36 | K58: 74 | L58: 00:00:00
F59: AOW-datum verwacht | G59: =IF(Berekening!$C$8="",$G$58,Berekening!$C$8) ->  | H59: =IF(Geboortedatum="","",LEFT(TEXT(ROUND(DAYS360(Geboortedatum,AOW)/360,4),"00,0000"),2)&" jaar"& IF(RIGHT(TEXT(ROUND(DAYS360(Geboortedatum,AOW)/360,4),"00,0000"),5)*12=0,""," en "&ROUND(RIGHT(TEXT(ROUND(DAYS360(Geboortedatum,AOW)/360,4),"00,0000"),5)*12,0)&" maanden")) ->  | I59: 1976-01-01 | J59: 39 | K59: 75 | L59: 00:00:00
F60: AOW-datum partner | G60: =IF(NP!$G$8="","",EDATE(NP!$G$8,780+IF(NP!$G$8="",0,VLOOKUP(NP!$G$8,$I$42:$J$71,2)))) ->  | I60: 1978-10-01 | J60: 42 | K60: 76 | L60: 00:00:00
I61: 1981-07-01 | J61: 45 | K61: 77 | L61: 00:00:00
F62: Dag AOW GPS | G62: =IFERROR(DAY(AOW_GPS),"") ->  | I62: 1985-04-01 | J62: 48 | K62: 78 | L62: 00:00:00
F63: Dag AOW verwacht | G63: =IFERROR(DAY(AOW),"") ->  | I63: 1989-01-01 | J63: 51
I64: 1991-10-01 | J64: 54
I65: 1995-07-01 | J65: 57
G66: =IFERROR(IF(AOW_GPS="","",IF(MONTH(AOW_GPS)>=MONTH(Geboortedatum),YEAR(AOW_GPS)-YEAR(Geboortedatum),YEAR(AOW_GPS)-YEAR(Geboortedatum)-1)),0) ->  | H66: =G66&"."&G67 -> . | I66: 1999-04-01 | J66: 60
G67: =IFERROR(IF(AOW_GPS="","",IF(MONTH(AOW_GPS)>=MONTH(Geboortedatum),MONTH(AOW_GPS)-MONTH(Geboortedatum),MONTH(AOW_GPS)-MONTH(Geboortedatum)+12)),0) ->  | H67: =IFERROR(IF(G67=12,G66+1,G66)&"."&IF(G67=12,1,G67+1),"") -> 
G69: =IFERROR(IF(AOW="","",IF(MONTH(AOW)>=MONTH(Geboortedatum),YEAR(AOW)-YEAR(Geboortedatum),YEAR(AOW)-YEAR(Geboortedatum)-1)),0) ->  | H69: =G69&"."&G70 -> .
G70: =IFERROR(IF(AOW="","",IF(MONTH(AOW)>=MONTH(Geboortedatum),MONTH(AOW)-MONTH(Geboortedatum),MONTH(AOW)-MONTH(Geboortedatum)+12)),0) ->  | H70: =IFERROR(IF(G70=12,G69+1,G69)&"."&IF(G70=12,1,G70+1),"") -> 
G73: =$G$7 -> BEREKENING | H73: =$H$7 -> 1E UITTREDING | I73: =$I$7 -> 2E UITTREDING | J73: =$J$7 -> 3E UITTREDING | K73: =$K$7 -> 4E UITTREDING | L73: =$L$7 -> PREMIE/NP RISICO
F74: Actuariele factor AOW-1 | G74: =VLOOKUP($H$66,AKP_factoren,2,0) ->  | H74: =VLOOKUP($H$69,AKP_factoren,3,0) ->  | I74: =VLOOKUP($H$69,AKP_factoren,4,0) ->  | J74: =VLOOKUP($H$69,AKP_factoren,5,0) ->  | K74: =VLOOKUP($H$69,AKP_factoren,6,0) ->  | L74: =VLOOKUP($H$69,AKP_factoren,6,0) -> 
F75: Actuariele factor AOW+1 | G75: =VLOOKUP($H$67,AKP_factoren,2,0) ->  | H75: =VLOOKUP($H$70,AKP_factoren,3,0) ->  | I75: =VLOOKUP($H$70,AKP_factoren,4,0) ->  | J75: =VLOOKUP($H$70,AKP_factoren,5,0) ->  | K75: =VLOOKUP($H$70,AKP_factoren,6,0) ->  | L75: =VLOOKUP($H$70,AKP_factoren,6,0) -> 
F76: Factor AOW | G76: =ROUNDDOWN(IFERROR(((30-($G$62-1))*G74+(($G$62-1)*G75))/30,1),6) -> 1 | H76: 1 | I76: 1 | J76: 1 | K76: 1 | L76: 1
F78: BEREKENINGSGEGEVENS
A79: 1 | G79: =$G$7 -> BEREKENING | H79: =$H$7 -> 1E UITTREDING | I79: =$I$7 -> 2E UITTREDING | J79: =$J$7 -> 3E UITTREDING | K79: =$K$7 -> 4E UITTREDING | L79: =$L$7 -> PREMIE/NP RISICO | N79: 2027-01-01 | O79: 2026-07-01 | P79: 2026-01-01 | Q79: 2025-07-01 | R79: 2025-01-01 | S79: 2024-07-01 | T79: 2024-01-01 | U79: 2023-07-01 | V79: 2023-01-01 | W79: 2022-07-01 | X79: 2022-01-01 | Y79: 2021-07-01 | Z79: 2021-01-01 | AA79: 2020-07-01 | AB79: 2020-01-01 | AC79: 2019-07-01 | AD79: 2019-01-01 | AE79: 2018-07-01 | AF79: 2018-01-01 | AG79: 2017-01-01 | AH79: 2016-01-01 | AI79: 2015-01-01 | AJ79: 2014-04-01 | AK79: 2014-01-01 | AL79: 2013-04-01 | AM79: 2013-01-01 | AN79: 2012-01-01 | AO79: 2011-04-01 | AP79: 2011-01-01 | AQ79: 2010-01-01 | AR79: 2009-01-01 | AS79: 2008-01-01 | AT79: 2007-01-01 | AU79: 2006-01-01
A80: 2 | F80: Opbouwpercentage
A81: 3 | F81: Arbeid onder grensbedrag | G81: =IFERROR(HLOOKUP(G$9,Berekeningsgegevens,$A81,0),"") -> 0.01701 | H81: 0.01701 | I81: =IFERROR(HLOOKUP(I$9,Berekeningsgegevens,$A81,0),"") -> 0.01701 | J81: 0.01701 | K81: 0.01701 | L81: 0.01701 | T81: =U81 -> 0.01701 | U81: 0.01701 | V81: 0.01701 | W81: 0.01701 | X81: 0.01701 | Y81: =Z81 -> 0.01701 | Z81: 0.01701 | AA81: =AB81 -> 0.01701 | AB81: 0.01701 | AC81: =AD81 -> 0.01701 | AD81: 0.01701 | AE81: =AF81 -> 0.01701 | AF81: 0.01701 | AG81: 0.01701 | AH81: 0.01701 | AI81: 0.01701 | AJ81: 0.0195 | AK81: 0.0195 | AL81: 0.0205 | AM81: 0.0205 | AN81: 0.0205 | AO81: 0.0205 | AP81: 0.0205 | AQ81: 0.0205 | AR81: 0.0205 | AS81: 0.0205 | AT81: 0.0205 | AU81: 0.0205
A82: 4 | F82: Arbeid boven grensbedrag | G82: 0.01875 | H82: 0.01875 | I82: 0.01875 | J82: 0.01875 | K82: 0.01875 | L82: 0.01875 | T82: 0.01875 | U82: 0.01875 | V82: 0.01875 | W82: 0.01875 | X82: 0.01875 | Y82: =Z82 -> 0.01875 | Z82: 0.01875 | AA82: =AB82 -> 0.01875 | AB82: 0.01875 | AC82: =AD82 -> 0.01875 | AD82: 0.01875 | AE82: =AF82 -> 0.01875 | AF82: 0.01875 | AG82: 0.01875 | AH82: 0.01875 | AI82: 0.01875 | AJ82: 0.0195 | AK82: 0.0195 | AL82: 0.0205 | AM82: 0.0205 | AN82: 0.0205 | AO82: 0.0205 | AP82: 0.0205 | AQ82: 0.0205 | AR82: 0.0205 | AS82: 0.0205 | AT82: 0.0205 | AU82: 0.0205
A83: 5 | F83: IP voor '54 | G83: 0.0175 | H83: 0.0175 | I83: 0.0175 | J83: 0.0175 | K83: 0.0175 | L83: 0.0175 | T83: 0.0175 | U83: 0.0175 | V83: 0.0175 | W83: 0.0175 | X83: 0.0175 | Y83: =Z83 -> 0.0175 | Z83: 0.0175 | AA83: =AB83 -> 0.0175 | AB83: 0.0175 | AC83: =AD83 -> 0.0175 | AD83: 0.0175 | AE83: =AF83 -> 0.0175 | AF83: 0.0175 | AG83: 0.0175 | AH83: 0.0175 | AI83: 0.0175 | AJ83: 0.0175 | AK83: 0.0175 | AL83: 0.0175 | AM83: 0.0175 | AN83: 0.0175 | AO83: 0.0175 | AP83: 0.0175 | AQ83: 0.0175 | AR83: 0.0175 | AS83: 0.0175 | AT83: 0.0175 | AU83: 0.0205
A84: 6 | F84: IP '54 - '64 | G84: 0.018 | H84: 0.018 | I84: 0.018 | J84: 0.018 | K84: 0.018 | L84: 0.018 | T84: 0.018 | U84: 0.018 | V84: 0.018 | W84: 0.018 | X84: 0.018 | Y84: =Z84 -> 0.018 | Z84: 0.018 | AA84: =AB84 -> 0.018 | AB84: 0.018 | AC84: =AD84 -> 0.018 | AD84: 0.018 | AE84: =AF84 -> 0.018 | AF84: 0.018 | AG84: 0.018 | AH84: 0.018 | AI84: 0.018 | AJ84: 0.018 | AK84: 0.018 | AL84: 0.018 | AM84: 0.018 | AN84: 0.018 | AO84: 0.018 | AP84: 0.018 | AQ84: 0.018 | AR84: 0.018 | AS84: 0.018 | AT84: 0.018 | AU84: 0.0205
A85: 7 | F85: IP vanaf '64 | G85: 0.01875 | H85: 0.01875 | I85: 0.01875 | J85: 0.01875 | K85: 0.01875 | L85: 0.01875 | T85: 0.01875 | U85: 0.01875 | V85: 0.01875 | W85: 0.01875 | X85: 0.01875 | Y85: =Z85 -> 0.01875 | Z85: 0.01875 | AA85: =AB85 -> 0.01875 | AB85: 0.01875 | AC85: =AD85 -> 0.01875 | AD85: 0.01875 | AE85: =AF85 -> 0.01875 | AF85: 0.01875 | AG85: 0.01875 | AH85: 0.01875 | AI85: 0.01875 | AJ85: 0.019 | AK85: 0.019 | AL85: 0.019 | AM85: 0.019 | AN85: 0.019 | AO85: 0.019 | AP85: 0.019 | AQ85: 0.019 | AR85: 0.019 | AS85: 0.019 | AT85: 0.019 | AU85: 0.0205
A86: 8 | F86: IP werkelijk | G86: 0.01875 | H86: 0.01875 | I86: 0.01875 | J86: 0.01875 | K86: 0.01875 | L86: 0.01875 | T86: =IF($I$5<19725,T83,IF($I$5<23377,T84,T85)) -> 0.01875 | U86: 0.01875 | V86: =IF($I$5<19725,V83,IF($I$5<23377,V84,V85)) -> 0.01875 | W86: 0.01875 | X86: =IF($I$5<19725,X83,IF($I$5<23377,X84,X85)) -> 0.01875 | Y86: 0.01875 | Z86: =IF($I$5<19725,Z83,IF($I$5<23377,Z84,Z85)) -> 0.01875 | AA86: 0.01875 | AB86: =IF($I$5<19725,AB83,IF($I$5<23377,AB84,AB85)) -> 0.01875 | AC86: =IF($I$5<19725,AC83,IF($I$5<23377,AC84,AC85)) -> 0.01875 | AD86: 0.01875 | AE86: 0.01875 | AF86: 0.01875 | AG86: 0.01875 | AH86: =IF($I$5<19725,AH83,IF($I$5<23377,AH84,AH85)) -> 0.01875 | AI86: =IF($I$5<19725,AI83,IF($I$5<23377,AI84,AI85)) -> 0.01875 | AJ86: 0.019 | AK86: 0.019 | AL86: 0.019 | AM86: 0.019 | AN86: 0.019 | AO86: 0.019 | AP86: 0.019 | AQ86: 0.019 | AR86: 0.019 | AS86: 0.019 | AT86: 0.019 | AU86: 0.0205
A87: 9
A88: 10 | F88: Franchise
A89: 11 | F89: Arbeid onder grensbedrag | G89: =IFERROR(HLOOKUP(G$9,Berekeningsgegevens,$A89,0),"") -> 14050 | H89: 14050 | I89: =IFERROR(HLOOKUP(I$9,Berekeningsgegevens,$A89,0),"") -> 14050 | J89: 14050 | K89: =IFERROR(HLOOKUP(K$9,Berekeningsgegevens,$A89,0),"") -> 14050 | L89: 14050 | T89: 14050 | U89: 13050 | V89: 13050 | W89: =X89 -> 11850 | X89: 11850 | Y89: =Z89 -> 11650 | Z89: 11650 | AA89: =AB89 -> 11350 | AB89: 11350 | AC89: =AD89 -> 11050 | AD89: 11050 | AE89: =AF89 -> 10700 | AF89: 10700 | AG89: 10500 | AH89: 10350 | AI89: 10100 | AJ89: 11150 | AK89: 11150 | AL89: 10950 | AM89: 10950 | AN89: 10850 | AO89: 10700 | AP89: 10700 | AQ89: 10500 | AR89: 10350 | AS89: 10100 | AT89: 9850 | AU89: 9600
A90: 12 | F90: Arbeid boven grensbedrag | G90: 17550 | H90: 17550 | I90: 17550 | J90: 17550 | K90: 17550 | L90: 17550 | T90: 17550 | U90: 16350 | V90: 16350 | W90: =X90 -> 14850 | X90: 14850 | Y90: =Z90 -> 14550 | Z90: 14550 | AA90: =AB90 -> 14200 | AB90: 14200 | AC90: =AD90 -> 13800 | AD90: 13800 | AE90: =AF90 -> 13350 | AF90: 13350 | AG90: 13150 | AH90: 13000 | AI90: 12650 | AJ90: 11150 | AK90: 11150 | AL90: 10950 | AM90: 10950 | AN90: 10850 | AO90: 10700 | AP90: 10700 | AQ90: 10500 | AR90: 10350 | AS90: 10100 | AT90: 9850 | AU90: 9600
A91: 13 | F91: IP voor '54 | G91: 25200 | H91: 25200 | I91: 25200 | J91: 25200 | K91: 25200 | L91: 25200 | T91: 25200 | U91: 23450 | V91: 23450 | W91: =X91 -> 21300 | X91: 21300 | Y91: =Z91 -> 20900 | Z91: 20900 | AA91: =AB91 -> 20350 | AB91: 20350 | AC91: =AD91 -> 19800 | AD91: 19800 | AE91: =AF91 -> 19200 | AF91: 19200 | AG91: 18850 | AH91: 18600 | AI91: 18150 | AJ91: 18050 | AK91: 18050 | AL91: 17750 | AM91: 17750 | AN91: 17500 | AO91: 17300 | AP91: 17300 | AQ91: 17000 | AR91: 16700 | AS91: 16400 | AT91: 15950 | AU91: 9600
A92: 14 | F92: IP '54 - '64 | G92: 23550 | H92: 23550 | I92: 23550 | J92: 23550 | K92: 23550 | L92: 23550 | T92: 23550 | U92: 21900 | V92: 21900 | W92: =X92 -> 19900 | X92: 19900 | Y92: =Z92 -> 19550 | Z92: 19550 | AA92: =AB92 -> 19050 | AB92: 19050 | AC92: =AD92 -> 18500 | AD92: 18500 | AE92: =AF92 -> 17900 | AF92: 17900 | AG92: 17650 | AH92: 17400 | AI92: 17000 | AJ92: 16850 | AK92: 16850 | AL92: 16600 | AM92: 16600 | AN92: 16400 | AO92: 16150 | AP92: 16150 | AQ92: 15900 | AR92: 15650 | AS92: 15300 | AT92: 14900 | AU92: 9600
A93: 15 | F93: IP vanaf '64 | G93: 21250 | H93: 21250 | I93: 21250 | J93: 21250 | K93: 21250 | L93: 21250 | T93: 21250 | U93: 19750 | V93: 19750 | W93: =X93 -> 17900 | X93: 17900 | Y93: =Z93 -> 17600 | Z93: 17600 | AA93: =AB93 -> 17150 | AB93: 17150 | AC93: =AD93 -> 16700 | AD93: 16700 | AE93: =AF93 -> 16150 | AF93: 16150 | AG93: 15900 | AH93: 15700 | AI93: 15300 | AJ93: 15400 | AK93: 15400 | AL93: 15150 | AM93: 15150 | AN93: 14950 | AO93: 14750 | AP93: 14750 | AQ93: 14500 | AR93: 14250 | AS93: 13950 | AT93: 13600 | AU93: 9600
A94: 16 | F94: IP werkelijk | G94: 21250 | H94: 21250 | I94: 21250 | J94: 21250 | K94: 21250 | L94: 21250 | T94: =IF($I$5<19725,Parameters!T$91,IF($I$5<23377,Parameters!T$92,Parameters!T$93)) -> 21250 | U94: =IF($I$5<19725,Parameters!U$91,IF($I$5<23377,Parameters!U$92,Parameters!U$93)) -> 19750 | V94: =IF($I$5<19725,Parameters!V$91,IF($I$5<23377,Parameters!V$92,Parameters!V$93)) -> 19750 | W94: =IF($I$5<19725,Parameters!W$91,IF($I$5<23377,Parameters!W$92,Parameters!W$93)) -> 17900 | X94: =IF($I$5<19725,Parameters!X$91,IF($I$5<23377,Parameters!X$92,Parameters!X$93)) -> 17900 | Y94: =IF($I$5<19725,Parameters!Y$91,IF($I$5<23377,Parameters!Y$92,Parameters!Y$93)) -> 17600 | Z94: =IF($I$5<19725,Parameters!Z$91,IF($I$5<23377,Parameters!Z$92,Parameters!Z$93)) -> 17600 | AA94: =IF($I$5<19725,Parameters!AA$91,IF($I$5<23377,Parameters!AA$92,Parameters!AA$93)) -> 17150 | AB94: =IF($I$5<19725,Parameters!AB$91,IF($I$5<23377,Parameters!AB$92,Parameters!AB$93)) -> 17150 | AC94: =IF($I$5<19725,Parameters!AC$91,IF($I$5<23377,Parameters!AC$92,Parameters!AC$93)) -> 16700 | AD94: =IF($I$5<19725,Parameters!AD$91,IF($I$5<23377,Parameters!AD$92,Parameters!AD$93)) -> 16700 | AE94: =IF($I$5<19725,Parameters!AE$91,IF($I$5<23377,Parameters!AE$92,Parameters!AE$93)) -> 16150 | AF94: =IF($I$5<19725,Parameters!AF$91,IF($I$5<23377,Parameters!AF$92,Parameters!AF$93)) -> 16150 | AG94: =IF($I$5<19725,Parameters!AG$91,IF($I$5<23377,Parameters!AG$92,Parameters!AG$93)) -> 15900 | AH94: =IF($I$5<19725,Parameters!AH$91,IF($I$5<23377,Parameters!AH$92,Parameters!AH$93)) -> 15700 | AI94: =IF($I$5<19725,Parameters!AI$91,IF($I$5<23377,Parameters!AI$92,Parameters!AI$93)) -> 15300 | AJ94: =IF($I$5<19725,Parameters!AJ$91,IF($I$5<23377,Parameters!AJ$92,Parameters!AJ$93)) -> 15400 | AK94: =IF($I$5<19725,Parameters!AK$91,IF($I$5<23377,Parameters!AK$92,Parameters!AK$93)) -> 15400 | AL94: =IF($I$5<19725,Parameters!AL$91,IF($I$5<23377,Parameters!AL$92,Parameters!AL$93)) -> 15150 | AM94: =IF($I$5<19725,Parameters!AM$91,IF($I$5<23377,Parameters!AM$92,Parameters!AM$93)) -> 15150 | AN94: =IF($I$5<19725,Parameters!AN$91,IF($I$5<23377,Parameters!AN$92,Parameters!AN$93)) -> 14950 | AO94: =IF($I$5<19725,Parameters!AO$91,IF($I$5<23377,Parameters!AO$92,Parameters!AO$93)) -> 14750 | AP94: =IF($I$5<19725,Parameters!AP$91,IF($I$5<23377,Parameters!AP$92,Parameters!AP$93)) -> 14750 | AQ94: =IF($I$5<19725,Parameters!AQ$91,IF($I$5<23377,Parameters!AQ$92,Parameters!AQ$93)) -> 14500 | AR94: =IF($I$5<19725,Parameters!AR$91,IF($I$5<23377,Parameters!AR$92,Parameters!AR$93)) -> 14250 | AS94: =IF($I$5<19725,Parameters!AS$91,IF($I$5<23377,Parameters!AS$92,Parameters!AS$93)) -> 13950 | AT94: =IF($I$5<19725,Parameters!AT$91,IF($I$5<23377,Parameters!AT$92,Parameters!AT$93)) -> 13600 | AU94: =IF($I$5<19725,Parameters!AU$91,IF($I$5<23377,Parameters!AU$92,Parameters!AU$93)) -> 9600
A95: 17
A96: 18 | F96: Grensbedragen
A97: 19 | F97: Ondergrens | G97: =IFERROR(HLOOKUP(G$9,Berekeningsgegevens,$A97,0),"") -> nvt | H97: nvt | I97: =IFERROR(HLOOKUP(I$9,Berekeningsgegevens,$A97,0),"") -> nvt | J97: nvt | K97: =IFERROR(HLOOKUP(K$9,Berekeningsgegevens,$A97,0),"") -> nvt | L97: nvt | T97: =U97 -> nvt | U97: nvt | V97: nvt | W97: nvt | X97: nvt | Y97: =Z97 -> nvt | Z97: nvt | AA97: =AB97 -> nvt | AB97: nvt | AC97: =AD97 -> nvt | AD97: nvt | AE97: =AF97 -> nvt | AF97: nvt | AG97: 29949.16 | AH97: 29892.36 | AI97: 29418.72 | AJ97: 28689.44 | AK97: 28689.44 | AL97: 28626.46 | AM97: 28626.46 | AN97: 28427.47 | AO97: 28356.58 | AP97: 28356.58 | AQ97: 28031.42 | AR97: 27428.01 | AS97: 26189.26 | AT97: 25663.16 | AU97: 24757.05
A98: 20 | F98: Garantiebedrag | G98: nvt | H98: nvt | I98: nvt | J98: nvt | K98: nvt | L98: nvt | T98: nvt | U98: nvt | V98: nvt | W98: nvt | X98: nvt | Y98: =Z98 -> nvt | Z98: nvt | AA98: =AB98 -> nvt | AB98: nvt | AC98: =AD98 -> nvt | AD98: nvt | AE98: =AF98 -> nvt | AF98: nvt | AG98: nvt | AH98: nvt | AI98: nvt | AJ98: 41.5 | AK98: 41.5 | AL98: 41.5 | AM98: 41.5 | AN98: 41 | AO98: 41 | AP98: 41 | AQ98: 40.5 | AR98: 39.5 | AS98: 38 | AT98: 37 | AU98: 35.5
A99: 21 | F99: Bovengrens | G99: nvt | H99: nvt | I99: nvt | J99: nvt | K99: nvt | L99: nvt | T99: nvt | U99: nvt | V99: nvt | W99: nvt | X99: nvt | Y99: =Z99 -> nvt | Z99: nvt | AA99: =AB99 -> nvt | AB99: nvt | AC99: =AD99 -> nvt | AD99: nvt | AE99: =AF99 -> nvt | AF99: nvt | AG99: 32129.38 | AH99: 32068.45 | AI99: 31560.3 | AJ99: =ROUND(AJ97+(AJ98/AJ81),2) -> 30817.65 | AK99: =ROUND(AK97+(AK98/AK81),2) -> 30817.65 | AL99: =ROUND(AL97+(AL98/AL81),2) -> 30650.85 | AM99: 30650.85 | AN99: 30427.47 | AO99: 30356.58 | AP99: 30356.58 | AQ99: 30007.03 | AR99: 29354.84 | AS99: 28042.92 | AT99: 27468.04 | AU99: 26488.76
A100: 22 | F100: Grensbedrag opbouw/franchise | G100: 51765.52 | H100: 51765.52 | I100: 51765.52 | J100: 51765.52 | K100: 51765.52 | L100: 51765.52 | T100: 51765.52 | U100: 48610.34 | V100: 48610.34 | W100: =X100 -> 44177.59 | X100: 44177.59 | Y100: =Z100 -> 42900 | Z100: 42900 | AA100: =AB100 -> 42061.21 | AB100: 42061.21 | AC100: =AD100 -> 40683.62 | AD100: 40683.62 | AE100: =AF100 -> 39256.03 | AF100: 39256.03 | AG100: 39056.03 | AH100: 38906 | AI100: 37578.45 | AJ100: nvt | AK100: nvt | AL100: nvt | AM100: nvt | AN100: nvt | AO100: nvt | AP100: nvt | AQ100: nvt | AR100: nvt | AS100: nvt | AT100: nvt | AU100: nvt
A101: 23 | F101: Bovengrens werkelijk | G101: nvt | H101: nvt | I101: nvt | J101: nvt | K101: nvt | L101: nvt | T101: nvt | U101: nvt | V101: nvt | W101: nvt | X101: nvt | Y101: nvt | Z101: nvt | AA101: nvt | AB101: nvt | AC101: nvt | AD101: nvt | AE101: nvt | AF101: nvt | AG101: nvt | AH101: nvt | AI101: nvt | AJ101: =ROUND(AJ97+(AJ98/AJ86),2) -> 30873.65 | AK101: =ROUND(AK97+(AK98/AK86),2) -> 30873.65 | AL101: =ROUND(AL97+(AL98/AL86),2) -> 30810.67 | AM101: 30810.67 | AN101: 30585.36 | AO101: 30514.47 | AP101: 30514.47 | AQ101: 30163 | AR101: 29506.96 | AS101: 28189.26 | AT101: 27610.53 | AU101: 26488.76
A102: 24 | F102: Aftoppingsgrens XAP811 | G102: 137800 | H102: 137800 | I102: 137800 | J102: 137800 | K102: 137800 | L102: 137800 | T102: 137800 | U102: 128810 | V102: 128810 | W102: =X102 -> 114866 | X102: =CEILING((1+((X104-Z104)/Z104))*Z102,1) -> 114866 | Y102: =Z102 -> 112189 | Z102: =CEILING((1+((Z104-AB104)/AB104))*AB102,1) -> 112189 | AA102: =AB102 -> 110111 | AB102: =CEILING((1+((AB104-AD104)/AD104))*AD102,1) -> 110111 | AC102: =AD102 -> 107593 | AD102: =CEILING((1+((AD104-AF104)/AF104))*AF102,1) -> 107593 | AE102: =AF102 -> 105075 | AF102: =CEILING((1+((AF104-AG104)/AG104))*AG102,1) -> 105075 | AG102: 103317 | AH102: =CEILING((1+((AH104-AI104)/AI104))*AI102,1) -> 101519 | AI102: 100000 | AJ102: nvt | AK102: nvt | AL102: nvt | AM102: nvt | AN102: nvt | AO102: nvt | AP102: nvt | AQ102: nvt | AR102: nvt | AS102: nvt | AT102: nvt | AU102: nvt
A103: 25
A104: 26 | F104: Minimumloon pm incl vak.geld | G104: =IFERROR(HLOOKUP(G$9,Berekeningsgegevens,$A104,0)*1.08*12,"") -> 26819.424 | H104: 26819.424 | I104: =IFERROR(HLOOKUP(I$9,Berekeningsgegevens,$A104,0)*1.08*12,"") -> 26819.424 | J104: =IFERROR(HLOOKUP(J$9,Berekeningsgegevens,$A104,0)*1.08*12,"") -> 26819.424 | K104: 26819.424 | L104: 26819.424 | T104: 2069.4 | U104: 1995 | V104: 1934.4 | W104: 1756.2 | X104: 1725 | Y104: 1701 | Z104: 1684.8 | AA104: 1680 | AB104: 1653.6 | AC104: 1635.6 | AD104: 1615.8 | AE104: 1594.2 | AF104: 1578 | AG104: 1551.6 | AH104: 1524.6 | AI104: 1501.8
A105: 27 | F105: IOW-uitkering (soc.min.all.) pm | G105: =IFERROR(HLOOKUP(G$9,Berekeningsgegevens,$A105,0)*21.75,"") -> 1473.5625 | H105: 1473.5625 | I105: =IFERROR(HLOOKUP(I$9,Berekeningsgegevens,$A105,0)*21.75,"") -> 1473.5625 | J105: =IFERROR(HLOOKUP(J$9,Berekeningsgegevens,$A105,0)*21.75,"") -> 1473.5625 | K105: 1473.5625 | L105: 1473.5625 | T105: 67.75 | U105: 64.75 | V105: 63.4 | W105: 58.22 | X105: 57.48 | Y105: 56.97 | Z105: 56.68 | AA105: 56.57 | AB105: 56.05 | AC105: 55.33 | AD105: 54.97 | AE105: 54.13 | AF105: 53.87
A106: 28 | F106: Max dagloon (per maand) | G106: 5969.07 | H106: 5969.07 | I106: =IFERROR(HLOOKUP(I$9,Berekeningsgegevens,$A106,0)*21.75,"") -> 5969.07 | J106: =IFERROR(HLOOKUP(J$9,Berekeningsgegevens,$A106,0)*21.75,"") -> 5969.07 | K106: 5969.07 | L106: 5969.07 | T106: 274.44 | U106: 264.57 | V106: 256.54 | W106: 232.9 | X106: 228.76 | Y106: 225.57 | Z106: 223.4 | AA106: 222.78 | AB106: 219.28 | AC106: 216.9 | AD106: 214.28 | AE106: 211.42 | AF106: 209.26
A107: 29 | F107: AOW percentage | G107: =IFERROR((50-MIN(50,Berekening!H18))*0.02,1) -> 1 | H107: =$G$107 -> 1 | I107: 1 | J107: 1 | K107: 1 | L107: 1 | T107: 1 | U107: 1 | V107: 1 | W107: 1 | X107: 1 | Y107: 1 | Z107: 1 | AA107: 1 | AB107: 1 | AC107: 1 | AD107: 1 | AE107: 1 | AF107: 1 | AG107: 1 | AH107: 1 | AI107: 1 | AJ107: 1 | AK107: 1 | AL107: 1 | AM107: 1 | AN107: 1 | AO107: 1 | AP107: 1 | AQ107: 1 | AR107: 1 | AS107: 1 | AT107: 1 | AU107: 1
A108: 30 | F108: AOW gehuwd/samenw. overbrug. | G108: =IFERROR(HLOOKUP(G$9,Berekeningsgegevens,$A108,0),"") -> 13158.48 | H108: 13158.48 | I108: =IFERROR(HLOOKUP(I$9,Berekeningsgegevens,$A108,0),"") -> 13158.48 | J108: 13158.48 | K108: =IFERROR(HLOOKUP(K$9,Berekeningsgegevens,$A108,0),"") -> 13158.48 | L108: 13158.48 | T108: =T110-(5.5*12) -> 13158.48 | U108: =V108 -> 12241.32 | V108: =V110-(5*12) -> 12241.32 | W108: =X108 -> 11100.96 | X108: =X110-(26.38*12) -> 11100.96 | Y108: =Z108 -> 10908 | Z108: =Z110-(26.04*12) -> 10908 | AA108: =AB108 -> 10624.56 | AB108: =AB110-(25.63*12) -> 10624.56 | AC108: =AD108 -> 10338.72 | AD108: =AD110-(25.23*12) -> 10338.72 | AE108: =AF108 -> 10007.52 | AF108: =AF110-(24.93*12) -> 10007.52 | AG108: 9842.16 | AH108: 9714.12 | AI108: 9481.32 | AJ108: 9414.24 | AK108: 9414.24 | AL108: 9258.84 | AM108: 9258.84 | AN108: 9143.28 | AO108: 9028.56 | AP108: 9028.56 | AQ108: 8871.24 | AR108: 8725.68 | AS108: 8546.28 | AT108: 8310.72 | AU108: 8096.52
A109: 31 | F109: AOW alleenstaand overbrugging | G109: 19346.76 | H109: 19346.76 | I109: 19346.76 | J109: 19346.76 | K109: 19346.76 | L109: 19346.76 | T109: =T111-(5.5*12) -> 19346.76 | U109: =V109 -> 17970.84 | V109: =V111-(5*12) -> 17970.84 | W109: =X109 -> 16331.16 | X109: =X111-(26.38*12) -> 16331.16 | Y109: =Z109 -> 16060.68 | Z109: =Z111-(26.04*12) -> 16060.68 | AA109: =AB109 -> 15627.36 | AB109: =AB111-(25.63*12) -> 15627.36 | AC109: =AD109 -> 15156.24 | AD109: =AD111-(25.23*12) -> 15156.24 | AE109: =AF109 -> 14637.84 | AF109: 14637.84 | AG109: 14392.8 | AH109: 14210.76 | AI109: 13866.24 | AJ109: 13732.92 | AK109: 13732.92 | AL109: 13510.08 | AM109: 13510.08 | AN109: 13285.8 | AO109: 13116 | AP109: 13116 | AQ109: 12899.28 | AR109: 12701.28 | AS109: 12462.48 | AT109: 12126.48 | AU109: 11830.68
A110: 32 | F110: AOW gehuwd/samenw. werkelijk pj | G110: 13224.48 | H110: 13224.48 | I110: 13224.48 | J110: 13224.48 | K110: 13224.48 | L110: 13224.48 | T110: =(T112+54.44)*12 -> 13224.48 | U110: =(U112+54.34)*12 -> 12570 | V110: =(V112+51.25)*12 -> 12301.32 | W110: =(W112+49.51)*12 -> 11563.92 | X110: =(X112+50.39)*12 -> 11417.52 | Y110: =(Y112+50.8)*12 -> 11286 | Z110: =(Z112+51.37)*12 -> 11220.48 | AA110: =(AA112+49.42)*12 -> 11033.4 | AB110: =(AB112+51.46)*12 -> 10932.12 | AC110: =(AC112+49.98)*12 -> 10725.12 | AD110: =(AD112+51.75)*12 -> 10641.48 | AE110: =(AE112+50.29)*12 -> 10380.36 | AF110: =(AF112+51.01)*12 -> 10306.68
A111: 33 | F111: AOW alleenstaand werkelijk pj | G111: 19412.76 | H111: 19412.76 | I111: 19412.76 | J111: 19412.76 | K111: 19412.76 | L111: 19412.76 | T111: =(T113+76.2)*12 -> 19412.76 | U111: =(U113+76.08)*12 -> 18410.76 | V111: =(V113+71.77)*12 -> 18030.84 | W111: =(W113+69.3)*12 -> 16850.88 | X111: =(X113+70.54)*12 -> 16647.72 | Y111: =(Y113+71.13)*12 -> 16470.72 | Z111: =(Z113+71.93)*12 -> 16373.16 | AA111: =(AA113+69.19)*12 -> 16078.32 | AB111: =(AB113+72.04)*12 -> 15934.92 | AC111: =(AC113+69.97)*12 -> 15578.28 | AD111: =(AD113+72.44)*12 -> 15459 | AE111: =(AE113+70.4)*12 -> 15021.12 | AF111: =(AF113+71.42)*12 -> 14937
A112: 34 | F112: AOW gehuwd/samenw. werkelijk pm | G112: 1047.6 | H112: 1047.6 | I112: 1047.6 | J112: 1047.6 | K112: 1047.6 | L112: 1047.6 | T112: =1042.1+5.5 -> 1047.6 | U112: =988.16+5 -> 993.16 | V112: =968.86+5 -> 973.86 | W112: =887.77+26.38 -> 914.15 | X112: =874.69+26.38 -> 901.07 | Y112: =863.66+26.04 -> 889.7 | Z112: 883.67 | AA112: 870.03 | AB112: 859.55 | AC112: 843.78 | AD112: 835.04 | AE112: 814.74 | AF112: 807.88
A113: 35 | F113: AOW alleenstaand werkelijk pm | G113: 1541.53 | H113: 1541.53 | I113: 1541.53 | J113: 1541.53 | K113: 1541.53 | L113: 1541.53 | T113: =1536.03+5.5 -> 1541.53 | U113: =1453.15+5 -> 1458.15 | V113: =1425.8+5 -> 1430.8 | W113: =1308.56+26.38 -> 1334.94 | X113: =1290.39+26.38 -> 1316.77 | Y113: =1275.39+26.04 -> 1301.43 | Z113: 1292.5 | AA113: 1270.67 | AB113: 1255.87 | AC113: 1228.22 | AD113: 1215.81 | AE113: 1181.36 | AF113: 1173.33
A114: 36 | F114: Maximale compensatie sociale premies pj | G114: 8250.63 | H114: 8250.63 | I114: 8250.63 | J114: 8250.63 | K114: 8250.63 | L114: 8250.63 | T114: =ROUND(55004.21*0.15,2) -> 8250.63 | U114: =ROUND(53386.6*0.15,2) -> 8007.99 | V114: =ROUND(53386.6*0.15,2) -> 8007.99 | W114: =ROUND(47683.63*0.15,2) -> 7152.54 | X114: =ROUND(47683.63*0.15,2) -> 7152.54 | Y114: =ROUND(46570.6*0.15,2) -> 6985.59 | Z114: =ROUND(46570.6*0.15,2) -> 6985.59 | AA114: =ROUND(46242.28*0.15,2) -> 6936.34 | AB114: =ROUND(46242.28*0.15,2) -> 6936.34 | AC114: =ROUND(44965.26*0.15,2) -> 6744.79 | AD114: =ROUND(44965.26*0.15,2) -> 6744.79 | AE114: =ROUND(44049.04*0.15,2) -> 6607.36 | AF114: =ROUND(44049.04*0.15,2) -> 6607.36
A115: 37
A116: 38 | F116: Opbouwpercentages NP/PPP
A117: 39 | F117: NP kapitaal | G117: =IFERROR(HLOOKUP(G$9,Berekeningsgegevens,$A117,0),"") -> 0.7 | H117: 0.7 | I117: =IFERROR(HLOOKUP(I$9,Berekeningsgegevens,$A117,0),"") -> 0.7 | J117: 0.7 | K117: =IFERROR(HLOOKUP(K$9,Berekeningsgegevens,$A117,0),"") -> 0.7 | L117: 0.7 | T117: =U117 -> 0.7 | U117: 0.7 | V117: 0.7 | W117: 0.7 | X117: 0.7 | Y117: =Z117 -> 0.7 | Z117: 0.7 | AA117: =AB117 -> 0.7 | AB117: 0.7 | AC117: =AD117 -> 0.7 | AD117: 0.7 | AE117: =AF117 -> 0.7 | AF117: 0.7 | AG117: 0.7 | AH117: 0.7 | AI117: 0.5 | AJ117: 0.3571428571 | AK117: 0.3571428571 | AL117: 0.3571428571 | AM117: 0.3571428571 | AN117: 0.3571428571 | AO117: 0.3571428571 | AP117: 0.3571428571 | AQ117: 0.3571428571 | AR117: 0.3571428571 | AS117: 0.3571428571 | AT117: 0.3571428571 | AU117: 0.3571428571
A118: 40 | F118: PPP | G118: nvt | H118: nvt | I118: nvt | J118: nvt | K118: nvt | L118: nvt | T118: nvt | U118: nvt | V118: nvt | W118: nvt | X118: nvt | Y118: =Z118 -> nvt | Z118: nvt | AA118: =AB118 -> nvt | AB118: nvt | AC118: =AD118 -> nvt | AD118: nvt | AE118: =AF118 -> nvt | AF118: nvt | AG118: nvt | AH118: nvt | AI118: 0.2 | AJ118: =12/35 -> 0.3428571429 | AK118: 0.3428571429 | AL118: 0.3428571429 | AM118: 0.3428571429 | AN118: =12/35 -> 0.3428571429 | AO118: 0.3428571429 | AP118: 0.3428571429 | AQ118: 0.3428571429 | AR118: 0.3428571429 | AS118: 0.3428571429 | AT118: 0.3571428571 | AU118: 0.3571428571
A119: 41 | F119: PPP Politie | G119: nvt | H119: nvt | I119: nvt | J119: nvt | K119: nvt | L119: nvt | T119: nvt | U119: nvt | V119: nvt | W119: nvt | X119: nvt | Y119: =Z119 -> nvt | Z119: nvt | AA119: =AB119 -> nvt | AB119: nvt | AC119: =AD119 -> nvt | AD119: nvt | AE119: =AF119 -> nvt | AF119: nvt | AG119: nvt | AH119: nvt | AI119: 0.2 | AJ119: 0.3428571429 | AK119: 0.3428571429 | AL119: 0.3428571429 | AM119: 0.3428571429 | AN119: 0.3428571429 | AO119: 0.3428571429 | AP119: 0.3428571429 | AQ119: 0.3428571429 | AR119: 0.3428571429 | AS119: 0.3428571429 | AT119: 0.3428571429 | AU119: 0.3428571429
A120: 42
A121: 43 | F121: Uitruilfactoren XAP 781
A122: 44 | F122: FPU naar AKP | G122: =IFERROR(HLOOKUP(G$9,Berekeningsgegevens,$A122,0),"") -> 0.226 | H122: 0.226 | I122: =IFERROR(HLOOKUP(I$9,Berekeningsgegevens,$A122,0),"") -> 0.226 | J122: 0.226 | K122: 0.226 | L122: 0.226 | T122: 0.226 | U122: 0.226 | V122: 0.226 | W122: =X122 -> 0.226 | X122: 0.226 | Y122: =Z122 -> 0.226 | Z122: 0.226 | AA122: =AB122 -> 0.226 | AB122: 0.226 | AC122: =AD122 -> 0.226 | AD122: 0.226 | AE122: =AF122 -> 0.226 | AF122: 0.226 | AG122: 0.226 | AH122: 0.226 | AI122: 0.226 | AJ122: 0.226 | AK122: 0.226 | AL122: 0.226 | AM122: 0.226 | AN122: 0.226 | AO122: 0.226 | AP122: 0.226 | AQ122: 0.226 | AR122: 0.226 | AS122: 0.226 | AT122: 0.226 | AU122: 0.225
A123: 45 | F123: PP65 naar OP (102) | G123: 0.206 | H123: 0.206 | I123: 0.206 | J123: 0.206 | K123: 0.206 | L123: 0.206 | T123: 0.206 | U123: 0.207 | V123: 0.207 | W123: =X123 -> 0.202 | X123: 0.202 | Y123: =Z123 -> 0.223 | Z123: 0.223 | AA123: =AB123 -> 0.214 | AB123: 0.214 | AC123: =AD123 -> 0.219 | AD123: 0.219 | AE123: 0.228 | AF123: 0.228 | AG123: 0.214 | AH123: 0.201 | AI123: 0.207 | AJ123: 0.212 | AK123: 0.212 | AL123: 0.168 | AM123: 0.168 | AN123: 0.168 | AO123: 0.168 | AP123: 0.168 | AQ123: 0.168 | AR123: 0.168 | AS123: 0.168
A124: 46 | F124: PP67 naar OP | G124: 0 | H124: 0 | I124: 0 | J124: 0 | K124: 0 | L124: 0 | AE124: 0.213 | AF124: 0.213 | AG124: 0.2 | AH124: 0.187 | AI124: 0.206
A125: 47 | F125: PP2018 naar OP (113) | G125: 0.211 | H125: 0.211 | I125: 0.211 | J125: 0.211 | K125: 0.211 | L125: 0.211 | T125: 0.211 | U125: 0.213 | V125: 0.213 | W125: =X125 -> 0.208 | X125: 0.208 | Y125: =Z125 -> 0.232 | Z125: 0.232 | AA125: =AB125 -> 0.223 | AB125: 0.223 | AC125: =AD125 -> 0.228 | AD125: 0.228 | AE125: 0.241 | AF125: 0.241
A126: 48 | F126: OP naar PP65 (104) | G126: 0.302 | H126: 0.302 | I126: 0.302 | J126: 0.302 | K126: 0.302 | L126: 0.302 | T126: 0.302 | U126: 0.305 | V126: 0.305 | W126: =X126 -> 0.297 | X126: 0.297 | Y126: =Z126 -> 0.313 | Z126: 0.313 | AA126: =AB126 -> 0.297 | AB126: 0.297 | AC126: =AD126 -> 0.303 | AD126: 0.303 | AE126: 0.292 | AF126: 0.292 | AG126: 0.274 | AH126: 0.243 | AI126: 0.311 | AJ126: 0.318 | AK126: 0.318 | AL126: 0.252 | AM126: 0.252 | AN126: 0.252 | AO126: 0.252 | AP126: 0.252 | AQ126: 0.252 | AR126: 0.252 | AS126: 0.252
A127: 49 | F127: OP naar PP67 | G127: 0 | H127: 0 | I127: 0 | J127: 0 | K127: 0 | L127: 0 | AE127: 0.274 | AF127: 0.274 | AG127: 0.259 | AH127: 0.23
A128: 50 | F128: OP naar PP2018 (109) | G128: 0.308 | H128: 0.308 | I128: 0.308 | J128: 0.308 | K128: 0.308 | L128: 0.308 | T128: 0.308 | U128: 0.31 | V128: 0.31 | W128: =X128 -> 0.302 | X128: 0.302 | Y128: =Z128 -> 0.32 | Z128: 0.32 | AA128: =AB128 -> 0.305 | AB128: 0.305 | AC128: =AD128 -> 0.311 | AD128: 0.311 | AE128: 0.297 | AF128: 0.297
A129: 51
A130: 52 | F130: Indexatie | G130: =IFERROR(HLOOKUP(G$9,Berekeningsgegevens,$A130,0),"") -> 1.0303 | H130: 1.0303 | I130: =IFERROR(HLOOKUP(I$9,Berekeningsgegevens,$A130,0),"") -> 1.0303 | J130: =IFERROR(HLOOKUP(J$9,Berekeningsgegevens,$A130,0),"") -> 1.0303 | K130: 1.0303 | L130: 1.0303 | T130: 1.0303 | U130: 1 | V130: 1.1196 | W130: 1.0239 | X130: 1 | Y130: 1 | Z130: 1 | AA130: 1 | AB130: 1 | AC130: 1 | AD130: 1 | AE130: 1 | AF130: 1 | AG130: 1 | AH130: 1 | AI130: 1 | AJ130: 1 | AK130: 1 | AL130: 1 | AM130: 1 | AN130: 1 | AO130: 1 | AP130: 1 | AQ130: 1.0028 | AR130: 1 | AS130: 1.0205 | AT130: 1.0282 | AU130: 1.0017
A131: 53 | AS131: na-indexatie 2008
A132: 54 | AS132: vóór 2004 | AT132: 1.0196
A133: 55 | AS133: in 2004 | AT133: 1.0108
A134: 56 | AS134: in 2005 | AT134: 1.0105
A135: 57 | AS135: in 2006 | AT135: 1.0084
A136: 58 | AS136: in / na 2007 | AT136: 1
A137: 59
A138: 60 | F138: Korting | G138: =IFERROR(HLOOKUP(G$9,Berekeningsgegevens,$A138,0),"") -> 1 | H138: 1 | I138: =IFERROR(HLOOKUP(I$9,Berekeningsgegevens,$A138,0),"") -> 1 | J138: =IFERROR(HLOOKUP(J$9,Berekeningsgegevens,$A138,0),"") -> 1 | K138: 1 | L138: 1 | T138: 1 | U138: 1 | V138: 1 | W138: 1 | X138: 1 | Y138: 1 | Z138: 1 | AA138: 1 | AB138: 1 | AC138: 1 | AD138: 1 | AE138: 1 | AF138: 1 | AG138: 1 | AH138: 1 | AI138: 1 | AJ138: =1/AL138 -> 1.005025126 | AK138: 1 | AL138: 0.995 | AM138: 1 | AN138: 1 | AO138: 1 | AP138: 1 | AQ138: 1 | AR138: 1 | AS138: 1 | AT138: 1 | AU138: 1
A139: 61
A140: 62 | F140: Aanvullingen | T140: =U$140*T$130 -> 19465.01785 | U140: 18892.57289 | V140: 18892.57289 | W140: 16874.39522 | X140: 16480.51101 | Y140: 16480.51101 | Z140: 16480.51101 | AA140: 16480.51101 | AB140: 16480.51101 | AC140: 16480.51101 | AD140: 16480.51101 | AE140: 16480.51101 | AF140: 16480.51101 | AG140: 16480.51101 | AH140: 16480.51101 | AI140: 16480.51101 | AJ140: 16480.51101 | AK140: 16480.51101 | AL140: 16480.51101 | AM140: 16480.51101 | AN140: 16480.51101 | AO140: 16480.51101 | AP140: 16480.51101 | AQ140: 16480.51101 | AR140: 16434.49443 | AS140: =AT$140*AS$130*$AT$132 -> 16434.49443 | AT140: =AU$140*AT$130 -> 15794.77751 | AU140: =15450*0.9914*1.0012*AU$130 -> 15361.58092
A141: 63 | F141: 18.8 J14 man (K.8) | G141: =IFERROR(HLOOKUP(G$9,Berekeningsgegevens,$A141,0),"") -> 170.5770123 | H141: 170.5770123 | I141: =IFERROR(HLOOKUP(I$9,Berekeningsgegevens,$A141,0),"") -> 170.5770123 | J141: 170.5770123 | K141: 170.5770123 | L141: 170.5770123 | T141: =T$140*0.00876326 -> 170.5770123 | U141: 165.5605283 | V141: 165.5605283 | W141: 147.8747127 | X141: 144.4230029 | Y141: 144.4230029 | Z141: 144.4230029 | AA141: 144.4230029 | AB141: 144.4230029 | AC141: 144.4230029 | AD141: 144.4230029 | AE141: 144.4230029 | AF141: 144.4230029 | AG141: 144.4230029 | AH141: 144.4230029 | AI141: 144.4230029 | AJ141: 144.4230029 | AK141: 144.4230029 | AL141: 144.4230029 | AM141: 144.4230029 | AN141: 144.4230029 | AO141: 144.4230029 | AP141: 144.4230029 | AQ141: 144.4230029 | AR141: 144.0197476 | AS141: 144.0197476 | AT141: 138.4137419 | AU141: =AU$140*0.00876326 -> 134.6175276
A142: 64 | F142: 18.8 J14 vrouw (K.8) | G142: 119.0791932 | H142: 119.0791932 | I142: 119.0791932 | J142: 119.0791932 | K142: 119.0791932 | L142: 119.0791932 | T142: =T$140*0.0061176 -> 119.0791932 | U142: 115.5772039 | V142: 115.5772039 | W142: 103.2308002 | X142: 100.8211742 | Y142: 100.8211742 | Z142: 100.8211742 | AA142: 100.8211742 | AB142: 100.8211742 | AC142: 100.8211742 | AD142: 100.8211742 | AE142: 100.8211742 | AF142: 100.8211742 | AG142: 100.8211742 | AH142: 100.8211742 | AI142: 100.8211742 | AJ142: 100.8211742 | AK142: 100.8211742 | AL142: 100.8211742 | AM142: 100.8211742 | AN142: 100.8211742 | AO142: 100.8211742 | AP142: 100.8211742 | AQ142: 100.8211742 | AR142: 100.5396631 | AS142: 100.5396631 | AT142: 96.62613087 | AU142: =AU$140*0.0061176 -> 93.97600746
A143: 65 | F143: 18.8 J15 man (K.8) | G143: 341.1540247 | H143: 341.1540247 | I143: 341.1540247 | J143: 341.1540247 | K143: 341.1540247 | L143: 341.1540247 | T143: =T$140*0.01752652 -> 341.1540247 | U143: 331.1210566 | V143: 331.1210566 | W143: 295.7494254 | X143: 288.8460058 | Y143: 288.8460058 | Z143: 288.8460058 | AA143: 288.8460058 | AB143: 288.8460058 | AC143: 288.8460058 | AD143: 288.8460058 | AE143: 288.8460058 | AF143: 288.8460058 | AG143: 288.8460058 | AH143: 288.8460058 | AI143: 288.8460058 | AJ143: 288.8460058 | AK143: 288.8460058 | AL143: 288.8460058 | AM143: 288.8460058 | AN143: 288.8460058 | AO143: 288.8460058 | AP143: 288.8460058 | AQ143: 288.8460058 | AR143: 288.0394952 | AS143: 288.0394952 | AT143: 276.8274839 | AU143: =AU$140*0.01752652 -> 269.2350553
A144: 66 | F144: 18.8 J15 vrouw (K.8) | G144: 238.1583864 | H144: 238.1583864 | I144: 238.1583864 | J144: 238.1583864 | K144: 238.1583864 | L144: 238.1583864 | T144: =T$140*0.0122352 -> 238.1583864 | U144: 231.1544078 | V144: 231.1544078 | W144: 206.4616004 | X144: 201.6423483 | Y144: 201.6423483 | Z144: 201.6423483 | AA144: 201.6423483 | AB144: 201.6423483 | AC144: 201.6423483 | AD144: 201.6423483 | AE144: 201.6423483 | AF144: 201.6423483 | AG144: 201.6423483 | AH144: 201.6423483 | AI144: 201.6423483 | AJ144: 201.6423483 | AK144: 201.6423483 | AL144: 201.6423483 | AM144: 201.6423483 | AN144: 201.6423483 | AO144: 201.6423483 | AP144: 201.6423483 | AQ144: 201.6423483 | AR144: 201.0793262 | AS144: 201.0793262 | AT144: 193.2522617 | AU144: =AU$140*0.0122352 -> 187.9520149
A145: 67 | F145: 18.11 voor 1986 (K.10) | G145: 243.6813906 | H145: 243.6813906 | I145: 243.6813906 | J145: 243.6813906 | K145: 243.6813906 | L145: 243.6813906 | T145: =T$140*0.01251894 -> 243.6813906 | U145: 236.5149865 | V145: 236.5149865 | W145: 211.2495413 | X145: 206.3185285 | Y145: 206.3185285 | Z145: 206.3185285 | AA145: 206.3185285 | AB145: 206.3185285 | AC145: 206.3185285 | AD145: 206.3185285 | AE145: 206.3185285 | AF145: 206.3185285 | AG145: 206.3185285 | AH145: 206.3185285 | AI145: 206.3185285 | AJ145: 206.3185285 | AK145: 206.3185285 | AL145: 206.3185285 | AM145: 206.3185285 | AN145: 206.3185285 | AO145: 206.3185285 | AP145: 206.3185285 | AQ145: 206.3185285 | AR145: 205.7424496 | AS145: 205.7424496 | AT145: 197.7338719 | AU145: =AU$140*0.01251894 -> 192.3107099
A146: 68 | F146: 18.9 1986-1996 (K.12) | G146: 127.9326619 | H146: 127.9326619 | I146: 127.9326619 | J146: 127.9326619 | K146: 127.9326619 | L146: 127.9326619 | T146: =T$140*0.00657244 -> 127.9326619 | U146: 124.1703018 | V146: 124.1703018 | W146: 110.9059501 | X146: 108.3171698 | Y146: 108.3171698 | Z146: 108.3171698 | AA146: 108.3171698 | AB146: 108.3171698 | AC146: 108.3171698 | AD146: 108.3171698 | AE146: 108.3171698 | AF146: 108.3171698 | AG146: 108.3171698 | AH146: 108.3171698 | AI146: 108.3171698 | AJ146: 108.3171698 | AK146: 108.3171698 | AL146: 108.3171698 | AM146: 108.3171698 | AN146: 108.3171698 | AO146: 108.3171698 | AP146: 108.3171698 | AQ146: 108.3171698 | AR146: 108.0147285 | AS146: 108.0147285 | AT146: 103.8102275 | AU146: =AU$140*0.00657244 -> 100.9630689
A147: 69 | F147: 18.11 1986-1996 (K.13) | G147: =IFERROR(HLOOKUP(G$9,Berekeningsgegevens,$A147,0),"") -> 290.0978668 | H147: 290.0978668 | I147: 290.0978668 | J147: 290.0978668 | K147: 290.0978668 | L147: 290.0978668 | T147: =T$140*0.01490355 -> 290.0978668 | U147: 281.5664047 | V147: 281.5664047 | W147: 251.4883929 | X147: 245.6181199 | Y147: 245.6181199 | Z147: 245.6181199 | AA147: 245.6181199 | AB147: 245.6181199 | AC147: 245.6181199 | AD147: 245.6181199 | AE147: 245.6181199 | AF147: 245.6181199 | AG147: 245.6181199 | AH147: 245.6181199 | AI147: 245.6181199 | AJ147: 245.6181199 | AK147: 245.6181199 | AL147: 245.6181199 | AM147: 245.6181199 | AN147: 245.6181199 | AO147: 245.6181199 | AP147: 245.6181199 | AQ147: 245.6181199 | AR147: 244.9323094 | AS147: 244.9323094 | AT147: 235.3982563 | AU147: =AU$140*0.01490355 -> 228.9420894
A148: 70
A149: 71 | F149: OPBOUW PER AARD | H149: Opbouw tot | I149: Opbouw tot
A150: 72 | G150: Meetelwaarde | H150: GPS | I150: Fictief
A151: 73 | F151: Arbeid | G151: 1 | H151: =IF(Berekening!$F$189=1,AOW_GPS,IFERROR(DATE(YEAR(Geboortedatum)+70,MONTH(Geboortedatum),1),0)) ->  | I151: =AOW -> 
A152: 74 | F152: WW | G152: 0.5 | H152: =AOW_GPS -> 
A153: 75 | F153: WG | G153: 0.5
A154: 76 | F154: IP voor 1-4-1997 | G154: 1
A155: 77 | F155: IP voor 1-1-2004 | G155: 0.7
A156: 78 | F156: IP na 1-1-2004 | G156: 0.5
A157: 79 | F157: AAOP | G157: 0.5
A158: 80 | F158: SBF | G158: 0.5 | H158: =IFERROR(DATE(YEAR(Geboortedatum)+62,MONTH(Geboortedatum)+1,1),0) -> 00:00:00 | I158: =IFERROR(DATE(YEAR(Geboortedatum)+62,MONTH(Geboortedatum)+1,1),0) -> 00:00:00
A159: 81 | F159: ACTUARIELE FACTOREN XAP743&772(37)
A160: 82 | G160: =$G$7 -> BEREKENING | H160: =$H$7 -> 1E UITTREDING | I160: =$I$7 -> 2E UITTREDING | J160: =$J$7 -> 3E UITTREDING | K160: =$K$7 -> 4E UITTREDING | L160: =$L$7 -> PREMIE/NP RISICO | N160: =N$79 -> 2027-01-01 | O160: 2026-07-01 | P160: 2026-01-01 | Q160: 2025-07-01 | R160: 2025-01-01 | S160: 2024-07-01 | T160: 2024-01-01 | U160: 2023-07-01 | V160: 2023-01-01 | W160: 2022-07-01 | X160: 2022-01-01 | Y160: 2021-07-01 | Z160: 2021-01-01 | AA160: 2020-07-01 | AB160: 2020-01-01 | AC160: 2019-07-01 | AD160: 2019-01-01 | AE160: 2018-07-01 | AF160: 2018-01-01 | AG160: 2017-01-01 | AH160: =AH$79 -> 2016-01-01 | AI160: =AI$79 -> 2015-01-01 | AJ160: 2014-04-01 | AK160: 2014-01-01 | AL160: 2013-04-01 | AM160: 2013-01-01 | AN160: 2012-01-01 | AO160: 2011-04-01 | AP160: 2011-01-01 | AQ160: 2010-01-01 | AR160: 2009-01-01 | AS160: 2008-01-01 | AT160: 2007-01-01 | AU160: 2006-01-01
A161: 83 | F161: Pensioenrichtleeftijd | G161: =IFERROR(HLOOKUP(G$9,$N$160:$XFD$163,2,0),"") -> 68 | H161: 68 | I161: 68 | J161: 68 | K161: 68 | L161: 68 | T161: 68 | U161: 68 | V161: 68 | W161: 68 | X161: 68 | Y161: 68 | Z161: 68 | AA161: 68 | AB161: 68 | AC161: 68 | AD161: 68 | AE161: 68 | AF161: 68 | AG161: 67 | AH161: 67 | AI161: 67 | AJ161: 67 | AK161: 67 | AL161: 65 | AM161: 65 | AN161: 65 | AO161: 65 | AP161: 65 | AQ161: 65 | AR161: 65 | AS161: 65 | AT161: 65 | AU161: 65
A162: 84 | F162: Factor verhoging pensioenrichtlft 65 | G162: =IFERROR(HLOOKUP(G$9,$N$160:$XFD$163,3,0),"") -> 1.19 | H162: 1.19 | I162: 1.19 | J162: 1.19 | K162: 1.19 | L162: 1.19 | T162: 1.19 | U162: 1.191 | V162: 1.191 | W162: 1.198 | X162: 1.198 | Y162: 1.204 | Z162: 1.204 | AA162: 1.211 | AB162: 1.211 | AC162: 1.212 | AD162: 1.212 | AE162: 1.218 | AF162: 1.218 | AG162: 1.139 | AH162: 1.15 | AI162: 1.149 | AJ162: 1.15 | AK162: 1.15 | AL162: 1 | AM162: 1 | AN162: 1 | AO162: 1 | AP162: 1 | AQ162: 1 | AR162: 1 | AS162: 1 | AT162: 1 | AU162: 1
A163: 85 | F163: Factor verhoging pensioenrichtlft 67 | G163: =IFERROR(HLOOKUP(G$9,$N$160:$XFD$163,4,0),"") -> 1.062 | H163: 1.062 | I163: 1.062 | J163: 1.062 | K163: 1.062 | L163: 1.062 | T163: 1.062 | U163: 1.063 | V163: 1.063 | W163: 1.065 | X163: 1.065 | Y163: 1.066 | Z163: 1.066 | AA163: 1.068 | AB163: 1.068 | AC163: 1.069 | AD163: 1.069 | AE163: 1.071 | AF163: 1.071 | AG163: 1 | AH163: 1 | AI163: 1 | AJ163: 1 | AK163: 1 | AL163: 1 | AM163: 1 | AN163: 1 | AO163: 1 | AP163: 1 | AQ163: 1 | AR163: 1 | AS163: 1 | AT163: 1 | AU163: 1
N164: 37 | O164: 37 | P164: 37 | Q164: 37 | R164: 37 | S164: 37 | T164: 37 | U164: 37 | V164: 37 | W164: 37 | X164: 37 | Y164: 37 | Z164: 37 | AA164: 37 | AB164: 37 | AC164: 37 | AD164: 37 | AE164: 37 | AF164: 37 | AG164: 21 | AH164: 21 | AI164: 21 | AJ164: 21 | AK164: 21 | AL164: 5 | AM164: 5 | AN164: 5 | AO164: 5 | AP164: 5 | AQ164: 5 | AR164: 5 | AS164: 5 | AT164: 5 | AU164: 5
A165: 1 | G165: =$G$7 -> BEREKENING | H165: =$H$7 -> 1E UITTREDING | I165: =$I$7 -> 2E UITTREDING | J165: =$J$7 -> 3E UITTREDING | K165: =$K$7 -> 4E UITTREDING | L165: =$L$7 -> PREMIE/NP RISICO | N165: =N$79 -> 2027-01-01 | O165: 2026-07-01 | P165: 2026-01-01 | Q165: 2025-07-01 | R165: 2025-01-01 | S165: 2024-07-01 | T165: 2024-01-01 | U165: 2023-07-01 | V165: 2023-01-01 | W165: =W$79 -> 2022-07-01 | X165: 2022-01-01 | Y165: 2021-07-01 | Z165: 2021-01-01 | AA165: 2020-07-01 | AB165: 2020-01-01 | AC165: 2019-07-01 | AD165: 2019-01-01 | AE165: 2018-07-01 | AF165: 2018-01-01 | AG165: 2017-01-01 | AH165: =AH$79 -> 2016-01-01 | AI165: =AI$79 -> 2015-01-01 | AJ165: 2014-04-01 | AK165: 2014-01-01 | AL165: 2013-04-01 | AM165: 2013-01-01 | AN165: 2012-01-01 | AO165: 2011-04-01 | AP165: 2011-01-01 | AQ165: 2010-01-01 | AR165: 2009-01-01 | AS165: 2008-01-01 | AT165: 2007-01-01 | AU165: 2006-01-01
A166: 2 | F166: Leeftijd | G166: Factor | H166: Factor | I166: Factor | J166: Factor | K166: Factor | L166: Factor | N166: Factor | O166: Factor | P166: Factor | Q166: Factor | R166: Factor | S166: Factor | T166: Factor | U166: Factor | V166: Factor | W166: Factor | X166: Factor | Y166: Factor | Z166: Factor | AA166: Factor | AB166: Factor | AC166: Factor | AD166: Factor | AE166: Factor | AF166: Factor | AG166: Factor | AH166: Factor | AI166: Factor | AJ166: Factor | AK166: Factor | AL166: Factor | AM166: Factor | AN166: Factor | AO166: Factor | AP166: Factor | AQ166: Factor | AR166: Factor | AS166: Factor | AT166: Factor | AU166: Factor
A167: 3 | F167: 60.0 | G167: =IFERROR(HLOOKUP(G$9,Actuariele_factoren,$A167,0),"") -> 0.652 | H167: 0.652 | I167: =IFERROR(HLOOKUP(I$9,Actuariele_factoren,$A167,0),"") -> 0.652 | J167: 0.652 | K167: 0.652 | L167: 0.652 | T167: 0.652 | U167: 0.651 | V167: 0.651 | W167: 0.641 | X167: 0.641 | Y167: 0.633 | Z167: 0.633 | AA167: 0.622 | AB167: 0.622 | AC167: 0.621 | AD167: 0.621 | AE167: 0.615 | AF167: 0.615 | AG167: 0.656 | AH167: 0.633 | AI167: 0.637 | AJ167: 0.634 | AK167: 0.634 | AL167: 0.734 | AM167: 0.734 | AN167: 0.725 | AO167: 0.725 | AP167: 0.721 | AQ167: 0.721 | AR167: NVT | AS167: NVT | AT167: NVT | AU167: NVT
A168: 4 | F168: 60.1 | G168: 0.654 | H168: 0.654 | I168: 0.654 | J168: 0.654 | K168: 0.654 | L168: 0.654 | T168: 0.654 | U168: 0.653 | V168: 0.653 | W168: 0.643 | X168: 0.643 | Y168: 0.635 | Z168: 0.635 | AA168: 0.625 | AB168: 0.625 | AC168: 0.624 | AD168: 0.624 | AE168: 0.618 | AF168: 0.618 | AG168: 0.659 | AH168: 0.636 | AI168: 0.64 | AJ168: 0.637 | AK168: 0.637 | AL168: 0.737 | AM168: 0.737 | AN168: 0.728 | AO168: 0.728 | AP168: 0.724 | AQ168: 0.724 | AR168: 0.707 | AS168: 0.707 | AT168: 0.707 | AU168: 0.7089
A169: 5 | F169: 60.2 | G169: 0.657 | H169: 0.657 | I169: 0.657 | J169: 0.657 | K169: 0.657 | L169: 0.657 | T169: 0.657 | U169: 0.656 | V169: 0.656 | W169: 0.646 | X169: 0.646 | Y169: 0.638 | Z169: 0.638 | AA169: 0.628 | AB169: 0.628 | AC169: 0.627 | AD169: 0.627 | AE169: 0.621 | AF169: 0.621 | AG169: 0.662 | AH169: 0.639 | AI169: 0.643 | AJ169: 0.64 | AK169: 0.64 | AL169: 0.741 | AM169: 0.741 | AN169: 0.732 | AO169: 0.732 | AP169: 0.728 | AQ169: 0.728 | AR169: 0.711 | AS169: 0.711 | AT169: 0.711 | AU169: 0.7128
A170: 6 | F170: 60.3 | G170: 0.659 | H170: 0.659 | I170: 0.659 | J170: 0.659 | K170: 0.659 | L170: 0.659 | T170: 0.659 | U170: 0.658 | V170: 0.658 | W170: 0.648 | X170: 0.648 | Y170: 0.641 | Z170: 0.641 | AA170: 0.631 | AB170: 0.631 | AC170: 0.63 | AD170: 0.63 | AE170: 0.624 | AF170: 0.624 | AG170: 0.665 | AH170: 0.642 | AI170: 0.646 | AJ170: 0.643 | AK170: 0.643 | AL170: 0.744 | AM170: 0.744 | AN170: 0.736 | AO170: 0.736 | AP170: 0.732 | AQ170: 0.732 | AR170: 0.715 | AS170: 0.715 | AT170: 0.715 | AU170: 0.7166
A171: 7 | F171: 60.4 | G171: 0.662 | H171: 0.662 | I171: 0.662 | J171: 0.662 | K171: 0.662 | L171: 0.662 | T171: 0.662 | U171: 0.661 | V171: 0.661 | W171: 0.651 | X171: 0.651 | Y171: 0.643 | Z171: 0.643 | AA171: 0.634 | AB171: 0.634 | AC171: 0.633 | AD171: 0.633 | AE171: 0.627 | AF171: 0.627 | AG171: 0.668 | AH171: 0.646 | AI171: 0.65 | AJ171: 0.646 | AK171: 0.646 | AL171: 0.748 | AM171: 0.748 | AN171: 0.739 | AO171: 0.739 | AP171: 0.736 | AQ171: 0.736 | AR171: 0.719 | AS171: 0.719 | AT171: 0.719 | AU171: 0.7205
A172: 8 | F172: 60.5 | G172: 0.664 | H172: 0.664 | I172: 0.664 | J172: 0.664 | K172: 0.664 | L172: 0.664 | T172: 0.664 | U172: 0.663 | V172: 0.663 | W172: 0.654 | X172: 0.654 | Y172: 0.646 | Z172: 0.646 | AA172: 0.636 | AB172: 0.636 | AC172: 0.635 | AD172: 0.635 | AE172: 0.629 | AF172: 0.629 | AG172: 0.671 | AH172: 0.649 | AI172: 0.653 | AJ172: 0.649 | AK172: 0.649 | AL172: 0.752 | AM172: 0.752 | AN172: 0.743 | AO172: 0.743 | AP172: 0.739 | AQ172: 0.739 | AR172: 0.723 | AS172: 0.723 | AT172: 0.723 | AU172: 0.7244
A173: 9 | F173: 60.6 | G173: 0.667 | H173: 0.667 | I173: 0.667 | J173: 0.667 | K173: 0.667 | L173: 0.667 | T173: 0.667 | U173: 0.666 | V173: 0.666 | W173: 0.656 | X173: 0.656 | Y173: 0.649 | Z173: 0.649 | AA173: 0.639 | AB173: 0.639 | AC173: 0.638 | AD173: 0.638 | AE173: 0.632 | AF173: 0.632 | AG173: 0.674 | AH173: 0.652 | AI173: 0.656 | AJ173: 0.652 | AK173: 0.652 | AL173: 0.755 | AM173: 0.755 | AN173: 0.747 | AO173: 0.747 | AP173: 0.743 | AQ173: 0.743 | AR173: 0.727 | AS173: 0.727 | AT173: 0.727 | AU173: 0.7283
A174: 10 | F174: 60.7 | G174: 0.67 | H174: 0.67 | I174: 0.67 | J174: 0.67 | K174: 0.67 | L174: 0.67 | T174: 0.67 | U174: 0.669 | V174: 0.669 | W174: 0.659 | X174: 0.659 | Y174: 0.652 | Z174: 0.652 | AA174: 0.642 | AB174: 0.642 | AC174: 0.641 | AD174: 0.641 | AE174: 0.635 | AF174: 0.635 | AG174: 0.678 | AH174: 0.655 | AI174: 0.659 | AJ174: 0.656 | AK174: 0.656 | AL174: 0.759 | AM174: 0.759 | AN174: 0.751 | AO174: 0.751 | AP174: 0.747 | AQ174: 0.747 | AR174: 0.731 | AS174: 0.731 | AT174: 0.731 | AU174: 0.7322
A175: 11 | F175: 60.8 | G175: 0.672 | H175: 0.672 | I175: 0.672 | J175: 0.672 | K175: 0.672 | L175: 0.672 | T175: 0.672 | U175: 0.671 | V175: 0.671 | W175: 0.662 | X175: 0.662 | Y175: 0.654 | Z175: 0.654 | AA175: 0.645 | AB175: 0.645 | AC175: 0.644 | AD175: 0.644 | AE175: 0.638 | AF175: 0.638 | AG175: 0.681 | AH175: 0.658 | AI175: 0.662 | AJ175: 0.659 | AK175: 0.659 | AL175: 0.763 | AM175: 0.763 | AN175: 0.754 | AO175: 0.754 | AP175: 0.751 | AQ175: 0.751 | AR175: 0.735 | AS175: 0.735 | AT175: 0.735 | AU175: 0.7361
A176: 12 | F176: 60.9 | G176: 0.675 | H176: 0.675 | I176: 0.675 | J176: 0.675 | K176: 0.675 | L176: 0.675 | T176: 0.675 | U176: 0.674 | V176: 0.674 | W176: 0.664 | X176: 0.664 | Y176: 0.657 | Z176: 0.657 | AA176: 0.648 | AB176: 0.648 | AC176: 0.647 | AD176: 0.647 | AE176: 0.641 | AF176: 0.641 | AG176: 0.684 | AH176: 0.661 | AI176: 0.665 | AJ176: 0.662 | AK176: 0.662 | AL176: 0.766 | AM176: 0.766 | AN176: 0.758 | AO176: 0.758 | AP176: 0.755 | AQ176: 0.755 | AR176: 0.738 | AS176: 0.738 | AT176: 0.738 | AU176: 0.7401
A177: 13 | F177: 60.10 | G177: =IFERROR(HLOOKUP(G$9,Actuariele_factoren,$A177,0),"") -> 0.677 | H177: 0.677 | I177: 0.677 | J177: 0.677 | K177: 0.677 | L177: 0.677 | T177: 0.677 | U177: 0.676 | V177: 0.676 | W177: 0.667 | X177: 0.667 | Y177: 0.66 | Z177: 0.66 | AA177: 0.651 | AB177: 0.651 | AC177: 0.65 | AD177: 0.65 | AE177: 0.644 | AF177: 0.644 | AG177: 0.687 | AH177: 0.665 | AI177: 0.669 | AJ177: 0.665 | AK177: 0.665 | AL177: 0.77 | AM177: 0.77 | AN177: 0.762 | AO177: 0.762 | AP177: 0.759 | AQ177: 0.759 | AR177: 0.742 | AS177: 0.742 | AT177: 0.742 | AU177: 0.7441
A178: 14 | F178: 60.11 | G178: 0.68 | H178: 0.68 | I178: 0.68 | J178: 0.68 | K178: 0.68 | L178: 0.68 | T178: 0.68 | U178: 0.679 | V178: 0.679 | W178: 0.67 | X178: 0.67 | Y178: 0.663 | Z178: 0.663 | AA178: 0.653 | AB178: 0.653 | AC178: 0.652 | AD178: 0.652 | AE178: 0.646 | AF178: 0.646 | AG178: 0.69 | AH178: 0.668 | AI178: 0.672 | AJ178: 0.668 | AK178: 0.668 | AL178: 0.774 | AM178: 0.774 | AN178: 0.766 | AO178: 0.766 | AP178: 0.762 | AQ178: 0.762 | AR178: 0.746 | AS178: 0.746 | AT178: 0.746 | AU178: 0.7481
A179: 15 | F179: 61.0 | G179: 0.682 | H179: 0.682 | I179: 0.682 | J179: 0.682 | K179: 0.682 | L179: 0.682 | T179: 0.682 | U179: 0.681 | V179: 0.681 | W179: 0.672 | X179: 0.672 | Y179: 0.665 | Z179: 0.665 | AA179: 0.656 | AB179: 0.656 | AC179: 0.655 | AD179: 0.655 | AE179: 0.649 | AF179: 0.649 | AG179: 0.693 | AH179: 0.671 | AI179: 0.675 | AJ179: 0.672 | AK179: 0.672 | AL179: 0.777 | AM179: 0.777 | AN179: 0.769 | AO179: 0.769 | AP179: 0.766 | AQ179: 0.766 | AR179: 0.75 | AS179: 0.75 | AT179: 0.75 | AU179: 0.7521
A180: 16 | F180: 61.1 | G180: 0.685 | H180: 0.685 | I180: 0.685 | J180: 0.685 | K180: 0.685 | L180: 0.685 | T180: 0.685 | U180: 0.684 | V180: 0.684 | W180: 0.675 | X180: 0.675 | Y180: 0.668 | Z180: 0.668 | AA180: 0.659 | AB180: 0.659 | AC180: 0.658 | AD180: 0.658 | AE180: 0.652 | AF180: 0.652 | AG180: 0.696 | AH180: 0.674 | AI180: 0.678 | AJ180: 0.675 | AK180: 0.675 | AL180: 0.781 | AM180: 0.781 | AN180: 0.773 | AO180: 0.773 | AP180: 0.77 | AQ180: 0.77 | AR180: 0.754 | AS180: 0.754 | AT180: 0.754 | AU180: 0.7561
A181: 17 | F181: 61.2 | G181: 0.688 | H181: 0.688 | I181: 0.688 | J181: 0.688 | K181: 0.688 | L181: 0.688 | T181: 0.688 | U181: 0.687 | V181: 0.687 | W181: 0.678 | X181: 0.678 | Y181: 0.671 | Z181: 0.671 | AA181: 0.662 | AB181: 0.662 | AC181: 0.661 | AD181: 0.661 | AE181: 0.655 | AF181: 0.655 | AG181: 0.699 | AH181: 0.678 | AI181: 0.681 | AJ181: 0.678 | AK181: 0.678 | AL181: 0.785 | AM181: 0.785 | AN181: 0.777 | AO181: 0.777 | AP181: 0.774 | AQ181: 0.774 | AR181: 0.759 | AS181: 0.759 | AT181: 0.759 | AU181: 0.7604
A182: 18 | F182: 61.3 | G182: 0.691 | H182: 0.691 | I182: 0.691 | J182: 0.691 | K182: 0.691 | L182: 0.691 | T182: 0.691 | U182: 0.69 | V182: 0.69 | W182: 0.681 | X182: 0.681 | Y182: 0.674 | Z182: 0.674 | AA182: 0.665 | AB182: 0.665 | AC182: 0.664 | AD182: 0.664 | AE182: 0.658 | AF182: 0.658 | AG182: 0.703 | AH182: 0.681 | AI182: 0.685 | AJ182: 0.682 | AK182: 0.682 | AL182: 0.789 | AM182: 0.789 | AN182: 0.781 | AO182: 0.781 | AP182: 0.778 | AQ182: 0.778 | AR182: 0.764 | AS182: 0.764 | AT182: 0.764 | AU182: 0.7646
A183: 19 | F183: 61.4 | G183: 0.694 | H183: 0.694 | I183: 0.694 | J183: 0.694 | K183: 0.694 | L183: 0.694 | T183: 0.694 | U183: 0.693 | V183: 0.693 | W183: 0.684 | X183: 0.684 | Y183: 0.677 | Z183: 0.677 | AA183: 0.668 | AB183: 0.668 | AC183: 0.667 | AD183: 0.667 | AE183: 0.661 | AF183: 0.661 | AG183: 0.706 | AH183: 0.685 | AI183: 0.688 | AJ183: 0.685 | AK183: 0.685 | AL183: 0.793 | AM183: 0.793 | AN183: 0.785 | AO183: 0.785 | AP183: 0.782 | AQ183: 0.782 | AR183: 0.77 | AS183: 0.77 | AT183: 0.77 | AU183: 0.7688
A184: 20 | F184: 61.5 | G184: 0.696 | H184: 0.696 | I184: 0.696 | J184: 0.696 | K184: 0.696 | L184: 0.696 | T184: 0.696 | U184: 0.695 | V184: 0.695 | W184: 0.687 | X184: 0.687 | Y184: 0.68 | Z184: 0.68 | AA184: 0.671 | AB184: 0.671 | AC184: 0.67 | AD184: 0.67 | AE184: 0.664 | AF184: 0.664 | AG184: 0.709 | AH184: 0.688 | AI184: 0.692 | AJ184: 0.689 | AK184: 0.689 | AL184: 0.797 | AM184: 0.797 | AN184: 0.789 | AO184: 0.789 | AP184: 0.786 | AQ184: 0.786 | AR184: 0.775 | AS184: 0.775 | AT184: 0.775 | AU184: 0.7731
A185: 21 | F185: 61.6 | G185: 0.699 | H185: 0.699 | I185: 0.699 | J185: 0.699 | K185: 0.699 | L185: 0.699 | T185: 0.699 | U185: 0.698 | V185: 0.698 | W185: 0.69 | X185: 0.69 | Y185: 0.683 | Z185: 0.683 | AA185: 0.674 | AB185: 0.674 | AC185: 0.673 | AD185: 0.673 | AE185: 0.667 | AF185: 0.667 | AG185: 0.712 | AH185: 0.692 | AI185: 0.695 | AJ185: 0.693 | AK185: 0.693 | AL185: 0.801 | AM185: 0.801 | AN185: 0.793 | AO185: 0.793 | AP185: 0.79 | AQ185: 0.79 | AR185: 0.78 | AS185: 0.78 | AT185: 0.78 | AU185: 0.7774
A186: 22 | F186: 61.7 | G186: 0.702 | H186: 0.702 | I186: 0.702 | J186: 0.702 | K186: 0.702 | L186: 0.702 | T186: 0.702 | U186: 0.701 | V186: 0.701 | W186: 0.693 | X186: 0.693 | Y186: 0.686 | Z186: 0.686 | AA186: 0.677 | AB186: 0.677 | AC186: 0.676 | AD186: 0.676 | AE186: 0.671 | AF186: 0.671 | AG186: 0.716 | AH186: 0.696 | AI186: 0.699 | AJ186: 0.696 | AK186: 0.696 | AL186: 0.805 | AM186: 0.805 | AN186: 0.798 | AO186: 0.798 | AP186: 0.795 | AQ186: 0.795 | AR186: 0.785 | AS186: 0.785 | AT186: 0.785 | AU186: 0.7817
A187: 23 | F187: 61.8 | G187: =IFERROR(HLOOKUP(G$9,Actuariele_factoren,$A187,0),"") -> 0.705 | H187: 0.705 | I187: 0.705 | J187: 0.705 | K187: 0.705 | L187: 0.705 | T187: 0.705 | U187: 0.704 | V187: 0.704 | W187: 0.695 | X187: 0.695 | Y187: 0.688 | Z187: 0.688 | AA187: 0.68 | AB187: 0.68 | AC187: 0.679 | AD187: 0.679 | AE187: 0.674 | AF187: 0.674 | AG187: 0.719 | AH187: 0.699 | AI187: 0.702 | AJ187: 0.7 | AK187: 0.7 | AL187: 0.808 | AM187: 0.808 | AN187: 0.802 | AO187: 0.802 | AP187: 0.799 | AQ187: 0.799 | AR187: 0.79 | AS187: 0.79 | AT187: 0.79 | AU187: 0.7861
A188: 24 | F188: 61.9 | G188: 0.708 | H188: 0.708 | I188: 0.708 | J188: 0.708 | K188: 0.708 | L188: 0.708 | T188: 0.708 | U188: 0.707 | V188: 0.707 | W188: 0.698 | X188: 0.698 | Y188: 0.691 | Z188: 0.691 | AA188: 0.683 | AB188: 0.683 | AC188: 0.682 | AD188: 0.682 | AE188: 0.677 | AF188: 0.677 | AG188: 0.722 | AH188: 0.703 | AI188: 0.705 | AJ188: 0.703 | AK188: 0.703 | AL188: 0.812 | AM188: 0.812 | AN188: 0.806 | AO188: 0.806 | AP188: 0.803 | AQ188: 0.803 | AR188: 0.795 | AS188: 0.795 | AT188: 0.795 | AU188: 0.7904
A189: 25 | F189: 61.10 | G189: 0.711 | H189: 0.711 | I189: 0.711 | J189: 0.711 | K189: 0.711 | L189: 0.711 | T189: 0.711 | U189: 0.71 | V189: 0.71 | W189: 0.701 | X189: 0.701 | Y189: 0.694 | Z189: 0.694 | AA189: 0.686 | AB189: 0.686 | AC189: 0.685 | AD189: 0.685 | AE189: 0.68 | AF189: 0.68 | AG189: 0.725 | AH189: 0.706 | AI189: 0.709 | AJ189: 0.707 | AK189: 0.707 | AL189: 0.816 | AM189: 0.816 | AN189: 0.81 | AO189: 0.81 | AP189: 0.807 | AQ189: 0.807 | AR189: 0.8 | AS189: 0.8 | AT189: 0.8 | AU189: 0.7948
A190: 26 | F190: 61.11 | G190: 0.713 | H190: 0.713 | I190: 0.713 | J190: 0.713 | K190: 0.713 | L190: 0.713 | T190: 0.713 | U190: 0.712 | V190: 0.712 | W190: 0.704 | X190: 0.704 | Y190: 0.697 | Z190: 0.697 | AA190: 0.689 | AB190: 0.689 | AC190: 0.688 | AD190: 0.688 | AE190: 0.683 | AF190: 0.683 | AG190: 0.729 | AH190: 0.71 | AI190: 0.712 | AJ190: 0.71 | AK190: 0.71 | AL190: 0.82 | AM190: 0.82 | AN190: 0.814 | AO190: 0.814 | AP190: 0.811 | AQ190: 0.811 | AR190: 0.805 | AS190: 0.805 | AT190: 0.805 | AU190: 0.7992
A191: 27 | F191: 62.0 | G191: 0.716 | H191: 0.716 | I191: 0.716 | J191: 0.716 | K191: 0.716 | L191: 0.716 | T191: 0.716 | U191: 0.715 | V191: 0.715 | W191: 0.707 | X191: 0.707 | Y191: 0.7 | Z191: 0.7 | AA191: 0.692 | AB191: 0.692 | AC191: 0.691 | AD191: 0.691 | AE191: 0.686 | AF191: 0.686 | AG191: 0.732 | AH191: 0.713 | AI191: 0.716 | AJ191: 0.714 | AK191: 0.714 | AL191: 0.824 | AM191: 0.824 | AN191: 0.818 | AO191: 0.818 | AP191: 0.815 | AQ191: 0.815 | AR191: 0.811 | AS191: 0.811 | AT191: 0.811 | AU191: 0.8037
A192: 28 | F192: 62.1 | G192: 0.719 | H192: 0.719 | I192: 0.719 | J192: 0.719 | K192: 0.719 | L192: 0.719 | T192: 0.719 | U192: 0.718 | V192: 0.718 | W192: 0.71 | X192: 0.71 | Y192: 0.703 | Z192: 0.703 | AA192: 0.695 | AB192: 0.695 | AC192: 0.694 | AD192: 0.694 | AE192: 0.689 | AF192: 0.689 | AG192: 0.735 | AH192: 0.717 | AI192: 0.719 | AJ192: 0.717 | AK192: 0.717 | AL192: 0.828 | AM192: 0.828 | AN192: 0.822 | AO192: 0.822 | AP192: 0.819 | AQ192: 0.819 | AR192: 0.816 | AS192: 0.816 | AT192: 0.816 | AU192: 0.8081
A193: 29 | F193: 62.2 | G193: 0.722 | H193: 0.722 | I193: 0.722 | J193: 0.722 | K193: 0.722 | L193: 0.722 | T193: 0.722 | U193: 0.721 | V193: 0.721 | W193: 0.713 | X193: 0.713 | Y193: 0.706 | Z193: 0.706 | AA193: 0.698 | AB193: 0.698 | AC193: 0.697 | AD193: 0.697 | AE193: 0.692 | AF193: 0.692 | AG193: 0.739 | AH193: 0.721 | AI193: 0.723 | AJ193: 0.721 | AK193: 0.721 | AL193: 0.832 | AM193: 0.832 | AN193: 0.826 | AO193: 0.826 | AP193: 0.824 | AQ193: 0.824 | AR193: 0.82 | AS193: 0.82 | AT193: 0.82 | AU193: 0.8128
A194: 30 | F194: 62.3 | G194: 0.725 | H194: 0.725 | I194: 0.725 | J194: 0.725 | K194: 0.725 | L194: 0.725 | T194: 0.725 | U194: 0.724 | V194: 0.724 | W194: 0.716 | X194: 0.716 | Y194: 0.71 | Z194: 0.71 | AA194: 0.702 | AB194: 0.702 | AC194: 0.701 | AD194: 0.701 | AE194: 0.696 | AF194: 0.696 | AG194: 0.742 | AH194: 0.725 | AI194: 0.727 | AJ194: 0.725 | AK194: 0.725 | AL194: 0.837 | AM194: 0.837 | AN194: 0.831 | AO194: 0.831 | AP194: 0.828 | AQ194: 0.828 | AR194: 0.824 | AS194: 0.824 | AT194: 0.824 | AU194: 0.8174
A195: 31 | F195: 62.4 | G195: 0.728 | H195: 0.728 | I195: 0.728 | J195: 0.728 | K195: 0.728 | L195: 0.728 | T195: 0.728 | U195: 0.727 | V195: 0.727 | W195: 0.72 | X195: 0.72 | Y195: 0.713 | Z195: 0.713 | AA195: 0.705 | AB195: 0.705 | AC195: 0.704 | AD195: 0.704 | AE195: 0.699 | AF195: 0.699 | AG195: 0.746 | AH195: 0.729 | AI195: 0.731 | AJ195: 0.729 | AK195: 0.729 | AL195: 0.841 | AM195: 0.841 | AN195: 0.835 | AO195: 0.835 | AP195: 0.833 | AQ195: 0.833 | AR195: 0.828 | AS195: 0.828 | AT195: 0.828 | AU195: 0.8221
A196: 32 | F196: 62.5 | G196: 0.731 | H196: 0.731 | I196: 0.731 | J196: 0.731 | K196: 0.731 | L196: 0.731 | T196: 0.731 | U196: 0.73 | V196: 0.73 | W196: 0.723 | X196: 0.723 | Y196: 0.716 | Z196: 0.716 | AA196: 0.708 | AB196: 0.708 | AC196: 0.707 | AD196: 0.707 | AE196: 0.702 | AF196: 0.702 | AG196: 0.75 | AH196: 0.732 | AI196: 0.734 | AJ196: 0.732 | AK196: 0.732 | AL196: 0.845 | AM196: 0.845 | AN196: 0.84 | AO196: 0.84 | AP196: 0.837 | AQ196: 0.837 | AR196: 0.832 | AS196: 0.832 | AT196: 0.832 | AU196: 0.8268
A197: 33 | F197: 62.6 | G197: =IFERROR(HLOOKUP(G$9,Actuariele_factoren,$A197,0),"") -> 0.734 | H197: 0.734 | I197: 0.734 | J197: 0.734 | K197: 0.734 | L197: 0.734 | T197: 0.734 | U197: 0.733 | V197: 0.733 | W197: 0.726 | X197: 0.726 | Y197: 0.719 | Z197: 0.719 | AA197: 0.712 | AB197: 0.712 | AC197: 0.711 | AD197: 0.711 | AE197: 0.706 | AF197: 0.706 | AG197: 0.753 | AH197: 0.736 | AI197: 0.738 | AJ197: 0.736 | AK197: 0.736 | AL197: 0.85 | AM197: 0.85 | AN197: 0.844 | AO197: 0.844 | AP197: 0.842 | AQ197: 0.842 | AR197: 0.836 | AS197: 0.836 | AT197: 0.836 | AU197: 0.8316
A198: 34 | F198: 62.7 | G198: 0.738 | H198: 0.738 | I198: 0.738 | J198: 0.738 | K198: 0.738 | L198: 0.738 | T198: 0.738 | U198: 0.737 | V198: 0.737 | W198: 0.729 | X198: 0.729 | Y198: 0.723 | Z198: 0.723 | AA198: 0.715 | AB198: 0.715 | AC198: 0.714 | AD198: 0.714 | AE198: 0.709 | AF198: 0.709 | AG198: 0.757 | AH198: 0.74 | AI198: 0.742 | AJ198: 0.74 | AK198: 0.74 | AL198: 0.854 | AM198: 0.854 | AN198: 0.849 | AO198: 0.849 | AP198: 0.847 | AQ198: 0.847 | AR198: 0.84 | AS198: 0.84 | AT198: 0.84 | AU198: 0.8363
A199: 35 | F199: 62.8 | G199: 0.741 | H199: 0.741 | I199: 0.741 | J199: 0.741 | K199: 0.741 | L199: 0.741 | T199: 0.741 | U199: 0.74 | V199: 0.74 | W199: 0.732 | X199: 0.732 | Y199: 0.726 | Z199: 0.726 | AA199: 0.718 | AB199: 0.718 | AC199: 0.717 | AD199: 0.717 | AE199: 0.712 | AF199: 0.712 | AG199: 0.761 | AH199: 0.744 | AI199: 0.746 | AJ199: 0.744 | AK199: 0.744 | AL199: 0.858 | AM199: 0.858 | AN199: 0.853 | AO199: 0.853 | AP199: 0.851 | AQ199: 0.851 | AR199: 0.844 | AS199: 0.844 | AT199: 0.844 | AU199: 0.8411
A200: 36 | F200: 62.9 | G200: 0.744 | H200: 0.744 | I200: 0.744 | J200: 0.744 | K200: 0.744 | L200: 0.744 | T200: 0.744 | U200: 0.743 | V200: 0.743 | W200: 0.735 | X200: 0.735 | Y200: 0.729 | Z200: 0.729 | AA200: 0.722 | AB200: 0.722 | AC200: 0.721 | AD200: 0.721 | AE200: 0.716 | AF200: 0.716 | AG200: 0.764 | AH200: 0.748 | AI200: 0.75 | AJ200: 0.748 | AK200: 0.748 | AL200: 0.863 | AM200: 0.863 | AN200: 0.857 | AO200: 0.857 | AP200: 0.856 | AQ200: 0.856 | AR200: 0.848 | AS200: 0.848 | AT200: 0.848 | AU200: 0.846
